Workbook

Sheet User's Guide
B1: LAST UPDATED: 1/10/2011
B2: Moldova: Combined CIS Rehabilitation Project
A8: PROJECT NAME | B8: Transition to High Value Agriculture
B9: Combined Centralized Irrigation System Rehabilitation Project
A10: SPREADSHEET VERSION | B10: Investment memo, final*
A11: DATE | B11: 2010-06-10
A12: AMOUNT OF MCC FUNDS | B12: $73.59 million
A13: PROJECT DESCRIPTION | B13: Most of the Government-owned irrigation infrastructure in Moldova requires rehabilitation to bring the systems back into working condition. MCC Funding will be used to rehabilitate up to 11 systems to provide reliable water to farm operations in their command areas. The 11 systems eligible for rehabilitation have completed feasibility studies
A23: BENEFIT STREAMS INCLUDED IN THE ERR | B23: Additional income from newly irrigated land as a result of the increase in high value-added crop cultivation, higher yields, lower production costs and energy and water savings.
A24: COSTS INCLUDED IN THE ERR (OTHER THAN COSTS BORNE BY MCC) | B24: None
A25: ESTIMATED ERR AND TIME HORIZON | B25: 14.26% over 20 years
A26: WORKSHEETS IN THIS FILE
B27: Activity Description
B28: This sheet should be read first, as it offers a summary of the project, a list of components, and states the economic rationale for the project.
B30: ERR & Sensitivity Analysis
B31: This sheet contains brief summary of the Combined CIS Rehab Project including key parameters and ERR calculations, giving the user the opportunity to test the sensitivity to the ERR of various changes in parameters.
B33: Cost and Benefit Summary
B34: This worksheet summarizes the costs and benefits associated with MCC investments in the Agricultural Finance Program. Benefits are summarized by year, and the associated ERR is computed over a 20-year timeframe
B45: Costs and Benefits Summary
B46: This worksheet summarizes the costs and benefits associated with MCC investments in the Agricultural Finance Program. Benefits are summarized by year, and the associated ERR is computed over a 20-year timeframe
B48: Common Assumptions
B49: Assumptions used in calculating ERR and cost/benefits analysis.
B51: ERR by System
B52: This worksheet gives the calculated ERR by location for the CIS Project
B54: Income Template
B55: Template for how Income by region was formed.
B57: ERR Template
B58: Template for how ERR by counties were formed
B60: ERR Teţcani
B61: Calculated ERR and accompanying data for the Tetcani region
B63: ERR Talmaz
B64: Calculated ERR and accompanying data for the Talmaz region
B66: ERR Suvorov
B67: Calculated ERR and accompanying data for the Suvorov region
B69: ERR Şerpeni
B70: Calculated ERR and accompanying data for the Şerpeni region
B72: ERR Roşcani
B73: Calculated ERR and accompanying data for the Roşcani region
B75: ERR Pugăcenii
B76: Calculated ERR and accompanying data for the Pugăcenii region
B78: ERR Lopatna
B79: Calculated ERR and accompanying data for the Lopatna region
B81: ERR Leova Sud
B82: Calculated ERR and accompanying data for the Leova Sud region
B84: ERR Jora de Jos
B85: Calculated ERR and accompanying data for the Jora de Jos region
B87: ERR Grozeşti
B88: Calculated ERR and accompanying data for the Grozeşti region
B90: ERR Criuleni
B91: Calculated ERR and accompanying data for the Criuleni region
B93: ERR Coşniţa
B94: Calculated ERR and accompanying data for the Coşniţa region
B96: ERR Chircani-Zîrneşti
B97: Calculated ERR and accompanying data for the Chircani-Zîrneşti region
B99: ERR Cărpinenii de Sus
B100: Calculated ERR and accompanying data for the Cărpinenii de Sus region
B102: ERR Cahul
B103: Calculated ERR and accompanying data for the Cahul region
B105: ERR Blindeşti
B106: Calculated ERR and accompanying data for the Blindeşti region
B108: Area Irrigated
B109: Irrigation data by farm size, used in the ERR of the CIS project
B111: Income South Small
B112: Income Estimares and survey data for small farms located in southern regions.
B114: Income South Medium
B115: Income Estimares and survey data for medium farms located in southern regions.
B117: Income South Large
B118: Income Estimares and survey data for large farms located in southern regions.
B120: Income North Small
B121: Income Estimares and survey data for small farms located in northern regions.
B123: Income North Medium
B124: Income Estimares and survey data for medium farms located in northern regions.
B126: Income North Large
B127: Income Estimares and survey data for large farms located in northern regions.
B129: Income Center Small
B130: Income Estimares and survey data for small farms located in central regions.
B132: Income Center Medium
B133: Income Estimares and survey data for medium farms located in central regions.
B135: Income Center Large
B136: Income Estimares and survey data for large farms located in central regions.
B138: Income Irrigated
B139: Income estimates and survey data for irrigated farms.
B141: Income unirrigated
B142: Income estimates and survey data for unirrigated farms
B144: System Parameters
B145: Estimated System Rehabilitation Costs
B147: Farm Survey Results
B148: Regression results from farm surveys
B150: M&E Indicators and Calcs
B151: M&E Indicator descriptions and calculations for CIS project.
B153: Summary of Input Stats
B154: Statistics from surveys used in calculating ERR.
B156: Farm count
B157: Farm Count by region.

Sheet Activity Description
B4: MILLENNIUM CHALLENGE CORPORATION
B6: Moldova: Combined CIS Rehabilitation Project
B8: Project Description
B10: Summary
B13: Most of the Government-owned irrigation infrastructure in Moldova requires rehabilitation to bring the systems back into working condition. MCC Funding will be used to rehabilitate up to 11 systems to provide reliable water to farm operations in their command areas. The 11 systems eligible for rehabilitation have completed feasibility studies
B14: Components
B16: The Irrigation System Rehabilitation Project is comprised of the following components:
B17: 1. Construction activities: These costs may include, without limitation, simple repair and/or replacement of pumps, valves, piping and ancillary systems, water intakes, related electrical and control systems, and pump station buildings; rehabilitation of reservoirs; and, installation of new system components where needed.
B18: 2. Construction activities: These costs may include, without limitation, simple repair and/or replacement of pumps, valves, piping and ancillary systems, water intakes, related electrical and control systems, and pump station buildings; rehabilitation of reservoirs; and, installation of new system components where needed.
B19: Economic Rationale
B20: The main economic impact of the Irrigated Agriculture group of activities will be to raise farmers‟ crop incomes dramatically, from an estimated per hectare profit of approximately US$150-200 to over US$500-1200 for grain crops, depending upon the size of farm and region of the country, and from an estimated per hectare profit of approximately US$ 300-450 to approximately US$1200-2700 per hectare for fruits and vegetable crops. At the same time, the fraction of land irrigated and cropped to HVA will rise dramatically.16 The increase in farm profits will cover the cost of irrigation even in systems where this cost will increase, even under somewhat conservative profitability assumptions. All production costs, including farm household labor and capital investment costs, are included in the profitability figures.
B21: The economic impacts of the Irrigated Agriculture group of activities were estimated using data collected through a detailed socio-economic survey of Moldovan farmers working both in the systems to be rehabilitated and outside these areas.
B23: ='User''s Guide'!B1 -> LAST UPDATED: 1/10/2011

Sheet ERR & Sensitivity Analysis
B2: Moldova: Combined CIS Rehabilitation Project
B7: ='User''s Guide'!B1 -> LAST UPDATED: 1/10/2011
B10: ERR and Sensitivity analysis | G10: Last updated: 8/24/2007
B12: NOTES:
B13: This program is designed to address the critical constraints of unreliable water delivery and non-operational or partially functional irrigation systems that inhibit farmers from transitioning to HVA production. Without reliable water service, farmers cannot profitably absorb the risks of many high value crops and increase their production. As a result, current agriculture production is predominantly of lower-value, more drought resistant crops, such as grains, that cannot cover the level of water tariffs and user fees needed to provide proper O&M of the irrigation systems. Rehabilitation of irrigation infrastructure will provide Moldovan producers in the targeted systems more reliable and sustainable water service. As a result, farmers will invest in irrigated agriculture on a substantially greater scale, and their incomes will increase in turn, raising their ability and willingness to pay full cost-recovery tariffs for water.10 Results of MCC‟s Moldovan farm survey indicate that the project will increase farmers‟ incomes sufficiently to enable them to pay the higher tariffs to cover O&M costs, and still experience dramatically higher net income.
B17: =IF('ERR & Sensitivity Analysis'!$I$20="N","NOTE: Current calculations are based on USER INPUT and are not the original MCC estimates.",IF('ERR & Sensitivity Analysis'!$I$21="N","NOTE: Current calculations are based on USER INPUT and are not the original MCC estimates.","")) -> 
B18: Parameter type | C18: Description of Key Parameters | D18: Parameter Values
D19: User Input | E19: MCC Estimate | F19: Plausible range | G19: Values used in ERR computation | I19: All summary parameters set to initial values?
B20: Summary | C20: Actual costs as a percentage of estimated costs | D20: 1 | E20: 1 | F20: 80% - 120% | G20: =D20 -> 1 | I20: =IF(D20=E20,IF(D21=E21,"Y","N"),"N") -> Y
B21: Summary | C21: Actual benefits as a percentage of estimated benefits | D21: 1 | E21: 1 | F21: 80% - 120% | G21: =D21 -> 1 | I21: =IF(E23=D23,IF(E24=D24,"Y""N"),"N") -> Y"N
B23: Specific | C23: Annual Depreciation in Water Reliability with Project | D23: 0.008 | E23: 0.008 | F23: .5% to 2% | G23: =IF(I20="Y",D23,E23) -> 0.008 | I23: More Info
B24: Specific | C24: Factor to Change Income per Hectare on HVA | D24: 0.9 | E24: 0.9 | F24: .5 to 1.3 | G24: =IF(I20="Y",D24,E24) -> 0.9 | I24: Activity Description
I25: User's Guide
C26: Economic rate of return (ERR): | D26: ='Cost and Benefits Summary CIS'!D198 -> 0.1430850416
C28: MCC Estimated ERR: | D28: 0.143
B30: =IF(I20="N",IF(I21="N","Reminder: Please reset all summary parameters to original values before changing specific parameters. Specific parameters will only be used in ERR computation when all summary parameters are set to initial values",0),0) -> 0
B68: † Complete distribution of ERR is not displayed, as this sensitivity was performed at expected yield and expected price.
A86: 0
A87: 1
A88: 2

Sheet Cost and Benefits Summary
A2: MILLENNIUM CHALLENGE CORPORATION
A3: Moldova: Combined CIS Rehabilitation Project
G4: ='User''s Guide'!B1 -> LAST UPDATED: 1/10/2011
A5: Central Irrigation Systems | G5: -2 | H5: -1 | I5: 1 | J5: 2 | K5: 3 | L5: 4 | M5: 5 | N5: 6 | O5: 7 | P5: 8 | Q5: 9 | R5: 10 | S5: 11 | T5: 12 | U5: 13 | V5: 14 | W5: 15 | X5: 16 | Y5: 17 | Z5: 18 | AA5: 19 | AB5: 20
A7: INCOME BENEFITS:
A8: Increased Farm Profits, Small Farms
A9: Increased Farm Profits, Medium Farms
A10: Increased Farm Profits, Large Farms
A12: Increased rents to landowners
A13: Amount of Land Rented:
A14: Increased rent values:
A16: Increased Labor Income
A17: Increased employment (person-days)
A18: Economic value of additional person-day of employment
A20: Adjustments for Market Distortions due to Trade Barriers, Subsidies and Taxes: | B20: This program is designed to address the critical constraints of unreliable water delivery and non-operational or partially functional irrigation systems that inhibit farmers from transitioning to HVA production. Without reliable water service, farmers cannot profitably absorb the risks of many high value crops and increase their production. As a result, current agriculture production is predominantly of lower-value, more drought resistant crops, such as grains, that cannot cover the level of water tariffs and user fees needed to provide proper O&M of the irrigation systems. Rehabilitation of irrigation infrastructure will provide Moldovan producers in the targeted systems more reliable and sustainable water service. As a result, farmers will invest in irrigated agriculture on a substantially greater scale, and their incomes will increase in turn, raising their ability and willingness to pay full cost-recovery tariffs for water.10 Results of MCC‟s Moldovan farm survey indicate that the project will increase farmers‟ incomes sufficiently to enable them to pay the higher tariffs to cover O&M costs, and still experience dramatically higher net income.
A21: Energy subsidy with project:
A22: Energy subsidy without project:
A23: Adjustment to farm profits without project
A24: Adjustment to profits with project
A25: Depletion of soil or water resources cost
A27: EFFICIENCY BENEFITS
A28: Savings from reduced energy costs, original CIS-irrigated areas
A29: Savings to Government and Water Users due to more efficient management
A31: TOTAL ECONOMIC BENEFITS
A33: COSTS:
A34: MCC Rehabilitation Costs | E34: Sum across systems
A35: Administrative costs
A36: Investment Costs, Farmers | E36: Sum across systems
A37: On Farm Equipment Investment by Farmers | E37: Sum across systems
A39: TOTAL COSTS
A41: NET BENEFITS:
A43: Irrigation Systems ERR:
A45: TECHNICAL ASSISTANCE | H45: Year | I45: 1 | J45: 2 | K45: 3 | L45: 4 | M45: 5 | N45: 6 | O45: 7 | P45: 8 | Q45: 9 | R45: 10 | S45: 11 | T45: 12 | U45: 13 | V45: 14 | W45: 15 | X45: 16 | Y45: 17 | Z45: 18 | AA45: 19 | AB45: 20
A47: INCOME BENEFITS:
A48: Increased Farm Profits, Small Farms
A49: Increased Farm Profits, Medium Farms
A50: Increased Farm Profits, Large Farms
A52: Increased rents to landowners
A53: Amount of Land Rented:
A54: Increased rent values:
A56: Increased Labor Income
A57: Increased employment (person-days)
A58: Economic value of additional person-day of employment
A60: Adjustments for Market Distortions due to Trade Barriers, Subsidies and Taxes:
A61: Energy subsidy with project:
A62: Energy subsidy without project:
A63: Adjustment to farm profits without project
A64: Adjustment to profits with project
A65: Depletion of soil or water resources cost
A67: EFFICIENCY BENEFITS
A68: Savings from reduced energy costs, original CIS-irrigated areas
A69: Savings to Government and Water Users due to more efficient management
A71: TOTAL ECONOMIC BENEFITS
A73: COSTS:
A74: MCC Costs:
B75: Administrative and programmatic
A78: TOTAL COSTS
A80: NET BENEFITS:
A84: FINANCE PROGRAM | H84: Year | I84: 1 | J84: 2 | K84: 3 | L84: 4 | M84: 5 | N84: 6 | O84: 7 | P84: 8 | Q84: 9 | R84: 10 | S84: 11 | T84: 12 | U84: 13 | V84: 14 | W84: 15 | X84: 16 | Y84: 17 | Z84: 18 | AA84: 19 | AB84: 20
A86: INCOME BENEFITS:
A87: Increased Farm Profits, Small Farms
A88: Increased Farm Profits, Medium Farms
A89: Increased Farm Profits, Large Farms
A91: Increased rents to landowners
A92: Amount of Land Rented:
A93: Increased rent values:
A95: Increased Labor Income
A96: Increased employment (person-days)
A97: Economic value of additional person-day of employment
A99: Adjustments for Market Distortions due to Trade Barriers, Subsidies and Taxes:
A100: Energy subsidy with project:
A101: Energy subsidy without project:
A102: Adjustment to farm profits without project
A103: Adjustment to profits with project
A104: Depletion of soil or water resources cost
A106: EFFICIENCY BENEFITS
A107: Savings from reduced energy costs, original CIS-irrigated areas
A108: Savings to Government and Water Users due to more efficient management
A110: TOTAL ECONOMIC BENEFITS
A112: COSTS:
A113: MCC Costs:
B114: Administrative and programmatic
A117: TOTAL COSTS
A119: NET BENEFITS:
A121: 1 | B121: 2 | C121: 3 | D121: 4 | E121: 5 | F121: 6 | G121: 7 | H121: 8 | I121: 9 | J121: 10 | K121: 11 | L121: 12 | M121: 13 | N121: 14 | O121: 15 | P121: 16 | Q121: 17 | R121: 18 | S121: 19 | T121: 20 | U121: 21 | V121: 22 | W121: 23 | X121: 24 | Y121: 25 | Z121: 26 | AA121: 27
A122: Total Benefits
A123: =IF('ERR & Sensitivity Analysis'!$I$20="N","NOTE: Current calculations are based on USER INPUT and are not the original MCC estimates.",IF('ERR & Sensitivity Analysis'!$I$21="N","NOTE: Current calculations are based on USER INPUT and are not the original MCC estimates.","")) -> 
C125: Baseline
C126: Baseline* | G126: Rehab Year
D127: C | E127: D | F127: E | G127: F | H127: G | I127: H | J127: I | K127: J | L127: K | M127: L | N127: M | O127: N | P127: O | Q127: P | R127: Q | S127: R | T127: S | U127: T | V127: U | W127: V | X127: W | Y127: X | Z127: Y | AA127: Z
C128: Model Year | E128: -2 | F128: -1 | G128: 0 | H128: 1 | I128: 2 | J128: 3 | K128: 4 | L128: 5 | M128: 6 | N128: 7 | O128: 8 | P128: 9 | Q128: 10 | R128: 11 | S128: 12 | T128: 13 | U128: 14 | V128: 15 | W128: 16 | X128: 17 | Y128: 18 | Z128: 19 | AA128: 20
C129: Compact Year | E129: 1 | F129: 2 | G129: 3 | H129: 4 | I129: 5 | J129: 6 | K129: 7 | L129: 8 | M129: 9 | N129: 10 | O129: 11 | P129: 12 | Q129: 13 | R129: 14 | S129: 15 | T129: 16 | U129: 17 | V129: 18 | W129: 19 | X129: 20 | Y129: 21 | Z129: 22 | AA129: 23
C130: 2008 | D130: 2009 | E130: 2010 | F130: 2011 | G130: 2012 | H130: 2013 | I130: 2014 | J130: 2015 | K130: 2016 | L130: 2017 | M130: 2018 | N130: 2019 | O130: 2020 | P130: 2021 | Q130: 2022 | R130: 2023 | S130: 2024 | T130: 2025 | U130: 2026 | V130: 2027 | W130: 2028 | X130: 2029 | Y130: 2030 | Z130: 2031 | AA130: 2032
A132: Benefits
A133: Blindeşti | B133: 3-2 | D133: =INDIRECT("'ERR "&$A133&"'!"&D$127&"46") -> 0 | E133: =INDIRECT("'ERR "&$A133&"'!"&E$127&"46") -> 0 | F133: 0 | G133: 0 | H133: 679042.7306 | I133: 3071645.447 | J133: 3140610.388 | K133: 3319345.42 | L133: 3296377.045 | M133: 4137504.574 | N133: 5133621.724 | O133: 2748984.327 | P133: 6704325.857 | Q133: 6705115.127 | R133: 6707317.184 | S133: 6709503.77 | T133: 6711675.196 | U133: =INDIRECT("'ERR "&$A133&"'!"&U$127&"46") -> 6713831.766 | V133: 2853896.518 | W133: -1102644.628 | X133: 2857331.748 | Y133: 2859040.721 | Z133: 2860744.086 | AA133: 2862441.955
A134: Cahul | B134: 6-9 | D134: =INDIRECT("'ERR "&$A134&"'!"&D$127&"46") -> 0 | E134: 0 | F134: 0 | G134: 0 | H134: 3071699.713 | I134: 12140454.44 | J134: 12528449.98 | K134: 13335413.69 | L134: 12324212.16 | M134: 15721070.62 | N134: 19917441.68 | O134: 12078545.64 | P134: 26247754.92 | Q134: 26247961.03 | R134: 26248163.01 | S134: 26248360.96 | T134: 26248554.95 | U134: 26248745.06 | V134: 15776069.35 | W134: 1606283.063 | X134: 15776283.69 | Y134: 15776387.65 | Z134: 15776489.53 | AA134: 15776589.38
A135: Cărpinenii de Sus | B135: 4-5-1 | D135: 0 | E135: 0 | F135: 0 | G135: 0 | H135: 1354878.566 | I135: 9761092.452 | J135: 10021314.49 | K135: 10661353.05 | L135: 11357583.99 | M135: 14233776.35 | N135: 17583062.71 | O135: 8890804.018 | P135: 22969358.42 | Q135: 22970516.11 | R135: 22973793.5 | S135: 22977048.2 | T135: 22980280.67 | U135: 22983491.34 | V135: 9052418.417 | W135: -5028106.529 | X135: 9057486.684 | Y135: 9060009.119 | Z135: 9062523.963 | AA135: 9065031.367
A136: Chircani-Zîrneşti | B136: 6-6 | D136: 0 | E136: 0 | F136: 0 | G136: 0 | H136: 15080154.29 | I136: 35148615.18 | J136: 35649503.48 | K136: 37827899.36 | L136: 39578108.32 | M136: 49222740.36 | N136: 59975140.27 | O136: 41399915.61 | P136: 75820136.02 | Q136: 75839083.84 | R136: 75857652.7 | S136: 75875850.19 | T136: 75893683.73 | U136: 75911160.59 | V136: 44972870.61 | W136: 10512506.46 | X136: 44992318.26 | Y136: 45001751.35 | Z136: 45010995.78 | AA136: 45020055.32
A137: Coşniţa | B137: 12-3 | D137: 0 | E137: 0 | F137: 0 | G137: 0 | H137: 4906233.418 | I137: 15055233.88 | J137: 15345379.88 | K137: 16150808.84 | L137: 15500348.56 | M137: 19491467.47 | N137: 24179672.78 | O137: 14007022.09 | P137: 31581553.25 | Q137: 31716431.85 | R137: 32077541.46 | S137: 32436007.44 | T137: 32791882.67 | U137: 33145218.98 | V137: 15624375.94 | W137: -2136510.779 | X137: 16186659.34 | Y137: 16466239.92 | Z137: 16744807.47 | AA137: 17022382.23
A138: Criuleni | B138: 14-2 | D138: 0 | E138: 0 | F138: 0 | G138: 0 | H138: 1758775.739 | I138: 4454410.685 | J138: 4502451.298 | K138: 4742161.591 | L138: 5014645.905 | M138: 6222199.531 | N138: 7545283.055 | O138: 4730829.452 | P138: 9597719.865 | Q138: 9620862.058 | R138: 9677469.979 | S138: 9733624.312 | T138: 9789334.131 | U138: 9844608.324 | V138: 4329834.693 | W138: -564453.1187 | X138: 4414847.688 | Y138: 4457097.714 | Z138: 4499181.311 | AA138: 4541101.807
A139: Grozeşti | B139: 3-6 | D139: 0 | E139: 0 | F139: 0 | G139: 0 | H139: 4026401.871 | I139: 8619847.999 | J139: 8632294.127 | K139: 9098700.916 | L139: 10644134.61 | M139: 13036856.6 | N139: 15457447.27 | O139: 10333133.17 | P139: 19137383.17 | Q139: 19137383.17 | R139: 19137383.17 | S139: 19137383.17 | T139: 19137383.17 | U139: 19137383.17 | V139: 7522478.729 | W139: -1281771.271 | X139: 7522478.729 | Y139: 7522478.729 | Z139: 7522478.729 | AA139: 7522478.729
A140: Jora de Jos | B140: 11-6 | D140: 0 | E140: 0 | F140: 0 | G140: 0 | H140: 2471968.625 | I140: 7288108.898 | J140: 7374931.567 | K140: 7779665.149 | L140: 8584349.233 | M140: 10639789.71 | N140: 12860964.11 | O140: 7611393.038 | P140: 16376307.44 | Q140: 16404811.16 | R140: 16462744.81 | S140: 16520119.79 | T140: 16576947.26 | U140: 16633238.19 | V140: 6775640.34 | W140: -2042214.774 | X140: 6855367.678 | Y140: 6894936.434 | Z140: 6934313.814 | AA140: 6973503.647
A141: Leova Sud | B141: 5-4 | D141: 0 | E141: 0 | F141: 0 | G141: 0 | H141: 2156073.538 | I141: 6532611.345 | J141: 6676986.838 | K141: 7124927.721 | L141: 7551032.45 | M141: 9443036.501 | N141: 11594719.48 | O141: 7456598.583 | P141: 14842036.6 | Q141: 14847495.61 | R141: 14853202.59 | S141: 14858802.58 | T141: 14864297.7 | U141: 14869690.07 | V141: 8507548.951 | W141: 1108840.48 | X141: 8513653.313 | Y141: 8516624.915 | Z141: 8519544.228 | AA141: 8522412.298
A142: Lopatna | B142: 11-7 | D142: 0 | E142: 0 | F142: 0 | G142: 0 | H142: 1562864.832 | I142: 3450974.014 | J142: 3476056.987 | K142: 3677581.841 | L142: 4220265.293 | M142: 5199507.704 | N142: 6214648.038 | O142: 4131440.908 | P142: 7784143.541 | Q142: 7811449.298 | R142: 7873208.939 | S142: 7934433.388 | T142: 7995133.348 | U142: 8055319.309 | V142: 3409007.296 | W142: -272622.9892 | X142: 3498295.091 | Y142: 3542650.645 | Z142: 3586819.088 | AA142: 3630804.163
A143: Pugăcenii | B143: 14-11 | D143: 0 | E143: 0 | F143: 0 | G143: 0 | H143: 2957784.329 | I143: 6854201.359 | J143: 6898919.679 | K143: 7261805.711 | L143: 7792204.339 | M143: 9615971.352 | N143: 11581754.02 | O143: 7588348.699 | P143: 14552213.63 | Q143: 14552476.46 | R143: 14553091.19 | S143: 14553700.76 | T143: 14554305.28 | U143: 14554904.86 | V143: 6205269.232 | W143: -758864.9694 | X143: 6206178.146 | Y143: 6206629.694 | Z143: 6207079.354 | AA143: 6207527.163
A144: Roşcani | B144: 14-13 | D144: 0 | E144: 0 | F144: 0 | G144: 0 | H144: 2286000.951 | I144: 5187275.431 | J144: 5193081.346 | K144: 5453505.715 | L144: 6420018.834 | M144: 7873722.371 | N144: 9330267.02 | O144: 5925816.096 | P144: 11611620.4 | Q144: 11622820.98 | R144: 11648440.41 | S144: 11673840.31 | T144: 11699025.07 | U144: 11723998.99 | V144: 4675170.521 | W144: -1024438.559 | X144: 4712115.396 | Y144: 4730473.334 | Z144: 4748756.969 | AA144: 4766967.79
A145: Şerpeni | B145: 14-6 | D145: 0 | E145: 0 | F145: 0 | G145: 0 | H145: 1176990.666 | I145: 6239505.184 | J145: 6384449.28 | K145: 6737729.589 | L145: 6684091.89 | M145: 8404537.164 | N145: 10446056.22 | O145: 5318055.14 | P145: 13708419.05 | Q145: 13711454.52 | R145: 13717643.56 | S145: 13723773.11 | T145: 13729844.35 | U145: 13735858.46 | V145: 5800126.536 | W145: -2597770.094 | X145: 5808761.079 | Y145: 5813045.372 | Z145: 5817308.265 | AA145: 5821550.186
A146: Suvorov | B146: 17-3 | D146: 0 | E146: 0 | F146: 0 | G146: 0 | H146: 1920492.758 | I146: 61394400.74 | J146: 64630638.18 | K146: 70486394.97 | L146: 73492895.64 | M146: 94059712.16 | N146: 119539980.6 | O146: 65379278.88 | P146: 159275178.5 | Q146: 159454851.7 | R146: 159948788.7 | S146: 160439204 | T146: 160926168.1 | U146: 161409750.2 | V146: 90176916.29 | W146: -3993160.799 | X146: 90982787.14 | Y146: 91383178.81 | Z146: 91781919.79 | AA146: 92179043.09
A147: Talmaz | B147: 17-2 | D147: 0 | E147: 0 | F147: 0 | G147: 0 | H147: 5117605.545 | I147: 16552931.43 | J147: 16996391.84 | K147: 18007682.42 | L147: 16483739.61 | M147: 20958774.91 | N147: 26426038.93 | O147: 16556774.7 | P147: 34617951.74 | Q147: 34623531.17 | R147: 34637927.57 | S147: 34652214.62 | T147: 34666394.5 | U147: 34680469.36 | V147: 21172100.21 | W147: 3105126.979 | X147: 21195852.36 | Y147: 21207640.31 | Z147: 21219371.07 | AA147: 21231045.79
A148: Teţcani | B148: 1-1 | D148: 0 | E148: 0 | F148: 0 | G148: 0 | H148: 5899488.347 | I148: 11220089.59 | J148: 11413603.27 | K148: 14104727.89 | L148: 18302616.65 | M148: 22485662.41 | N148: 26056343.6 | O148: 16639431.04 | P148: 27614738.61 | Q148: 27661013.16 | R148: 27751362.22 | S148: 27840804.3 | T148: =INDIRECT("'ERR "&$A148&"'!"&T$127&"46") -> 27929357.54 | U148: 28017039.72 | V148: 17042061.31 | W148: 6038067.631 | X148: 17180486.57 | Y148: 17248975.27 | Z148: 17316994.19 | AA148: 17384552.73
A149: TOTAL | D149: =SUM(D133:D148) -> 0 | E149: =SUM(E133:E148) -> 0 | F149: 0 | G149: 0 | H149: 56426455.92 | I149: 212971398.1 | J149: 218865062.6 | K149: 235769703.9 | L149: 247246624.5 | M149: 310746329.8 | N149: 383842441.5 | O149: 230796371.4 | P149: 492440841 | Q149: 492927257.3 | R149: 494125731 | S149: 495314670.9 | T149: 496494267.7 | U149: 497664708.3 | V149: 263895784.9 | W149: 1568266.106 | X149: 265760902.9 | Y149: 266687160 | Z149: 267609327.6 | AA149: 268527487.6
A150: Total in 2005 USD, PPP | D150: =D149/5.923 -> 0 | E150: =E149/5.923 -> 0 | F150: 0 | G150: 0 | H150: 9526668.229 | I150: 35956677.03 | J150: 36951724.23 | K150: 39805791.64 | L150: 41743478.73 | M150: 52464347.42 | N150: 64805409.68 | O150: 38966127.2 | P150: 83140442.51 | Q150: 83222565.81 | R150: 83424908.15 | S150: 83625640.87 | T150: 83824796.17 | U150: 84022405.59 | V150: 44554412.45 | W150: 264775.6383 | X150: 44869306.59 | Y150: 45025689.68 | Z150: 45181382.35 | AA150: 45336398.39
A152: Benefits of 11 selected Systems
A153: Blindeşti | D153: =VLOOKUP($A153,$A$133:$AA$148,D$121,FALSE) -> 0 | E153: 0 | F153: 0 | G153: 0 | H153: 679042.7306 | I153: 3071645.447 | J153: 3140610.388 | K153: 3319345.42 | L153: 3296377.045 | M153: 4137504.574 | N153: =VLOOKUP($A153,$A$133:$AA$148,N$121,FALSE) -> 5133621.724 | O153: 2748984.327 | P153: 6704325.857 | Q153: 6705115.127 | R153: 6707317.184 | S153: 6709503.77 | T153: 6711675.196 | U153: 6713831.766 | V153: 2853896.518 | W153: -1102644.628 | X153: 2857331.748 | Y153: 2859040.721 | Z153: 2860744.086 | AA153: 2862441.955
A154: Cahul | D154: 0 | E154: 0 | F154: 0 | G154: 0 | H154: 3071699.713 | I154: 12140454.44 | J154: 12528449.98 | K154: 13335413.69 | L154: 12324212.16 | M154: 15721070.62 | N154: 19917441.68 | O154: 12078545.64 | P154: 26247754.92 | Q154: 26247961.03 | R154: 26248163.01 | S154: 26248360.96 | T154: 26248554.95 | U154: 26248745.06 | V154: 15776069.35 | W154: 1606283.063 | X154: 15776283.69 | Y154: 15776387.65 | Z154: 15776489.53 | AA154: 15776589.38
A155: Coşniţa | D155: 0 | E155: 0 | F155: 0 | G155: 0 | H155: 4906233.418 | I155: 15055233.88 | J155: 15345379.88 | K155: 16150808.84 | L155: 15500348.56 | M155: 19491467.47 | N155: 24179672.78 | O155: 14007022.09 | P155: 31581553.25 | Q155: 31716431.85 | R155: 32077541.46 | S155: 32436007.44 | T155: 32791882.67 | U155: 33145218.98 | V155: 15624375.94 | W155: -2136510.779 | X155: 16186659.34 | Y155: 16466239.92 | Z155: 16744807.47 | AA155: 17022382.23
A156: Criuleni | D156: 0 | E156: 0 | F156: 0 | G156: 0 | H156: 1758775.739 | I156: 4454410.685 | J156: 4502451.298 | K156: 4742161.591 | L156: 5014645.905 | M156: 6222199.531 | N156: 7545283.055 | O156: 4730829.452 | P156: 9597719.865 | Q156: 9620862.058 | R156: 9677469.979 | S156: 9733624.312 | T156: 9789334.131 | U156: 9844608.324 | V156: 4329834.693 | W156: -564453.1187 | X156: 4414847.688 | Y156: 4457097.714 | Z156: 4499181.311 | AA156: 4541101.807
A157: Grozeşti | D157: 0 | E157: 0 | F157: 0 | G157: 0 | H157: 4026401.871 | I157: 8619847.999 | J157: 8632294.127 | K157: 9098700.916 | L157: 10644134.61 | M157: 13036856.6 | N157: 15457447.27 | O157: 10333133.17 | P157: 19137383.17 | Q157: 19137383.17 | R157: 19137383.17 | S157: 19137383.17 | T157: 19137383.17 | U157: 19137383.17 | V157: 7522478.729 | W157: -1281771.271 | X157: 7522478.729 | Y157: 7522478.729 | Z157: 7522478.729 | AA157: 7522478.729
A158: Jora de Jos | D158: 0 | E158: 0 | F158: 0 | G158: 0 | H158: 2471968.625 | I158: 7288108.898 | J158: 7374931.567 | K158: 7779665.149 | L158: 8584349.233 | M158: 10639789.71 | N158: 12860964.11 | O158: 7611393.038 | P158: 16376307.44 | Q158: 16404811.16 | R158: 16462744.81 | S158: 16520119.79 | T158: 16576947.26 | U158: 16633238.19 | V158: 6775640.34 | W158: -2042214.774 | X158: 6855367.678 | Y158: 6894936.434 | Z158: 6934313.814 | AA158: 6973503.647
A159: Leova Sud | D159: 0 | E159: 0 | F159: 0 | G159: 0 | H159: 2156073.538 | I159: 6532611.345 | J159: 6676986.838 | K159: 7124927.721 | L159: 7551032.45 | M159: 9443036.501 | N159: 11594719.48 | O159: 7456598.583 | P159: 14842036.6 | Q159: 14847495.61 | R159: 14853202.59 | S159: 14858802.58 | T159: 14864297.7 | U159: 14869690.07 | V159: 8507548.951 | W159: 1108840.48 | X159: 8513653.313 | Y159: 8516624.915 | Z159: 8519544.228 | AA159: 8522412.298
A160: Lopatna | D160: 0 | E160: 0 | F160: 0 | G160: 0 | H160: 1562864.832 | I160: 3450974.014 | J160: 3476056.987 | K160: 3677581.841 | L160: 4220265.293 | M160: 5199507.704 | N160: 6214648.038 | O160: 4131440.908 | P160: 7784143.541 | Q160: 7811449.298 | R160: 7873208.939 | S160: 7934433.388 | T160: 7995133.348 | U160: 8055319.309 | V160: 3409007.296 | W160: -272622.9892 | X160: 3498295.091 | Y160: 3542650.645 | Z160: 3586819.088 | AA160: 3630804.163
A161: Pugăcenii | D161: 0 | E161: 0 | F161: 0 | G161: 0 | H161: 2957784.329 | I161: 6854201.359 | J161: 6898919.679 | K161: 7261805.711 | L161: 7792204.339 | M161: 9615971.352 | N161: 11581754.02 | O161: 7588348.699 | P161: 14552213.63 | Q161: 14552476.46 | R161: 14553091.19 | S161: 14553700.76 | T161: 14554305.28 | U161: 14554904.86 | V161: 6205269.232 | W161: -758864.9694 | X161: 6206178.146 | Y161: 6206629.694 | Z161: 6207079.354 | AA161: 6207527.163
A162: Roşcani | D162: 0 | E162: 0 | F162: 0 | G162: 0 | H162: 2286000.951 | I162: 5187275.431 | J162: 5193081.346 | K162: 5453505.715 | L162: 6420018.834 | M162: 7873722.371 | N162: 9330267.02 | O162: 5925816.096 | P162: 11611620.4 | Q162: 11622820.98 | R162: 11648440.41 | S162: 11673840.31 | T162: 11699025.07 | U162: 11723998.99 | V162: 4675170.521 | W162: -1024438.559 | X162: 4712115.396 | Y162: 4730473.334 | Z162: 4748756.969 | AA162: 4766967.79
A163: Chircani-Zîrneşti | D163: 0 | E163: 0 | F163: 0 | G163: 0 | H163: 15080154.29 | I163: 35148615.18 | J163: 35649503.48 | K163: 37827899.36 | L163: 39578108.32 | M163: 49222740.36 | N163: 59975140.27 | O163: 41399915.61 | P163: 75820136.02 | Q163: 75839083.84 | R163: 75857652.7 | S163: 75875850.19 | T163: 75893683.73 | U163: 75911160.59 | V163: 44972870.61 | W163: 10512506.46 | X163: 44992318.26 | Y163: 45001751.35 | Z163: 45010995.78 | AA163: 45020055.32
A164: TOTAL | D164: =SUM(D153:D163) -> 0 | E164: 0 | F164: 0 | G164: 0 | H164: 40957000.04 | I164: 107803378.7 | J164: 109418665.6 | K164: 115771816 | L164: 120925696.7 | M164: 150603866.8 | N164: 183790959.4 | O164: 118012027.6 | P164: 234255194.7 | Q164: 234505890.6 | R164: 235096215.4 | S164: 235681626.7 | T164: 236262222.5 | U164: 236838099.3 | V164: 120652162.2 | W164: 4044108.918 | X164: 121535529.1 | Y164: 121974311.1 | Z164: 122411210.4 | AA164: 122846264.5 | AB164: Benefits Sensitivity Parameter
A165: Total With Sensitivity Parameter | D165: =D164*$AB$165 -> 0 | E165: 0 | F165: 0 | G165: 0 | H165: 40957000.04 | I165: 107803378.7 | J165: 109418665.6 | K165: 115771816 | L165: 120925696.7 | M165: 150603866.8 | N165: 183790959.4 | O165: 118012027.6 | P165: 234255194.7 | Q165: 234505890.6 | R165: 235096215.4 | S165: 235681626.7 | T165: 236262222.5 | U165: 236838099.3 | V165: 120652162.2 | W165: 4044108.918 | X165: 121535529.1 | Y165: 121974311.1 | Z165: 122411210.4 | AA165: 122846264.5 | AB165: ='ERR & Sensitivity Analysis'!D21 -> 1
A166: Total w/ Sensitivity Parameter in 2005 USD, PPP | D166: =D165/5.923 -> 0 | E166: =E165/5.923 -> 0 | F166: 0 | G166: 0 | H166: 6914907.992 | I166: 18200806.8 | J166: 18473521.12 | K166: 19546144.85 | L166: 20416291.87 | M166: 25426957.08 | N166: 31030045.49 | O166: 19924367.32 | P166: 39550091.96 | Q166: 39592417.79 | R166: 39692084.32 | S166: 39790921.27 | T166: 39888945.22 | U166: 39986172.43 | V166: 20370110.11 | W166: 682780.5027 | X166: 20519251.91 | Y166: 20593332.96 | Z166: 20667096.13 | AA166: 20740547.78
A168: Costs
A169: Blindeşti | B169: 3-2 | D169: =INDIRECT("'ERR "&$A169&"'!"&D$127&"57") -> 1686545.858 | E169: 7592037.992 | F169: 11270698.1 | G169: 9198698.918 | H169: 4653301.589 | I169: 1426488.772 | J169: 0 | K169: 0 | L169: 0 | M169: 0 | N169: =INDIRECT("'ERR "&$A169&"'!"&N$127&"57") -> 0 | O169: 0 | P169: 0 | Q169: 0 | R169: 0 | S169: 0 | T169: 0 | U169: 0 | V169: 0 | W169: 0 | X169: 0 | Y169: 0 | Z169: 0 | AA169: 0
A170: Cahul | B170: 6-9 | D170: 6372692.308 | E170: 24630121.47 | F170: 38487538.34 | G170: 31233290.84 | H170: 15005871.23 | I170: 3570819.947 | J170: 0 | K170: 0 | L170: 0 | M170: 0 | N170: 0 | O170: 0 | P170: 0 | Q170: 0 | R170: 0 | S170: 0 | T170: 0 | U170: 0 | V170: 0 | W170: 0 | X170: 0 | Y170: 0 | Z170: 0 | AA170: 0
A171: Cărpinenii de Sus | B171: 4-5-1 | D171: 11484852.07 | E171: 40189933.23 | F171: 64697793.21 | G171: 52294322.24 | H171: 23536340.39 | I171: 3395803.563 | J171: 0 | K171: 0 | L171: 0 | M171: 0 | N171: 0 | O171: 0 | P171: 0 | Q171: 0 | R171: 0 | S171: 0 | T171: 0 | U171: 0 | V171: 0 | W171: 0 | X171: 0 | Y171: 0 | Z171: 0 | AA171: 0
A172: Chircani-Zîrneşti | B172: 6-6 | D172: 11712448.22 | E172: 45659788.51 | F172: 71357712.98 | G172: 57929428.73 | H172: 28276720.67 | I172: 7355739.487 | J172: 0 | K172: 0 | L172: 0 | M172: 0 | N172: 0 | O172: 0 | P172: 0 | Q172: 0 | R172: 0 | S172: 0 | T172: 0 | U172: 0 | V172: 0 | W172: 0 | X172: 0 | Y172: 0 | Z172: 0 | AA172: 0
A173: Coşniţa | B173: 12-3 | D173: 3688224.852 | E173: 17942926.4 | F173: 26429959.85 | G173: 21632588.05 | H173: 11880536.33 | I173: 4894856.939 | J173: 0 | K173: 0 | L173: 0 | M173: 0 | N173: 0 | O173: 0 | P173: 0 | Q173: 0 | R173: 0 | S173: 0 | T173: 0 | U173: 0 | V173: 0 | W173: 0 | X173: 0 | Y173: 0 | Z173: 0 | AA173: 0
A174: Criuleni | B174: 14-2 | D174: 1581501.479 | E174: 7553830.67 | F174: 11055833.93 | G174: 9042758.13 | H174: 4734987.1 | I174: 1663902.301 | J174: 0 | K174: 0 | L174: 0 | M174: 0 | N174: 0 | O174: 0 | P174: 0 | Q174: 0 | R174: 0 | S174: 0 | T174: 0 | U174: 0 | V174: 0 | W174: 0 | X174: 0 | Y174: 0 | Z174: 0 | AA174: 0
A175: Grozeşti | B175: 3-6 | D175: 3120051.479 | E175: 12924939.42 | F175: 19735428.91 | G175: 16058030.34 | H175: 7930543.472 | I175: 2182863.927 | J175: 0 | K175: 0 | L175: 0 | M175: 0 | N175: 0 | O175: 0 | P175: 0 | Q175: 0 | R175: 0 | S175: 0 | T175: 0 | U175: 0 | V175: 0 | W175: 0 | X175: 0 | Y175: 0 | Z175: 0 | AA175: 0
A176: Jora de Jos | B176: 11-6 | D176: 3349748.521 | E176: 13902886.76 | F176: 21233700.97 | G176: 17278505.98 | H176: 8568340.976 | I176: 2406580.522 | J176: 0 | K176: 0 | L176: 0 | M176: 0 | N176: 0 | O176: 0 | P176: 0 | Q176: 0 | R176: 0 | S176: 0 | T176: 0 | U176: 0 | V176: 0 | W176: 0 | X176: 0 | Y176: 0 | Z176: 0 | AA176: 0
A177: Leova Sud | B177: 5-4 | D177: 1838276.627 | E177: 8870006.35 | F177: 12987083.55 | G177: 10626334.93 | H177: 5651475.333 | I177: 2099160.439 | J177: 0 | K177: 0 | L177: 0 | M177: 0 | N177: 0 | O177: 0 | P177: 0 | Q177: 0 | R177: 0 | S177: 0 | T177: 0 | U177: 0 | V177: 0 | W177: 0 | X177: 0 | Y177: 0 | Z177: 0 | AA177: 0
A178: Lopatna | B178: 11-7 | D178: 945399.4083 | E178: 5279470.518 | F178: 7405554.96 | G178: 6089526.59 | H178: 3364776.425 | I178: 1404727.387 | J178: 0 | K178: 0 | L178: 0 | M178: 0 | N178: 0 | O178: 0 | P178: 0 | Q178: 0 | R178: 0 | S178: 0 | T178: 0 | U178: 0 | V178: 0 | W178: 0 | X178: 0 | Y178: 0 | Z178: 0 | AA178: 0
A179: Pugăcenii | B179: 14-11 | D179: =INDIRECT("'ERR "&$A179&"'!"&D$127&"57") -> 2871213.018 | E179: 11860457.54 | F179: 18106506.77 | G179: 14730893.5 | H179: 7234996.6 | I179: 1936319.108 | J179: 0 | K179: 0 | L179: 0 | M179: 0 | N179: =INDIRECT("'ERR "&$A179&"'!"&N$127&"57") -> 0 | O179: 0 | P179: 0 | Q179: 0 | R179: 0 | S179: 0 | T179: 0 | U179: 0 | V179: 0 | W179: 0 | X179: 0 | Y179: 0 | Z179: 0 | AA179: 0
A180: Roşcani | B180: 14-13 | D180: 1505636.095 | E180: 7328954.804 | F180: 10673807.89 | G180: 8736142.524 | H180: 4613901.797 | I180: 1671511.709 | J180: 0 | K180: 0 | L180: 0 | M180: 0 | N180: 0 | O180: 0 | P180: 0 | Q180: 0 | R180: 0 | S180: 0 | T180: 0 | U180: 0 | V180: 0 | W180: 0 | X180: 0 | Y180: 0 | Z180: 0 | AA180: 0
A181: Şerpeni | B181: 14-6 | D181: 3559837.278 | E181: 14444715.17 | F181: 22198590.08 | G181: 18048039.81 | H181: 8829803.577 | I181: 2318311.389 | J181: 0 | K181: 0 | L181: 0 | M181: 0 | N181: 0 | O181: 0 | P181: 0 | Q181: 0 | R181: 0 | S181: 0 | T181: 0 | U181: 0 | V181: 0 | W181: 0 | X181: 0 | Y181: 0 | Z181: 0 | AA181: 0
A182: Suvorov | B182: 17-3 | D182: 58515554.73 | E182: 206491851.9 | F182: 332451401.2 | G182: 268820056 | H182: 123150974.2 | I182: 21017670.61 | J182: 0 | K182: 0 | L182: 0 | M182: 0 | N182: 0 | O182: 0 | P182: 0 | Q182: 0 | R182: 0 | S182: 0 | T182: 0 | U182: 0 | V182: 0 | W182: 0 | X182: 0 | Y182: 0 | Z182: 0 | AA182: 0
A183: Talmaz | B183: 17-2 | D183: 8047566.568 | E183: 30782748.23 | F183: 48287600.35 | G183: 39170666.79 | H183: 18763532.95 | I183: 4389592.248 | J183: 0 | K183: 0 | L183: 0 | M183: 0 | N183: 0 | O183: 0 | P183: 0 | Q183: 0 | R183: 0 | S183: 0 | T183: 0 | U183: 0 | V183: 0 | W183: 0 | X183: 0 | Y183: 0 | Z183: 0 | AA183: 0
A184: Teţcani | B184: 1-1 | D184: 7995044.379 | E184: 28403593.65 | F184: 45466439.56 | G184: 36772003.06 | H184: 16650101.27 | I184: 2548115.511 | J184: 0 | K184: 0 | L184: 0 | M184: 0 | N184: 0 | O184: 0 | P184: 0 | Q184: 0 | R184: 0 | S184: 0 | T184: 0 | U184: 0 | V184: 0 | W184: 0 | X184: 0 | Y184: 0 | Z184: 0 | AA184: 0
A185: TOTAL | D185: =SUM(D169:D184) -> 128274592.9 | E185: =SUM(E169:E184) -> 483858262.6 | F185: 761845650.6 | G185: 617661286.5 | H185: 292846203.9 | I185: 64282463.86 | J185: 0 | K185: 0 | L185: 0 | M185: 0 | N185: 0 | O185: 0 | P185: 0 | Q185: 0 | R185: 0 | S185: 0 | T185: 0 | U185: 0 | V185: 0 | W185: 0 | X185: 0 | Y185: 0 | Z185: 0 | AA185: 0 | AB185: Investment Sensitivity Parameter
A186: Total With Sensitivity Parameter | D186: =D185*$AB$186 -> 128274592.9 | E186: 483858262.6 | F186: 761845650.6 | G186: 617661286.5 | H186: 292846203.9 | I186: 64282463.86 | J186: 0 | K186: 0 | L186: 0 | M186: 0 | N186: 0 | O186: 0 | P186: 0 | Q186: 0 | R186: 0 | S186: 0 | T186: 0 | U186: 0 | V186: 0 | W186: 0 | X186: 0 | Y186: 0 | Z186: 0 | AA186: 0 | AB186: ='ERR & Sensitivity Analysis'!D20 -> 1
A187: Total With Sensitivity Parameter in USD, PPP | D187: =D186/5.923 -> 21657030.71 | E187: =E186/5.923 -> 81691416.96 | F187: 128624962.1 | G187: 104281831.2 | H187: 49442209 | I187: 10853024.46 | J187: 0 | K187: 0 | L187: 0 | M187: 0 | N187: 0 | O187: 0 | P187: 0 | Q187: 0 | R187: 0 | S187: 0 | T187: 0 | U187: 0 | V187: 0 | W187: 0 | X187: 0 | Y187: 0 | Z187: 0 | AA187: 0 | AF187: =300000*'Common Assumptions'!$D$6 -> 3156000 | AG187: =300000*'Common Assumptions'!$D$6 -> 3156000 | AH187: =300000*'Common Assumptions'!$D$6 -> 3156000 | AI187: =300000*'Common Assumptions'!$D$6 -> 3156000 | AJ187: =300000*'Common Assumptions'!$D$6 -> 3156000 | AK187: =300000*'Common Assumptions'!$D$6 -> 3156000 | AL187: =300000*'Common Assumptions'!$D$6 -> 3156000 | AM187: =300000*'Common Assumptions'!$D$6 -> 3156000 | AN187: =300000*'Common Assumptions'!$D$6 -> 3156000 | AO187: =300000*'Common Assumptions'!$D$6 -> 3156000 | AP187: =300000*'Common Assumptions'!$D$6 -> 3156000 | AQ187: =300000*'Common Assumptions'!$D$6 -> 3156000 | AR187: =300000*'Common Assumptions'!$D$6 -> 3156000 | AS187: =300000*'Common Assumptions'!$D$6 -> 3156000 | AT187: =300000*'Common Assumptions'!$D$6 -> 3156000 | AU187: =300000*'Common Assumptions'!$D$6 -> 3156000 | AV187: =300000*'Common Assumptions'!$D$6 -> 3156000 | AW187: =300000*'Common Assumptions'!$D$6 -> 3156000
A189: Costs of 11 selected Systems
A190: Blindeşti | D190: =VLOOKUP($A190,$A$169:$AA$184,D$121,FALSE) -> 1686545.858 | E190: 7592037.992 | F190: 11270698.1 | G190: 9198698.918 | H190: 4653301.589 | I190: 1426488.772 | J190: 0 | K190: 0 | L190: 0 | M190: 0 | N190: =VLOOKUP($A190,$A$169:$AA$184,N$121,FALSE) -> 0 | O190: 0 | P190: 0 | Q190: 0 | R190: 0 | S190: 0 | T190: 0 | U190: 0 | V190: 0 | W190: 0 | X190: 0 | Y190: 0 | Z190: 0 | AA190: 0
A191: Cahul | D191: 6372692.308 | E191: 24630121.47 | F191: 38487538.34 | G191: 31233290.84 | H191: 15005871.23 | I191: 3570819.947 | J191: 0 | K191: 0 | L191: 0 | M191: 0 | N191: 0 | O191: 0 | P191: 0 | Q191: 0 | R191: 0 | S191: 0 | T191: 0 | U191: 0 | V191: 0 | W191: 0 | X191: 0 | Y191: 0 | Z191: 0 | AA191: 0
A192: Coşniţa | D192: 3688224.852 | E192: 17942926.4 | F192: 26429959.85 | G192: 21632588.05 | H192: 11880536.33 | I192: 4894856.939 | J192: 0 | K192: 0 | L192: 0 | M192: 0 | N192: 0 | O192: 0 | P192: 0 | Q192: 0 | R192: 0 | S192: 0 | T192: 0 | U192: 0 | V192: 0 | W192: 0 | X192: 0 | Y192: 0 | Z192: 0 | AA192: 0
A193: Criuleni | D193: 1581501.479 | E193: 7553830.67 | F193: 11055833.93 | G193: 9042758.13 | H193: 4734987.1 | I193: 1663902.301 | J193: 0 | K193: 0 | L193: 0 | M193: 0 | N193: 0 | O193: 0 | P193: 0 | Q193: 0 | R193: 0 | S193: 0 | T193: 0 | U193: 0 | V193: 0 | W193: 0 | X193: 0 | Y193: 0 | Z193: 0 | AA193: 0
A194: Grozeşti | D194: 3120051.479 | E194: 12924939.42 | F194: 19735428.91 | G194: 16058030.34 | H194: 7930543.472 | I194: 2182863.927 | J194: 0 | K194: 0 | L194: 0 | M194: 0 | N194: 0 | O194: 0 | P194: 0 | Q194: 0 | R194: 0 | S194: 0 | T194: 0 | U194: 0 | V194: 0 | W194: 0 | X194: 0 | Y194: 0 | Z194: 0 | AA194: 0
A195: Jora de Jos | D195: 3349748.521 | E195: 13902886.76 | F195: 21233700.97 | G195: 17278505.98 | H195: 8568340.976 | I195: 2406580.522 | J195: 0 | K195: 0 | L195: 0 | M195: 0 | N195: 0 | O195: 0 | P195: 0 | Q195: 0 | R195: 0 | S195: 0 | T195: 0 | U195: 0 | V195: 0 | W195: 0 | X195: 0 | Y195: 0 | Z195: 0 | AA195: 0
A196: Leova Sud | D196: 1838276.627 | E196: 8870006.35 | F196: 12987083.55 | G196: 10626334.93 | H196: 5651475.333 | I196: 2099160.439 | J196: 0 | K196: 0 | L196: 0 | M196: 0 | N196: 0 | O196: 0 | P196: 0 | Q196: 0 | R196: 0 | S196: 0 | T196: 0 | U196: 0 | V196: 0 | W196: 0 | X196: 0 | Y196: 0 | Z196: 0 | AA196: 0
A197: Lopatna | D197: 945399.4083 | E197: 5279470.518 | F197: 7405554.96 | G197: 6089526.59 | H197: 3364776.425 | I197: 1404727.387 | J197: 0 | K197: 0 | L197: 0 | M197: 0 | N197: 0 | O197: 0 | P197: 0 | Q197: 0 | R197: 0 | S197: 0 | T197: 0 | U197: 0 | V197: 0 | W197: 0 | X197: 0 | Y197: 0 | Z197: 0 | AA197: 0
A198: Pugăcenii | D198: 2871213.018 | E198: 11860457.54 | F198: 18106506.77 | G198: 14730893.5 | H198: 7234996.6 | I198: 1936319.108 | J198: 0 | K198: 0 | L198: 0 | M198: 0 | N198: 0 | O198: 0 | P198: 0 | Q198: 0 | R198: 0 | S198: 0 | T198: 0 | U198: 0 | V198: 0 | W198: 0 | X198: 0 | Y198: 0 | Z198: 0 | AA198: 0
A199: Roşcani | D199: 1505636.095 | E199: 7328954.804 | F199: 10673807.89 | G199: 8736142.524 | H199: 4613901.797 | I199: 1671511.709 | J199: 0 | K199: 0 | L199: 0 | M199: 0 | N199: 0 | O199: 0 | P199: 0 | Q199: 0 | R199: 0 | S199: 0 | T199: 0 | U199: 0 | V199: 0 | W199: 0 | X199: 0 | Y199: 0 | Z199: 0 | AA199: 0
A200: Chircani-Zîrneşti | D200: 11712448.22 | E200: 45659788.51 | F200: 71357712.98 | G200: 57929428.73 | H200: 28276720.67 | I200: 7355739.487 | J200: 0 | K200: 0 | L200: 0 | M200: 0 | N200: 0 | O200: 0 | P200: 0 | Q200: 0 | R200: 0 | S200: 0 | T200: 0 | U200: 0 | V200: 0 | W200: 0 | X200: 0 | Y200: 0 | Z200: 0 | AA200: 0
A201: TOTAL | D201: =SUM(D190:D200) -> 38671737.87 | E201: 163545420.4 | F201: 248743826.2 | G201: 202556198.5 | H201: 101915451.5 | I201: 30612970.54 | J201: 0 | K201: 0 | L201: 0 | M201: 0 | N201: 0 | O201: 0 | P201: 0 | Q201: 0 | R201: 0 | S201: 0 | T201: 0 | U201: 0 | V201: 0 | W201: 0 | X201: 0 | Y201: 0 | Z201: 0 | AA201: 0
A202: Total With Sensitivity Parameter | D202: =D201*$AB$186 -> 38671737.87 | E202: 163545420.4 | F202: 248743826.2 | G202: 202556198.5 | H202: 101915451.5 | I202: 30612970.54 | J202: 0 | K202: 0 | L202: 0 | M202: 0 | N202: 0 | O202: 0 | P202: 0 | Q202: 0 | R202: 0 | S202: 0 | T202: 0 | U202: 0 | V202: 0 | W202: 0 | X202: 0 | Y202: 0 | Z202: 0 | AA202: 0
A203: Total With Sensitivity Parameter in 2005 USD, PPP | D203: =D202/5.923 -> 6529079.499 | E203: =E202/5.923 -> 27611923.08 | F203: 41996256.33 | G203: 34198243.89 | H203: 17206728.27 | I203: 5168490.72 | J203: 0 | K203: 0 | L203: 0 | M203: 0 | N203: 0 | O203: 0 | P203: 0 | Q203: 0 | R203: 0 | S203: 0 | T203: 0 | U203: 0 | V203: 0 | W203: 0 | X203: 0 | Y203: 0 | Z203: 0 | AA203: 0
A205: NET BENEFITS | D205: =D165-D202 -> -38671737.87 | E205: -163545420.4 | F205: -248743826.2 | G205: -202556198.5 | H205: -60958451.49 | I205: 77190408.14 | J205: 109418665.6 | K205: 115771816 | L205: 120925696.7 | M205: 150603866.8 | N205: 183790959.4 | O205: 118012027.6 | P205: 234255194.7 | Q205: 234505890.6 | R205: 235096215.4 | S205: 235681626.7 | T205: 236262222.5 | U205: 236838099.3 | V205: 120652162.2 | W205: 4044108.918 | X205: 121535529.1 | Y205: 121974311.1 | Z205: 122411210.4 | AA205: 122846264.5
A206: NET BENEFITS in 2005 USD, PPP | D206: =D205/5.923 -> -6529079.499 | E206: =E205/5.923 -> -27611923.08 | F206: -41996256.33 | G206: -34198243.89 | H206: -10291820.28 | I206: 13032316.08 | J206: 18473521.12 | K206: 19546144.85 | L206: 20416291.87 | M206: 25426957.08 | N206: 31030045.49 | O206: 19924367.32 | P206: 39550091.96 | Q206: 39592417.79 | R206: 39692084.32 | S206: 39790921.27 | T206: 39888945.22 | U206: 39986172.43 | V206: 20370110.11 | W206: 682780.5027 | X206: 20519251.91 | Y206: 20593332.96 | Z206: 20667096.13 | AA206: 20740547.78
A207: COMBINED ERR | D207: =IRR(D205:AA205) -> 0.1430850416
A208: Future Economic Benefits of RBM (improved water management)

Sheet Common Assumptions
A1: MILLENNIUM CHALLENGE CORPORATION
A2: Moldova: Combined CIS Rehabilitation Project
A3: ='User''s Guide'!B1 -> LAST UPDATED: 1/10/2011
A4: =IF('ERR & Sensitivity Analysis'!$I$20="N","NOTE: Current calculations are based on USER INPUT and are not the original MCC estimates.",IF('ERR & Sensitivity Analysis'!$I$21="N","NOTE: Current calculations are based on USER INPUT and are not the original MCC estimates.","")) -> 
A5: Common Assumptions and Parameters Across Irrigation Systems
A6: EXCHANGE RATE | C6: lei/dollar | D6: 10.52
A7: Years: | C7: 2009 | D7: 2010 | E7: 2011 | F7: 2012 | G7: 2013 | H7: 2014 | I7: 2015
A8: Inflation Rates | C8: 4 | D8: 4 | E8: 6 | F8: 9.3 | G8: 9.3 | H8: 9.3 | I8: 9.3
A9: Aggregate Deflator by year | C9: =(1+C8/100) -> 1.04 | D9: =+C9*(1+D8/100) -> 1.0816 | E9: 1.146496 | F9: 1.253120128 | G9: 1.3696603 | H9: 1.497038708 | I9: 1.636263308
A10: Fraction of CIS costs in years | C10: 0 | D10: 0.06 | E10: 0.18 | F10: 0.33 | G10: 0.29 | H10: 0.13 | J10: =SUM(C10:H10) -> 0.99
A12: Parameter | C12: Units | E12: Description
A13: Additional labor requirement, HVA | C13: person days per ha. | D13: =7000000/12000 -> 583.3333333
A14: Energy subsidy value per hectare | C14: USD/kWt*H | D14: =+D13/2000 -> 0.2916666667 | E14: Based on 7m lei total subsidy, 12000 ha. and 2000 cubic meters per hectare used
A15: Per hectare savings in central administrative costs | C15: Lei | D15: =20000000/14000*0.25 -> 357.1428571 | E15: based on 2 million USD central administration costs divided by area irrigated by CIS
A16: Energy savings per hectare due to rehabilitation | C16: KWH per year | D16: 50 | E16: Guess
A17: Price of electricity (at world factor prices) | C17: USD/kWt*H | D17: 0.12 | E17: Need best estimate of long run average value
A19: Water
A20: Water tax | C20: Lei/cubic m
A21: Water tariff without project | B21: This program is designed to address the critical constraints of unreliable water delivery and non-operational or partially functional irrigation systems that inhibit farmers from transitioning to HVA production. Without reliable water service, farmers cannot profitably absorb the risks of many high value crops and increase their production. As a result, current agriculture production is predominantly of lower-value, more drought resistant crops, such as grains, that cannot cover the level of water tariffs and user fees needed to provide proper O&M of the irrigation systems. Rehabilitation of irrigation infrastructure will provide Moldovan producers in the targeted systems more reliable and sustainable water service. As a result, farmers will invest in irrigated agriculture on a substantially greater scale, and their incomes will increase in turn, raising their ability and willingness to pay full cost-recovery tariffs for water.10 Results of MCC‟s Moldovan farm survey indicate that the project will increase farmers‟ incomes sufficiently to enable them to pay the higher tariffs to cover O&M costs, and still experience dramatically higher net income. | C21: Lei/cubic m | D21: 1 | E21: Using likely economic cost of water on average. Farmers sometimes receive a subsidy on water delivery.
A22: Average water tariff with project | C22: Lei/cubic m | D22: 1.38 | E22: Average calculated across the 16 systems
A24: Labor
A25: Shadow value, person-day agricultural labor | C25: Percent | D25: 0.8
A27: Land
A28: Conversion rate large to small farms | C28: Percent by Year X of project | D28: 0.25 | E28: Either large farms will become more like small and medium farms, or they will break into smaller units as landowners rent to smaller, more productive farmers for higher rents or farm themselves.
A29: Conversion rate large to medium farms | C29: Percent by Year X of project | D29: 0.25 | E29: Either large farms will become more like small and medium farms, or they will break into smaller units as landowners rent to smaller, more productive farmers for higher rents or farm themselves.
A30: Number of years to complete farm restructuring | C30: Years (X) | D30: 8 | E30: Either large farms will become more like small and medium farms, or they will break into smaller units as landowners rent to smaller, more productive farmers for higher rents or farm themselves. Most leases are for 3 years, so this permits two renewals before better allocation is found
A32: Technology Adoption Parameters
A33: Increased probability to irrigate due to credit | D33: 0 | E33: There is no evidence in farm survey that credit increases irrigated area
A34: Increased probability to irrigate due to extension services | D34: 0 | E34: Farm survey -based estimate (under Tobit Estimation=.3, but endogeneity and potential for land transactions reduces the impact of this)
A35: Increased irrigated land area under hva due to credit | D35: 0.2 | E35: Estimate in Farm survey using tobit specification=.22
A36: Increased irrigated land area under hva due to extension services | D36: 0 | E36: Estimate in Farm survey is negative, controlling as well as possible for endogeneity of extension service use
A38: Market Distortions
A39: Output price adjustment factor for taxes, subsidies, grains and technical crops | D39: + or - | E39: -0.1 | F39: Trade barriers and value chain assessment
A40: Output price adjustment factor for taxes, subsidies, fruits and vegetables | D40: + or - | E40: 0.02 | F40: Trade barriers and value chain assessment
A43: Project Output: Greater Water Reliability and Sustainability
A45: Water reliability measured on a range of | C45: 1 | D45: (low) to | E45: 5 | G45: (high)
A46: Water reliability post rehabilitation | C46: 5 | D46: Will depend upon maximum designed reliability
A47: Annual depreciation in water reliability, with project | C47: ='ERR & Sensitivity Analysis'!D23 -> 0.008 | D47: Will depend upon Institutional arrangements agreed to
A48: Annual depreciation in water reliability, without project | C48: 0.02 | D48: Based on typical depreciation without proper maintenance
A50: RELIABILITY PROFILE OVER TIME, With project | B50: Year post rehabilitation | D50: 1 | E50: 2 | F50: 3 | G50: 4 | H50: 5 | I50: 6 | J50: 7 | K50: 8 | L50: 9 | M50: 10 | N50: 11 | O50: 12 | P50: 13 | Q50: 14 | R50: 15 | S50: 16 | T50: 17 | U50: 18 | V50: 19 | W50: 20 | X50: 21 | Y50: 22 | Z50: 23 | AA50: 24 | AB50: 25 | AC50: 26 | AD50: 27 | AE50: 28 | AF50: 29 | AG50: 30
B51: =C45&"-"&E45&" Scale" -> 1-5 Scale | D51: 5 | E51: =D51*(1-$C$47) -> 4.96 | F51: 4.92032 | G51: 4.88095744 | H51: 4.84190978 | I51: 4.803174502 | J51: 4.764749106 | K51: 4.726631113 | L51: 4.688818064 | M51: 4.65130752 | N51: 4.61409706 | O51: 4.577184283 | P51: 4.540566809 | Q51: 4.504242275 | R51: 4.468208336 | S51: 4.43246267 | T51: 4.397002968 | U51: 4.361826945 | V51: 4.326932329 | W51: 4.29231687 | X51: 4.257978335 | Y51: 4.223914509 | Z51: 4.190123193 | AA51: 4.156602207 | AB51: 4.123349389 | AC51: 4.090362594 | AD51: 4.057639694 | AE51: 4.025178576 | AF51: 3.992977147 | AG51: 3.96103333
B52: Rounded | D52: =ROUND(D51,0) -> 5 | E52: =ROUND(E51,0) -> 5 | F52: =ROUND(F51,0) -> 5 | G52: 5 | H52: 5 | I52: 5 | J52: 5 | K52: 5 | L52: 5 | M52: 5 | N52: 5 | O52: 5 | P52: 5 | Q52: 5 | R52: 4 | S52: 4 | T52: 4 | U52: 4 | V52: 4 | W52: 4 | X52: =ROUND(X51,0) -> 4 | Y52: 4 | Z52: 4 | AA52: 4 | AB52: 4 | AC52: 4 | AD52: 4 | AE52: 4 | AF52: 4 | AG52: 4
A54: RELIABILITY PROFILE OVER TIME, Without project | B54: Year post rehabilitation | D54: 1 | E54: 2 | F54: 3 | G54: 4 | H54: 5 | I54: 6 | J54: 7 | K54: 8 | L54: 9 | M54: 10 | N54: 11 | O54: 12 | P54: 13 | Q54: 14 | R54: 15 | S54: 16 | T54: 17 | U54: 18 | V54: 19 | W54: 20 | X54: 21 | Y54: 22 | Z54: 23 | AA54: 24 | AB54: 25 | AC54: 26 | AD54: 27 | AE54: 28 | AF54: 29 | AG54: 30
B55: =C45&"-"&E45&" Scale" -> 1-5 Scale | D55: 3.2 | E55: =+D55*(1-$C$48) -> 3.136 | F55: 3.07328 | G55: 3.0118144 | H55: 2.951578112 | I55: 2.89254655 | J55: 2.834695619 | K55: 2.778001706 | L55: 2.722441672 | M55: 2.667992839 | N55: 2.614632982 | O55: 2.562340322 | P55: 2.511093516 | Q55: 2.460871646 | R55: 2.411654213 | S55: 2.363421128 | T55: 2.316152706 | U55: 2.269829652 | V55: 2.224433059 | W55: 2.179944398 | X55: 2.13634551 | Y55: 2.093618599 | Z55: 2.051746227 | AA55: 2.010711303 | AB55: 1.970497077 | AC55: 1.931087135 | AD55: 1.892465393 | AE55: 1.854616085 | AF55: 1.817523763 | AG55: 1.781173288
B56: Rounded | D56: =ROUND(D55,0) -> 3 | E56: =ROUND(E55,0) -> 3 | F56: =ROUND(F55,0) -> 3 | G56: 3 | H56: 3 | I56: 3 | J56: 3 | K56: 3 | L56: 3 | M56: 3 | N56: 3 | O56: 3 | P56: 3 | Q56: 2 | R56: 2 | S56: 2 | T56: 2 | U56: 2 | V56: 2 | W56: 2 | X56: =ROUND(X55,0) -> 2 | Y56: 2 | Z56: 2 | AA56: 2 | AB56: 2 | AC56: 2 | AD56: 2 | AE56: 2 | AF56: 2 | AG56: 2
A59: Irrigation Technology Choices and Costs
A60: Irrigation Type, with project
A61: Sprinkler | D61: Percent | G61: 0.8 | K61: Assumption used by MCA Moldova based on current practice
A62: Drip | D62: Percent | G62: 0.2 | K62: Assumption used by MCA Moldova based on current practice
A63: Irrigation Type, without project
A64: Sprinkler | D64: Percent | G64: 0.8 | K64: Assumption used by MCA Moldova based on current practice
A65: Drip | D65: Percent | G65: 0.2 | K65: Assumption used by MCA Moldova based on current practice
A66: Cost of Irrigation Equipment per hectare | D66: Lei | G66: 10000 | K66: Based on regression of farm survey reported value of medium-term depreciable assets on hectares irrigated (farms have 6,000-8,000 lei per ha. more equipment which irrigate. New equipment may cost more)
A68: Timing of Benefits
A69: Time to full adoption Irrigation | D69: Years | E69: 8 | G69: At least 50% of land must be represented in the WUO for construction to occur. This assumes some slippage…
A70: Initial fraction of land irrigated | D70: Fraction | E70: 0.45
A71: Magnitude of Benefits of HVA
A72: Factor to Reduce/ Increase Income per hectare on HVA | C72: Fraction | D72: ='ERR & Sensitivity Analysis'!D24 -> 0.9 | E72: To adjust for possible adverse relative price trends, HVA relative to grains and technical crops. Note: Worldwide, the trend in relative prices is towards higher HVA prices versus grains.
A73: Factor to Reduce per hectare income, unirriated grains, North | D73: 0.9 | E73: Based on averages for 2006-2008 see Table below
A74: Factor to Reduce per hectare income, unirrigated grains, Center | D74: 0.8 | E74: Based on averages for 2006-2008 see Extra Data. Higher number reduces benefits of irrigation
A75: Factor to Reduce per hectare income, unirrigated grains, South | D75: 0.75 | E75: Based on averages for 2006-2008 see Extra Data
A76: Factor to increase marginal yield reduction on unirrigated HVA crops | D76: 0.1 | E76: Conservatively, assumes HVA are less drought resistance than other crops
A77: Impact of finance program on profits through improved marketability/market access | D77: 0.035 | E77: Studies by Dahlberg and others show that post-harvest investments will be needed to maintain prices for HVA
A79: Costs
F82: MCC program is 5 years, but additional support may be needed
A84: Years | E84: 1 | F84: 2 | G84: 3 | H84: 4 | I84: 5
A85: River Basin Management | C85: Real Lei per hectare | E85: =350000/'ERR by System'!$U$24*'Common Assumptions'!$D$6/'Common Assumptions'!C9 -> 227.8870207 | F85: =780000/'ERR by System'!$U$24*'Common Assumptions'!$D$6/'Common Assumptions'!D9 -> 488.3293301 | G85: =380000/'ERR by System'!$U$24*'Common Assumptions'!$D$6/'Common Assumptions'!E9 -> 224.4377666 | H85: =260000/'ERR by System'!$U$24*'Common Assumptions'!$D$6/'Common Assumptions'!F9 -> 140.4965072 | I85: =270000/'ERR by System'!$U$24*'Common Assumptions'!$D$6/'Common Assumptions'!G9 -> 133.4860193
A86: GHS | C86: Real Lei per hectare | E86: =1077895/'ERR by System'!$U$24*'Common Assumptions'!$D$6/'Common Assumptions'!C9 -> 701.8236577 | F86: =1059003/'ERR by System'!$U$24*'Common Assumptions'!$D$6/'Common Assumptions'!C9 -> 689.5229674 | G86: =1081287/'ERR by System'!$U$24*'Common Assumptions'!$D$6/'Common Assumptions'!D9 -> 676.9540466 | H86: =1022629/'ERR by System'!$U$24*'Common Assumptions'!$D$6/'Common Assumptions'!E9 -> 603.9909706 | I86: =901616/'ERR by System'!$U$24*'Common Assumptions'!$D$6/'Common Assumptions'!F9 -> 487.2073034
A87: IMT | C87: Real Lei per hectare | E87: =1606788*ex_rate/('ERR by System'!$U$24*C9) -> 1046.188943 | F87: =1684461*ex_rate/('ERR by System'!$U$24*D9) -> 1054.579118 | G87: =1535288*ex_rate/('ERR by System'!$U$24*E9) -> 906.7805521 | H87: =1220240*ex_rate/('ERR by System'!$U$24*F9) -> 659.3825307 | I87: =934605*ex_rate/('ERR by System'!$U$24*G9) -> 462.0618557
A88: Willingness to Pay | C88: Percentage | E88: 0.5 | F88: 0.4 | G88: 0.3 | H88: 0.2 | I88: 0
A94: 0
A95: Value | B95: 2
A97: Share of GHS borne by USAID | D97: 0.21

Sheet Cost and Benefits Summary CIS (hidden)
A1: ERR, Combined CIS Rehab Project
A3: Central Irrigation Systems | G3: -2 | H3: -1 | I3: 1 | J3: 2 | K3: 3 | L3: 4 | M3: 5 | N3: 6 | O3: 7 | P3: 8 | Q3: 9 | R3: 10 | S3: 11 | T3: 12 | U3: 13 | V3: 14 | W3: 15 | X3: 16 | Y3: 17 | Z3: 18 | AA3: 19 | AB3: 20
A5: INCOME BENEFITS:
A6: Increased Farm Profits, Small Farms
A7: Increased Farm Profits, Medium Farms
A8: Increased Farm Profits, Large Farms
A10: Increased rents to landowners
A11: Amount of Land Rented:
A12: Increased rent values:
A14: Increased Labor Income
A15: Increased employment (person-days)
A16: Economic value of additional person-day of employment
A18: Adjustments for Market Distortions due to Trade Barriers, Subsidies and Taxes:
A19: Energy subsidy with project:
A20: Energy subsidy without project:
A21: Adjustment to farm profits without project
A22: Adjustment to profits with project
A23: Depletion of soil or water resources cost
A25: EFFICIENCY BENEFITS
A26: Savings from reduced energy costs, original CIS-irrigated areas
A27: Savings to Government and Water Users due to more efficient management
A29: TOTAL ECONOMIC BENEFITS
A31: COSTS:
A32: MCC Rehabilitation Costs | E32: Sum across systems
A33: Administrative costs
A34: Investment Costs, Farmers | E34: Sum across systems
A35: On Farm Equipment Investment by Farmers | E35: Sum across systems
A37: TOTAL COSTS
A39: NET BENEFITS:
A41: Irrigation Systems ERR:
A43: TECHNICAL ASSISTANCE | H43: Year | I43: 1 | J43: 2 | K43: 3 | L43: 4 | M43: 5 | N43: 6 | O43: 7 | P43: 8 | Q43: 9 | R43: 10 | S43: 11 | T43: 12 | U43: 13 | V43: 14 | W43: 15 | X43: 16 | Y43: 17 | Z43: 18 | AA43: 19 | AB43: 20
A45: INCOME BENEFITS:
A46: Increased Farm Profits, Small Farms
A47: Increased Farm Profits, Medium Farms
A48: Increased Farm Profits, Large Farms
A50: Increased rents to landowners
A51: Amount of Land Rented:
A52: Increased rent values:
A54: Increased Labor Income
A55: Increased employment (person-days)
A56: Economic value of additional person-day of employment
A58: Adjustments for Market Distortions due to Trade Barriers, Subsidies and Taxes:
A59: Energy subsidy with project:
A60: Energy subsidy without project:
A61: Adjustment to farm profits without project
A62: Adjustment to profits with project
A63: Depletion of soil or water resources cost
A65: EFFICIENCY BENEFITS
A66: Savings from reduced energy costs, original CIS-irrigated areas
A67: Savings to Government and Water Users due to more efficient management
A69: TOTAL ECONOMIC BENEFITS
A71: COSTS:
A72: MCC Costs:
B73: Administrative and programmatic
A76: TOTAL COSTS
A78: NET BENEFITS:
A82: FINANCE PROGRAM | H82: Year | I82: 1 | J82: 2 | K82: 3 | L82: 4 | M82: 5 | N82: 6 | O82: 7 | P82: 8 | Q82: 9 | R82: 10 | S82: 11 | T82: 12 | U82: 13 | V82: 14 | W82: 15 | X82: 16 | Y82: 17 | Z82: 18 | AA82: 19 | AB82: 20
A84: INCOME BENEFITS:
A85: Increased Farm Profits, Small Farms
A86: Increased Farm Profits, Medium Farms
A87: Increased Farm Profits, Large Farms
A89: Increased rents to landowners
A90: Amount of Land Rented:
A91: Increased rent values:
A93: Increased Labor Income
A94: Increased employment (person-days)
A95: Economic value of additional person-day of employment
A97: Adjustments for Market Distortions due to Trade Barriers, Subsidies and Taxes:
A98: Energy subsidy with project:
A99: Energy subsidy without project:
A100: Adjustment to farm profits without project
A101: Adjustment to profits with project
A102: Depletion of soil or water resources cost
A104: EFFICIENCY BENEFITS
A105: Savings from reduced energy costs, original CIS-irrigated areas
A106: Savings to Government and Water Users due to more efficient management
A108: TOTAL ECONOMIC BENEFITS
A110: COSTS:
A111: MCC Costs:
B112: Administrative and programmatic
A115: TOTAL COSTS
A117: NET BENEFITS:
A119: 1 | B119: 2 | C119: 3 | D119: 4 | E119: 5 | F119: 6 | G119: 7 | H119: 8 | I119: 9 | J119: 10 | K119: 11 | L119: 12 | M119: 13 | N119: 14 | O119: 15 | P119: 16 | Q119: 17 | R119: 18 | S119: 19 | T119: 20 | U119: 21 | V119: 22 | W119: 23 | X119: 24 | Y119: 25 | Z119: 26 | AA119: 27
A120: Total Benefits
C123: Baseline
C124: Baseline* | G124: Rehab Year
D125: C | E125: D | F125: E | G125: F | H125: G | I125: H | J125: I | K125: J | L125: K | M125: L | N125: M | O125: N | P125: O | Q125: P | R125: Q | S125: R | T125: S | U125: T | V125: U | W125: V | X125: W | Y125: X | Z125: Y | AA125: Z
C126: Model Year | E126: -2 | F126: -1 | G126: 0 | H126: 1 | I126: 2 | J126: 3 | K126: 4 | L126: 5 | M126: 6 | N126: 7 | O126: 8 | P126: 9 | Q126: 10 | R126: 11 | S126: 12 | T126: 13 | U126: 14 | V126: 15 | W126: 16 | X126: 17 | Y126: 18 | Z126: 19 | AA126: 20
C127: Compact Year | E127: 1 | F127: 2 | G127: 3 | H127: 4 | I127: 5
C128: 2008 | D128: 2009 | E128: 2010 | F128: 2011 | G128: 2012 | H128: 2013 | I128: 2014 | J128: 2015 | K128: 2016 | L128: 2017 | M128: 2018 | N128: 2019 | O128: 2020 | P128: 2021 | Q128: 2022 | R128: 2023 | S128: 2024 | T128: 2025 | U128: 2026 | V128: 2027 | W128: 2028 | X128: 2029 | Y128: 2030 | Z128: 2031 | AA128: 2032
A130: Benefits
A131: Blindeşti | B131: 3-2 | D131: =INDIRECT("'ERR "&$A131&"'!"&D$125&"46") -> 0 | E131: =INDIRECT("'ERR "&$A131&"'!"&E$125&"46") -> 0 | F131: 0 | G131: 0 | H131: 679042.7306 | I131: 3071645.447 | J131: 3140610.388 | K131: 3319345.42 | L131: 3296377.045 | M131: 4137504.574 | N131: 5133621.724 | O131: 2748984.327 | P131: 6704325.857 | Q131: 6705115.127 | R131: 6707317.184 | S131: 6709503.77 | T131: 6711675.196 | U131: =INDIRECT("'ERR "&$A131&"'!"&U$125&"46") -> 6713831.766 | V131: 2853896.518 | W131: -1102644.628 | X131: 2857331.748 | Y131: 2859040.721 | Z131: 2860744.086 | AA131: 2862441.955
A132: Cahul | B132: 6-9 | D132: =INDIRECT("'ERR "&$A132&"'!"&D$125&"46") -> 0 | E132: 0 | F132: 0 | G132: 0 | H132: 3071699.713 | I132: 12140454.44 | J132: 12528449.98 | K132: 13335413.69 | L132: 12324212.16 | M132: 15721070.62 | N132: 19917441.68 | O132: 12078545.64 | P132: 26247754.92 | Q132: 26247961.03 | R132: 26248163.01 | S132: 26248360.96 | T132: 26248554.95 | U132: 26248745.06 | V132: 15776069.35 | W132: 1606283.063 | X132: 15776283.69 | Y132: 15776387.65 | Z132: 15776489.53 | AA132: 15776589.38
A133: Cărpinenii de Sus | B133: 4-5-1 | D133: 0 | E133: 0 | F133: 0 | G133: 0 | H133: 1354878.566 | I133: 9761092.452 | J133: 10021314.49 | K133: 10661353.05 | L133: 11357583.99 | M133: 14233776.35 | N133: 17583062.71 | O133: 8890804.018 | P133: 22969358.42 | Q133: 22970516.11 | R133: 22973793.5 | S133: 22977048.2 | T133: 22980280.67 | U133: 22983491.34 | V133: 9052418.417 | W133: -5028106.529 | X133: 9057486.684 | Y133: 9060009.119 | Z133: 9062523.963 | AA133: 9065031.367
A134: Chircani-Zîrneşti | B134: 6-6 | D134: 0 | E134: 0 | F134: 0 | G134: 0 | H134: 15080154.29 | I134: 35148615.18 | J134: 35649503.48 | K134: 37827899.36 | L134: 39578108.32 | M134: 49222740.36 | N134: 59975140.27 | O134: 41399915.61 | P134: 75820136.02 | Q134: 75839083.84 | R134: 75857652.7 | S134: 75875850.19 | T134: 75893683.73 | U134: 75911160.59 | V134: 44972870.61 | W134: 10512506.46 | X134: 44992318.26 | Y134: 45001751.35 | Z134: 45010995.78 | AA134: 45020055.32
A135: Coşniţa | B135: 12-3 | D135: 0 | E135: 0 | F135: 0 | G135: 0 | H135: 4906233.418 | I135: 15055233.88 | J135: 15345379.88 | K135: 16150808.84 | L135: 15500348.56 | M135: 19491467.47 | N135: 24179672.78 | O135: 14007022.09 | P135: 31581553.25 | Q135: 31716431.85 | R135: 32077541.46 | S135: 32436007.44 | T135: 32791882.67 | U135: 33145218.98 | V135: 15624375.94 | W135: -2136510.779 | X135: 16186659.34 | Y135: 16466239.92 | Z135: 16744807.47 | AA135: 17022382.23
A136: Criuleni | B136: 14-2 | D136: 0 | E136: 0 | F136: 0 | G136: 0 | H136: 1758775.739 | I136: 4454410.685 | J136: 4502451.298 | K136: 4742161.591 | L136: 5014645.905 | M136: 6222199.531 | N136: 7545283.055 | O136: 4730829.452 | P136: 9597719.865 | Q136: 9620862.058 | R136: 9677469.979 | S136: 9733624.312 | T136: 9789334.131 | U136: 9844608.324 | V136: 4329834.693 | W136: -564453.1187 | X136: 4414847.688 | Y136: 4457097.714 | Z136: 4499181.311 | AA136: 4541101.807
A137: Grozeşti | B137: 3-6 | D137: 0 | E137: 0 | F137: 0 | G137: 0 | H137: 4026401.871 | I137: 8619847.999 | J137: 8632294.127 | K137: 9098700.916 | L137: 10644134.61 | M137: 13036856.6 | N137: 15457447.27 | O137: 10333133.17 | P137: 19137383.17 | Q137: 19137383.17 | R137: 19137383.17 | S137: 19137383.17 | T137: 19137383.17 | U137: 19137383.17 | V137: 7522478.729 | W137: -1281771.271 | X137: 7522478.729 | Y137: 7522478.729 | Z137: 7522478.729 | AA137: 7522478.729
A138: Jora de Jos | B138: 11-6 | D138: 0 | E138: 0 | F138: 0 | G138: 0 | H138: 2471968.625 | I138: 7288108.898 | J138: 7374931.567 | K138: 7779665.149 | L138: 8584349.233 | M138: 10639789.71 | N138: 12860964.11 | O138: 7611393.038 | P138: 16376307.44 | Q138: 16404811.16 | R138: 16462744.81 | S138: 16520119.79 | T138: 16576947.26 | U138: 16633238.19 | V138: 6775640.34 | W138: -2042214.774 | X138: 6855367.678 | Y138: 6894936.434 | Z138: 6934313.814 | AA138: 6973503.647
A139: Leova Sud | B139: 5-4 | D139: 0 | E139: 0 | F139: 0 | G139: 0 | H139: 2156073.538 | I139: 6532611.345 | J139: 6676986.838 | K139: 7124927.721 | L139: 7551032.45 | M139: 9443036.501 | N139: 11594719.48 | O139: 7456598.583 | P139: 14842036.6 | Q139: 14847495.61 | R139: 14853202.59 | S139: 14858802.58 | T139: 14864297.7 | U139: 14869690.07 | V139: 8507548.951 | W139: 1108840.48 | X139: 8513653.313 | Y139: 8516624.915 | Z139: 8519544.228 | AA139: 8522412.298
A140: Lopatna | B140: 11-7 | D140: 0 | E140: 0 | F140: 0 | G140: 0 | H140: 1562864.832 | I140: 3450974.014 | J140: 3476056.987 | K140: 3677581.841 | L140: 4220265.293 | M140: 5199507.704 | N140: 6214648.038 | O140: 4131440.908 | P140: 7784143.541 | Q140: 7811449.298 | R140: 7873208.939 | S140: 7934433.388 | T140: 7995133.348 | U140: 8055319.309 | V140: 3409007.296 | W140: -272622.9892 | X140: 3498295.091 | Y140: 3542650.645 | Z140: 3586819.088 | AA140: 3630804.163
A141: Pugăcenii | B141: 14-11 | D141: 0 | E141: 0 | F141: 0 | G141: 0 | H141: 2957784.329 | I141: 6854201.359 | J141: 6898919.679 | K141: 7261805.711 | L141: 7792204.339 | M141: 9615971.352 | N141: 11581754.02 | O141: 7588348.699 | P141: 14552213.63 | Q141: 14552476.46 | R141: 14553091.19 | S141: 14553700.76 | T141: 14554305.28 | U141: 14554904.86 | V141: 6205269.232 | W141: -758864.9694 | X141: 6206178.146 | Y141: 6206629.694 | Z141: 6207079.354 | AA141: 6207527.163
A142: Roşcani | B142: 14-13 | D142: 0 | E142: 0 | F142: 0 | G142: 0 | H142: 2286000.951 | I142: 5187275.431 | J142: 5193081.346 | K142: 5453505.715 | L142: 6420018.834 | M142: 7873722.371 | N142: 9330267.02 | O142: 5925816.096 | P142: 11611620.4 | Q142: 11622820.98 | R142: 11648440.41 | S142: 11673840.31 | T142: 11699025.07 | U142: 11723998.99 | V142: 4675170.521 | W142: -1024438.559 | X142: 4712115.396 | Y142: 4730473.334 | Z142: 4748756.969 | AA142: 4766967.79
A143: Şerpeni | B143: 14-6 | D143: 0 | E143: 0 | F143: 0 | G143: 0 | H143: 1176990.666 | I143: 6239505.184 | J143: 6384449.28 | K143: 6737729.589 | L143: 6684091.89 | M143: 8404537.164 | N143: 10446056.22 | O143: 5318055.14 | P143: 13708419.05 | Q143: 13711454.52 | R143: 13717643.56 | S143: 13723773.11 | T143: 13729844.35 | U143: 13735858.46 | V143: 5800126.536 | W143: -2597770.094 | X143: 5808761.079 | Y143: 5813045.372 | Z143: 5817308.265 | AA143: 5821550.186
A144: Suvorov | B144: 17-3 | D144: 0 | E144: 0 | F144: 0 | G144: 0 | H144: 1920492.758 | I144: 61394400.74 | J144: 64630638.18 | K144: 70486394.97 | L144: 73492895.64 | M144: 94059712.16 | N144: 119539980.6 | O144: 65379278.88 | P144: 159275178.5 | Q144: 159454851.7 | R144: 159948788.7 | S144: 160439204 | T144: 160926168.1 | U144: 161409750.2 | V144: 90176916.29 | W144: -3993160.799 | X144: 90982787.14 | Y144: 91383178.81 | Z144: 91781919.79 | AA144: 92179043.09
A145: Talmaz | B145: 17-2 | D145: 0 | E145: 0 | F145: 0 | G145: 0 | H145: 5117605.545 | I145: 16552931.43 | J145: 16996391.84 | K145: 18007682.42 | L145: 16483739.61 | M145: 20958774.91 | N145: 26426038.93 | O145: 16556774.7 | P145: 34617951.74 | Q145: 34623531.17 | R145: 34637927.57 | S145: 34652214.62 | T145: 34666394.5 | U145: 34680469.36 | V145: 21172100.21 | W145: 3105126.979 | X145: 21195852.36 | Y145: 21207640.31 | Z145: 21219371.07 | AA145: 21231045.79
A146: Teţcani | B146: 1-1 | D146: 0 | E146: 0 | F146: 0 | G146: 0 | H146: 5899488.347 | I146: 11220089.59 | J146: 11413603.27 | K146: 14104727.89 | L146: 18302616.65 | M146: 22485662.41 | N146: 26056343.6 | O146: 16639431.04 | P146: 27614738.61 | Q146: 27661013.16 | R146: 27751362.22 | S146: 27840804.3 | T146: 27929357.54 | U146: 28017039.72 | V146: 17042061.31 | W146: 6038067.631 | X146: 17180486.57 | Y146: 17248975.27 | Z146: 17316994.19 | AA146: 17384552.73
A147: TOTAL | D147: =SUM(D131:D146) -> 0 | E147: =SUM(E131:E146) -> 0 | F147: 0 | G147: 0 | H147: 56426455.92 | I147: 212971398.1 | J147: 218865062.6 | K147: 235769703.9 | L147: 247246624.5 | M147: 310746329.8 | N147: 383842441.5 | O147: 230796371.4 | P147: 492440841 | Q147: 492927257.3 | R147: 494125731 | S147: 495314670.9 | T147: 496494267.7 | U147: 497664708.3 | V147: 263895784.9 | W147: 1568266.106 | X147: 265760902.9 | Y147: 266687160 | Z147: 267609327.6 | AA147: 268527487.6
A149: Benefits of 11 selected Systems
A150: Blindeşti | D150: =VLOOKUP($A150,$A$131:$AA$146,D$119,FALSE) -> 0 | E150: 0 | F150: 0 | G150: 0 | H150: 679042.7306 | I150: 3071645.447 | J150: 3140610.388 | K150: 3319345.42 | L150: 3296377.045 | M150: 4137504.574 | N150: 5133621.724 | O150: 2748984.327 | P150: 6704325.857 | Q150: 6705115.127 | R150: 6707317.184 | S150: 6709503.77 | T150: 6711675.196 | U150: 6713831.766 | V150: 2853896.518 | W150: -1102644.628 | X150: 2857331.748 | Y150: 2859040.721 | Z150: 2860744.086 | AA150: 2862441.955
A151: Cahul | D151: 0 | E151: 0 | F151: 0 | G151: 0 | H151: 3071699.713 | I151: 12140454.44 | J151: 12528449.98 | K151: 13335413.69 | L151: 12324212.16 | M151: 15721070.62 | N151: 19917441.68 | O151: 12078545.64 | P151: 26247754.92 | Q151: 26247961.03 | R151: 26248163.01 | S151: 26248360.96 | T151: 26248554.95 | U151: 26248745.06 | V151: 15776069.35 | W151: 1606283.063 | X151: 15776283.69 | Y151: 15776387.65 | Z151: 15776489.53 | AA151: 15776589.38
A152: Coşniţa | D152: 0 | E152: 0 | F152: 0 | G152: 0 | H152: 4906233.418 | I152: 15055233.88 | J152: 15345379.88 | K152: 16150808.84 | L152: 15500348.56 | M152: 19491467.47 | N152: 24179672.78 | O152: 14007022.09 | P152: 31581553.25 | Q152: 31716431.85 | R152: 32077541.46 | S152: 32436007.44 | T152: 32791882.67 | U152: 33145218.98 | V152: 15624375.94 | W152: -2136510.779 | X152: 16186659.34 | Y152: 16466239.92 | Z152: 16744807.47 | AA152: 17022382.23
A153: Criuleni | D153: 0 | E153: 0 | F153: 0 | G153: 0 | H153: 1758775.739 | I153: 4454410.685 | J153: 4502451.298 | K153: 4742161.591 | L153: 5014645.905 | M153: 6222199.531 | N153: 7545283.055 | O153: 4730829.452 | P153: 9597719.865 | Q153: 9620862.058 | R153: 9677469.979 | S153: 9733624.312 | T153: 9789334.131 | U153: 9844608.324 | V153: 4329834.693 | W153: -564453.1187 | X153: 4414847.688 | Y153: 4457097.714 | Z153: 4499181.311 | AA153: 4541101.807
A154: Grozeşti | D154: 0 | E154: 0 | F154: 0 | G154: 0 | H154: 4026401.871 | I154: 8619847.999 | J154: 8632294.127 | K154: 9098700.916 | L154: 10644134.61 | M154: 13036856.6 | N154: 15457447.27 | O154: 10333133.17 | P154: 19137383.17 | Q154: 19137383.17 | R154: 19137383.17 | S154: 19137383.17 | T154: 19137383.17 | U154: 19137383.17 | V154: 7522478.729 | W154: -1281771.271 | X154: 7522478.729 | Y154: 7522478.729 | Z154: 7522478.729 | AA154: 7522478.729
A155: Jora de Jos | D155: 0 | E155: 0 | F155: 0 | G155: 0 | H155: 2471968.625 | I155: 7288108.898 | J155: 7374931.567 | K155: 7779665.149 | L155: 8584349.233 | M155: 10639789.71 | N155: 12860964.11 | O155: 7611393.038 | P155: 16376307.44 | Q155: 16404811.16 | R155: 16462744.81 | S155: 16520119.79 | T155: 16576947.26 | U155: 16633238.19 | V155: 6775640.34 | W155: -2042214.774 | X155: 6855367.678 | Y155: 6894936.434 | Z155: 6934313.814 | AA155: 6973503.647
A156: Leova Sud | D156: 0 | E156: 0 | F156: 0 | G156: 0 | H156: 2156073.538 | I156: 6532611.345 | J156: 6676986.838 | K156: 7124927.721 | L156: 7551032.45 | M156: 9443036.501 | N156: 11594719.48 | O156: 7456598.583 | P156: 14842036.6 | Q156: 14847495.61 | R156: 14853202.59 | S156: 14858802.58 | T156: 14864297.7 | U156: 14869690.07 | V156: 8507548.951 | W156: 1108840.48 | X156: 8513653.313 | Y156: 8516624.915 | Z156: 8519544.228 | AA156: 8522412.298
A157: Lopatna | D157: 0 | E157: 0 | F157: 0 | G157: 0 | H157: 1562864.832 | I157: 3450974.014 | J157: 3476056.987 | K157: 3677581.841 | L157: 4220265.293 | M157: 5199507.704 | N157: 6214648.038 | O157: 4131440.908 | P157: 7784143.541 | Q157: 7811449.298 | R157: 7873208.939 | S157: 7934433.388 | T157: 7995133.348 | U157: 8055319.309 | V157: 3409007.296 | W157: -272622.9892 | X157: 3498295.091 | Y157: 3542650.645 | Z157: 3586819.088 | AA157: 3630804.163
A158: Pugăcenii | D158: 0 | E158: 0 | F158: 0 | G158: 0 | H158: 2957784.329 | I158: 6854201.359 | J158: 6898919.679 | K158: 7261805.711 | L158: 7792204.339 | M158: 9615971.352 | N158: 11581754.02 | O158: 7588348.699 | P158: 14552213.63 | Q158: 14552476.46 | R158: 14553091.19 | S158: 14553700.76 | T158: 14554305.28 | U158: 14554904.86 | V158: 6205269.232 | W158: -758864.9694 | X158: 6206178.146 | Y158: 6206629.694 | Z158: 6207079.354 | AA158: 6207527.163
A159: Roşcani | D159: 0 | E159: 0 | F159: 0 | G159: 0 | H159: 2286000.951 | I159: 5187275.431 | J159: 5193081.346 | K159: 5453505.715 | L159: 6420018.834 | M159: 7873722.371 | N159: 9330267.02 | O159: 5925816.096 | P159: 11611620.4 | Q159: 11622820.98 | R159: 11648440.41 | S159: 11673840.31 | T159: 11699025.07 | U159: 11723998.99 | V159: 4675170.521 | W159: -1024438.559 | X159: 4712115.396 | Y159: 4730473.334 | Z159: 4748756.969 | AA159: 4766967.79
A160: Chircani-Zîrneşti | D160: 0 | E160: 0 | F160: 0 | G160: 0 | H160: 15080154.29 | I160: 35148615.18 | J160: 35649503.48 | K160: 37827899.36 | L160: 39578108.32 | M160: 49222740.36 | N160: 59975140.27 | O160: 41399915.61 | P160: 75820136.02 | Q160: 75839083.84 | R160: 75857652.7 | S160: =VLOOKUP($A160,$A$131:$AA$146,S$119,FALSE) -> 75875850.19 | T160: 75893683.73 | U160: 75911160.59 | V160: 44972870.61 | W160: 10512506.46 | X160: 44992318.26 | Y160: 45001751.35 | Z160: 45010995.78 | AA160: 45020055.32
A161: TOTAL | D161: =SUM(D150:D160) -> 0 | E161: 0 | F161: 0 | G161: 0 | H161: 40957000.04 | I161: 107803378.7 | J161: 109418665.6 | K161: 115771816 | L161: 120925696.7 | M161: 150603866.8 | N161: 183790959.4 | O161: 118012027.6 | P161: 234255194.7 | Q161: 234505890.6 | R161: 235096215.4 | S161: 235681626.7 | T161: 236262222.5 | U161: 236838099.3 | V161: 120652162.2 | W161: 4044108.918 | X161: 121535529.1 | Y161: 121974311.1 | Z161: 122411210.4 | AA161: 122846264.5 | AB161: Benefits Sensitivity Parameter
A162: Total With Sensitivity Parameter | D162: =D161*$AB$162 -> 0 | E162: =E161*$AB$162 -> 0 | F162: =F161*$AB$162 -> 0 | G162: =G161*$AB$162 -> 0 | H162: =H161*$AB$162 -> 40957000.04 | I162: =I161*$AB$162 -> 107803378.7 | J162: =J161*$AB$162 -> 109418665.6 | K162: =K161*$AB$162 -> 115771816 | L162: =L161*$AB$162 -> 120925696.7 | M162: =M161*$AB$162 -> 150603866.8 | N162: =N161*$AB$162 -> 183790959.4 | O162: =O161*$AB$162 -> 118012027.6 | P162: =P161*$AB$162 -> 234255194.7 | Q162: =Q161*$AB$162 -> 234505890.6 | R162: =R161*$AB$162 -> 235096215.4 | S162: =S161*$AB$162 -> 235681626.7 | T162: =T161*$AB$162 -> 236262222.5 | U162: =U161*$AB$162 -> 236838099.3 | V162: =V161*$AB$162 -> 120652162.2 | W162: =W161*$AB$162 -> 4044108.918 | X162: =X161*$AB$162 -> 121535529.1 | Y162: =Y161*$AB$162 -> 121974311.1 | Z162: =Z161*$AB$162 -> 122411210.4 | AA162: =AA161*$AB$162 -> 122846264.5 | AB162: ='ERR & Sensitivity Analysis'!D21 -> 1
A164: Costs
A165: Blindeşti | B165: 3-2 | D165: =INDIRECT("'ERR "&$A165&"'!"&D$125&"57") -> 1686545.858 | E165: =INDIRECT("'ERR "&$A165&"'!"&E$125&"57") -> 7592037.992 | F165: 11270698.1 | G165: 9198698.918 | H165: 4653301.589 | I165: 1426488.772 | J165: 0 | K165: 0 | L165: 0 | M165: 0 | N165: 0 | O165: 0 | P165: 0 | Q165: 0 | R165: 0 | S165: 0 | T165: 0 | U165: 0 | V165: 0 | W165: 0 | X165: 0 | Y165: 0 | Z165: 0 | AA165: 0
A166: Cahul | B166: 6-9 | D166: =INDIRECT("'ERR "&$A166&"'!"&D$125&"57") -> 6372692.308 | E166: 24630121.47 | F166: 38487538.34 | G166: 31233290.84 | H166: 15005871.23 | I166: 3570819.947 | J166: 0 | K166: 0 | L166: 0 | M166: 0 | N166: 0 | O166: 0 | P166: 0 | Q166: 0 | R166: 0 | S166: 0 | T166: 0 | U166: 0 | V166: 0 | W166: 0 | X166: 0 | Y166: 0 | Z166: 0 | AA166: 0
A167: Cărpinenii de Sus | B167: 4-5-1 | D167: 11484852.07 | E167: 40189933.23 | F167: 64697793.21 | G167: 52294322.24 | H167: 23536340.39 | I167: 3395803.563 | J167: 0 | K167: 0 | L167: 0 | M167: 0 | N167: 0 | O167: 0 | P167: 0 | Q167: 0 | R167: 0 | S167: 0 | T167: 0 | U167: 0 | V167: 0 | W167: 0 | X167: 0 | Y167: 0 | Z167: 0 | AA167: 0
A168: Chircani-Zîrneşti | B168: 6-6 | D168: 11712448.22 | E168: 45659788.51 | F168: 71357712.98 | G168: 57929428.73 | H168: 28276720.67 | I168: 7355739.487 | J168: 0 | K168: 0 | L168: 0 | M168: 0 | N168: 0 | O168: 0 | P168: 0 | Q168: 0 | R168: 0 | S168: 0 | T168: 0 | U168: 0 | V168: 0 | W168: 0 | X168: 0 | Y168: 0 | Z168: 0 | AA168: 0
A169: Coşniţa | B169: 12-3 | D169: 3688224.852 | E169: 17942926.4 | F169: 26429959.85 | G169: 21632588.05 | H169: 11880536.33 | I169: 4894856.939 | J169: 0 | K169: 0 | L169: 0 | M169: 0 | N169: 0 | O169: 0 | P169: 0 | Q169: 0 | R169: 0 | S169: 0 | T169: 0 | U169: 0 | V169: 0 | W169: 0 | X169: 0 | Y169: 0 | Z169: 0 | AA169: 0
A170: Criuleni | B170: 14-2 | D170: 1581501.479 | E170: 7553830.67 | F170: 11055833.93 | G170: 9042758.13 | H170: 4734987.1 | I170: 1663902.301 | J170: 0 | K170: 0 | L170: 0 | M170: 0 | N170: 0 | O170: 0 | P170: 0 | Q170: 0 | R170: 0 | S170: 0 | T170: 0 | U170: 0 | V170: 0 | W170: 0 | X170: 0 | Y170: 0 | Z170: 0 | AA170: 0
A171: Grozeşti | B171: 3-6 | D171: 3120051.479 | E171: 12924939.42 | F171: 19735428.91 | G171: 16058030.34 | H171: 7930543.472 | I171: 2182863.927 | J171: 0 | K171: 0 | L171: 0 | M171: 0 | N171: 0 | O171: 0 | P171: 0 | Q171: 0 | R171: 0 | S171: 0 | T171: 0 | U171: 0 | V171: 0 | W171: 0 | X171: 0 | Y171: 0 | Z171: 0 | AA171: 0
A172: Jora de Jos | B172: 11-6 | D172: 3349748.521 | E172: 13902886.76 | F172: 21233700.97 | G172: 17278505.98 | H172: 8568340.976 | I172: 2406580.522 | J172: 0 | K172: 0 | L172: 0 | M172: 0 | N172: 0 | O172: 0 | P172: 0 | Q172: 0 | R172: 0 | S172: 0 | T172: 0 | U172: 0 | V172: 0 | W172: 0 | X172: 0 | Y172: 0 | Z172: 0 | AA172: 0
A173: Leova Sud | B173: 5-4 | D173: 1838276.627 | E173: 8870006.35 | F173: 12987083.55 | G173: 10626334.93 | H173: 5651475.333 | I173: 2099160.439 | J173: 0 | K173: 0 | L173: 0 | M173: 0 | N173: 0 | O173: 0 | P173: 0 | Q173: 0 | R173: 0 | S173: 0 | T173: 0 | U173: 0 | V173: 0 | W173: 0 | X173: 0 | Y173: 0 | Z173: 0 | AA173: 0
A174: Lopatna | B174: 11-7 | D174: 945399.4083 | E174: 5279470.518 | F174: 7405554.96 | G174: 6089526.59 | H174: 3364776.425 | I174: 1404727.387 | J174: 0 | K174: 0 | L174: 0 | M174: 0 | N174: 0 | O174: 0 | P174: 0 | Q174: 0 | R174: 0 | S174: 0 | T174: 0 | U174: 0 | V174: 0 | W174: 0 | X174: 0 | Y174: 0 | Z174: 0 | AA174: 0
A175: Pugăcenii | B175: 14-11 | D175: 2871213.018 | E175: 11860457.54 | F175: 18106506.77 | G175: 14730893.5 | H175: 7234996.6 | I175: 1936319.108 | J175: 0 | K175: 0 | L175: 0 | M175: 0 | N175: 0 | O175: 0 | P175: 0 | Q175: 0 | R175: 0 | S175: 0 | T175: 0 | U175: 0 | V175: 0 | W175: 0 | X175: 0 | Y175: 0 | Z175: 0 | AA175: 0
A176: Roşcani | B176: 14-13 | D176: 1505636.095 | E176: 7328954.804 | F176: 10673807.89 | G176: 8736142.524 | H176: 4613901.797 | I176: 1671511.709 | J176: 0 | K176: 0 | L176: 0 | M176: 0 | N176: 0 | O176: 0 | P176: 0 | Q176: 0 | R176: 0 | S176: 0 | T176: 0 | U176: 0 | V176: =INDIRECT("'ERR "&$A176&"'!"&V$125&"57") -> 0 | W176: 0 | X176: 0 | Y176: 0 | Z176: 0 | AA176: 0
A177: Şerpeni | B177: 14-6 | D177: 3559837.278 | E177: 14444715.17 | F177: 22198590.08 | G177: 18048039.81 | H177: 8829803.577 | I177: 2318311.389 | J177: 0 | K177: 0 | L177: 0 | M177: 0 | N177: 0 | O177: 0 | P177: 0 | Q177: 0 | R177: 0 | S177: 0 | T177: 0 | U177: 0 | V177: 0 | W177: 0 | X177: 0 | Y177: 0 | Z177: 0 | AA177: 0
A178: Suvorov | B178: 17-3 | D178: 58515554.73 | E178: 206491851.9 | F178: 332451401.2 | G178: 268820056 | H178: 123150974.2 | I178: 21017670.61 | J178: 0 | K178: 0 | L178: 0 | M178: 0 | N178: 0 | O178: 0 | P178: 0 | Q178: 0 | R178: 0 | S178: 0 | T178: 0 | U178: 0 | V178: 0 | W178: 0 | X178: 0 | Y178: 0 | Z178: 0 | AA178: 0
A179: Talmaz | B179: 17-2 | D179: 8047566.568 | E179: 30782748.23 | F179: 48287600.35 | G179: 39170666.79 | H179: 18763532.95 | I179: 4389592.248 | J179: 0 | K179: 0 | L179: 0 | M179: 0 | N179: 0 | O179: 0 | P179: 0 | Q179: 0 | R179: 0 | S179: 0 | T179: 0 | U179: 0 | V179: 0 | W179: 0 | X179: 0 | Y179: 0 | Z179: 0 | AA179: 0
A180: Teţcani | B180: 1-1 | D180: 7995044.379 | E180: 28403593.65 | F180: 45466439.56 | G180: 36772003.06 | H180: 16650101.27 | I180: 2548115.511 | J180: 0 | K180: 0 | L180: 0 | M180: 0 | N180: 0 | O180: 0 | P180: 0 | Q180: 0 | R180: 0 | S180: 0 | T180: 0 | U180: 0 | V180: 0 | W180: 0 | X180: 0 | Y180: 0 | Z180: 0 | AA180: 0
A181: TOTAL | D181: =SUM(D165:D180) -> 128274592.9 | E181: =SUM(E165:E180) -> 483858262.6 | F181: =SUM(F165:F180) -> 761845650.6 | G181: =SUM(G165:G180) -> 617661286.5 | H181: =SUM(H165:H180) -> 292846203.9 | I181: =SUM(I165:I180) -> 64282463.86 | J181: =SUM(J165:J180) -> 0 | K181: =SUM(K165:K180) -> 0 | L181: =SUM(L165:L180) -> 0 | M181: =SUM(M165:M180) -> 0 | N181: =SUM(N165:N180) -> 0 | O181: =SUM(O165:O180) -> 0 | P181: =SUM(P165:P180) -> 0 | Q181: =SUM(Q165:Q180) -> 0 | R181: =SUM(R165:R180) -> 0 | S181: =SUM(S165:S180) -> 0 | T181: =SUM(T165:T180) -> 0 | U181: =SUM(U165:U180) -> 0 | V181: =SUM(V165:V180) -> 0 | W181: =SUM(W165:W180) -> 0 | X181: =SUM(X165:X180) -> 0 | Y181: =SUM(Y165:Y180) -> 0 | Z181: =SUM(Z165:Z180) -> 0 | AA181: =SUM(AA165:AA180) -> 0 | AB181: Investment Sensitivity Parameter
A182: Total With Sensitivity Parameter | D182: =D181*$AB$182 -> 128274592.9 | E182: =E181*$AB$182 -> 483858262.6 | F182: 761845650.6 | G182: 617661286.5 | H182: 292846203.9 | I182: 64282463.86 | J182: 0 | K182: 0 | L182: 0 | M182: 0 | N182: 0 | O182: 0 | P182: 0 | Q182: 0 | R182: 0 | S182: 0 | T182: 0 | U182: 0 | V182: 0 | W182: 0 | X182: 0 | Y182: 0 | Z182: 0 | AA182: 0 | AB182: ='ERR & Sensitivity Analysis'!D20 -> 1
A183: Costs of 11 selected Systems
A184: Blindeşti | D184: =VLOOKUP($A184,$A$165:$AA$180,D$119,FALSE) -> 1686545.858 | E184: =VLOOKUP($A184,$A$165:$AA$180,E$119,FALSE) -> 7592037.992 | F184: 11270698.1 | G184: 9198698.918 | H184: 4653301.589 | I184: 1426488.772 | J184: 0 | K184: 0 | L184: 0 | M184: 0 | N184: 0 | O184: 0 | P184: 0 | Q184: 0 | R184: 0 | S184: 0 | T184: 0 | U184: 0 | V184: 0 | W184: 0 | X184: 0 | Y184: 0 | Z184: 0 | AA184: 0
A185: Cahul | D185: =VLOOKUP($A185,$A$165:$AA$180,D$119,FALSE) -> 6372692.308 | E185: 24630121.47 | F185: 38487538.34 | G185: 31233290.84 | H185: 15005871.23 | I185: 3570819.947 | J185: 0 | K185: 0 | L185: 0 | M185: 0 | N185: 0 | O185: 0 | P185: 0 | Q185: 0 | R185: 0 | S185: 0 | T185: 0 | U185: 0 | V185: 0 | W185: 0 | X185: 0 | Y185: 0 | Z185: 0 | AA185: 0
A186: Coşniţa | D186: 3688224.852 | E186: 17942926.4 | F186: 26429959.85 | G186: 21632588.05 | H186: 11880536.33 | I186: 4894856.939 | J186: 0 | K186: 0 | L186: 0 | M186: 0 | N186: 0 | O186: 0 | P186: 0 | Q186: 0 | R186: 0 | S186: 0 | T186: 0 | U186: 0 | V186: 0 | W186: 0 | X186: 0 | Y186: 0 | Z186: 0 | AA186: 0
A187: Criuleni | D187: 1581501.479 | E187: 7553830.67 | F187: 11055833.93 | G187: 9042758.13 | H187: 4734987.1 | I187: 1663902.301 | J187: 0 | K187: 0 | L187: 0 | M187: 0 | N187: 0 | O187: 0 | P187: 0 | Q187: 0 | R187: 0 | S187: 0 | T187: 0 | U187: 0 | V187: 0 | W187: 0 | X187: 0 | Y187: 0 | Z187: 0 | AA187: 0
A188: Grozeşti | D188: 3120051.479 | E188: 12924939.42 | F188: 19735428.91 | G188: 16058030.34 | H188: 7930543.472 | I188: 2182863.927 | J188: 0 | K188: 0 | L188: 0 | M188: 0 | N188: 0 | O188: 0 | P188: 0 | Q188: 0 | R188: 0 | S188: 0 | T188: 0 | U188: 0 | V188: 0 | W188: 0 | X188: 0 | Y188: 0 | Z188: 0 | AA188: 0
A189: Jora de Jos | D189: 3349748.521 | E189: 13902886.76 | F189: 21233700.97 | G189: 17278505.98 | H189: 8568340.976 | I189: 2406580.522 | J189: 0 | K189: 0 | L189: 0 | M189: 0 | N189: 0 | O189: 0 | P189: 0 | Q189: 0 | R189: 0 | S189: 0 | T189: 0 | U189: 0 | V189: 0 | W189: 0 | X189: 0 | Y189: 0 | Z189: 0 | AA189: 0
A190: Leova Sud | D190: 1838276.627 | E190: 8870006.35 | F190: 12987083.55 | G190: 10626334.93 | H190: 5651475.333 | I190: 2099160.439 | J190: 0 | K190: 0 | L190: 0 | M190: 0 | N190: 0 | O190: 0 | P190: 0 | Q190: 0 | R190: 0 | S190: 0 | T190: 0 | U190: 0 | V190: 0 | W190: 0 | X190: 0 | Y190: 0 | Z190: 0 | AA190: 0
A191: Lopatna | D191: 945399.4083 | E191: 5279470.518 | F191: 7405554.96 | G191: 6089526.59 | H191: 3364776.425 | I191: 1404727.387 | J191: 0 | K191: 0 | L191: 0 | M191: 0 | N191: 0 | O191: 0 | P191: 0 | Q191: 0 | R191: 0 | S191: 0 | T191: 0 | U191: 0 | V191: 0 | W191: 0 | X191: 0 | Y191: 0 | Z191: 0 | AA191: 0
A192: Pugăcenii | D192: 2871213.018 | E192: 11860457.54 | F192: 18106506.77 | G192: 14730893.5 | H192: 7234996.6 | I192: 1936319.108 | J192: 0 | K192: 0 | L192: 0 | M192: 0 | N192: 0 | O192: 0 | P192: 0 | Q192: 0 | R192: 0 | S192: 0 | T192: 0 | U192: 0 | V192: 0 | W192: 0 | X192: 0 | Y192: 0 | Z192: 0 | AA192: 0
A193: Roşcani | D193: 1505636.095 | E193: 7328954.804 | F193: 10673807.89 | G193: 8736142.524 | H193: 4613901.797 | I193: 1671511.709 | J193: 0 | K193: 0 | L193: 0 | M193: 0 | N193: 0 | O193: 0 | P193: 0 | Q193: 0 | R193: 0 | S193: 0 | T193: 0 | U193: 0 | V193: 0 | W193: 0 | X193: 0 | Y193: 0 | Z193: 0 | AA193: 0
A194: Chircani-Zîrneşti | D194: 11712448.22 | E194: 45659788.51 | F194: 71357712.98 | G194: 57929428.73 | H194: 28276720.67 | I194: 7355739.487 | J194: 0 | K194: 0 | L194: 0 | M194: 0 | N194: 0 | O194: 0 | P194: 0 | Q194: 0 | R194: 0 | S194: 0 | T194: 0 | U194: 0 | V194: 0 | W194: 0 | X194: 0 | Y194: 0 | Z194: 0 | AA194: 0
A195: TOTAL | D195: =SUM(D184:D194) -> 38671737.87 | E195: =SUM(E184:E194) -> 163545420.4 | F195: =SUM(F184:F194) -> 248743826.2 | G195: =SUM(G184:G194) -> 202556198.5 | H195: =SUM(H184:H194) -> 101915451.5 | I195: =SUM(I184:I194) -> 30612970.54 | J195: =SUM(J184:J194) -> 0 | K195: =SUM(K184:K194) -> 0 | L195: =SUM(L184:L194) -> 0 | M195: =SUM(M184:M194) -> 0 | N195: =SUM(N184:N194) -> 0 | O195: =SUM(O184:O194) -> 0 | P195: =SUM(P184:P194) -> 0 | Q195: =SUM(Q184:Q194) -> 0 | R195: =SUM(R184:R194) -> 0 | S195: =SUM(S184:S194) -> 0 | T195: =SUM(T184:T194) -> 0 | U195: =SUM(U184:U194) -> 0 | V195: =SUM(V184:V194) -> 0 | W195: =SUM(W184:W194) -> 0 | X195: =SUM(X184:X194) -> 0 | Y195: =SUM(Y184:Y194) -> 0 | Z195: =SUM(Z184:Z194) -> 0 | AA195: =SUM(AA184:AA194) -> 0
A196: Total With Sensitivity Parameter | D196: =D195*$AB$182 -> 38671737.87 | E196: =E195*$AB$182 -> 163545420.4 | F196: 248743826.2 | G196: 202556198.5 | H196: 101915451.5 | I196: 30612970.54 | J196: 0 | K196: 0 | L196: 0 | M196: 0 | N196: 0 | O196: 0 | P196: 0 | Q196: 0 | R196: 0 | S196: 0 | T196: 0 | U196: 0 | V196: 0 | W196: 0 | X196: 0 | Y196: 0 | Z196: 0 | AA196: 0
A197: NET BENEFITS | D197: =D162-D196 -> -38671737.87 | E197: =E162-E196 -> -163545420.4 | F197: -248743826.2 | G197: -202556198.5 | H197: -60958451.49 | I197: 77190408.14 | J197: 109418665.6 | K197: 115771816 | L197: 120925696.7 | M197: 150603866.8 | N197: 183790959.4 | O197: 118012027.6 | P197: 234255194.7 | Q197: 234505890.6 | R197: 235096215.4 | S197: 235681626.7 | T197: 236262222.5 | U197: 236838099.3 | V197: 120652162.2 | W197: 4044108.918 | X197: 121535529.1 | Y197: 121974311.1 | Z197: 122411210.4 | AA197: 122846264.5
A198: COMBINED ERR | D198: =IRR(D197:AA197) -> 0.1430850416
A199: Future Economic Benefits of RBM (improved water management) | J199: =300000*'Common Assumptions'!$D$6 -> 3156000 | K199: =300000*'Common Assumptions'!$D$6 -> 3156000 | L199: =300000*'Common Assumptions'!$D$6 -> 3156000 | M199: =300000*'Common Assumptions'!$D$6 -> 3156000 | N199: =300000*'Common Assumptions'!$D$6 -> 3156000 | O199: =300000*'Common Assumptions'!$D$6 -> 3156000 | P199: =300000*'Common Assumptions'!$D$6 -> 3156000 | Q199: =300000*'Common Assumptions'!$D$6 -> 3156000 | R199: =300000*'Common Assumptions'!$D$6 -> 3156000 | S199: =300000*'Common Assumptions'!$D$6 -> 3156000 | T199: =300000*'Common Assumptions'!$D$6 -> 3156000 | U199: =300000*'Common Assumptions'!$D$6 -> 3156000 | V199: =300000*'Common Assumptions'!$D$6 -> 3156000 | W199: =300000*'Common Assumptions'!$D$6 -> 3156000 | X199: =300000*'Common Assumptions'!$D$6 -> 3156000 | Y199: =300000*'Common Assumptions'!$D$6 -> 3156000 | Z199: =300000*'Common Assumptions'!$D$6 -> 3156000 | AA199: =300000*'Common Assumptions'!$D$6 -> 3156000
A200: Benefits with Finance | D200: =+D161+#REF! ->  | E200: =+E161+#REF! ->  | F200: =+F161+#REF! ->  | G200: =+G161+#REF! ->  | H200: =+H161+#REF! ->  | I200: =+I161+#REF! ->  | J200: =+J161+#REF! ->  | K200: =+K161+#REF! ->  | L200: =+L161+#REF! ->  | M200: =+M161+#REF! ->  | N200: =+N161+#REF! ->  | O200: =+O161+#REF! ->  | P200: =+P161+#REF! ->  | Q200: =+Q161+#REF! ->  | R200: =+R161+#REF! ->  | S200: =+S161+#REF! ->  | T200: =+T161 -> 236262222.5 | U200: =+U161+#REF! ->  | V200: =+V161+#REF! ->  | W200: =+W161+#REF! ->  | X200: =+X161+#REF! ->  | Y200: =+Y161+#REF! ->  | Z200: =+Z161+#REF! ->  | AA200: =+AA161+#REF! -> 
A201: Costs with Finance | D201: =+D181+#REF! ->  | E201: =+E195+#REF! ->  | F201: =+F195+#REF! ->  | G201: =+G195+#REF! ->  | H201: =+H195+#REF! ->  | I201: =+I195+#REF! ->  | J201: =+J195+#REF! ->  | K201: =+K195+#REF! ->  | L201: =+L195+#REF! ->  | M201: =+M195+#REF! ->  | N201: =+N195+#REF! ->  | O201: =+O195+#REF! ->  | P201: =+P195+#REF! ->  | Q201: =+Q195+#REF! ->  | R201: =+R195+#REF! ->  | S201: =+S195+#REF! ->  | T201: =+T195 -> 0 | U201: =+U195+#REF! ->  | V201: =+V195+#REF! ->  | W201: =+W195+#REF! ->  | X201: =+X195+#REF! ->  | Y201: =+Y195+#REF! ->  | Z201: =+Z195+#REF! ->  | AA201: =+AA195+#REF! -> 
A202: NET BENEFITS THVA | D202: =+D200-D201+D199 ->  | E202: =+E200-E201+E199 ->  | T202: 239418222.5
D204: =IRR(D202:AA202) -> 

Sheet Cover (hidden)
A1: Transition to High Value Added Agriculture Project
A3: Date: | B3: 2009-05-30 | L3: DRAFT: NOT FINAL
A4: This spreadsheet is a draft and is being provided to facilitate:
A5: 1. Communication and work product of engineering feasibility team.
A6: 2. Review by Economic Analysis Practice Group
A7: 3. Discussion and input on the part of MCA-Moldova and others
A9: Key parameters remain unknown at the time of this model's construction, and ERRs should be considered final.
A12: System-Specific ERR Estimations Moldovan Irrigation System Rehabilitation Project
A13: Background on Project
A14: This Spreadsheet calculates economic rates of return system-by-system for a project to rehabilitate up to 16 formerly centrally owned and operated irrigation systems. The project will lead to the creation and capacity-building of Water User Assocations to own, maintain, and operate the assets of the system and deliver water service through non-profit customer-owned Water Service Entities (WSEs). It also assumes that systems will be selected for rehabilitation only if requirements on the part of beneficiaries to invest financially in the rehabilitation of at least tertiary assets are met, and that rehabilitation will not commence unless a WUA has been established. Finally, it assumes that the legislative and other enabling conditions will be in place for the institutional and financial sustainability of WUA-owned WSE's before a major investment by MCC.
A22: Additional Notes
A23: An investment evaluation horizon of 30 years was used for the rehabilitation for two reasons:
A24: 1. Irrigation engineers have informed MCC that the systems 'should' last 30 years.
A25: 2. A major focus of the project could be to build the conditions for sustainability of water service into the future, including the establishment of enabling legislation for non-governmental water service entities. These details are still being elaborated.
A29: Access to Agricultural Finance Program
A31: Program involves 2 types of lending:
A32: 1. Term finance facility. MCC funds medium-term (up to 5 years, according to investment cash flows. Participating Financial Institutions (PFIs) take collateral to cover risk. MCC rate to PFIs is inflation rate, margin capped at 5 percent.
B33: Access is expanded to medium term financing.
B34: Borrowers are offered a lower interest rate to induce greater investment: A capital investment subsidy.
A35: 2. Subordinated debt facility, unsecured.
B36: Means tested. Unpledged assets <= 150% of loan amount.
B37: Lender takes full risk
B38: Interest rate is 250 basis points higher than the Term Finance facility
B39: Repayment is subordinated to term finance facility and other senior debt.
B40: MCC reimburses lender another 750 basis points -- borrower pays 10 percent over inflation rate.
A42: Both 1. and 2. are aimed at expanding access to medium term financing.
A43: Both 1. and 2. are aimed at reducing the interest rate to the borrower, in effect subsidizing investment in agricultural related capital/projects.

Sheet Build (hidden)
A1: Build
A3: Data Type | B3: Crop Budgets
B4: Farm Budgets
A6: Model Type | B6: Reduced form (Water -> Profits)
B7: Structural (Water -> Adoption -> HVA -> Profits)
A9: Complementary Interventions | B9: Credit
B10: TA
A12: Include Farmer-level Financial Analysis? | B12: Y
B13: N
A15: Number of Farm Strata | B15: 9
A17: Number of Systems | B17: 16
A19: Farm Strata | B19: Region | C19: Size | D19: Strata | J19: Important: Do NOT edit each farm income statement sheet individually.
B20: Center | C20: Large | D20: =B20&" "&C20 -> Center Large | J20: Edit only the 'Income Template' sheet,
B21: Center | C21: Medium | D21: Center Medium | J21: which can then be used to generate all of the system ERR sheets
B22: Center | C22: Small | D22: Center Small
B23: North | C23: Large | D23: North Large
B24: North | C24: Medium | D24: North Medium
B25: North | C25: Small | D25: North Small
B26: South | C26: Large | D26: South Large
B27: South | C27: Medium | D27: South Medium
B28: South | C28: Small | D28: South Small
A30: Systems | B30: Name | C30: Code | D30: Region (USU Agroclimatic) | J30: Important: Do NOT edit each system ERR sheet individually.
B31: Blindeşti | C31: 3-2 | D31: Center | J31: Edit only the 'ERR Template' and 'System Parameters' sheets,
B32: Cahul | C32: 6-9 | D32: South | J32: which can then be used to generate all of the system ERR sheets
B33: Cărpinenii de Sus | C33: 4-5-1 | D33: Center
B34: Chircani-Zîrneşti | C34: 6-6 | D34: South
B35: Coşniţa | C35: 12-3 | D35: Center
B36: Criuleni | C36: 14-2 | D36: Center
B37: Grozeşti | C37: 3-6 | D37: Center
B38: Jora de Jos | C38: 11-6 | D38: Center
B39: Leova Sud | C39: 5-4 | D39: South
B40: Lopatna | C40: 11-7 | D40: Center
B41: Pugăcenii | C41: 14-11 | D41: Center
B42: Roşcani | C42: 14-13 | D42: Center
B43: Şerpeni | C43: 14-6 | D43: Center
B44: Suvorov | C44: 17-3 | D44: South
B45: Talmaz | C45: 17-2 | D45: South
B46: Teţcani | C46: 1-1 | D46: North

Sheet ERR by System
A1: MILLENNIUM CHALLENGE CORPORATION
A2: Moldova: Combined CIS Rehabilitation Project
A3: =IF('ERR & Sensitivity Analysis'!$I$20="N","NOTE: Current calculations are based on USER INPUT and are not the original MCC estimates.",IF('ERR & Sensitivity Analysis'!$I$21="N","NOTE: Current calculations are based on USER INPUT and are not the original MCC estimates.","")) ->  | E3: ='User''s Guide'!B1 -> LAST UPDATED: 1/10/2011
A4: ERR BY SYSTEM
Q5: Number beneficiaries <1.25 | R5: Number beneficiaries <1.25 | S5: Number beneficiaries <1.25 | T5: Total Ha. In System | U5: Total Ha. in SystemSelected | V5: Ha. HVA Year 10 by system | W5: Ha. HVA Year 10 by system if selected | X5: Fraction land under HVA Year 10 (including multiple cropping) | Z5: Fraction Land Large Farms Year 10 with project | AA5: Fraction Land Large Farms Current | AB5: Total USD Rehabilitation Cost of all Selected Systems, excluding IE support
A6: Selected? | B6: No. | C6: System | G6: ERR For Rehabilitation, GHS, IMT | H6: Rank on ERR Criterion | I6: NPV Benefits | J6: Beneficiaries ** | K6: NPV Project costs | L6: NPV Benefits 1.25 | M6: NPV Benefits < 2 | N6: NPV Benefits 2-4 | O6: NPV Benefits > 4 | P6: Number beneficiaries <1.25 ** | Q6: Number beneficiaries < 2 ** | R6: Number beneficiaries 2-4 ** | S6: Number beneficiaries> 4 ** | U6: Ha. HVA current | AC6: Total Rehab Costs as per MWH updated, all systems, excluding IE support | AD6: Cost per Ha. | AE6: Region if passes | AF6: Fraction of land irrigated, year 1 | AG6: Fraction of land Irrigated Year 5 | AH6: Fraction of land Irrigated Year 8 | AI6: Fraction of land Irrigated Year 10 | AJ6: Fraction of land Irrigated Year 10 if selected | AK6: Calculated shortfall IN MDL | AL6: Estimated tariff shortfall In USD | AM6: NVP MCC Project Costs
A7: 1 | B7: =+'System Parameters'!D5 -> 3-2 | C7: =Build!B31 -> Blindeşti | G7: =INDIRECT("'ERR "&C7&"'!C60") -> 0.08824796026 | H7: =RANK(G7,$G$7:$G$22,0) -> 14 | I7: =IF(A7=1,INDIRECT("'ERR "&$C7&"'!D82"),0) -> 34346390.42 | J7: =IF(A7=1,+'System Parameters'!BS5*3.86,0) -> 7851.110844 | K7: =IF(A7=1,INDIRECT("'ERR "&$C7&"'!$D$89"),0) -> 26252862.4 | L7: =IF(A7=1,INDIRECT("'ERR "&$C7&"'!$D$83"),0) -> 4111678.254 | M7: =IF(A7=1,INDIRECT("'ERR "&$C7&"'!$D$84"),0) -> 7796169.158 | N7: =IF(A7=1,INDIRECT("'ERR "&$C7&"'!$D$85"),0) -> 672820.078 | O7: =IF(A7=1,INDIRECT("'ERR "&$C7&"'!$D$87"),0) -> 25877401.19 | P7: =IF(A7=1,+'System Parameters'!BP5,0) -> 609.2409556 | Q7: =IF(A7=1,+'System Parameters'!BQ5,0) -> 1191.738132 | R7: =IF(A7=1,+'System Parameters'!BR5-Q7,0) -> 556.618546 | S7: =IF(A7=1,+'System Parameters'!BS5-R7-Q7,0) -> 285.6098614 | T7: =+'System Parameters'!U5 -> 521 | U7: =IF(A7=1,T7) -> 521 | V7: =IF(A7=1,INDIRECT("'ERR "&C7&"'!P67"),0) -> 283.665 | W7: =IF(A7=1,V7) -> 283.665 | X7: =INDIRECT("'ERR "&C7&"'!P66") -> 0.544462572 | Y7: =+X7*T7 -> 283.665 | Z7: =INDIRECT("'ERR "&C7&"'!D18") -> 0.3176583493 | AA7: =INDIRECT("'ERR "&$C7&"'!$D$13") -> 0.6314779271 | AB7: =IF($G7="Does Not Exist",0,IF($A7=1,VLOOKUP($B7,'System Parameters'!$D$5:$M$20,10,0))) -> 2890000 | AC7: =VLOOKUP($B7,'System Parameters'!$D$5:$M$20,10,0) -> 2890000 | AD7: =+AC7/+T7 -> 5547.024952 | AE7: =IF(G7>10%,+Build!D31,0) -> 0 | AF7: =INDIRECT("'ERR "&$C7&"'!$G$68")+INDIRECT("'ERR "&$C7&"'!$G$69") -> 0.4492442418 | AG7: =INDIRECT("'ERR "&$C7&"'!$K$68")+INDIRECT("'ERR "&$C7&"'!$K$69") -> 0.4340885917 | AH7: =INDIRECT("'ERR "&$C7&"'!$N$68")+INDIRECT("'ERR "&$C7&"'!$N$69") -> 0.7776391555 | AI7: =INDIRECT("'ERR "&$C7&"'!$P$68")+INDIRECT("'ERR "&$C7&"'!$P$69") -> 0.7776391555 | AJ7: =IF(A7=1,AI7,0) -> 0.7776391555 | AK7: =INDIRECT("'ERR "&$C7&"'!E75") -> 3626252.076 | AL7: =IF(A7=1,+AK7/'Common Assumptions'!$D$6,0) -> 344700.7676 | AM7: =IF(A7=1,INDIRECT("'ERR "&$C7&"'!$D$90"),0) -> 26011013.37 | AN7: =+AJ7*U7 -> 405.15
A8: 1 | B8: =+'System Parameters'!D6 -> 6-9 | C8: =Build!B32 -> Cahul | G8: 0.1124380403 | H8: 11 | I8: 145040034.9 | J8: =IF(A8=1,+'System Parameters'!BS6*3.86,0) -> 26585.3222 | K8: 87730944.23 | L8: 5223695.766 | M8: 5945063.276 | N8: 6790804.495 | O8: 132304167.2 | P8: =IF(A8=1,+'System Parameters'!BP6,0) -> 2150.576404 | Q8: =IF(A8=1,+'System Parameters'!BQ6,0) -> 4218.080741 | R8: =IF(A8=1,+'System Parameters'!BR6-Q8,0) -> 2008.472857 | S8: =IF(A8=1,+'System Parameters'!BS6-R8-Q8,0) -> 660.8355737 | T8: =+'System Parameters'!U6 -> 1930 | U8: =IF(A8=1,T8) -> 1930 | V8: =IF(A8=1,INDIRECT("'ERR "&C8&"'!P67"),0) -> 937.45 | W8: =IF(A8=1,V8) -> 937.45 | X8: =INDIRECT("'ERR "&C8&"'!P66") -> 0.4857253886 | Y8: =+X8*T8 -> 937.45 | Z8: =INDIRECT("'ERR "&C8&"'!D18") -> 0.4015544041 | AA8: 0.8031088083 | AB8: =IF($G8="Does Not Exist",0,IF($A8=1,VLOOKUP($B8,'System Parameters'!$D$5:$M$20,10,0))) -> 10920000 | AC8: =VLOOKUP($B8,'System Parameters'!$D$5:$M$20,10,0) -> 10920000 | AD8: =+AC8/+T8 -> 5658.031088 | AE8: =IF(G8>10%,+Build!D32, ) -> South | AF8: 0.45 | AG8: 0.3834399288 | AH8: 0.7189119171 | AI8: 0.7189119171 | AJ8: =IF(A8=1,AI8,0) -> 0.7189119171 | AK8: =INDIRECT("'ERR "&$C8&"'!E75") -> 0 | AL8: =IF(A8=1,+AK8/'Common Assumptions'!$D$6,0) -> 0 | AM8: 86835035.15 | AN8: =+AJ8*U8 -> 1387.5
A9: 0 | B9: =+'System Parameters'!D7 -> 4-5-1 | C9: =Build!B33 -> Cărpinenii de Sus | G9: 0.0412488819 | H9: 16 | I9: 0 | J9: =IF(A9=1,+'System Parameters'!BS7*3.86,0) -> 0 | K9: 0 | L9: 0 | M9: 0 | N9: 0 | O9: 0 | P9: =IF(A9=1,+'System Parameters'!BP7,0) -> 0 | Q9: =IF(A9=1,+'System Parameters'!BQ7,0) -> 0 | R9: =IF(A9=1,+'System Parameters'!BR7-Q9,0) -> 0 | S9: =IF(A9=1,+'System Parameters'!BS7-R9-Q9,0) -> 0 | T9: =+'System Parameters'!U7 -> 1815 | U9: FALSE | V9: 0 | W9: FALSE | X9: 0.5699366391 | Y9: 1034.435 | Z9: 0.2779614325 | AA9: 0.5570247934 | AB9: =IF($G9="Does Not Exist",0,IF($A9=1,VLOOKUP($B9,'System Parameters'!$D$5:$M$20,10,0))) -> FALSE | AC9: =VLOOKUP($B9,'System Parameters'!$D$5:$M$20,10,0) -> 19680000 | AD9: 10842.97521 | AE9: =IF(G9>10%,+Build!D33,0) -> 0 | AF9: 0.4502169421 | AG9: 0.4577371729 | AH9: 0.8054269972 | AI9: 0.8054269972 | AJ9: 0 | AL9: =IF(A9=1,+AK9/'Common Assumptions'!$D$6,0) -> 0 | AM9: 0 | AN9: 0
A10: 1 | B10: =+'System Parameters'!D8 -> 6-6 | C10: =Build!B34 -> Chircani-Zîrneşti | G10: 0.1693425374 | H10: 3 | I10: 433711339.1 | J10: =IF(A10=1,+'System Parameters'!BS8*3.86,0) -> 59217.44655 | K10: 163271469.8 | L10: 59410205.38 | M10: 75722838.04 | N10: 62431063.28 | O10: 295557437.8 | P10: =IF(A10=1,+'System Parameters'!BP8,0) -> 4853.323026 | Q10: =IF(A10=1,+'System Parameters'!BQ8,0) -> 9576.886838 | R10: =IF(A10=1,+'System Parameters'!BR8-Q10,0) -> 4628.165812 | S10: =IF(A10=1,+'System Parameters'!BS8-R10-Q10,0) -> 1136.254747 | T10: =+'System Parameters'!U8 -> 4417 | U10: 4417 | V10: 2660.33 | W10: 2660.33 | X10: 0.6022934118 | Y10: 2660.33 | Z10: 0.2447362463 | AA10: 0.4890196966 | AB10: =IF($G10="Does Not Exist",0,IF($A10=1,VLOOKUP($B10,'System Parameters'!$D$5:$M$20,10,0))) -> 20070000 | AC10: =VLOOKUP($B10,'System Parameters'!$D$5:$M$20,10,0) -> 20070000 | AD10: 4543.808014 | AE10: =IF(G10>10%,+Build!D34,0) -> South | AF10: 0.4499108558 | AG10: 0.4777970766 | AH10: 0.8286846276 | AI10: 0.8286846276 | AJ10: 0.8286846276 | AK10: =INDIRECT("'ERR "&$C10&"'!E75") -> 0 | AL10: =IF(A10=1,+AK10/'Common Assumptions'!$D$6,0) -> 0 | AM10: 161221091.4 | AN10: 3660.3
A11: 1 | B11: =+'System Parameters'!D9 -> 12-3 | C11: =Build!B35 -> Coşniţa | G11: 0.1761494892 | H11: 1 | I11: 174012944.9 | J11: =IF(A11=1,+'System Parameters'!BS9*3.86,0) -> 45574.11557 | K11: 62954262.67 | L11: 25704197.87 | M11: 27012775.21 | N11: 7851464.076 | O11: 139148705.7 | P11: =IF(A11=1,+'System Parameters'!BP9,0) -> 3594.911527 | Q11: =IF(A11=1,+'System Parameters'!BQ9,0) -> 6837.011067 | R11: =IF(A11=1,+'System Parameters'!BR9-Q11,0) -> 3073.798014 | S11: =IF(A11=1,+'System Parameters'!BS9-R11-Q11,0) -> 1895.956612 | T11: =+'System Parameters'!U9 -> 2800 | U11: 2800 | V11: 1512.755 | W11: 1512.755 | X11: 0.5402696429 | Y11: 1512.755 | Z11: 0.3066071429 | AA11: 0.6132142857 | AB11: =IF($G11="Does Not Exist",0,IF($A11=1,VLOOKUP($B11,'System Parameters'!$D$5:$M$20,10,0))) -> 6320000 | AC11: =VLOOKUP($B11,'System Parameters'!$D$5:$M$20,10,0) -> 6320000 | AD11: 2257.142857 | AE11: =IF(G11>10%,+Build!D35,0) -> Center | AF11: 0.45 | AG11: 0.4405566406 | AH11: 0.785375 | AI11: 0.785375 | AJ11: 0.785375 | AK11: 0 | AL11: =IF(A11=1,+AK11/'Common Assumptions'!$D$6,0) -> 0 | AM11: 61654498.21 | AN11: 2199.05
A12: 1 | B12: =+'System Parameters'!D10 -> 14-2 | C12: =Build!B36 -> Criuleni | G12: 0.1355832486 | H12: 7 | I12: 52124010.07 | J12: =IF(A12=1,+'System Parameters'!BS10*3.86,0) -> 14190.80257 | K12: 26042584.95 | L12: 426693.1518 | M12: 1832270.593 | N12: 6074102.514 | O12: 44217636.96 | P12: =IF(A12=1,+'System Parameters'!BP10,0) -> 981.8679169 | Q12: =IF(A12=1,+'System Parameters'!BQ10,0) -> 1849.980242 | R12: =IF(A12=1,+'System Parameters'!BR10-Q12,0) -> 810.1250213 | S12: =IF(A12=1,+'System Parameters'!BS10-R12-Q12,0) -> 1016.26846 | T12: =+'System Parameters'!U10 -> 677 | U12: 677 | V12: 423.585 | W12: 423.585 | X12: 0.6256794682 | Y12: 423.585 | Z12: 0.1912850812 | AA12: 0.3855243722 | AB12: =IF($G12="Does Not Exist",0,IF($A12=1,VLOOKUP($B12,'System Parameters'!$D$5:$M$20,10,0))) -> 2710000 | AC12: =VLOOKUP($B12,'System Parameters'!$D$5:$M$20,10,0) -> 2710000 | AD12: 4002.95421 | AE12: =IF(G12>10%,+Build!D36,0) -> Center | AF12: 0.45058161 | AG12: 0.5097915897 | AH12: 0.8661004431 | AI12: 0.8661004431 | AJ12: 0.8661004431 | AK12: 0 | AL12: =IF(A12=1,+AK12/'Common Assumptions'!$D$6,0) -> 0 | AM12: 25728320.48 | AN12: 586.35
A13: 1 | B13: =+'System Parameters'!D11 -> 3-6 | C13: =Build!B37 -> Grozeşti | G13: 0.1512029898 | H13: 6 | I13: 101775734.9 | J13: =IF(A13=1,+'System Parameters'!BS11*3.86,0) -> 19277.96656 | K13: 45469962.5 | L13: 15871415.98 | M13: 48516032.95 | N13: 18576770.98 | O13: 34682931 | P13: =IF(A13=1,+'System Parameters'!BP11,0) -> 1464.270029 | Q13: =IF(A13=1,+'System Parameters'!BQ11,0) -> 2694.340902 | R13: =IF(A13=1,+'System Parameters'!BR11-Q13,0) -> 1155.403162 | S13: =IF(A13=1,+'System Parameters'!BS11-R13-Q13,0) -> 1144.54779 | T13: =+'System Parameters'!U11 -> 1018 | U13: 1018 | V13: 780.285 | W13: 780.285 | X13: 0.7664882122 | Y13: 780.285 | Z13: 0.028978389 | AA13: 0.057956778 | AB13: =IF($G13="Does Not Exist",0,IF($A13=1,VLOOKUP($B13,'System Parameters'!$D$5:$M$20,10,0))) -> 5346400 | AC13: =VLOOKUP($B13,'System Parameters'!$D$5:$M$20,10,0) -> 5346400 | AD13: 5251.866405 | AE13: =IF(G13>10%,+Build!D37,0) -> Center | AF13: 0.45 | AG13: 0.6075676879 | AH13: 0.9797151277 | AI13: 0.9797151277 | AJ13: 0.9797151277 | AK13: 6667317.323 | AL13: =IF(A13=1,+AK13/'Common Assumptions'!$D$6,0) -> 633775.411 | AM13: 44997405.28 | AN13: 997.35
A14: 1 | B14: =+'System Parameters'!D12 -> 11-6 | C14: =Build!B38 -> Jora de Jos | G14: 0.1198048214 | H14: 10 | I14: 85667323.14 | J14: =IF(A14=1,+'System Parameters'!BS12*3.86,0) -> 19934.64427 | K14: 48968578.45 | L14: 14805004.72 | M14: 17898587.8 | N14: 9501719.45 | O14: 58267015.89 | P14: =IF(A14=1,+'System Parameters'!BP12,0) -> 1499.802842 | Q14: =IF(A14=1,+'System Parameters'!BQ12,0) -> 2888.253918 | R14: =IF(A14=1,+'System Parameters'!BR12-Q14,0) -> 1324.681369 | S14: =IF(A14=1,+'System Parameters'!BS12-R14-Q14,0) -> 951.4803271 | T14: =+'System Parameters'!U12 -> 1165 | U14: 1165 | V14: 751.59 | W14: 751.59 | X14: 0.6451416309 | Y14: 751.59 | Z14: 0.1570815451 | AA14: 0.3158798283 | AB14: =IF($G14="Does Not Exist",0,IF($A14=1,VLOOKUP($B14,'System Parameters'!$D$5:$M$20,10,0))) -> 5740000 | AC14: =VLOOKUP($B14,'System Parameters'!$D$5:$M$20,10,0) -> 5740000 | AD14: 4927.038627 | AE14: =IF(G14>10%,+Build!D38,0) -> Center | AF14: 0.4503379828 | AG14: 0.5304251609 | AH14: 0.8900429185 | AI14: 0.8900429185 | AJ14: 0.8900429185 | AK14: 8942148.51 | AL14: =IF(A14=1,+AK14/'Common Assumptions'!$D$6,0) -> 850014.1169 | AM14: 48427783.6 | AN14: 1036.9
A15: 1 | B15: =+'System Parameters'!D13 -> 5-4 | C15: =Build!B39 -> Leova Sud | G15: 0.1698611045 | H15: 2 | I15: 82065992.58 | J15: =IF(A15=1,+'System Parameters'!BS13*3.86,0) -> 15765.65032 | K15: 30711105.05 | L15: 8933688.613 | M15: 12252802.09 | N15: 6017831.913 | O15: 63795358.58 | P15: =IF(A15=1,+'System Parameters'!BP13,0) -> 1174.858413 | Q15: =IF(A15=1,+'System Parameters'!BQ13,0) -> 2287.613369 | R15: =IF(A15=1,+'System Parameters'!BR13-Q15,0) -> 1062.924306 | S15: =IF(A15=1,+'System Parameters'!BS13-R15-Q15,0) -> 733.8276937 | T15: =+'System Parameters'!U13 -> 963 | U15: 963 | V15: 555.41 | W15: 555.41 | X15: 0.5767497404 | Y15: 555.41 | Z15: 0.266874351 | AA15: 0.5316718588 | AB15: =IF($G15="Does Not Exist",0,IF($A15=1,VLOOKUP($B15,'System Parameters'!$D$5:$M$20,10,0))) -> 3150000 | AC15: =VLOOKUP($B15,'System Parameters'!$D$5:$M$20,10,0) -> 3150000 | AD15: 3271.028037 | AE15: =IF(G15>10%,+Build!D39,0) -> South | AF15: 0.4495911215 | AG15: 0.4645557503 | AH15: 0.8131879543 | AI15: 0.8131879543 | AJ15: 0.8131879543 | AK15: 0 | AL15: =IF(A15=1,+AK15/'Common Assumptions'!$D$6,0) -> 0 | AM15: 30264078.91 | AN15: 783.1
A16: 1 | B16: =+'System Parameters'!D14 -> 11-7 | C16: =Build!B40 -> Lopatna | G16: 0.1577283152 | H16: 5 | I16: 42434262.63 | J16: =IF(A16=1,+'System Parameters'!BS14*3.86,0) -> 9467.849879 | K16: 17827977.85 | L16: 12526164.28 | M16: 22022308.76 | N16: 4779309.562 | O16: 15632644.31 | P16: =IF(A16=1,+'System Parameters'!BP14,0) -> 712.9361971 | Q16: =IF(A16=1,+'System Parameters'!BQ14,0) -> 1339.009553 | R16: =IF(A16=1,+'System Parameters'!BR14-Q16,0) -> 603.3611579 | S16: =IF(A16=1,+'System Parameters'!BS14-R16-Q16,0) -> 510.4401386 | T16: =+'System Parameters'!U14 -> 506.701 | U16: 506.701 | V16: 364.97113 | W16: 364.97113 | X16: 0.7202889475 | Y16: 364.97113 | Z16: 0.07243127604 | AA16: 0.1420956343 | AB16: =IF($G16="Does Not Exist",0,IF($A16=1,VLOOKUP($B16,'System Parameters'!$D$5:$M$20,10,0))) -> 1620000 | AC16: =VLOOKUP($B16,'System Parameters'!$D$5:$M$20,10,0) -> 1620000 | AD16: 3197.151772 | AE16: =IF(G16>10%,+Build!D40,0) -> Center | AF16: 0.4494552631 | AG16: 0.5815577598 | AH16: 0.9492981068 | AI16: 0.9492981068 | AJ16: 0.9492981068 | AK16: 0 | AL16: =IF(A16=1,+AK16/'Common Assumptions'!$D$6,0) -> 0 | AM16: 17592766.44 | AN16: 481.0103
A17: 1 | B17: =+'System Parameters'!D15 -> 14-11 | C17: =Build!B41 -> Pugăcenii | G17: 0.1287902732 | H17: 8 | I17: 78381637.75 | J17: =IF(A17=1,+'System Parameters'!BS15*3.86,0) -> 20824.85597 | K17: 41662675 | L17: 25030846.37 | M17: 29791615.19 | N17: 15214828.19 | O17: 33375194.37 | P17: =IF(A17=1,+'System Parameters'!BP15,0) -> 1457.566775 | Q17: =IF(A17=1,+'System Parameters'!BQ15,0) -> 2665.655721 | R17: =IF(A17=1,+'System Parameters'!BR15-Q17,0) -> 1092.529644 | S17: =IF(A17=1,+'System Parameters'!BS15-R17-Q17,0) -> 1636.85504 | T17: =+'System Parameters'!U15 -> 856 | U17: 856 | V17: 565.955 | W17: 565.955 | X17: 0.6611623832 | Y17: 565.955 | Z17: 0.1734813084 | AA17: 0.3492990654 | AB17: =IF($G17="Does Not Exist",0,IF($A17=1,VLOOKUP($B17,'System Parameters'!$D$5:$M$20,10,0))) -> 4920000 | AC17: =VLOOKUP($B17,'System Parameters'!$D$5:$M$20,10,0) -> 4920000 | AD17: 5747.663551 | AE17: =IF(G17>10%,+Build!D41,0) -> Center | AF17: 0.4504599883 | AG17: 0.5205306294 | AH17: 0.8785630841 | AI17: 0.8785630841 | AJ17: 0.8785630841 | AK17: 0 | AL17: =IF(A17=1,+AK17/'Common Assumptions'!$D$6,0) -> 0 | AM17: 41265318.43 | AN17: 752.05
A18: 1 | B18: =+'System Parameters'!D16 -> 14-13 | C18: =Build!B42 -> Roşcani | G18: 0.1627721313 | H18: 4 | I18: 61670300.06 | J18: =IF(A18=1,+'System Parameters'!BS16*3.86,0) -> 12696.42497 | K18: 25220435.06 | L18: 7225371.93 | M18: 12233868.38 | N18: 15682341.35 | O18: 33754090.33 | P18: =IF(A18=1,+'System Parameters'!BP16,0) -> 928.6704841 | Q18: =IF(A18=1,+'System Parameters'!BQ16,0) -> 1755.550774 | R18: =IF(A18=1,+'System Parameters'!BR16-Q18,0) -> 769.1208717 | S18: =IF(A18=1,+'System Parameters'!BS16-R18-Q18,0) -> 764.557621 | T18: =+'System Parameters'!U16 -> 682 | U18: 682 | V18: 500 | W18: 500 | X18: 0.7331378299 | Y18: 500 | Z18: 0 | AA18: 0 | AB18: =IF($G18="Does Not Exist",0,IF($A18=1,VLOOKUP($B18,'System Parameters'!$D$5:$M$20,10,0))) -> 2580000 | AC18: =VLOOKUP($B18,'System Parameters'!$D$5:$M$20,10,0) -> 2580000 | AD18: 3782.991202 | AE18: =IF(G18>10%,+Build!D42,0) -> Center | AF18: 0.45 | AG18: 0.625 | AH18: 1 | AI18: 1 | AJ18: 1 | AK18: 0 | AL18: =IF(A18=1,+AK18/'Common Assumptions'!$D$6,0) -> 0 | AM18: 24903849.57 | AN18: 682
A19: 0 | B19: =+'System Parameters'!D17 -> 14-6 | C19: =Build!B43 -> Şerpeni | G19: 0.09260750547 | H19: 13 | I19: 0 | J19: =IF(A19=1,+'System Parameters'!BS17*3.86,0) -> 0 | K19: 0 | L19: 0 | M19: 0 | N19: 0 | O19: 0 | P19: =IF(A19=1,+'System Parameters'!BP17,0) -> 0 | Q19: =IF(A19=1,+'System Parameters'!BQ17,0) -> 0 | R19: =IF(A19=1,+'System Parameters'!BR17-Q19,0) -> 0 | S19: =IF(A19=1,+'System Parameters'!BS17-R19-Q19,0) -> 0 | T19: =+'System Parameters'!U17 -> 1107 | U19: FALSE | V19: 0 | W19: FALSE | X19: 0.535298103 | Y19: 592.575 | Z19: 0.3093947606 | AA19: 0.620596206 | AB19: =IF($G19="Does Not Exist",0,IF($A19=1,VLOOKUP($B19,'System Parameters'!$D$5:$M$20,10,0))) -> FALSE | AC19: =VLOOKUP($B19,'System Parameters'!$D$5:$M$20,10,0) -> 6100000 | AD19: 5510.388437 | AE19: =IF(G19>10%,+Build!D43,0) -> 0 | AF19: 0.4503556911 | AG19: 0.438795026 | AH19: 0.7834236676 | AI19: 0.7834236676 | AJ19: 0 | AK19: 6571970.349 | AL19: =IF(A19=1,+AK19/'Common Assumptions'!$D$6,0) -> 0 | AM19: 0 | AN19: 0
A20: 0 | B20: 14-4 | C20: =Build!B44 -> Suvorov | G20: 0.07440285417 | H20: 15 | I20: 0 | J20: =IF(A20=1,+'System Parameters'!BS18*3.86,0) -> 0 | K20: 0 | L20: 0 | M20: 0 | N20: 0 | O20: 0 | P20: =IF(A20=1,+'System Parameters'!BP18,0) -> 0 | Q20: =IF(A20=1,+'System Parameters'!BQ18,0) -> 0 | R20: =IF(A20=1,+'System Parameters'!BR18-Q20,0) -> 0 | S20: =IF(A20=1,+'System Parameters'!BS18-R20-Q20,0) -> 0 | T20: =+'System Parameters'!U18 -> 13394 | U20: FALSE | V20: 0 | W20: FALSE | X20: 0.5026153502 | Y20: 6732.03 | Z20: 0.3778557563 | AA20: 0.7557115126 | AB20: =IF($G20="Does Not Exist",0,IF($A20=1,VLOOKUP($B20,'System Parameters'!$D$5:$M$20,10,0))) -> FALSE | AC20: =VLOOKUP($B20,'System Parameters'!$D$5:$M$20,10,0) ->  | AE20: =IF(G20>10%,+Build!D44,0) -> 0 | AF20: 0.45 | AG20: 0.3976961466 | AH20: 0.7355009706 | AI20: 0.7355009706 | AJ20: 0 | AL20: =IF(A20=1,+AK20/'Common Assumptions'!$D$6,0) -> 0 | AM20: 0 | AN20: 0
A21: 0 | B21: =+'System Parameters'!D19 -> 17-2 | C21: =Build!B45 -> Talmaz | G21: 0.1201179098 | H21: 9 | I21: 0 | J21: =IF(A21=1,+'System Parameters'!BS19*3.86,0) -> 0 | K21: 0 | L21: 0 | M21: 0 | N21: 0 | O21: 0 | P21: =IF(A21=1,+'System Parameters'!BP19,0) -> 0 | Q21: =IF(A21=1,+'System Parameters'!BQ19,0) -> 0 | R21: =IF(A21=1,+'System Parameters'!BR19-Q21,0) -> 0 | S21: =IF(A21=1,+'System Parameters'!BS19-R21-Q21,0) -> 0 | T21: =+'System Parameters'!U19 -> 2468 | U21: FALSE | V21: 0 | W21: FALSE | X21: 0.4910433549 | Y21: 1211.895 | Z21: 0.3916126418 | AA21: 0.7824149109 | AB21: =IF($G21="Does Not Exist",0,IF($A21=1,VLOOKUP($B21,'System Parameters'!$D$5:$M$20,10,0))) -> FALSE | AC21: =VLOOKUP($B21,'System Parameters'!$D$5:$M$20,10,0) -> 13790000 | AD21: 5587.520259 | AE21: =IF(G21>10%,+Build!D45,0) -> South | AF21: 0.4498404579 | AG21: 0.3894585064 | AH21: 0.7258711507 | AI21: 0.7258711507 | AJ21: 0 | AK21: =INDIRECT("'ERR "&$C21&"'!E75") -> 0 | AL21: =IF(A21=1,+AK21/'Common Assumptions'!$D$6,0) -> 0 | AM21: 0 | AN21: 0
A22: 0 | B22: =+'System Parameters'!D20 -> 1-1 | C22: =Build!B46 -> Teţcani | G22: =INDIRECT("'ERR "&C22&"'!C60") -> 0.1115684769 | H22: 12 | I22: 0 | J22: =IF(A22=1,+'System Parameters'!BS20*3.86,0) -> 0 | K22: 0 | L22: 0 | M22: 0 | N22: 0 | O22: 0 | P22: =IF(A22=1,+'System Parameters'!BP20,0) -> 0 | Q22: =IF(A22=1,+'System Parameters'!BQ20,0) -> 0 | R22: =IF(A22=1,+'System Parameters'!BR20-Q22,0) -> 0 | S22: =IF(A22=1,+'System Parameters'!BS20-R22-Q22,0) -> 0 | T22: =+'System Parameters'!U20 -> 1258 | U22: FALSE | V22: 0 | W22: FALSE | X22: 0.8056240064 | Y22: 1013.475 | Z22: 0.1267885533 | AA22: 0.2535771065 | AB22: =IF($G22="Does Not Exist",0,IF($A22=1,VLOOKUP($B22,'System Parameters'!$D$5:$M$20,10,0))) -> FALSE | AC22: =VLOOKUP($B22,'System Parameters'!$D$5:$M$20,10,0) -> 13700000 | AD22: 10890.30207 | AE22: =IF(G22>10%,+Build!D46,0) -> North | AF22: 0.45 | AG22: 0.6737287609 | AH22: 0.9366057234 | AI22: 0.9366057234 | AJ22: 0 | AK22: =INDIRECT("'ERR "&$C22&"'!E75") -> 41168888.09 | AL22: =IF(A22=1,+AK22/'Common Assumptions'!$D$6,0) -> 0 | AM22: 0 | AN22: 0
A24: TOTALS | G24: IN USD PPP | I24: =SUM(I7:I22)/5.923 -> 218002696.4 | J24: =SUM(J7:J22) -> 251386.1897 | K24: =SUM(K7:K22)/5.923 -> 97267070.4 | L24: 30266581.52 | M24: 44069615.31 | N24: 25931631.92 | O24: 148001449.1 | P24: =SUM(P7:P22) -> 19428.02457 | Q24: 37304.12126 | R24: 17085.20076 | S24: 10736.63386 | T24: 35577.701 | U24: =SUM(U7:U22) -> 15535.701 | V24: =SUM(V7:V22) -> 9335.99613 | W24: =SUM(W7:W22) -> 9335.99613 | Y24: =SUM(Y7:Y22) -> 19920.40613 | AB24: =SUM(AB7:AB22) -> 66266400 | AC24: =SUM(AC7:AC22) ->  | AD24: =AB24/U24 -> 4265.427096 | AE24: =COUNTIF(AE7:AE22,"North") -> 1 | AF24: Total North | AL24: =AL22+SUM(AL11:AL18)+AL7+AL8 -> 1828490.295 | AM24: =SUM(AM7:AM22) -> 568901160.8 | AN24: =SUM(AN7:AN22)/U24 -> 0.8349002275
G25: IN MDL | I25: =(SUM(I7:I22)) -> 1291229971 | K25: =(SUM(K7:K22)) -> 576112858 | L25: 179268962.3 | M25: 261024331.5 | N25: 153593055.9 | O25: 876612583.2 | V25: =+V24/+U24 -> 0.6009381958 | W25: =+V24*15 -> 140039.942 | Y25: =+Y24/T24 -> 0.559912686 | AB25: =+AB24-AB9 -> 66266400 | AD25: Selected systems | AE25: =COUNTIF(AE8:AE23,"Center") -> 7 | AF25: Total Center | AM25: =+AM24/ex_rate -> 54078057.11
I26: POVERTY SCORECARD CALCs FARM Income only | L26: Total NPV | P26: Per Beneficiary
I27: Fraction Benefits | L27: =+L24/I24 -> 0.1388358127 | M27: =+M24/I24 -> 0.2021516983 | N27: =+N24/I24 -> 0.1189509688 | O27: =+O24/I24 -> 0.6788973329 | P27: =+L24/P24 -> 1557.882605 | Q27: =+M24/Q24 -> 1181.360499 | R27: =+N24/R24 -> 1517.783273 | S27: =+O24/S24 -> 13784.71605
I28: Assumed Annual Income | P28: =365*1.25*0.9 -> 410.625 | Q28: =365*2*0.8 -> 584 | R28: =365*3*1.2 -> 1314
I29: Fraction of Annual Income | P29: =+P27/P28 -> 3.793930239 | Q29: =+Q27/Q28 -> 2.022877567 | R29: =+R27/R28 -> 1.155086204 | S29: =+S27/S28 -> 
I30: Cost Effectivness | L30: =+L24/K24 -> 0.3111698686 | M30: =+M24/K24 -> 0.4530784687 | N30: =+N24/K24 -> 0.2666023744 | O30: =+O24/K24 -> 1.521598713
I32: =I25/ex_rate -> 122740491.5 | K32: =K25/ex_rate -> 54763579.66 | M32: =+M30+N30+O30 -> 2.241279556
I33: *Hectares in command area unclear.
I34: 5 systems in red are not functioning at any capacity
I35: ** This count is superceded by new count on "Beneficiary Calc" tab (smaller employee count biggest difference)

Sheet Income Template
A2: Farm Income and Expenses per hectare | C2: =B8 -> North Small
A3: =IF('ERR & Sensitivity Analysis'!$I$20="N","NOTE: Current calculations are based on USER INPUT and are not the original MCC estimates.",IF('ERR & Sensitivity Analysis'!$I$21="N","NOTE: Current calculations are based on USER INPUT and are not the original MCC estimates.","")) ->  | S3: =IF('ERR & Sensitivity Analysis'!$I$20="N","NOTE: Current calculations are based on USER INPUT and are not the original MCC estimates.",IF('ERR & Sensitivity Analysis'!$I$21="N","NOTE: Current calculations are based on USER INPUT and are not the original MCC estimates.","")) -> 
A5: ALL VALUES IN LEI
A6: Farm Size | B6: Small
A7: Farm Region | B7: North
A8: Farm Strata | B8: =B7&" "&B6 -> North Small
A12: With Irrigation Service (=With Project except for areas currently receiving irrigation)
A14: Year after rehabilitation | D14: 1 | E14: 2 | F14: 3 | G14: 4 | H14: 5 | I14: 6 | J14: 7 | K14: 8 | L14: 9 | M14: 10 | N14: 11 | O14: 12 | P14: 13 | Q14: 14 | R14: 15 | S14: 16 | T14: 17 | U14: 18 | V14: 19 | W14: 20 | X14: 21 | Y14: 22 | Z14: 23 | AA14: 24 | AB14: 25 | AC14: 26 | AD14: 27 | AE14: 28 | AF14: 29 | AG14: 30
A15: Fraction of land irrigated | D15: =MAX('Common Assumptions'!$E$70,MIN(1,MAX(D40,VLOOKUP($B$8,'Area Irrigated '!$C$5:$J$13,3+HLOOKUP(D$14,'Common Assumptions'!$D$50:$AG$52,3,FALSE),FALSE)*MIN(D14/'Common Assumptions'!$E$69,1)))) -> 0.45 | E15: =MAX('Common Assumptions'!$E$70,MIN(1,MAX(E40,VLOOKUP($B$8,'Area Irrigated '!$C$5:$J$13,3+HLOOKUP(E$14,'Common Assumptions'!$D$50:$AG$52,3,FALSE),FALSE)*MIN(E14/'Common Assumptions'!$E$69,1)))) -> 0.45 | F15: =MAX('Common Assumptions'!$E$70,MIN(1,MAX(F40,VLOOKUP($B$8,'Area Irrigated '!$C$5:$J$13,3+HLOOKUP(F$14,'Common Assumptions'!$D$50:$AG$52,3,FALSE),FALSE)*MIN(F14/'Common Assumptions'!$E$69,1)))) -> 0.45 | G15: =MAX('Common Assumptions'!$E$70,MIN(1,MAX(G40,VLOOKUP($B$8,'Area Irrigated '!$C$5:$J$13,3+HLOOKUP(G$14,'Common Assumptions'!$D$50:$AG$52,3,FALSE),FALSE)*MIN(G14/'Common Assumptions'!$E$69,1)))) -> 0.6 | H15: =MIN(1,MAX(H40,VLOOKUP($B$8,'Area Irrigated '!$C$5:$J$13,3+HLOOKUP(H$14,'Common Assumptions'!$D$50:$AG$52,3,FALSE),FALSE)*MIN(H14/'Common Assumptions'!$E$69,1))) -> 0.75 | I15: =MIN(1,MAX(I40,VLOOKUP($B$8,'Area Irrigated '!$C$5:$J$13,3+HLOOKUP(I$14,'Common Assumptions'!$D$50:$AG$52,3,FALSE),FALSE)*MIN(I14/'Common Assumptions'!$E$69,1))) -> 0.9 | J15: =MIN(1,MAX(J40,VLOOKUP($B$8,'Area Irrigated '!$C$5:$J$13,3+HLOOKUP(J$14,'Common Assumptions'!$D$50:$AG$52,3,FALSE),FALSE)*MIN(J14/'Common Assumptions'!$E$69,1))) -> 1 | K15: =MIN(1,MAX(K40,VLOOKUP($B$8,'Area Irrigated '!$C$5:$J$13,3+HLOOKUP(K$14,'Common Assumptions'!$D$50:$AG$52,3,FALSE),FALSE)*MIN(K14/'Common Assumptions'!$E$69,1))) -> 1 | L15: =MIN(1,MAX(L40,VLOOKUP($B$8,'Area Irrigated '!$C$5:$J$13,3+HLOOKUP(L$14,'Common Assumptions'!$D$50:$AG$52,3,FALSE),FALSE)*MIN(L14/'Common Assumptions'!$E$69,1))) -> 1 | M15: =MIN(1,MAX(M40,VLOOKUP($B$8,'Area Irrigated '!$C$5:$J$13,3+HLOOKUP(M$14,'Common Assumptions'!$D$50:$AG$52,3,FALSE),FALSE)*MIN(M14/'Common Assumptions'!$E$69,1))) -> 1 | N15: =MIN(1,MAX(N40,VLOOKUP($B$8,'Area Irrigated '!$C$5:$J$13,3+HLOOKUP(N$14,'Common Assumptions'!$D$50:$AG$52,3,FALSE),FALSE)*MIN(N14/'Common Assumptions'!$E$69,1))) -> 1 | O15: =MIN(1,MAX(O40,VLOOKUP($B$8,'Area Irrigated '!$C$5:$J$13,3+HLOOKUP(O$14,'Common Assumptions'!$D$50:$AG$52,3,FALSE),FALSE)*MIN(O14/'Common Assumptions'!$E$69,1))) -> 1 | P15: =MIN(1,MAX(P40,VLOOKUP($B$8,'Area Irrigated '!$C$5:$J$13,3+HLOOKUP(P$14,'Common Assumptions'!$D$50:$AG$52,3,FALSE),FALSE)*MIN(P14/'Common Assumptions'!$E$69,1))) -> 1 | Q15: =MIN(1,MAX(Q40,VLOOKUP($B$8,'Area Irrigated '!$C$5:$J$13,3+HLOOKUP(Q$14,'Common Assumptions'!$D$50:$AG$52,3,FALSE),FALSE)*MIN(Q14/'Common Assumptions'!$E$69,1))) -> 1 | R15: =MIN(1,MAX(R40,VLOOKUP($B$8,'Area Irrigated '!$C$5:$J$13,3+HLOOKUP(R$14,'Common Assumptions'!$D$50:$AG$52,3,FALSE),FALSE)*MIN(R14/'Common Assumptions'!$E$69,1))) -> 0.7 | S15: =MIN(1,MAX(S40,VLOOKUP($B$8,'Area Irrigated '!$C$5:$J$13,3+HLOOKUP(S$14,'Common Assumptions'!$D$50:$AG$52,3,FALSE),FALSE)*MIN(S14/'Common Assumptions'!$E$69,1))) -> 0.7 | T15: =MIN(1,MAX(T40,VLOOKUP($B$8,'Area Irrigated '!$C$5:$J$13,3+HLOOKUP(T$14,'Common Assumptions'!$D$50:$AG$52,3,FALSE),FALSE)*MIN(T14/'Common Assumptions'!$E$69,1))) -> 0.7 | U15: =MIN(1,MAX(U40,VLOOKUP($B$8,'Area Irrigated '!$C$5:$J$13,3+HLOOKUP(U$14,'Common Assumptions'!$D$50:$AG$52,3,FALSE),FALSE)*MIN(U14/'Common Assumptions'!$E$69,1))) -> 0.7 | V15: =MIN(1,MAX(V40,VLOOKUP($B$8,'Area Irrigated '!$C$5:$J$13,3+HLOOKUP(V$14,'Common Assumptions'!$D$50:$AG$52,3,FALSE),FALSE)*MIN(V14/'Common Assumptions'!$E$69,1))) -> 0.7 | W15: =MIN(1,MAX(W40,VLOOKUP($B$8,'Area Irrigated '!$C$5:$J$13,3+HLOOKUP(W$14,'Common Assumptions'!$D$50:$AG$52,3,FALSE),FALSE)*MIN(W14/'Common Assumptions'!$E$69,1))) -> 0.7 | X15: =MIN(1,MAX(X40,VLOOKUP($B$8,'Area Irrigated '!$C$5:$J$13,3+HLOOKUP(X$14,'Common Assumptions'!$D$50:$AG$52,3,FALSE),FALSE)*MIN(X14/'Common Assumptions'!$E$69,1))) -> 0.7 | Y15: =MIN(1,MAX(Y40,VLOOKUP($B$8,'Area Irrigated '!$C$5:$J$13,3+HLOOKUP(Y$14,'Common Assumptions'!$D$50:$AG$52,3,FALSE),FALSE)*MIN(Y14/'Common Assumptions'!$E$69,1))) -> 0.7 | Z15: =MIN(1,MAX(Z40,VLOOKUP($B$8,'Area Irrigated '!$C$5:$J$13,3+HLOOKUP(Z$14,'Common Assumptions'!$D$50:$AG$52,3,FALSE),FALSE)*MIN(Z14/'Common Assumptions'!$E$69,1))) -> 0.7 | AA15: =MIN(1,MAX(AA40,VLOOKUP($B$8,'Area Irrigated '!$C$5:$J$13,3+HLOOKUP(AA$14,'Common Assumptions'!$D$50:$AG$52,3,FALSE),FALSE)*MIN(AA14/'Common Assumptions'!$E$69,1))) -> 0.7 | AB15: =MIN(1,MAX(AB40,VLOOKUP($B$8,'Area Irrigated '!$C$5:$J$13,3+HLOOKUP(AB$14,'Common Assumptions'!$D$50:$AG$52,3,FALSE),FALSE)*MIN(AB14/'Common Assumptions'!$E$69,1))) -> 0.7 | AC15: =MIN(1,MAX(AC40,VLOOKUP($B$8,'Area Irrigated '!$C$5:$J$13,3+HLOOKUP(AC$14,'Common Assumptions'!$D$50:$AG$52,3,FALSE),FALSE)*MIN(AC14/'Common Assumptions'!$E$69,1))) -> 0.7 | AD15: =MIN(1,MAX(AD40,VLOOKUP($B$8,'Area Irrigated '!$C$5:$J$13,3+HLOOKUP(AD$14,'Common Assumptions'!$D$50:$AG$52,3,FALSE),FALSE)*MIN(AD14/'Common Assumptions'!$E$69,1))) -> 0.7 | AE15: =MIN(1,MAX(AE40,VLOOKUP($B$8,'Area Irrigated '!$C$5:$J$13,3+HLOOKUP(AE$14,'Common Assumptions'!$D$50:$AG$52,3,FALSE),FALSE)*MIN(AE14/'Common Assumptions'!$E$69,1))) -> 0.7 | AF15: =MIN(1,MAX(AF40,VLOOKUP($B$8,'Area Irrigated '!$C$5:$J$13,3+HLOOKUP(AF$14,'Common Assumptions'!$D$50:$AG$52,3,FALSE),FALSE)*MIN(AF14/'Common Assumptions'!$E$69,1))) -> 0.7 | AG15: =MIN(1,MAX(AG40,VLOOKUP($B$8,'Area Irrigated '!$C$5:$J$13,3+HLOOKUP(AG$14,'Common Assumptions'!$D$50:$AG$52,3,FALSE),FALSE)*MIN(AG14/'Common Assumptions'!$E$69,1))) -> 0.7
A16: Fraction of land Irrigated HVA | D16: =VLOOKUP($B$8,'Income irrigated'!$C$7:$J$15,3+HLOOKUP(D$14,'Common Assumptions'!$D$50:$AG$52,3,FALSE),FALSE)*D15 -> 0.3825 | E16: =VLOOKUP($B$8,'Income irrigated'!$C$7:$J$15,3+HLOOKUP(E$14,'Common Assumptions'!$D$50:$AG$52,3,FALSE),FALSE)*E15 -> 0.3825 | F16: =VLOOKUP($B$8,'Income irrigated'!$C$7:$J$15,3+HLOOKUP(F$14,'Common Assumptions'!$D$50:$AG$52,3,FALSE),FALSE)*F15 -> 0.3825 | G16: =VLOOKUP($B$8,'Income irrigated'!$C$7:$J$15,3+HLOOKUP(G$14,'Common Assumptions'!$D$50:$AG$52,3,FALSE),FALSE)*G15 -> 0.51 | H16: =VLOOKUP($B$8,'Income irrigated'!$C$7:$J$15,3+HLOOKUP(H$14,'Common Assumptions'!$D$50:$AG$52,3,FALSE),FALSE)*H15 -> 0.6375 | I16: =VLOOKUP($B$8,'Income irrigated'!$C$7:$J$15,3+HLOOKUP(I$14,'Common Assumptions'!$D$50:$AG$52,3,FALSE),FALSE)*I15 -> 0.765 | J16: =VLOOKUP($B$8,'Income irrigated'!$C$7:$J$15,3+HLOOKUP(J$14,'Common Assumptions'!$D$50:$AG$52,3,FALSE),FALSE)*J15 -> 0.85 | K16: =VLOOKUP($B$8,'Income irrigated'!$C$7:$J$15,3+HLOOKUP(K$14,'Common Assumptions'!$D$50:$AG$52,3,FALSE),FALSE)*K15 -> 0.85 | L16: =VLOOKUP($B$8,'Income irrigated'!$C$7:$J$15,3+HLOOKUP(L$14,'Common Assumptions'!$D$50:$AG$52,3,FALSE),FALSE)*L15 -> 0.85 | M16: =VLOOKUP($B$8,'Income irrigated'!$C$7:$J$15,3+HLOOKUP(M$14,'Common Assumptions'!$D$50:$AG$52,3,FALSE),FALSE)*M15 -> 0.85 | N16: =VLOOKUP($B$8,'Income irrigated'!$C$7:$J$15,3+HLOOKUP(N$14,'Common Assumptions'!$D$50:$AG$52,3,FALSE),FALSE)*N15 -> 0.85 | O16: =VLOOKUP($B$8,'Income irrigated'!$C$7:$J$15,3+HLOOKUP(O$14,'Common Assumptions'!$D$50:$AG$52,3,FALSE),FALSE)*O15 -> 0.85 | P16: =VLOOKUP($B$8,'Income irrigated'!$C$7:$J$15,3+HLOOKUP(P$14,'Common Assumptions'!$D$50:$AG$52,3,FALSE),FALSE)*P15 -> 0.85 | Q16: =VLOOKUP($B$8,'Income irrigated'!$C$7:$J$15,3+HLOOKUP(Q$14,'Common Assumptions'!$D$50:$AG$52,3,FALSE),FALSE)*Q15 -> 0.85 | R16: =VLOOKUP($B$8,'Income irrigated'!$C$7:$J$15,3+HLOOKUP(R$14,'Common Assumptions'!$D$50:$AG$52,3,FALSE),FALSE)*R15 -> 0.595 | S16: =VLOOKUP($B$8,'Income irrigated'!$C$7:$J$15,3+HLOOKUP(S$14,'Common Assumptions'!$D$50:$AG$52,3,FALSE),FALSE)*S15 -> 0.595 | T16: =VLOOKUP($B$8,'Income irrigated'!$C$7:$J$15,3+HLOOKUP(T$14,'Common Assumptions'!$D$50:$AG$52,3,FALSE),FALSE)*T15 -> 0.595 | U16: =VLOOKUP($B$8,'Income irrigated'!$C$7:$J$15,3+HLOOKUP(U$14,'Common Assumptions'!$D$50:$AG$52,3,FALSE),FALSE)*U15 -> 0.595 | V16: =VLOOKUP($B$8,'Income irrigated'!$C$7:$J$15,3+HLOOKUP(V$14,'Common Assumptions'!$D$50:$AG$52,3,FALSE),FALSE)*V15 -> 0.595 | W16: =VLOOKUP($B$8,'Income irrigated'!$C$7:$J$15,3+HLOOKUP(W$14,'Common Assumptions'!$D$50:$AG$52,3,FALSE),FALSE)*W15 -> 0.595 | X16: =VLOOKUP($B$8,'Income irrigated'!$C$7:$J$15,3+HLOOKUP(X$14,'Common Assumptions'!$D$50:$AG$52,3,FALSE),FALSE)*X15 -> 0.595 | Y16: =VLOOKUP($B$8,'Income irrigated'!$C$7:$J$15,3+HLOOKUP(Y$14,'Common Assumptions'!$D$50:$AG$52,3,FALSE),FALSE)*Y15 -> 0.595 | Z16: =VLOOKUP($B$8,'Income irrigated'!$C$7:$J$15,3+HLOOKUP(Z$14,'Common Assumptions'!$D$50:$AG$52,3,FALSE),FALSE)*Z15 -> 0.595 | AA16: =VLOOKUP($B$8,'Income irrigated'!$C$7:$J$15,3+HLOOKUP(AA$14,'Common Assumptions'!$D$50:$AG$52,3,FALSE),FALSE)*AA15 -> 0.595 | AB16: =VLOOKUP($B$8,'Income irrigated'!$C$7:$J$15,3+HLOOKUP(AB$14,'Common Assumptions'!$D$50:$AG$52,3,FALSE),FALSE)*AB15 -> 0.595 | AC16: =VLOOKUP($B$8,'Income irrigated'!$C$7:$J$15,3+HLOOKUP(AC$14,'Common Assumptions'!$D$50:$AG$52,3,FALSE),FALSE)*AC15 -> 0.595 | AD16: =VLOOKUP($B$8,'Income irrigated'!$C$7:$J$15,3+HLOOKUP(AD$14,'Common Assumptions'!$D$50:$AG$52,3,FALSE),FALSE)*AD15 -> 0.595 | AE16: =VLOOKUP($B$8,'Income irrigated'!$C$7:$J$15,3+HLOOKUP(AE$14,'Common Assumptions'!$D$50:$AG$52,3,FALSE),FALSE)*AE15 -> 0.595 | AF16: =VLOOKUP($B$8,'Income irrigated'!$C$7:$J$15,3+HLOOKUP(AF$14,'Common Assumptions'!$D$50:$AG$52,3,FALSE),FALSE)*AF15 -> 0.595 | AG16: =VLOOKUP($B$8,'Income irrigated'!$C$7:$J$15,3+HLOOKUP(AG$14,'Common Assumptions'!$D$50:$AG$52,3,FALSE),FALSE)*AG15 -> 0.595
A17: Fraction of land irrigated grains & technical crops | D17: =IF(D15=D16,0,(1-D16/D15)*D15) -> 0.0675 | E17: 0.0675 | F17: 0.0675 | G17: 0.09 | H17: 0.1125 | I17: 0.135 | J17: 0.15 | K17: 0.15 | L17: 0.15 | M17: 0.15 | N17: 0.15 | O17: 0.15 | P17: 0.15 | Q17: 0.15 | R17: 0.105 | S17: 0.105 | T17: 0.105 | U17: 0.105 | V17: 0.105 | W17: 0.105 | X17: 0.105 | Y17: 0.105 | Z17: 0.105 | AA17: 0.105 | AB17: 0.105 | AC17: 0.105 | AD17: 0.105 | AE17: 0.105 | AF17: 0.105 | AG17: 0.105
A18: Fraction of land unirrigated | D18: =1-D15 -> 0.55 | E18: 0.55 | F18: 0.55 | G18: 0.4 | H18: 0.25 | I18: 0.1 | J18: 0 | K18: 0 | L18: 0 | M18: 0 | N18: 0 | O18: 0 | P18: 0 | Q18: 0 | R18: 0.3 | S18: 0.3 | T18: 0.3 | U18: 0.3 | V18: 0.3 | W18: 0.3 | X18: 0.3 | Y18: 0.3 | Z18: 0.3 | AA18: 0.3 | AB18: 0.3 | AC18: 0.3 | AD18: 0.3 | AE18: 0.3 | AF18: 0.3 | AG18: 0.3
A19: Fraction of land unirrigated HVA | D19: =VLOOKUP($B$8,'Income unirrigated'!$C$4:$J$12,3,FALSE)*D18 -> 0.4675 | E19: =VLOOKUP($B$8,'Income unirrigated'!$C$4:$J$12,3,FALSE)*E18 -> 0.4675 | F19: =VLOOKUP($B$8,'Income unirrigated'!$C$4:$J$12,3,FALSE)*F18 -> 0.4675 | G19: =VLOOKUP($B$8,'Income unirrigated'!$C$4:$J$12,3,FALSE)*G18 -> 0.34 | H19: =VLOOKUP($B$8,'Income unirrigated'!$C$4:$J$12,3,FALSE)*H18 -> 0.2125 | I19: =VLOOKUP($B$8,'Income unirrigated'!$C$4:$J$12,3,FALSE)*I18 -> 0.085 | J19: =VLOOKUP($B$8,'Income unirrigated'!$C$4:$J$12,3,FALSE)*J18 -> 0 | K19: =VLOOKUP($B$8,'Income unirrigated'!$C$4:$J$12,3,FALSE)*K18 -> 0 | L19: =VLOOKUP($B$8,'Income unirrigated'!$C$4:$J$12,3,FALSE)*L18 -> 0 | M19: =VLOOKUP($B$8,'Income unirrigated'!$C$4:$J$12,3,FALSE)*M18 -> 0 | N19: =VLOOKUP($B$8,'Income unirrigated'!$C$4:$J$12,3,FALSE)*N18 -> 0 | O19: =VLOOKUP($B$8,'Income unirrigated'!$C$4:$J$12,3,FALSE)*O18 -> 0 | P19: =VLOOKUP($B$8,'Income unirrigated'!$C$4:$J$12,3,FALSE)*P18 -> 0 | Q19: =VLOOKUP($B$8,'Income unirrigated'!$C$4:$J$12,3,FALSE)*Q18 -> 0 | R19: =VLOOKUP($B$8,'Income unirrigated'!$C$4:$J$12,3,FALSE)*R18 -> 0.255 | S19: =VLOOKUP($B$8,'Income unirrigated'!$C$4:$J$12,3,FALSE)*S18 -> 0.255 | T19: =VLOOKUP($B$8,'Income unirrigated'!$C$4:$J$12,3,FALSE)*T18 -> 0.255 | U19: =VLOOKUP($B$8,'Income unirrigated'!$C$4:$J$12,3,FALSE)*U18 -> 0.255 | V19: =VLOOKUP($B$8,'Income unirrigated'!$C$4:$J$12,3,FALSE)*V18 -> 0.255 | W19: =VLOOKUP($B$8,'Income unirrigated'!$C$4:$J$12,3,FALSE)*W18 -> 0.255 | X19: =VLOOKUP($B$8,'Income unirrigated'!$C$4:$J$12,3,FALSE)*X18 -> 0.255 | Y19: =VLOOKUP($B$8,'Income unirrigated'!$C$4:$J$12,3,FALSE)*Y18 -> 0.255 | Z19: =VLOOKUP($B$8,'Income unirrigated'!$C$4:$J$12,3,FALSE)*Z18 -> 0.255 | AA19: =VLOOKUP($B$8,'Income unirrigated'!$C$4:$J$12,3,FALSE)*AA18 -> 0.255 | AB19: =VLOOKUP($B$8,'Income unirrigated'!$C$4:$J$12,3,FALSE)*AB18 -> 0.255 | AC19: =VLOOKUP($B$8,'Income unirrigated'!$C$4:$J$12,3,FALSE)*AC18 -> 0.255 | AD19: =VLOOKUP($B$8,'Income unirrigated'!$C$4:$J$12,3,FALSE)*AD18 -> 0.255 | AE19: =VLOOKUP($B$8,'Income unirrigated'!$C$4:$J$12,3,FALSE)*AE18 -> 0.255 | AF19: =VLOOKUP($B$8,'Income unirrigated'!$C$4:$J$12,3,FALSE)*AF18 -> 0.255 | AG19: =VLOOKUP($B$8,'Income unirrigated'!$C$4:$J$12,3,FALSE)*AG18 -> 0.255
A20: Fraction of land unirrigated non-HVA | D20: =MAX(0,IF(D18=D19,0,(1-D19/D18)*D18)) -> 0.0825 | E20: =MAX(0,IF(E18=E19,0,(1-E19/E18)*E18)) -> 0.0825 | F20: 0.0825 | G20: 0.06 | H20: 0.0375 | I20: 0.015 | J20: 0 | K20: 0 | L20: 0 | M20: 0 | N20: 0 | O20: 0 | P20: 0 | Q20: 0 | R20: 0.045 | S20: 0.045 | T20: 0.045 | U20: 0.045 | V20: 0.045 | W20: 0.045 | X20: 0.045 | Y20: 0.045 | Z20: 0.045 | AA20: 0.045 | AB20: 0.045 | AC20: 0.045 | AD20: 0.045 | AE20: 0.045 | AF20: 0.045 | AG20: 0.045
A21: Farm Income per hectare:
A22: Irrigated HVA | D22: =VLOOKUP($B$8,'Income irrigated'!$C$19:$J$29,3+HLOOKUP(D$14,'Common Assumptions'!$D$50:$AG$52,3,FALSE),FALSE)*D16 -> 18062.39424 | E22: =VLOOKUP($B$8,'Income irrigated'!$C$19:$J$29,3+HLOOKUP(E$14,'Common Assumptions'!$D$50:$AG$52,3,FALSE),FALSE)*E16 -> 18062.39424 | F22: =VLOOKUP($B$8,'Income irrigated'!$C$19:$J$29,3+HLOOKUP(F$14,'Common Assumptions'!$D$50:$AG$52,3,FALSE),FALSE)*F16 -> 18062.39424 | G22: =VLOOKUP($B$8,'Income irrigated'!$C$19:$J$29,3+HLOOKUP(G$14,'Common Assumptions'!$D$50:$AG$52,3,FALSE),FALSE)*G16 -> 24083.19231 | H22: =VLOOKUP($B$8,'Income irrigated'!$C$19:$J$29,3+HLOOKUP(H$14,'Common Assumptions'!$D$50:$AG$52,3,FALSE),FALSE)*H16 -> 30103.99039 | I22: =VLOOKUP($B$8,'Income irrigated'!$C$19:$J$29,3+HLOOKUP(I$14,'Common Assumptions'!$D$50:$AG$52,3,FALSE),FALSE)*I16 -> 36124.78847 | J22: =VLOOKUP($B$8,'Income irrigated'!$C$19:$J$29,3+HLOOKUP(J$14,'Common Assumptions'!$D$50:$AG$52,3,FALSE),FALSE)*J16 -> 40138.65386 | K22: =VLOOKUP($B$8,'Income irrigated'!$C$19:$J$29,3+HLOOKUP(K$14,'Common Assumptions'!$D$50:$AG$52,3,FALSE),FALSE)*K16 -> 40138.65386 | L22: =VLOOKUP($B$8,'Income irrigated'!$C$19:$J$29,3+HLOOKUP(L$14,'Common Assumptions'!$D$50:$AG$52,3,FALSE),FALSE)*L16 -> 40138.65386 | M22: =VLOOKUP($B$8,'Income irrigated'!$C$19:$J$29,3+HLOOKUP(M$14,'Common Assumptions'!$D$50:$AG$52,3,FALSE),FALSE)*M16 -> 40138.65386 | N22: =VLOOKUP($B$8,'Income irrigated'!$C$19:$J$29,3+HLOOKUP(N$14,'Common Assumptions'!$D$50:$AG$52,3,FALSE),FALSE)*N16 -> 40138.65386 | O22: =VLOOKUP($B$8,'Income irrigated'!$C$19:$J$29,3+HLOOKUP(O$14,'Common Assumptions'!$D$50:$AG$52,3,FALSE),FALSE)*O16 -> 40138.65386 | P22: =VLOOKUP($B$8,'Income irrigated'!$C$19:$J$29,3+HLOOKUP(P$14,'Common Assumptions'!$D$50:$AG$52,3,FALSE),FALSE)*P16 -> 40138.65386 | Q22: =VLOOKUP($B$8,'Income irrigated'!$C$19:$J$29,3+HLOOKUP(Q$14,'Common Assumptions'!$D$50:$AG$52,3,FALSE),FALSE)*Q16 -> 40138.65386 | R22: =VLOOKUP($B$8,'Income irrigated'!$C$19:$J$29,3+HLOOKUP(R$14,'Common Assumptions'!$D$50:$AG$52,3,FALSE),FALSE)*R16 -> 25287.35193 | S22: =VLOOKUP($B$8,'Income irrigated'!$C$19:$J$29,3+HLOOKUP(S$14,'Common Assumptions'!$D$50:$AG$52,3,FALSE),FALSE)*S16 -> 25287.35193 | T22: =VLOOKUP($B$8,'Income irrigated'!$C$19:$J$29,3+HLOOKUP(T$14,'Common Assumptions'!$D$50:$AG$52,3,FALSE),FALSE)*T16 -> 25287.35193 | U22: =VLOOKUP($B$8,'Income irrigated'!$C$19:$J$29,3+HLOOKUP(U$14,'Common Assumptions'!$D$50:$AG$52,3,FALSE),FALSE)*U16 -> 25287.35193 | V22: =VLOOKUP($B$8,'Income irrigated'!$C$19:$J$29,3+HLOOKUP(V$14,'Common Assumptions'!$D$50:$AG$52,3,FALSE),FALSE)*V16 -> 25287.35193 | W22: =VLOOKUP($B$8,'Income irrigated'!$C$19:$J$29,3+HLOOKUP(W$14,'Common Assumptions'!$D$50:$AG$52,3,FALSE),FALSE)*W16 -> 25287.35193 | X22: =VLOOKUP($B$8,'Income irrigated'!$C$19:$J$29,3+HLOOKUP(X$14,'Common Assumptions'!$D$50:$AG$52,3,FALSE),FALSE)*X16 -> 25287.35193 | Y22: =VLOOKUP($B$8,'Income irrigated'!$C$19:$J$29,3+HLOOKUP(Y$14,'Common Assumptions'!$D$50:$AG$52,3,FALSE),FALSE)*Y16 -> 25287.35193 | Z22: =VLOOKUP($B$8,'Income irrigated'!$C$19:$J$29,3+HLOOKUP(Z$14,'Common Assumptions'!$D$50:$AG$52,3,FALSE),FALSE)*Z16 -> 25287.35193 | AA22: =VLOOKUP($B$8,'Income irrigated'!$C$19:$J$29,3+HLOOKUP(AA$14,'Common Assumptions'!$D$50:$AG$52,3,FALSE),FALSE)*AA16 -> 25287.35193 | AB22: =VLOOKUP($B$8,'Income irrigated'!$C$19:$J$29,3+HLOOKUP(AB$14,'Common Assumptions'!$D$50:$AG$52,3,FALSE),FALSE)*AB16 -> 25287.35193 | AC22: =VLOOKUP($B$8,'Income irrigated'!$C$19:$J$29,3+HLOOKUP(AC$14,'Common Assumptions'!$D$50:$AG$52,3,FALSE),FALSE)*AC16 -> 25287.35193 | AD22: =VLOOKUP($B$8,'Income irrigated'!$C$19:$J$29,3+HLOOKUP(AD$14,'Common Assumptions'!$D$50:$AG$52,3,FALSE),FALSE)*AD16 -> 25287.35193 | AE22: =VLOOKUP($B$8,'Income irrigated'!$C$19:$J$29,3+HLOOKUP(AE$14,'Common Assumptions'!$D$50:$AG$52,3,FALSE),FALSE)*AE16 -> 25287.35193 | AF22: =VLOOKUP($B$8,'Income irrigated'!$C$19:$J$29,3+HLOOKUP(AF$14,'Common Assumptions'!$D$50:$AG$52,3,FALSE),FALSE)*AF16 -> 25287.35193 | AG22: =VLOOKUP($B$8,'Income irrigated'!$C$19:$J$29,3+HLOOKUP(AG$14,'Common Assumptions'!$D$50:$AG$52,3,FALSE),FALSE)*AG16 -> 25287.35193
A23: Irrigated grain & technical crops | D23: =VLOOKUP($B$8,'Income irrigated'!$C$34:$J$44,3+HLOOKUP(D$14,'Common Assumptions'!$D$50:$AG$52,3,FALSE),FALSE)*D17 -> 417.3235714 | E23: =VLOOKUP($B$8,'Income irrigated'!$C$34:$J$44,3+HLOOKUP(E$14,'Common Assumptions'!$D$50:$AG$52,3,FALSE),FALSE)*E17 -> 417.3235714 | F23: =VLOOKUP($B$8,'Income irrigated'!$C$34:$J$44,3+HLOOKUP(F$14,'Common Assumptions'!$D$50:$AG$52,3,FALSE),FALSE)*F17 -> 417.3235714 | G23: =VLOOKUP($B$8,'Income irrigated'!$C$34:$J$44,3+HLOOKUP(G$14,'Common Assumptions'!$D$50:$AG$52,3,FALSE),FALSE)*G17 -> 556.4314286 | H23: =VLOOKUP($B$8,'Income irrigated'!$C$34:$J$44,3+HLOOKUP(H$14,'Common Assumptions'!$D$50:$AG$52,3,FALSE),FALSE)*H17 -> 695.5392857 | I23: =VLOOKUP($B$8,'Income irrigated'!$C$34:$J$44,3+HLOOKUP(I$14,'Common Assumptions'!$D$50:$AG$52,3,FALSE),FALSE)*I17 -> 834.6471429 | J23: =VLOOKUP($B$8,'Income irrigated'!$C$34:$J$44,3+HLOOKUP(J$14,'Common Assumptions'!$D$50:$AG$52,3,FALSE),FALSE)*J17 -> 927.3857143 | K23: =VLOOKUP($B$8,'Income irrigated'!$C$34:$J$44,3+HLOOKUP(K$14,'Common Assumptions'!$D$50:$AG$52,3,FALSE),FALSE)*K17 -> 927.3857143 | L23: =VLOOKUP($B$8,'Income irrigated'!$C$34:$J$44,3+HLOOKUP(L$14,'Common Assumptions'!$D$50:$AG$52,3,FALSE),FALSE)*L17 -> 927.3857143 | M23: =VLOOKUP($B$8,'Income irrigated'!$C$34:$J$44,3+HLOOKUP(M$14,'Common Assumptions'!$D$50:$AG$52,3,FALSE),FALSE)*M17 -> 927.3857143 | N23: =VLOOKUP($B$8,'Income irrigated'!$C$34:$J$44,3+HLOOKUP(N$14,'Common Assumptions'!$D$50:$AG$52,3,FALSE),FALSE)*N17 -> 927.3857143 | O23: =VLOOKUP($B$8,'Income irrigated'!$C$34:$J$44,3+HLOOKUP(O$14,'Common Assumptions'!$D$50:$AG$52,3,FALSE),FALSE)*O17 -> 927.3857143 | P23: =VLOOKUP($B$8,'Income irrigated'!$C$34:$J$44,3+HLOOKUP(P$14,'Common Assumptions'!$D$50:$AG$52,3,FALSE),FALSE)*P17 -> 927.3857143 | Q23: =VLOOKUP($B$8,'Income irrigated'!$C$34:$J$44,3+HLOOKUP(Q$14,'Common Assumptions'!$D$50:$AG$52,3,FALSE),FALSE)*Q17 -> 927.3857143 | R23: =VLOOKUP($B$8,'Income irrigated'!$C$34:$J$44,3+HLOOKUP(R$14,'Common Assumptions'!$D$50:$AG$52,3,FALSE),FALSE)*R17 -> 616.7115 | S23: =VLOOKUP($B$8,'Income irrigated'!$C$34:$J$44,3+HLOOKUP(S$14,'Common Assumptions'!$D$50:$AG$52,3,FALSE),FALSE)*S17 -> 616.7115 | T23: =VLOOKUP($B$8,'Income irrigated'!$C$34:$J$44,3+HLOOKUP(T$14,'Common Assumptions'!$D$50:$AG$52,3,FALSE),FALSE)*T17 -> 616.7115 | U23: =VLOOKUP($B$8,'Income irrigated'!$C$34:$J$44,3+HLOOKUP(U$14,'Common Assumptions'!$D$50:$AG$52,3,FALSE),FALSE)*U17 -> 616.7115 | V23: =VLOOKUP($B$8,'Income irrigated'!$C$34:$J$44,3+HLOOKUP(V$14,'Common Assumptions'!$D$50:$AG$52,3,FALSE),FALSE)*V17 -> 616.7115 | W23: =VLOOKUP($B$8,'Income irrigated'!$C$34:$J$44,3+HLOOKUP(W$14,'Common Assumptions'!$D$50:$AG$52,3,FALSE),FALSE)*W17 -> 616.7115 | X23: =VLOOKUP($B$8,'Income irrigated'!$C$34:$J$44,3+HLOOKUP(X$14,'Common Assumptions'!$D$50:$AG$52,3,FALSE),FALSE)*X17 -> 616.7115 | Y23: =VLOOKUP($B$8,'Income irrigated'!$C$34:$J$44,3+HLOOKUP(Y$14,'Common Assumptions'!$D$50:$AG$52,3,FALSE),FALSE)*Y17 -> 616.7115 | Z23: =VLOOKUP($B$8,'Income irrigated'!$C$34:$J$44,3+HLOOKUP(Z$14,'Common Assumptions'!$D$50:$AG$52,3,FALSE),FALSE)*Z17 -> 616.7115 | AA23: =VLOOKUP($B$8,'Income irrigated'!$C$34:$J$44,3+HLOOKUP(AA$14,'Common Assumptions'!$D$50:$AG$52,3,FALSE),FALSE)*AA17 -> 616.7115 | AB23: =VLOOKUP($B$8,'Income irrigated'!$C$34:$J$44,3+HLOOKUP(AB$14,'Common Assumptions'!$D$50:$AG$52,3,FALSE),FALSE)*AB17 -> 616.7115 | AC23: =VLOOKUP($B$8,'Income irrigated'!$C$34:$J$44,3+HLOOKUP(AC$14,'Common Assumptions'!$D$50:$AG$52,3,FALSE),FALSE)*AC17 -> 616.7115 | AD23: =VLOOKUP($B$8,'Income irrigated'!$C$34:$J$44,3+HLOOKUP(AD$14,'Common Assumptions'!$D$50:$AG$52,3,FALSE),FALSE)*AD17 -> 616.7115 | AE23: =VLOOKUP($B$8,'Income irrigated'!$C$34:$J$44,3+HLOOKUP(AE$14,'Common Assumptions'!$D$50:$AG$52,3,FALSE),FALSE)*AE17 -> 616.7115 | AF23: =VLOOKUP($B$8,'Income irrigated'!$C$34:$J$44,3+HLOOKUP(AF$14,'Common Assumptions'!$D$50:$AG$52,3,FALSE),FALSE)*AF17 -> 616.7115 | AG23: =VLOOKUP($B$8,'Income irrigated'!$C$34:$J$44,3+HLOOKUP(AG$14,'Common Assumptions'!$D$50:$AG$52,3,FALSE),FALSE)*AG17 -> 616.7115
A24: Unirrigated HVA | D24: =VLOOKUP($B$8,'Income unirrigated'!$C$20:$E$28,3)*D19 -> 2734.2018 | E24: =VLOOKUP($B$8,'Income unirrigated'!$C$20:$E$28,3)*E19 -> 2734.2018 | F24: =VLOOKUP($B$8,'Income unirrigated'!$C$20:$E$28,3)*F19 -> 2734.2018 | G24: =VLOOKUP($B$8,'Income unirrigated'!$C$20:$E$28,3)*G19 -> 1988.5104 | H24: =VLOOKUP($B$8,'Income unirrigated'!$C$20:$E$28,3)*H19 -> 1242.819 | I24: =VLOOKUP($B$8,'Income unirrigated'!$C$20:$E$28,3)*I19 -> 497.1276 | J24: =VLOOKUP($B$8,'Income unirrigated'!$C$20:$E$28,3)*J19 -> 0 | K24: =VLOOKUP($B$8,'Income unirrigated'!$C$20:$E$28,3)*K19 -> 0 | L24: =VLOOKUP($B$8,'Income unirrigated'!$C$20:$E$28,3)*L19 -> 0 | M24: =VLOOKUP($B$8,'Income unirrigated'!$C$20:$E$28,3)*M19 -> 0 | N24: =VLOOKUP($B$8,'Income unirrigated'!$C$20:$E$28,3)*N19 -> 0 | O24: =VLOOKUP($B$8,'Income unirrigated'!$C$20:$E$28,3)*O19 -> 0 | P24: =VLOOKUP($B$8,'Income unirrigated'!$C$20:$E$28,3)*P19 -> 0 | Q24: =VLOOKUP($B$8,'Income unirrigated'!$C$20:$E$28,3)*Q19 -> 0 | R24: =VLOOKUP($B$8,'Income unirrigated'!$C$20:$E$28,3)*R19 -> 1491.3828 | S24: =VLOOKUP($B$8,'Income unirrigated'!$C$20:$E$28,3)*S19 -> 1491.3828 | T24: =VLOOKUP($B$8,'Income unirrigated'!$C$20:$E$28,3)*T19 -> 1491.3828 | U24: =VLOOKUP($B$8,'Income unirrigated'!$C$20:$E$28,3)*U19 -> 1491.3828 | V24: =VLOOKUP($B$8,'Income unirrigated'!$C$20:$E$28,3)*V19 -> 1491.3828 | W24: =VLOOKUP($B$8,'Income unirrigated'!$C$20:$E$28,3)*W19 -> 1491.3828 | X24: =VLOOKUP($B$8,'Income unirrigated'!$C$20:$E$28,3)*X19 -> 1491.3828 | Y24: =VLOOKUP($B$8,'Income unirrigated'!$C$20:$E$28,3)*Y19 -> 1491.3828 | Z24: =VLOOKUP($B$8,'Income unirrigated'!$C$20:$E$28,3)*Z19 -> 1491.3828 | AA24: =VLOOKUP($B$8,'Income unirrigated'!$C$20:$E$28,3)*AA19 -> 1491.3828 | AB24: =VLOOKUP($B$8,'Income unirrigated'!$C$20:$E$28,3)*AB19 -> 1491.3828 | AC24: =VLOOKUP($B$8,'Income unirrigated'!$C$20:$E$28,3)*AC19 -> 1491.3828 | AD24: =VLOOKUP($B$8,'Income unirrigated'!$C$20:$E$28,3)*AD19 -> 1491.3828 | AE24: =VLOOKUP($B$8,'Income unirrigated'!$C$20:$E$28,3)*AE19 -> 1491.3828 | AF24: =VLOOKUP($B$8,'Income unirrigated'!$C$20:$E$28,3)*AF19 -> 1491.3828 | AG24: =VLOOKUP($B$8,'Income unirrigated'!$C$20:$E$28,3)*AG19 -> 1491.3828
A25: Unirrigated Grain & technical crops unirrigated | D25: =VLOOKUP($B$8,'Income unirrigated'!$C$34:$E$42,3)*D20 -> 249.183 | E25: =VLOOKUP($B$8,'Income unirrigated'!$C$34:$E$42,3)*E20 -> 249.183 | F25: =VLOOKUP($B$8,'Income unirrigated'!$C$34:$E$42,3)*F20 -> 249.183 | G25: =VLOOKUP($B$8,'Income unirrigated'!$C$34:$E$42,3)*G20 -> 181.224 | H25: =VLOOKUP($B$8,'Income unirrigated'!$C$34:$E$42,3)*H20 -> 113.265 | I25: =VLOOKUP($B$8,'Income unirrigated'!$C$34:$E$42,3)*I20 -> 45.306 | J25: =VLOOKUP($B$8,'Income unirrigated'!$C$34:$E$42,3)*J20 -> 0 | K25: =VLOOKUP($B$8,'Income unirrigated'!$C$34:$E$42,3)*K20 -> 0 | L25: =VLOOKUP($B$8,'Income unirrigated'!$C$34:$E$42,3)*L20 -> 0 | M25: =VLOOKUP($B$8,'Income unirrigated'!$C$34:$E$42,3)*M20 -> 0 | N25: =VLOOKUP($B$8,'Income unirrigated'!$C$34:$E$42,3)*N20 -> 0 | O25: =VLOOKUP($B$8,'Income unirrigated'!$C$34:$E$42,3)*O20 -> 0 | P25: =VLOOKUP($B$8,'Income unirrigated'!$C$34:$E$42,3)*P20 -> 0 | Q25: =VLOOKUP($B$8,'Income unirrigated'!$C$34:$E$42,3)*Q20 -> 0 | R25: =VLOOKUP($B$8,'Income unirrigated'!$C$34:$E$42,3)*R20 -> 135.918 | S25: =VLOOKUP($B$8,'Income unirrigated'!$C$34:$E$42,3)*S20 -> 135.918 | T25: =VLOOKUP($B$8,'Income unirrigated'!$C$34:$E$42,3)*T20 -> 135.918 | U25: =VLOOKUP($B$8,'Income unirrigated'!$C$34:$E$42,3)*U20 -> 135.918 | V25: =VLOOKUP($B$8,'Income unirrigated'!$C$34:$E$42,3)*V20 -> 135.918 | W25: =VLOOKUP($B$8,'Income unirrigated'!$C$34:$E$42,3)*W20 -> 135.918 | X25: =VLOOKUP($B$8,'Income unirrigated'!$C$34:$E$42,3)*X20 -> 135.918 | Y25: =VLOOKUP($B$8,'Income unirrigated'!$C$34:$E$42,3)*Y20 -> 135.918 | Z25: =VLOOKUP($B$8,'Income unirrigated'!$C$34:$E$42,3)*Z20 -> 135.918 | AA25: =VLOOKUP($B$8,'Income unirrigated'!$C$34:$E$42,3)*AA20 -> 135.918 | AB25: =VLOOKUP($B$8,'Income unirrigated'!$C$34:$E$42,3)*AB20 -> 135.918 | AC25: =VLOOKUP($B$8,'Income unirrigated'!$C$34:$E$42,3)*AC20 -> 135.918 | AD25: =VLOOKUP($B$8,'Income unirrigated'!$C$34:$E$42,3)*AD20 -> 135.918 | AE25: =VLOOKUP($B$8,'Income unirrigated'!$C$34:$E$42,3)*AE20 -> 135.918 | AF25: =VLOOKUP($B$8,'Income unirrigated'!$C$34:$E$42,3)*AF20 -> 135.918 | AG25: =VLOOKUP($B$8,'Income unirrigated'!$C$34:$E$42,3)*AG20 -> 135.918
A26: Farm Income per hectare with irrigation | D26: =SUM(D22:D25) -> 21463.10261 | E26: 21463.10261 | F26: 21463.10261 | G26: 26809.35814 | H26: 32155.61368 | I26: 37501.86921 | J26: 41066.03957 | K26: 41066.03957 | L26: 41066.03957 | M26: 41066.03957 | N26: 41066.03957 | O26: 41066.03957 | P26: 41066.03957 | Q26: 41066.03957 | R26: 27531.36423 | S26: 27531.36423 | T26: 27531.36423 | U26: 27531.36423 | V26: 27531.36423 | W26: 27531.36423 | X26: 27531.36423 | Y26: 27531.36423 | Z26: 27531.36423 | AA26: 27531.36423 | AB26: 27531.36423 | AC26: 27531.36423 | AD26: 27531.36423 | AE26: 27531.36423 | AF26: 27531.36423 | AG26: 27531.36423
A27: From which was deducted:
A28: Cost of water to farmers
A29: Labor Costs | D29: =SUM(D30:D32) -> 4447.5225 | E29: =SUM(E30:E32) -> 4447.5225 | F29: =SUM(F30:F32) -> 4447.5225 | G29: =SUM(G30:G32) -> 5647.68 | H29: 6847.8375 | I29: 8047.995 | J29: 8848.1 | K29: 8848.1 | L29: 8848.1 | M29: 8848.1 | N29: 8848.1 | O29: 8848.1 | P29: 8848.1 | Q29: 8848.1 | R29: 6447.785 | S29: 6447.785 | T29: 6447.785 | U29: 6447.785 | V29: 6447.785 | W29: 6447.785 | X29: 6447.785 | Y29: 6447.785 | Z29: 6447.785 | AA29: 6447.785 | AB29: 6447.785 | AC29: 6447.785 | AD29: 6447.785 | AE29: 6447.785 | AF29: 6447.785 | AG29: 6447.785
A30: Cost of Family Labor | D30: =+D$16*VLOOKUP($B$8,'Income irrigated'!$C$66:$G$74,3)+D$17*VLOOKUP($B$8,'Income irrigated'!$C$81:$G$89,3)+D$19*VLOOKUP($B$8,'Income unirrigated'!$C$64:$G$72,3)+D$20*VLOOKUP($B$8,'Income unirrigated'!$C$79:$G$87,3) -> 590.7 | E30: =+E$16*VLOOKUP($B$8,'Income irrigated'!$C$66:$G$74,3)+E$17*VLOOKUP($B$8,'Income irrigated'!$C$81:$G$89,3)+E$19*VLOOKUP($B$8,'Income unirrigated'!$C$64:$G$72,3)+E$20*VLOOKUP($B$8,'Income unirrigated'!$C$79:$G$87,3) -> 590.7 | F30: =+F$16*VLOOKUP($B$8,'Income irrigated'!$C$66:$G$74,3)+F$17*VLOOKUP($B$8,'Income irrigated'!$C$81:$G$89,3)+F$19*VLOOKUP($B$8,'Income unirrigated'!$C$64:$G$72,3)+F$20*VLOOKUP($B$8,'Income unirrigated'!$C$79:$G$87,3) -> 590.7 | G30: =+G$16*VLOOKUP($B$8,'Income irrigated'!$C$66:$G$74,3)+G$17*VLOOKUP($B$8,'Income irrigated'!$C$81:$G$89,3)+G$19*VLOOKUP($B$8,'Income unirrigated'!$C$64:$G$72,3)+G$20*VLOOKUP($B$8,'Income unirrigated'!$C$79:$G$87,3) -> 582.6 | H30: =+H$16*VLOOKUP($B$8,'Income irrigated'!$C$66:$G$74,3)+H$17*VLOOKUP($B$8,'Income irrigated'!$C$81:$G$89,3)+H$19*VLOOKUP($B$8,'Income unirrigated'!$C$64:$G$72,3)+H$20*VLOOKUP($B$8,'Income unirrigated'!$C$79:$G$87,3) -> 574.5 | I30: =+I$16*VLOOKUP($B$8,'Income irrigated'!$C$66:$G$74,3)+I$17*VLOOKUP($B$8,'Income irrigated'!$C$81:$G$89,3)+I$19*VLOOKUP($B$8,'Income unirrigated'!$C$64:$G$72,3)+I$20*VLOOKUP($B$8,'Income unirrigated'!$C$79:$G$87,3) -> 566.4 | J30: =+J$16*VLOOKUP($B$8,'Income irrigated'!$C$66:$G$74,3)+J$17*VLOOKUP($B$8,'Income irrigated'!$C$81:$G$89,3)+J$19*VLOOKUP($B$8,'Income unirrigated'!$C$64:$G$72,3)+J$20*VLOOKUP($B$8,'Income unirrigated'!$C$79:$G$87,3) -> 561 | K30: =+K$16*VLOOKUP($B$8,'Income irrigated'!$C$66:$G$74,3)+K$17*VLOOKUP($B$8,'Income irrigated'!$C$81:$G$89,3)+K$19*VLOOKUP($B$8,'Income unirrigated'!$C$64:$G$72,3)+K$20*VLOOKUP($B$8,'Income unirrigated'!$C$79:$G$87,3) -> 561 | L30: =+L$16*VLOOKUP($B$8,'Income irrigated'!$C$66:$G$74,3)+L$17*VLOOKUP($B$8,'Income irrigated'!$C$81:$G$89,3)+L$19*VLOOKUP($B$8,'Income unirrigated'!$C$64:$G$72,3)+L$20*VLOOKUP($B$8,'Income unirrigated'!$C$79:$G$87,3) -> 561 | M30: =+M$16*VLOOKUP($B$8,'Income irrigated'!$C$66:$G$74,3)+M$17*VLOOKUP($B$8,'Income irrigated'!$C$81:$G$89,3)+M$19*VLOOKUP($B$8,'Income unirrigated'!$C$64:$G$72,3)+M$20*VLOOKUP($B$8,'Income unirrigated'!$C$79:$G$87,3) -> 561 | N30: =+N$16*VLOOKUP($B$8,'Income irrigated'!$C$66:$G$74,3)+N$17*VLOOKUP($B$8,'Income irrigated'!$C$81:$G$89,3)+N$19*VLOOKUP($B$8,'Income unirrigated'!$C$64:$G$72,3)+N$20*VLOOKUP($B$8,'Income unirrigated'!$C$79:$G$87,3) -> 561 | O30: =+O$16*VLOOKUP($B$8,'Income irrigated'!$C$66:$G$74,3)+O$17*VLOOKUP($B$8,'Income irrigated'!$C$81:$G$89,3)+O$19*VLOOKUP($B$8,'Income unirrigated'!$C$64:$G$72,3)+O$20*VLOOKUP($B$8,'Income unirrigated'!$C$79:$G$87,3) -> 561 | P30: =+P$16*VLOOKUP($B$8,'Income irrigated'!$C$66:$G$74,3)+P$17*VLOOKUP($B$8,'Income irrigated'!$C$81:$G$89,3)+P$19*VLOOKUP($B$8,'Income unirrigated'!$C$64:$G$72,3)+P$20*VLOOKUP($B$8,'Income unirrigated'!$C$79:$G$87,3) -> 561 | Q30: =+Q$16*VLOOKUP($B$8,'Income irrigated'!$C$66:$G$74,3)+Q$17*VLOOKUP($B$8,'Income irrigated'!$C$81:$G$89,3)+Q$19*VLOOKUP($B$8,'Income unirrigated'!$C$64:$G$72,3)+Q$20*VLOOKUP($B$8,'Income unirrigated'!$C$79:$G$87,3) -> 561 | R30: =+R$16*VLOOKUP($B$8,'Income irrigated'!$C$66:$G$74,3)+R$17*VLOOKUP($B$8,'Income irrigated'!$C$81:$G$89,3)+R$19*VLOOKUP($B$8,'Income unirrigated'!$C$64:$G$72,3)+R$20*VLOOKUP($B$8,'Income unirrigated'!$C$79:$G$87,3) -> 577.2 | S30: =+S$16*VLOOKUP($B$8,'Income irrigated'!$C$66:$G$74,3)+S$17*VLOOKUP($B$8,'Income irrigated'!$C$81:$G$89,3)+S$19*VLOOKUP($B$8,'Income unirrigated'!$C$64:$G$72,3)+S$20*VLOOKUP($B$8,'Income unirrigated'!$C$79:$G$87,3) -> 577.2 | T30: =+T$16*VLOOKUP($B$8,'Income irrigated'!$C$66:$G$74,3)+T$17*VLOOKUP($B$8,'Income irrigated'!$C$81:$G$89,3)+T$19*VLOOKUP($B$8,'Income unirrigated'!$C$64:$G$72,3)+T$20*VLOOKUP($B$8,'Income unirrigated'!$C$79:$G$87,3) -> 577.2 | U30: =+U$16*VLOOKUP($B$8,'Income irrigated'!$C$66:$G$74,3)+U$17*VLOOKUP($B$8,'Income irrigated'!$C$81:$G$89,3)+U$19*VLOOKUP($B$8,'Income unirrigated'!$C$64:$G$72,3)+U$20*VLOOKUP($B$8,'Income unirrigated'!$C$79:$G$87,3) -> 577.2 | V30: =+V$16*VLOOKUP($B$8,'Income irrigated'!$C$66:$G$74,3)+V$17*VLOOKUP($B$8,'Income irrigated'!$C$81:$G$89,3)+V$19*VLOOKUP($B$8,'Income unirrigated'!$C$64:$G$72,3)+V$20*VLOOKUP($B$8,'Income unirrigated'!$C$79:$G$87,3) -> 577.2 | W30: =+W$16*VLOOKUP($B$8,'Income irrigated'!$C$66:$G$74,3)+W$17*VLOOKUP($B$8,'Income irrigated'!$C$81:$G$89,3)+W$19*VLOOKUP($B$8,'Income unirrigated'!$C$64:$G$72,3)+W$20*VLOOKUP($B$8,'Income unirrigated'!$C$79:$G$87,3) -> 577.2 | X30: =+X$16*VLOOKUP($B$8,'Income irrigated'!$C$66:$G$74,3)+X$17*VLOOKUP($B$8,'Income irrigated'!$C$81:$G$89,3)+X$19*VLOOKUP($B$8,'Income unirrigated'!$C$64:$G$72,3)+X$20*VLOOKUP($B$8,'Income unirrigated'!$C$79:$G$87,3) -> 577.2 | Y30: =+Y$16*VLOOKUP($B$8,'Income irrigated'!$C$66:$G$74,3)+Y$17*VLOOKUP($B$8,'Income irrigated'!$C$81:$G$89,3)+Y$19*VLOOKUP($B$8,'Income unirrigated'!$C$64:$G$72,3)+Y$20*VLOOKUP($B$8,'Income unirrigated'!$C$79:$G$87,3) -> 577.2 | Z30: =+Z$16*VLOOKUP($B$8,'Income irrigated'!$C$66:$G$74,3)+Z$17*VLOOKUP($B$8,'Income irrigated'!$C$81:$G$89,3)+Z$19*VLOOKUP($B$8,'Income unirrigated'!$C$64:$G$72,3)+Z$20*VLOOKUP($B$8,'Income unirrigated'!$C$79:$G$87,3) -> 577.2 | AA30: =+AA$16*VLOOKUP($B$8,'Income irrigated'!$C$66:$G$74,3)+AA$17*VLOOKUP($B$8,'Income irrigated'!$C$81:$G$89,3)+AA$19*VLOOKUP($B$8,'Income unirrigated'!$C$64:$G$72,3)+AA$20*VLOOKUP($B$8,'Income unirrigated'!$C$79:$G$87,3) -> 577.2 | AB30: =+AB$16*VLOOKUP($B$8,'Income irrigated'!$C$66:$G$74,3)+AB$17*VLOOKUP($B$8,'Income irrigated'!$C$81:$G$89,3)+AB$19*VLOOKUP($B$8,'Income unirrigated'!$C$64:$G$72,3)+AB$20*VLOOKUP($B$8,'Income unirrigated'!$C$79:$G$87,3) -> 577.2 | AC30: =+AC$16*VLOOKUP($B$8,'Income irrigated'!$C$66:$G$74,3)+AC$17*VLOOKUP($B$8,'Income irrigated'!$C$81:$G$89,3)+AC$19*VLOOKUP($B$8,'Income unirrigated'!$C$64:$G$72,3)+AC$20*VLOOKUP($B$8,'Income unirrigated'!$C$79:$G$87,3) -> 577.2 | AD30: =+AD$16*VLOOKUP($B$8,'Income irrigated'!$C$66:$G$74,3)+AD$17*VLOOKUP($B$8,'Income irrigated'!$C$81:$G$89,3)+AD$19*VLOOKUP($B$8,'Income unirrigated'!$C$64:$G$72,3)+AD$20*VLOOKUP($B$8,'Income unirrigated'!$C$79:$G$87,3) -> 577.2 | AE30: =+AE$16*VLOOKUP($B$8,'Income irrigated'!$C$66:$G$74,3)+AE$17*VLOOKUP($B$8,'Income irrigated'!$C$81:$G$89,3)+AE$19*VLOOKUP($B$8,'Income unirrigated'!$C$64:$G$72,3)+AE$20*VLOOKUP($B$8,'Income unirrigated'!$C$79:$G$87,3) -> 577.2 | AF30: =+AF$16*VLOOKUP($B$8,'Income irrigated'!$C$66:$G$74,3)+AF$17*VLOOKUP($B$8,'Income irrigated'!$C$81:$G$89,3)+AF$19*VLOOKUP($B$8,'Income unirrigated'!$C$64:$G$72,3)+AF$20*VLOOKUP($B$8,'Income unirrigated'!$C$79:$G$87,3) -> 577.2 | AG30: =+AG$16*VLOOKUP($B$8,'Income irrigated'!$C$66:$G$74,3)+AG$17*VLOOKUP($B$8,'Income irrigated'!$C$81:$G$89,3)+AG$19*VLOOKUP($B$8,'Income unirrigated'!$C$64:$G$72,3)+AG$20*VLOOKUP($B$8,'Income unirrigated'!$C$79:$G$87,3) -> 577.2
A31: Cost of Full Time Labor | D31: =+D$16*VLOOKUP($B$8,'Income irrigated'!$C$66:$G$74,4)+D$17*VLOOKUP($B$8,'Income irrigated'!$C$81:$G$89,4)+D$19*VLOOKUP($B$8,'Income unirrigated'!$C$64:$G$72,4)+D$20*VLOOKUP($B$8,'Income unirrigated'!$C$79:$G$87,4) -> 5 | E31: =+E$16*VLOOKUP($B$8,'Income irrigated'!$C$66:$G$74,4)+E$17*VLOOKUP($B$8,'Income irrigated'!$C$81:$G$89,4)+E$19*VLOOKUP($B$8,'Income unirrigated'!$C$64:$G$72,4)+E$20*VLOOKUP($B$8,'Income unirrigated'!$C$79:$G$87,4) -> 5 | F31: =+F$16*VLOOKUP($B$8,'Income irrigated'!$C$66:$G$74,4)+F$17*VLOOKUP($B$8,'Income irrigated'!$C$81:$G$89,4)+F$19*VLOOKUP($B$8,'Income unirrigated'!$C$64:$G$72,4)+F$20*VLOOKUP($B$8,'Income unirrigated'!$C$79:$G$87,4) -> 5 | G31: =+G$16*VLOOKUP($B$8,'Income irrigated'!$C$66:$G$74,4)+G$17*VLOOKUP($B$8,'Income irrigated'!$C$81:$G$89,4)+G$19*VLOOKUP($B$8,'Income unirrigated'!$C$64:$G$72,4)+G$20*VLOOKUP($B$8,'Income unirrigated'!$C$79:$G$87,4) -> 5 | H31: =+H$16*VLOOKUP($B$8,'Income irrigated'!$C$66:$G$74,4)+H$17*VLOOKUP($B$8,'Income irrigated'!$C$81:$G$89,4)+H$19*VLOOKUP($B$8,'Income unirrigated'!$C$64:$G$72,4)+H$20*VLOOKUP($B$8,'Income unirrigated'!$C$79:$G$87,4) -> 5 | I31: =+I$16*VLOOKUP($B$8,'Income irrigated'!$C$66:$G$74,4)+I$17*VLOOKUP($B$8,'Income irrigated'!$C$81:$G$89,4)+I$19*VLOOKUP($B$8,'Income unirrigated'!$C$64:$G$72,4)+I$20*VLOOKUP($B$8,'Income unirrigated'!$C$79:$G$87,4) -> 5 | J31: =+J$16*VLOOKUP($B$8,'Income irrigated'!$C$66:$G$74,4)+J$17*VLOOKUP($B$8,'Income irrigated'!$C$81:$G$89,4)+J$19*VLOOKUP($B$8,'Income unirrigated'!$C$64:$G$72,4)+J$20*VLOOKUP($B$8,'Income unirrigated'!$C$79:$G$87,4) -> 5 | K31: =+K$16*VLOOKUP($B$8,'Income irrigated'!$C$66:$G$74,4)+K$17*VLOOKUP($B$8,'Income irrigated'!$C$81:$G$89,4)+K$19*VLOOKUP($B$8,'Income unirrigated'!$C$64:$G$72,4)+K$20*VLOOKUP($B$8,'Income unirrigated'!$C$79:$G$87,4) -> 5 | L31: =+L$16*VLOOKUP($B$8,'Income irrigated'!$C$66:$G$74,4)+L$17*VLOOKUP($B$8,'Income irrigated'!$C$81:$G$89,4)+L$19*VLOOKUP($B$8,'Income unirrigated'!$C$64:$G$72,4)+L$20*VLOOKUP($B$8,'Income unirrigated'!$C$79:$G$87,4) -> 5 | M31: =+M$16*VLOOKUP($B$8,'Income irrigated'!$C$66:$G$74,4)+M$17*VLOOKUP($B$8,'Income irrigated'!$C$81:$G$89,4)+M$19*VLOOKUP($B$8,'Income unirrigated'!$C$64:$G$72,4)+M$20*VLOOKUP($B$8,'Income unirrigated'!$C$79:$G$87,4) -> 5 | N31: =+N$16*VLOOKUP($B$8,'Income irrigated'!$C$66:$G$74,4)+N$17*VLOOKUP($B$8,'Income irrigated'!$C$81:$G$89,4)+N$19*VLOOKUP($B$8,'Income unirrigated'!$C$64:$G$72,4)+N$20*VLOOKUP($B$8,'Income unirrigated'!$C$79:$G$87,4) -> 5 | O31: =+O$16*VLOOKUP($B$8,'Income irrigated'!$C$66:$G$74,4)+O$17*VLOOKUP($B$8,'Income irrigated'!$C$81:$G$89,4)+O$19*VLOOKUP($B$8,'Income unirrigated'!$C$64:$G$72,4)+O$20*VLOOKUP($B$8,'Income unirrigated'!$C$79:$G$87,4) -> 5 | P31: =+P$16*VLOOKUP($B$8,'Income irrigated'!$C$66:$G$74,4)+P$17*VLOOKUP($B$8,'Income irrigated'!$C$81:$G$89,4)+P$19*VLOOKUP($B$8,'Income unirrigated'!$C$64:$G$72,4)+P$20*VLOOKUP($B$8,'Income unirrigated'!$C$79:$G$87,4) -> 5 | Q31: =+Q$16*VLOOKUP($B$8,'Income irrigated'!$C$66:$G$74,4)+Q$17*VLOOKUP($B$8,'Income irrigated'!$C$81:$G$89,4)+Q$19*VLOOKUP($B$8,'Income unirrigated'!$C$64:$G$72,4)+Q$20*VLOOKUP($B$8,'Income unirrigated'!$C$79:$G$87,4) -> 5 | R31: =+R$16*VLOOKUP($B$8,'Income irrigated'!$C$66:$G$74,4)+R$17*VLOOKUP($B$8,'Income irrigated'!$C$81:$G$89,4)+R$19*VLOOKUP($B$8,'Income unirrigated'!$C$64:$G$72,4)+R$20*VLOOKUP($B$8,'Income unirrigated'!$C$79:$G$87,4) -> 5 | S31: =+S$16*VLOOKUP($B$8,'Income irrigated'!$C$66:$G$74,4)+S$17*VLOOKUP($B$8,'Income irrigated'!$C$81:$G$89,4)+S$19*VLOOKUP($B$8,'Income unirrigated'!$C$64:$G$72,4)+S$20*VLOOKUP($B$8,'Income unirrigated'!$C$79:$G$87,4) -> 5 | T31: =+T$16*VLOOKUP($B$8,'Income irrigated'!$C$66:$G$74,4)+T$17*VLOOKUP($B$8,'Income irrigated'!$C$81:$G$89,4)+T$19*VLOOKUP($B$8,'Income unirrigated'!$C$64:$G$72,4)+T$20*VLOOKUP($B$8,'Income unirrigated'!$C$79:$G$87,4) -> 5 | U31: =+U$16*VLOOKUP($B$8,'Income irrigated'!$C$66:$G$74,4)+U$17*VLOOKUP($B$8,'Income irrigated'!$C$81:$G$89,4)+U$19*VLOOKUP($B$8,'Income unirrigated'!$C$64:$G$72,4)+U$20*VLOOKUP($B$8,'Income unirrigated'!$C$79:$G$87,4) -> 5 | V31: =+V$16*VLOOKUP($B$8,'Income irrigated'!$C$66:$G$74,4)+V$17*VLOOKUP($B$8,'Income irrigated'!$C$81:$G$89,4)+V$19*VLOOKUP($B$8,'Income unirrigated'!$C$64:$G$72,4)+V$20*VLOOKUP($B$8,'Income unirrigated'!$C$79:$G$87,4) -> 5 | W31: =+W$16*VLOOKUP($B$8,'Income irrigated'!$C$66:$G$74,4)+W$17*VLOOKUP($B$8,'Income irrigated'!$C$81:$G$89,4)+W$19*VLOOKUP($B$8,'Income unirrigated'!$C$64:$G$72,4)+W$20*VLOOKUP($B$8,'Income unirrigated'!$C$79:$G$87,4) -> 5 | X31: =+X$16*VLOOKUP($B$8,'Income irrigated'!$C$66:$G$74,4)+X$17*VLOOKUP($B$8,'Income irrigated'!$C$81:$G$89,4)+X$19*VLOOKUP($B$8,'Income unirrigated'!$C$64:$G$72,4)+X$20*VLOOKUP($B$8,'Income unirrigated'!$C$79:$G$87,4) -> 5 | Y31: =+Y$16*VLOOKUP($B$8,'Income irrigated'!$C$66:$G$74,4)+Y$17*VLOOKUP($B$8,'Income irrigated'!$C$81:$G$89,4)+Y$19*VLOOKUP($B$8,'Income unirrigated'!$C$64:$G$72,4)+Y$20*VLOOKUP($B$8,'Income unirrigated'!$C$79:$G$87,4) -> 5 | Z31: =+Z$16*VLOOKUP($B$8,'Income irrigated'!$C$66:$G$74,4)+Z$17*VLOOKUP($B$8,'Income irrigated'!$C$81:$G$89,4)+Z$19*VLOOKUP($B$8,'Income unirrigated'!$C$64:$G$72,4)+Z$20*VLOOKUP($B$8,'Income unirrigated'!$C$79:$G$87,4) -> 5 | AA31: =+AA$16*VLOOKUP($B$8,'Income irrigated'!$C$66:$G$74,4)+AA$17*VLOOKUP($B$8,'Income irrigated'!$C$81:$G$89,4)+AA$19*VLOOKUP($B$8,'Income unirrigated'!$C$64:$G$72,4)+AA$20*VLOOKUP($B$8,'Income unirrigated'!$C$79:$G$87,4) -> 5 | AB31: =+AB$16*VLOOKUP($B$8,'Income irrigated'!$C$66:$G$74,4)+AB$17*VLOOKUP($B$8,'Income irrigated'!$C$81:$G$89,4)+AB$19*VLOOKUP($B$8,'Income unirrigated'!$C$64:$G$72,4)+AB$20*VLOOKUP($B$8,'Income unirrigated'!$C$79:$G$87,4) -> 5 | AC31: =+AC$16*VLOOKUP($B$8,'Income irrigated'!$C$66:$G$74,4)+AC$17*VLOOKUP($B$8,'Income irrigated'!$C$81:$G$89,4)+AC$19*VLOOKUP($B$8,'Income unirrigated'!$C$64:$G$72,4)+AC$20*VLOOKUP($B$8,'Income unirrigated'!$C$79:$G$87,4) -> 5 | AD31: =+AD$16*VLOOKUP($B$8,'Income irrigated'!$C$66:$G$74,4)+AD$17*VLOOKUP($B$8,'Income irrigated'!$C$81:$G$89,4)+AD$19*VLOOKUP($B$8,'Income unirrigated'!$C$64:$G$72,4)+AD$20*VLOOKUP($B$8,'Income unirrigated'!$C$79:$G$87,4) -> 5 | AE31: =+AE$16*VLOOKUP($B$8,'Income irrigated'!$C$66:$G$74,4)+AE$17*VLOOKUP($B$8,'Income irrigated'!$C$81:$G$89,4)+AE$19*VLOOKUP($B$8,'Income unirrigated'!$C$64:$G$72,4)+AE$20*VLOOKUP($B$8,'Income unirrigated'!$C$79:$G$87,4) -> 5 | AF31: =+AF$16*VLOOKUP($B$8,'Income irrigated'!$C$66:$G$74,4)+AF$17*VLOOKUP($B$8,'Income irrigated'!$C$81:$G$89,4)+AF$19*VLOOKUP($B$8,'Income unirrigated'!$C$64:$G$72,4)+AF$20*VLOOKUP($B$8,'Income unirrigated'!$C$79:$G$87,4) -> 5 | AG31: =+AG$16*VLOOKUP($B$8,'Income irrigated'!$C$66:$G$74,4)+AG$17*VLOOKUP($B$8,'Income irrigated'!$C$81:$G$89,4)+AG$19*VLOOKUP($B$8,'Income unirrigated'!$C$64:$G$72,4)+AG$20*VLOOKUP($B$8,'Income unirrigated'!$C$79:$G$87,4) -> 5
A32: Cost of Casual Labor | D32: =+D$16*VLOOKUP($B$8,'Income irrigated'!$C$66:$G$74,5)+D$17*VLOOKUP($B$8,'Income irrigated'!$C$81:$G$89,5)+D$19*VLOOKUP($B$8,'Income unirrigated'!$C$64:$G$72,5)+D$20*VLOOKUP($B$8,'Income unirrigated'!$C$79:$G$87,5) -> 3851.8225 | E32: =+E$16*VLOOKUP($B$8,'Income irrigated'!$C$66:$G$74,5)+E$17*VLOOKUP($B$8,'Income irrigated'!$C$81:$G$89,5)+E$19*VLOOKUP($B$8,'Income unirrigated'!$C$64:$G$72,5)+E$20*VLOOKUP($B$8,'Income unirrigated'!$C$79:$G$87,5) -> 3851.8225 | F32: =+F$16*VLOOKUP($B$8,'Income irrigated'!$C$66:$G$74,5)+F$17*VLOOKUP($B$8,'Income irrigated'!$C$81:$G$89,5)+F$19*VLOOKUP($B$8,'Income unirrigated'!$C$64:$G$72,5)+F$20*VLOOKUP($B$8,'Income unirrigated'!$C$79:$G$87,5) -> 3851.8225 | G32: =+G$16*VLOOKUP($B$8,'Income irrigated'!$C$66:$G$74,5)+G$17*VLOOKUP($B$8,'Income irrigated'!$C$81:$G$89,5)+G$19*VLOOKUP($B$8,'Income unirrigated'!$C$64:$G$72,5)+G$20*VLOOKUP($B$8,'Income unirrigated'!$C$79:$G$87,5) -> 5060.08 | H32: =+H$16*VLOOKUP($B$8,'Income irrigated'!$C$66:$G$74,5)+H$17*VLOOKUP($B$8,'Income irrigated'!$C$81:$G$89,5)+H$19*VLOOKUP($B$8,'Income unirrigated'!$C$64:$G$72,5)+H$20*VLOOKUP($B$8,'Income unirrigated'!$C$79:$G$87,5) -> 6268.3375 | I32: =+I$16*VLOOKUP($B$8,'Income irrigated'!$C$66:$G$74,5)+I$17*VLOOKUP($B$8,'Income irrigated'!$C$81:$G$89,5)+I$19*VLOOKUP($B$8,'Income unirrigated'!$C$64:$G$72,5)+I$20*VLOOKUP($B$8,'Income unirrigated'!$C$79:$G$87,5) -> 7476.595 | J32: =+J$16*VLOOKUP($B$8,'Income irrigated'!$C$66:$G$74,5)+J$17*VLOOKUP($B$8,'Income irrigated'!$C$81:$G$89,5)+J$19*VLOOKUP($B$8,'Income unirrigated'!$C$64:$G$72,5)+J$20*VLOOKUP($B$8,'Income unirrigated'!$C$79:$G$87,5) -> 8282.1 | K32: =+K$16*VLOOKUP($B$8,'Income irrigated'!$C$66:$G$74,5)+K$17*VLOOKUP($B$8,'Income irrigated'!$C$81:$G$89,5)+K$19*VLOOKUP($B$8,'Income unirrigated'!$C$64:$G$72,5)+K$20*VLOOKUP($B$8,'Income unirrigated'!$C$79:$G$87,5) -> 8282.1 | L32: =+L$16*VLOOKUP($B$8,'Income irrigated'!$C$66:$G$74,5)+L$17*VLOOKUP($B$8,'Income irrigated'!$C$81:$G$89,5)+L$19*VLOOKUP($B$8,'Income unirrigated'!$C$64:$G$72,5)+L$20*VLOOKUP($B$8,'Income unirrigated'!$C$79:$G$87,5) -> 8282.1 | M32: =+M$16*VLOOKUP($B$8,'Income irrigated'!$C$66:$G$74,5)+M$17*VLOOKUP($B$8,'Income irrigated'!$C$81:$G$89,5)+M$19*VLOOKUP($B$8,'Income unirrigated'!$C$64:$G$72,5)+M$20*VLOOKUP($B$8,'Income unirrigated'!$C$79:$G$87,5) -> 8282.1 | N32: =+N$16*VLOOKUP($B$8,'Income irrigated'!$C$66:$G$74,5)+N$17*VLOOKUP($B$8,'Income irrigated'!$C$81:$G$89,5)+N$19*VLOOKUP($B$8,'Income unirrigated'!$C$64:$G$72,5)+N$20*VLOOKUP($B$8,'Income unirrigated'!$C$79:$G$87,5) -> 8282.1 | O32: =+O$16*VLOOKUP($B$8,'Income irrigated'!$C$66:$G$74,5)+O$17*VLOOKUP($B$8,'Income irrigated'!$C$81:$G$89,5)+O$19*VLOOKUP($B$8,'Income unirrigated'!$C$64:$G$72,5)+O$20*VLOOKUP($B$8,'Income unirrigated'!$C$79:$G$87,5) -> 8282.1 | P32: =+P$16*VLOOKUP($B$8,'Income irrigated'!$C$66:$G$74,5)+P$17*VLOOKUP($B$8,'Income irrigated'!$C$81:$G$89,5)+P$19*VLOOKUP($B$8,'Income unirrigated'!$C$64:$G$72,5)+P$20*VLOOKUP($B$8,'Income unirrigated'!$C$79:$G$87,5) -> 8282.1 | Q32: =+Q$16*VLOOKUP($B$8,'Income irrigated'!$C$66:$G$74,5)+Q$17*VLOOKUP($B$8,'Income irrigated'!$C$81:$G$89,5)+Q$19*VLOOKUP($B$8,'Income unirrigated'!$C$64:$G$72,5)+Q$20*VLOOKUP($B$8,'Income unirrigated'!$C$79:$G$87,5) -> 8282.1 | R32: =+R$16*VLOOKUP($B$8,'Income irrigated'!$C$66:$G$74,5)+R$17*VLOOKUP($B$8,'Income irrigated'!$C$81:$G$89,5)+R$19*VLOOKUP($B$8,'Income unirrigated'!$C$64:$G$72,5)+R$20*VLOOKUP($B$8,'Income unirrigated'!$C$79:$G$87,5) -> 5865.585 | S32: =+S$16*VLOOKUP($B$8,'Income irrigated'!$C$66:$G$74,5)+S$17*VLOOKUP($B$8,'Income irrigated'!$C$81:$G$89,5)+S$19*VLOOKUP($B$8,'Income unirrigated'!$C$64:$G$72,5)+S$20*VLOOKUP($B$8,'Income unirrigated'!$C$79:$G$87,5) -> 5865.585 | T32: =+T$16*VLOOKUP($B$8,'Income irrigated'!$C$66:$G$74,5)+T$17*VLOOKUP($B$8,'Income irrigated'!$C$81:$G$89,5)+T$19*VLOOKUP($B$8,'Income unirrigated'!$C$64:$G$72,5)+T$20*VLOOKUP($B$8,'Income unirrigated'!$C$79:$G$87,5) -> 5865.585 | U32: =+U$16*VLOOKUP($B$8,'Income irrigated'!$C$66:$G$74,5)+U$17*VLOOKUP($B$8,'Income irrigated'!$C$81:$G$89,5)+U$19*VLOOKUP($B$8,'Income unirrigated'!$C$64:$G$72,5)+U$20*VLOOKUP($B$8,'Income unirrigated'!$C$79:$G$87,5) -> 5865.585 | V32: =+V$16*VLOOKUP($B$8,'Income irrigated'!$C$66:$G$74,5)+V$17*VLOOKUP($B$8,'Income irrigated'!$C$81:$G$89,5)+V$19*VLOOKUP($B$8,'Income unirrigated'!$C$64:$G$72,5)+V$20*VLOOKUP($B$8,'Income unirrigated'!$C$79:$G$87,5) -> 5865.585 | W32: =+W$16*VLOOKUP($B$8,'Income irrigated'!$C$66:$G$74,5)+W$17*VLOOKUP($B$8,'Income irrigated'!$C$81:$G$89,5)+W$19*VLOOKUP($B$8,'Income unirrigated'!$C$64:$G$72,5)+W$20*VLOOKUP($B$8,'Income unirrigated'!$C$79:$G$87,5) -> 5865.585 | X32: =+X$16*VLOOKUP($B$8,'Income irrigated'!$C$66:$G$74,5)+X$17*VLOOKUP($B$8,'Income irrigated'!$C$81:$G$89,5)+X$19*VLOOKUP($B$8,'Income unirrigated'!$C$64:$G$72,5)+X$20*VLOOKUP($B$8,'Income unirrigated'!$C$79:$G$87,5) -> 5865.585 | Y32: =+Y$16*VLOOKUP($B$8,'Income irrigated'!$C$66:$G$74,5)+Y$17*VLOOKUP($B$8,'Income irrigated'!$C$81:$G$89,5)+Y$19*VLOOKUP($B$8,'Income unirrigated'!$C$64:$G$72,5)+Y$20*VLOOKUP($B$8,'Income unirrigated'!$C$79:$G$87,5) -> 5865.585 | Z32: =+Z$16*VLOOKUP($B$8,'Income irrigated'!$C$66:$G$74,5)+Z$17*VLOOKUP($B$8,'Income irrigated'!$C$81:$G$89,5)+Z$19*VLOOKUP($B$8,'Income unirrigated'!$C$64:$G$72,5)+Z$20*VLOOKUP($B$8,'Income unirrigated'!$C$79:$G$87,5) -> 5865.585 | AA32: =+AA$16*VLOOKUP($B$8,'Income irrigated'!$C$66:$G$74,5)+AA$17*VLOOKUP($B$8,'Income irrigated'!$C$81:$G$89,5)+AA$19*VLOOKUP($B$8,'Income unirrigated'!$C$64:$G$72,5)+AA$20*VLOOKUP($B$8,'Income unirrigated'!$C$79:$G$87,5) -> 5865.585 | AB32: =+AB$16*VLOOKUP($B$8,'Income irrigated'!$C$66:$G$74,5)+AB$17*VLOOKUP($B$8,'Income irrigated'!$C$81:$G$89,5)+AB$19*VLOOKUP($B$8,'Income unirrigated'!$C$64:$G$72,5)+AB$20*VLOOKUP($B$8,'Income unirrigated'!$C$79:$G$87,5) -> 5865.585 | AC32: =+AC$16*VLOOKUP($B$8,'Income irrigated'!$C$66:$G$74,5)+AC$17*VLOOKUP($B$8,'Income irrigated'!$C$81:$G$89,5)+AC$19*VLOOKUP($B$8,'Income unirrigated'!$C$64:$G$72,5)+AC$20*VLOOKUP($B$8,'Income unirrigated'!$C$79:$G$87,5) -> 5865.585 | AD32: =+AD$16*VLOOKUP($B$8,'Income irrigated'!$C$66:$G$74,5)+AD$17*VLOOKUP($B$8,'Income irrigated'!$C$81:$G$89,5)+AD$19*VLOOKUP($B$8,'Income unirrigated'!$C$64:$G$72,5)+AD$20*VLOOKUP($B$8,'Income unirrigated'!$C$79:$G$87,5) -> 5865.585 | AE32: =+AE$16*VLOOKUP($B$8,'Income irrigated'!$C$66:$G$74,5)+AE$17*VLOOKUP($B$8,'Income irrigated'!$C$81:$G$89,5)+AE$19*VLOOKUP($B$8,'Income unirrigated'!$C$64:$G$72,5)+AE$20*VLOOKUP($B$8,'Income unirrigated'!$C$79:$G$87,5) -> 5865.585 | AF32: =+AF$16*VLOOKUP($B$8,'Income irrigated'!$C$66:$G$74,5)+AF$17*VLOOKUP($B$8,'Income irrigated'!$C$81:$G$89,5)+AF$19*VLOOKUP($B$8,'Income unirrigated'!$C$64:$G$72,5)+AF$20*VLOOKUP($B$8,'Income unirrigated'!$C$79:$G$87,5) -> 5865.585 | AG32: =+AG$16*VLOOKUP($B$8,'Income irrigated'!$C$66:$G$74,5)+AG$17*VLOOKUP($B$8,'Income irrigated'!$C$81:$G$89,5)+AG$19*VLOOKUP($B$8,'Income unirrigated'!$C$64:$G$72,5)+AG$20*VLOOKUP($B$8,'Income unirrigated'!$C$79:$G$87,5) -> 5865.585
A33: Average Land Rental paid per hectare | D33: =VLOOKUP($B$8,'Income irrigated'!$C$51:$G$59,4)*VLOOKUP($B$8,'Income irrigated'!$C$51:$G$59,5) -> 92.88 | E33: =VLOOKUP($B$8,'Income irrigated'!$C$51:$G$59,4)*VLOOKUP($B$8,'Income irrigated'!$C$51:$G$59,5) -> 92.88 | F33: =VLOOKUP($B$8,'Income irrigated'!$C$51:$G$59,4)*VLOOKUP($B$8,'Income irrigated'!$C$51:$G$59,5) -> 92.88 | G33: =VLOOKUP($B$8,'Income irrigated'!$C$51:$G$59,4)*VLOOKUP($B$8,'Income irrigated'!$C$51:$G$59,5) -> 92.88 | H33: =VLOOKUP($B$8,'Income irrigated'!$C$51:$G$59,4)*VLOOKUP($B$8,'Income irrigated'!$C$51:$G$59,5) -> 92.88 | I33: =VLOOKUP($B$8,'Income irrigated'!$C$51:$G$59,4)*VLOOKUP($B$8,'Income irrigated'!$C$51:$G$59,5) -> 92.88 | J33: =VLOOKUP($B$8,'Income irrigated'!$C$51:$G$59,4)*VLOOKUP($B$8,'Income irrigated'!$C$51:$G$59,5) -> 92.88 | K33: =VLOOKUP($B$8,'Income irrigated'!$C$51:$G$59,4)*VLOOKUP($B$8,'Income irrigated'!$C$51:$G$59,5) -> 92.88 | L33: =VLOOKUP($B$8,'Income irrigated'!$C$51:$G$59,4)*VLOOKUP($B$8,'Income irrigated'!$C$51:$G$59,5) -> 92.88 | M33: =VLOOKUP($B$8,'Income irrigated'!$C$51:$G$59,4)*VLOOKUP($B$8,'Income irrigated'!$C$51:$G$59,5) -> 92.88 | N33: =VLOOKUP($B$8,'Income irrigated'!$C$51:$G$59,4)*VLOOKUP($B$8,'Income irrigated'!$C$51:$G$59,5) -> 92.88 | O33: =VLOOKUP($B$8,'Income irrigated'!$C$51:$G$59,4)*VLOOKUP($B$8,'Income irrigated'!$C$51:$G$59,5) -> 92.88 | P33: =VLOOKUP($B$8,'Income irrigated'!$C$51:$G$59,4)*VLOOKUP($B$8,'Income irrigated'!$C$51:$G$59,5) -> 92.88 | Q33: =VLOOKUP($B$8,'Income irrigated'!$C$51:$G$59,4)*VLOOKUP($B$8,'Income irrigated'!$C$51:$G$59,5) -> 92.88 | R33: =VLOOKUP($B$8,'Income irrigated'!$C$51:$G$59,4)*VLOOKUP($B$8,'Income irrigated'!$C$51:$G$59,5) -> 92.88 | S33: =VLOOKUP($B$8,'Income irrigated'!$C$51:$G$59,4)*VLOOKUP($B$8,'Income irrigated'!$C$51:$G$59,5) -> 92.88 | T33: =VLOOKUP($B$8,'Income irrigated'!$C$51:$G$59,4)*VLOOKUP($B$8,'Income irrigated'!$C$51:$G$59,5) -> 92.88 | U33: =VLOOKUP($B$8,'Income irrigated'!$C$51:$G$59,4)*VLOOKUP($B$8,'Income irrigated'!$C$51:$G$59,5) -> 92.88 | V33: =VLOOKUP($B$8,'Income irrigated'!$C$51:$G$59,4)*VLOOKUP($B$8,'Income irrigated'!$C$51:$G$59,5) -> 92.88 | W33: =VLOOKUP($B$8,'Income irrigated'!$C$51:$G$59,4)*VLOOKUP($B$8,'Income irrigated'!$C$51:$G$59,5) -> 92.88 | X33: =VLOOKUP($B$8,'Income irrigated'!$C$51:$G$59,4)*VLOOKUP($B$8,'Income irrigated'!$C$51:$G$59,5) -> 92.88 | Y33: =VLOOKUP($B$8,'Income irrigated'!$C$51:$G$59,4)*VLOOKUP($B$8,'Income irrigated'!$C$51:$G$59,5) -> 92.88 | Z33: =VLOOKUP($B$8,'Income irrigated'!$C$51:$G$59,4)*VLOOKUP($B$8,'Income irrigated'!$C$51:$G$59,5) -> 92.88 | AA33: =VLOOKUP($B$8,'Income irrigated'!$C$51:$G$59,4)*VLOOKUP($B$8,'Income irrigated'!$C$51:$G$59,5) -> 92.88 | AB33: =VLOOKUP($B$8,'Income irrigated'!$C$51:$G$59,4)*VLOOKUP($B$8,'Income irrigated'!$C$51:$G$59,5) -> 92.88 | AC33: =VLOOKUP($B$8,'Income irrigated'!$C$51:$G$59,4)*VLOOKUP($B$8,'Income irrigated'!$C$51:$G$59,5) -> 92.88 | AD33: =VLOOKUP($B$8,'Income irrigated'!$C$51:$G$59,4)*VLOOKUP($B$8,'Income irrigated'!$C$51:$G$59,5) -> 92.88 | AE33: =VLOOKUP($B$8,'Income irrigated'!$C$51:$G$59,4)*VLOOKUP($B$8,'Income irrigated'!$C$51:$G$59,5) -> 92.88 | AF33: =VLOOKUP($B$8,'Income irrigated'!$C$51:$G$59,4)*VLOOKUP($B$8,'Income irrigated'!$C$51:$G$59,5) -> 92.88 | AG33: =VLOOKUP($B$8,'Income irrigated'!$C$51:$G$59,4)*VLOOKUP($B$8,'Income irrigated'!$C$51:$G$59,5) -> 92.88
A34: Farm Income per hectare after rental | D34: =+D26-D33 -> 21370.22261 | E34: 21370.22261 | F34: 21370.22261 | G34: 26716.47814 | H34: 32062.73368 | I34: 37408.98921 | J34: 40973.15957 | K34: 40973.15957 | L34: 40973.15957 | M34: 40973.15957 | N34: 40973.15957 | O34: 40973.15957 | P34: 40973.15957 | Q34: 40973.15957 | R34: 27438.48423 | S34: 27438.48423 | T34: 27438.48423 | U34: 27438.48423 | V34: 27438.48423 | W34: 27438.48423 | X34: 27438.48423 | Y34: 27438.48423 | Z34: 27438.48423 | AA34: 27438.48423 | AB34: 27438.48423 | AC34: 27438.48423 | AD34: 27438.48423 | AE34: 27438.48423 | AF34: 27438.48423 | AG34: 27438.48423
A35: Investment Costs of irrigation | D35: =+'Common Assumptions'!G66*D15 -> 4500 | E35: =IF(E15>D15,+(E15-D15)*'Common Assumptions'!$G$66,0) -> 0 | F35: =IF(F15>E15,+(F15-E15)*'Common Assumptions'!$G$66,0) -> 0 | G35: =IF(G15>F15,+(G15-F15)*'Common Assumptions'!$G$66,0) -> 1500 | H35: =IF(H15>G15,+(H15-G15)*'Common Assumptions'!$G$66,0) -> 1500 | I35: =IF(I15>H15,+(I15-H15)*'Common Assumptions'!$G$66,0) -> 1500 | J35: =IF(J15>I15,+(J15-I15)*'Common Assumptions'!$G$66,0) -> 1000 | K35: =SUM(D35:J35) -> 10000 | L35: =IF(L15>K15,+(L15-K15)*'Common Assumptions'!$G$66,0) -> 0 | M35: =IF(M15>L15,+(M15-L15)*'Common Assumptions'!$G$66,0) -> 0 | N35: =IF(N15>M15,+(N15-M15)*'Common Assumptions'!$G$66,0) -> 0 | O35: =IF(O15>N15,+(O15-N15)*'Common Assumptions'!$G$66,0) -> 0 | P35: =IF(P15>O15,+(P15-O15)*'Common Assumptions'!$G$66,0) -> 0 | Q35: =IF(Q15>P15,+(Q15-P15)*'Common Assumptions'!$G$66,0) -> 0 | R35: =IF(R15>Q15,+(R15-Q15)*'Common Assumptions'!$G$66,0) -> 0 | S35: =+K35 -> 10000 | T35: =IF(T15>S15,+(T15-S15)*'Common Assumptions'!$G$66,0) -> 0 | U35: =IF(U15>T15,+(U15-T15)*'Common Assumptions'!$G$66,0) -> 0 | V35: =IF(V15>U15,+(V15-U15)*'Common Assumptions'!$G$66,0) -> 0 | W35: =IF(W15>V15,+(W15-V15)*'Common Assumptions'!$G$66,0) -> 0 | X35: =IF(X15>W15,+(X15-W15)*'Common Assumptions'!$G$66,0) -> 0 | Y35: =IF(Y15>X15,+(Y15-X15)*'Common Assumptions'!$G$66,0) -> 0 | Z35: =IF(Z15>Y15,+(Z15-Y15)*'Common Assumptions'!$G$66,0) -> 0 | AA35: =+S35 -> 10000 | AB35: =IF(AB15>AA15,+(AB15-AA15)*'Common Assumptions'!$G$66,0) -> 0 | AC35: =IF(AC15>AB15,+(AC15-AB15)*'Common Assumptions'!$G$66,0) -> 0 | AD35: =IF(AD15>AC15,+(AD15-AC15)*'Common Assumptions'!$G$66,0) -> 0 | AE35: =IF(AE15>AD15,+(AE15-AD15)*'Common Assumptions'!$G$66,0) -> 0 | AF35: =IF(AF15>AE15,+(AF15-AE15)*'Common Assumptions'!$G$66,0) -> 0 | AG35: =IF(AG15>AF15,+(AG15-AF15)*'Common Assumptions'!$G$66,0) -> 0
A37: Without Irrigation (='Without project' except that a small portion of land is irrigated)
A39: Year after rehabilitation | D39: 1 | E39: 2 | F39: 3 | G39: 4 | H39: 5 | I39: 6 | J39: 7 | K39: 8 | L39: 9 | M39: 10 | N39: 11 | O39: 12 | P39: 13 | Q39: 14 | R39: 15 | S39: 16 | T39: 17 | U39: 18 | V39: 19 | W39: 20 | X39: 21 | Y39: 22 | Z39: 23 | AA39: 24 | AB39: 25 | AC39: 26 | AD39: 27 | AE39: 28 | AF39: 29 | AG39: 30
A40: Fraction of land irrigated | D40: 0 | E40: 0 | F40: 0 | G40: 0 | H40: 0 | I40: 0 | J40: 0 | K40: 0 | L40: 0 | M40: 0 | N40: 0 | O40: 0 | P40: 0 | Q40: 0 | R40: 0 | S40: 0 | T40: 0 | U40: 0 | V40: 0 | W40: 0 | X40: 0 | Y40: 0 | Z40: 0 | AA40: 0 | AB40: 0 | AC40: 0 | AD40: 0 | AE40: 0 | AF40: 0 | AG40: 0
A41: Fraction of land unirrigated HVA | D41: =VLOOKUP($B$8,'Income unirrigated'!$C$4:$J$12,3) -> 0.85 | E41: =VLOOKUP($B$8,'Income unirrigated'!$C$4:$J$12,3) -> 0.85 | F41: =VLOOKUP($B$8,'Income unirrigated'!$C$4:$J$12,3) -> 0.85 | G41: =VLOOKUP($B$8,'Income unirrigated'!$C$4:$J$12,3) -> 0.85 | H41: =VLOOKUP($B$8,'Income unirrigated'!$C$4:$J$12,3) -> 0.85 | I41: =VLOOKUP($B$8,'Income unirrigated'!$C$4:$J$12,3) -> 0.85 | J41: =VLOOKUP($B$8,'Income unirrigated'!$C$4:$J$12,3) -> 0.85 | K41: =VLOOKUP($B$8,'Income unirrigated'!$C$4:$J$12,3) -> 0.85 | L41: =VLOOKUP($B$8,'Income unirrigated'!$C$4:$J$12,3) -> 0.85 | M41: =VLOOKUP($B$8,'Income unirrigated'!$C$4:$J$12,3) -> 0.85 | N41: =VLOOKUP($B$8,'Income unirrigated'!$C$4:$J$12,3) -> 0.85 | O41: =VLOOKUP($B$8,'Income unirrigated'!$C$4:$J$12,3) -> 0.85 | P41: =VLOOKUP($B$8,'Income unirrigated'!$C$4:$J$12,3) -> 0.85 | Q41: =VLOOKUP($B$8,'Income unirrigated'!$C$4:$J$12,3) -> 0.85 | R41: =VLOOKUP($B$8,'Income unirrigated'!$C$4:$J$12,3) -> 0.85 | S41: =VLOOKUP($B$8,'Income unirrigated'!$C$4:$J$12,3) -> 0.85 | T41: =VLOOKUP($B$8,'Income unirrigated'!$C$4:$J$12,3) -> 0.85 | U41: =VLOOKUP($B$8,'Income unirrigated'!$C$4:$J$12,3) -> 0.85 | V41: =VLOOKUP($B$8,'Income unirrigated'!$C$4:$J$12,3) -> 0.85 | W41: =VLOOKUP($B$8,'Income unirrigated'!$C$4:$J$12,3) -> 0.85 | X41: =VLOOKUP($B$8,'Income unirrigated'!$C$4:$J$12,3) -> 0.85 | Y41: =VLOOKUP($B$8,'Income unirrigated'!$C$4:$J$12,3) -> 0.85 | Z41: =VLOOKUP($B$8,'Income unirrigated'!$C$4:$J$12,3) -> 0.85 | AA41: =VLOOKUP($B$8,'Income unirrigated'!$C$4:$J$12,3) -> 0.85 | AB41: =VLOOKUP($B$8,'Income unirrigated'!$C$4:$J$12,3) -> 0.85 | AC41: =VLOOKUP($B$8,'Income unirrigated'!$C$4:$J$12,3) -> 0.85 | AD41: =VLOOKUP($B$8,'Income unirrigated'!$C$4:$J$12,3) -> 0.85 | AE41: =VLOOKUP($B$8,'Income unirrigated'!$C$4:$J$12,3) -> 0.85 | AF41: =VLOOKUP($B$8,'Income unirrigated'!$C$4:$J$12,3) -> 0.85 | AG41: =VLOOKUP($B$8,'Income unirrigated'!$C$4:$J$12,3) -> 0.85
A42: Fraction of land unirrigated non-HVA | D42: =1-D41 -> 0.15 | E42: 0.15 | F42: 0.15 | G42: 0.15 | H42: 0.15 | I42: 0.15 | J42: 0.15 | K42: 0.15 | L42: 0.15 | M42: 0.15 | N42: 0.15 | O42: 0.15 | P42: 0.15 | Q42: 0.15 | R42: 0.15 | S42: 0.15 | T42: 0.15 | U42: 0.15 | V42: 0.15 | W42: 0.15 | X42: 0.15 | Y42: 0.15 | Z42: 0.15 | AA42: 0.15 | AB42: 0.15 | AC42: 0.15 | AD42: 0.15 | AE42: 0.15 | AF42: 0.15 | AG42: 0.15
A43: Farm Income per hectare without irrigation | D43: =VLOOKUP($B$8,'Income unirrigated'!$C$20:$J$28, 3,FALSE)*D41+VLOOKUP($B$8,'Income unirrigated'!$C$34:$J$42,3,FALSE)*D42 -> 5424.336 | E43: =VLOOKUP($B$8,'Income unirrigated'!$C$20:$J$28, 3,FALSE)*E41+VLOOKUP($B$8,'Income unirrigated'!$C$34:$J$42,3,FALSE)*E42 -> 5424.336 | F43: =VLOOKUP($B$8,'Income unirrigated'!$C$20:$J$28, 3,FALSE)*F41+VLOOKUP($B$8,'Income unirrigated'!$C$34:$J$42,3,FALSE)*F42 -> 5424.336 | G43: =VLOOKUP($B$8,'Income unirrigated'!$C$20:$J$28, 3,FALSE)*G41+VLOOKUP($B$8,'Income unirrigated'!$C$34:$J$42,3,FALSE)*G42 -> 5424.336 | H43: =VLOOKUP($B$8,'Income unirrigated'!$C$20:$J$28, 3,FALSE)*H41+VLOOKUP($B$8,'Income unirrigated'!$C$34:$J$42,3,FALSE)*H42 -> 5424.336 | I43: =VLOOKUP($B$8,'Income unirrigated'!$C$20:$J$28, 3,FALSE)*I41+VLOOKUP($B$8,'Income unirrigated'!$C$34:$J$42,3,FALSE)*I42 -> 5424.336 | J43: =VLOOKUP($B$8,'Income unirrigated'!$C$20:$J$28, 3,FALSE)*J41+VLOOKUP($B$8,'Income unirrigated'!$C$34:$J$42,3,FALSE)*J42 -> 5424.336 | K43: =VLOOKUP($B$8,'Income unirrigated'!$C$20:$J$28, 3,FALSE)*K41+VLOOKUP($B$8,'Income unirrigated'!$C$34:$J$42,3,FALSE)*K42 -> 5424.336 | L43: =VLOOKUP($B$8,'Income unirrigated'!$C$20:$J$28, 3,FALSE)*L41+VLOOKUP($B$8,'Income unirrigated'!$C$34:$J$42,3,FALSE)*L42 -> 5424.336 | M43: =VLOOKUP($B$8,'Income unirrigated'!$C$20:$J$28, 3,FALSE)*M41+VLOOKUP($B$8,'Income unirrigated'!$C$34:$J$42,3,FALSE)*M42 -> 5424.336 | N43: =VLOOKUP($B$8,'Income unirrigated'!$C$20:$J$28, 3,FALSE)*N41+VLOOKUP($B$8,'Income unirrigated'!$C$34:$J$42,3,FALSE)*N42 -> 5424.336 | O43: =VLOOKUP($B$8,'Income unirrigated'!$C$20:$J$28, 3,FALSE)*O41+VLOOKUP($B$8,'Income unirrigated'!$C$34:$J$42,3,FALSE)*O42 -> 5424.336 | P43: =VLOOKUP($B$8,'Income unirrigated'!$C$20:$J$28, 3,FALSE)*P41+VLOOKUP($B$8,'Income unirrigated'!$C$34:$J$42,3,FALSE)*P42 -> 5424.336 | Q43: =VLOOKUP($B$8,'Income unirrigated'!$C$20:$J$28, 3,FALSE)*Q41+VLOOKUP($B$8,'Income unirrigated'!$C$34:$J$42,3,FALSE)*Q42 -> 5424.336 | R43: =VLOOKUP($B$8,'Income unirrigated'!$C$20:$J$28, 3,FALSE)*R41+VLOOKUP($B$8,'Income unirrigated'!$C$34:$J$42,3,FALSE)*R42 -> 5424.336 | S43: =VLOOKUP($B$8,'Income unirrigated'!$C$20:$J$28, 3,FALSE)*S41+VLOOKUP($B$8,'Income unirrigated'!$C$34:$J$42,3,FALSE)*S42 -> 5424.336 | T43: =VLOOKUP($B$8,'Income unirrigated'!$C$20:$J$28, 3,FALSE)*T41+VLOOKUP($B$8,'Income unirrigated'!$C$34:$J$42,3,FALSE)*T42 -> 5424.336 | U43: =VLOOKUP($B$8,'Income unirrigated'!$C$20:$J$28, 3,FALSE)*U41+VLOOKUP($B$8,'Income unirrigated'!$C$34:$J$42,3,FALSE)*U42 -> 5424.336 | V43: =VLOOKUP($B$8,'Income unirrigated'!$C$20:$J$28, 3,FALSE)*V41+VLOOKUP($B$8,'Income unirrigated'!$C$34:$J$42,3,FALSE)*V42 -> 5424.336 | W43: =VLOOKUP($B$8,'Income unirrigated'!$C$20:$J$28, 3,FALSE)*W41+VLOOKUP($B$8,'Income unirrigated'!$C$34:$J$42,3,FALSE)*W42 -> 5424.336 | X43: =VLOOKUP($B$8,'Income unirrigated'!$C$20:$J$28, 3,FALSE)*X41+VLOOKUP($B$8,'Income unirrigated'!$C$34:$J$42,3,FALSE)*X42 -> 5424.336 | Y43: =VLOOKUP($B$8,'Income unirrigated'!$C$20:$J$28, 3,FALSE)*Y41+VLOOKUP($B$8,'Income unirrigated'!$C$34:$J$42,3,FALSE)*Y42 -> 5424.336 | Z43: =VLOOKUP($B$8,'Income unirrigated'!$C$20:$J$28, 3,FALSE)*Z41+VLOOKUP($B$8,'Income unirrigated'!$C$34:$J$42,3,FALSE)*Z42 -> 5424.336 | AA43: =VLOOKUP($B$8,'Income unirrigated'!$C$20:$J$28, 3,FALSE)*AA41+VLOOKUP($B$8,'Income unirrigated'!$C$34:$J$42,3,FALSE)*AA42 -> 5424.336 | AB43: =VLOOKUP($B$8,'Income unirrigated'!$C$20:$J$28, 3,FALSE)*AB41+VLOOKUP($B$8,'Income unirrigated'!$C$34:$J$42,3,FALSE)*AB42 -> 5424.336 | AC43: =VLOOKUP($B$8,'Income unirrigated'!$C$20:$J$28, 3,FALSE)*AC41+VLOOKUP($B$8,'Income unirrigated'!$C$34:$J$42,3,FALSE)*AC42 -> 5424.336 | AD43: =VLOOKUP($B$8,'Income unirrigated'!$C$20:$J$28, 3,FALSE)*AD41+VLOOKUP($B$8,'Income unirrigated'!$C$34:$J$42,3,FALSE)*AD42 -> 5424.336 | AE43: =VLOOKUP($B$8,'Income unirrigated'!$C$20:$J$28, 3,FALSE)*AE41+VLOOKUP($B$8,'Income unirrigated'!$C$34:$J$42,3,FALSE)*AE42 -> 5424.336 | AF43: =VLOOKUP($B$8,'Income unirrigated'!$C$20:$J$28, 3,FALSE)*AF41+VLOOKUP($B$8,'Income unirrigated'!$C$34:$J$42,3,FALSE)*AF42 -> 5424.336 | AG43: =VLOOKUP($B$8,'Income unirrigated'!$C$20:$J$28, 3,FALSE)*AG41+VLOOKUP($B$8,'Income unirrigated'!$C$34:$J$42,3,FALSE)*AG42 -> 5424.336
A44: From which was deducted:
A45: Labor Costs | D45: =SUM(D46:D48) -> 847.05 | E45: =SUM(E46:E48) -> 847.05 | F45: 847.05 | G45: 847.05 | H45: 847.05 | I45: 847.05 | J45: 847.05 | K45: 847.05 | L45: 847.05 | M45: 847.05 | N45: 847.05 | O45: 847.05 | P45: 847.05 | Q45: 847.05 | R45: 847.05 | S45: 847.05 | T45: 847.05 | U45: 847.05 | V45: 847.05 | W45: 847.05 | X45: 847.05 | Y45: 847.05 | Z45: 847.05 | AA45: 847.05 | AB45: 847.05 | AC45: 847.05 | AD45: 847.05 | AE45: 847.05 | AF45: 847.05 | AG45: 847.05
A46: Cost of Family Labor | D46: =D$41*VLOOKUP($B$8,'Income unirrigated'!$C$64:$G72,3)+D$42*VLOOKUP($B$8,'Income unirrigated'!$C$79:$G$87,3) -> 615 | E46: =E$41*VLOOKUP($B$8,'Income unirrigated'!$C$64:$G72,3)+E$42*VLOOKUP($B$8,'Income unirrigated'!$C$79:$G$87,3) -> 615 | F46: =F$41*VLOOKUP($B$8,'Income unirrigated'!$C$64:$G72,3)+F$42*VLOOKUP($B$8,'Income unirrigated'!$C$79:$G$87,3) -> 615 | G46: =G$41*VLOOKUP($B$8,'Income unirrigated'!$C$64:$G72,3)+G$42*VLOOKUP($B$8,'Income unirrigated'!$C$79:$G$87,3) -> 615 | H46: =H$41*VLOOKUP($B$8,'Income unirrigated'!$C$64:$G72,3)+H$42*VLOOKUP($B$8,'Income unirrigated'!$C$79:$G$87,3) -> 615 | I46: =I$41*VLOOKUP($B$8,'Income unirrigated'!$C$64:$G72,3)+I$42*VLOOKUP($B$8,'Income unirrigated'!$C$79:$G$87,3) -> 615 | J46: =J$41*VLOOKUP($B$8,'Income unirrigated'!$C$64:$G72,3)+J$42*VLOOKUP($B$8,'Income unirrigated'!$C$79:$G$87,3) -> 615 | K46: =K$41*VLOOKUP($B$8,'Income unirrigated'!$C$64:$G72,3)+K$42*VLOOKUP($B$8,'Income unirrigated'!$C$79:$G$87,3) -> 615 | L46: =L$41*VLOOKUP($B$8,'Income unirrigated'!$C$64:$G72,3)+L$42*VLOOKUP($B$8,'Income unirrigated'!$C$79:$G$87,3) -> 615 | M46: =M$41*VLOOKUP($B$8,'Income unirrigated'!$C$64:$G72,3)+M$42*VLOOKUP($B$8,'Income unirrigated'!$C$79:$G$87,3) -> 615 | N46: =N$41*VLOOKUP($B$8,'Income unirrigated'!$C$64:$G72,3)+N$42*VLOOKUP($B$8,'Income unirrigated'!$C$79:$G$87,3) -> 615 | O46: =O$41*VLOOKUP($B$8,'Income unirrigated'!$C$64:$G72,3)+O$42*VLOOKUP($B$8,'Income unirrigated'!$C$79:$G$87,3) -> 615 | P46: =P$41*VLOOKUP($B$8,'Income unirrigated'!$C$64:$G72,3)+P$42*VLOOKUP($B$8,'Income unirrigated'!$C$79:$G$87,3) -> 615 | Q46: =Q$41*VLOOKUP($B$8,'Income unirrigated'!$C$64:$G72,3)+Q$42*VLOOKUP($B$8,'Income unirrigated'!$C$79:$G$87,3) -> 615 | R46: =R$41*VLOOKUP($B$8,'Income unirrigated'!$C$64:$G72,3)+R$42*VLOOKUP($B$8,'Income unirrigated'!$C$79:$G$87,3) -> 615 | S46: =S$41*VLOOKUP($B$8,'Income unirrigated'!$C$64:$G72,3)+S$42*VLOOKUP($B$8,'Income unirrigated'!$C$79:$G$87,3) -> 615 | T46: =T$41*VLOOKUP($B$8,'Income unirrigated'!$C$64:$G72,3)+T$42*VLOOKUP($B$8,'Income unirrigated'!$C$79:$G$87,3) -> 615 | U46: =U$41*VLOOKUP($B$8,'Income unirrigated'!$C$64:$G72,3)+U$42*VLOOKUP($B$8,'Income unirrigated'!$C$79:$G$87,3) -> 615 | V46: =V$41*VLOOKUP($B$8,'Income unirrigated'!$C$64:$G72,3)+V$42*VLOOKUP($B$8,'Income unirrigated'!$C$79:$G$87,3) -> 615 | W46: =W$41*VLOOKUP($B$8,'Income unirrigated'!$C$64:$G72,3)+W$42*VLOOKUP($B$8,'Income unirrigated'!$C$79:$G$87,3) -> 615 | X46: =X$41*VLOOKUP($B$8,'Income unirrigated'!$C$64:$G72,3)+X$42*VLOOKUP($B$8,'Income unirrigated'!$C$79:$G$87,3) -> 615 | Y46: =Y$41*VLOOKUP($B$8,'Income unirrigated'!$C$64:$G72,3)+Y$42*VLOOKUP($B$8,'Income unirrigated'!$C$79:$G$87,3) -> 615 | Z46: =Z$41*VLOOKUP($B$8,'Income unirrigated'!$C$64:$G72,3)+Z$42*VLOOKUP($B$8,'Income unirrigated'!$C$79:$G$87,3) -> 615 | AA46: =AA$41*VLOOKUP($B$8,'Income unirrigated'!$C$64:$G72,3)+AA$42*VLOOKUP($B$8,'Income unirrigated'!$C$79:$G$87,3) -> 615 | AB46: =AB$41*VLOOKUP($B$8,'Income unirrigated'!$C$64:$G72,3)+AB$42*VLOOKUP($B$8,'Income unirrigated'!$C$79:$G$87,3) -> 615 | AC46: =AC$41*VLOOKUP($B$8,'Income unirrigated'!$C$64:$G72,3)+AC$42*VLOOKUP($B$8,'Income unirrigated'!$C$79:$G$87,3) -> 615 | AD46: =AD$41*VLOOKUP($B$8,'Income unirrigated'!$C$64:$G72,3)+AD$42*VLOOKUP($B$8,'Income unirrigated'!$C$79:$G$87,3) -> 615 | AE46: =AE$41*VLOOKUP($B$8,'Income unirrigated'!$C$64:$G72,3)+AE$42*VLOOKUP($B$8,'Income unirrigated'!$C$79:$G$87,3) -> 615 | AF46: =AF$41*VLOOKUP($B$8,'Income unirrigated'!$C$64:$G72,3)+AF$42*VLOOKUP($B$8,'Income unirrigated'!$C$79:$G$87,3) -> 615 | AG46: =AG$41*VLOOKUP($B$8,'Income unirrigated'!$C$64:$G72,3)+AG$42*VLOOKUP($B$8,'Income unirrigated'!$C$79:$G$87,3) -> 615
A47: Cost of Full Time Labor | D47: =D$41*VLOOKUP($B$8,'Income unirrigated'!$C$64:$G73,4)+D$42*VLOOKUP($B$8,'Income unirrigated'!$C$79:$G$87,4) -> 5 | E47: =E$41*VLOOKUP($B$8,'Income unirrigated'!$C$64:$G73,4)+E$42*VLOOKUP($B$8,'Income unirrigated'!$C$79:$G$87,4) -> 5 | F47: =F$41*VLOOKUP($B$8,'Income unirrigated'!$C$64:$G73,4)+F$42*VLOOKUP($B$8,'Income unirrigated'!$C$79:$G$87,4) -> 5 | G47: =G$41*VLOOKUP($B$8,'Income unirrigated'!$C$64:$G73,4)+G$42*VLOOKUP($B$8,'Income unirrigated'!$C$79:$G$87,4) -> 5 | H47: =H$41*VLOOKUP($B$8,'Income unirrigated'!$C$64:$G73,4)+H$42*VLOOKUP($B$8,'Income unirrigated'!$C$79:$G$87,4) -> 5 | I47: =I$41*VLOOKUP($B$8,'Income unirrigated'!$C$64:$G73,4)+I$42*VLOOKUP($B$8,'Income unirrigated'!$C$79:$G$87,4) -> 5 | J47: =J$41*VLOOKUP($B$8,'Income unirrigated'!$C$64:$G73,4)+J$42*VLOOKUP($B$8,'Income unirrigated'!$C$79:$G$87,4) -> 5 | K47: =K$41*VLOOKUP($B$8,'Income unirrigated'!$C$64:$G73,4)+K$42*VLOOKUP($B$8,'Income unirrigated'!$C$79:$G$87,4) -> 5 | L47: =L$41*VLOOKUP($B$8,'Income unirrigated'!$C$64:$G73,4)+L$42*VLOOKUP($B$8,'Income unirrigated'!$C$79:$G$87,4) -> 5 | M47: =M$41*VLOOKUP($B$8,'Income unirrigated'!$C$64:$G73,4)+M$42*VLOOKUP($B$8,'Income unirrigated'!$C$79:$G$87,4) -> 5 | N47: =N$41*VLOOKUP($B$8,'Income unirrigated'!$C$64:$G73,4)+N$42*VLOOKUP($B$8,'Income unirrigated'!$C$79:$G$87,4) -> 5 | O47: =O$41*VLOOKUP($B$8,'Income unirrigated'!$C$64:$G73,4)+O$42*VLOOKUP($B$8,'Income unirrigated'!$C$79:$G$87,4) -> 5 | P47: =P$41*VLOOKUP($B$8,'Income unirrigated'!$C$64:$G73,4)+P$42*VLOOKUP($B$8,'Income unirrigated'!$C$79:$G$87,4) -> 5 | Q47: =Q$41*VLOOKUP($B$8,'Income unirrigated'!$C$64:$G73,4)+Q$42*VLOOKUP($B$8,'Income unirrigated'!$C$79:$G$87,4) -> 5 | R47: =R$41*VLOOKUP($B$8,'Income unirrigated'!$C$64:$G73,4)+R$42*VLOOKUP($B$8,'Income unirrigated'!$C$79:$G$87,4) -> 5 | S47: =S$41*VLOOKUP($B$8,'Income unirrigated'!$C$64:$G73,4)+S$42*VLOOKUP($B$8,'Income unirrigated'!$C$79:$G$87,4) -> 5 | T47: =T$41*VLOOKUP($B$8,'Income unirrigated'!$C$64:$G73,4)+T$42*VLOOKUP($B$8,'Income unirrigated'!$C$79:$G$87,4) -> 5 | U47: =U$41*VLOOKUP($B$8,'Income unirrigated'!$C$64:$G73,4)+U$42*VLOOKUP($B$8,'Income unirrigated'!$C$79:$G$87,4) -> 5 | V47: =V$41*VLOOKUP($B$8,'Income unirrigated'!$C$64:$G73,4)+V$42*VLOOKUP($B$8,'Income unirrigated'!$C$79:$G$87,4) -> 5 | W47: =W$41*VLOOKUP($B$8,'Income unirrigated'!$C$64:$G73,4)+W$42*VLOOKUP($B$8,'Income unirrigated'!$C$79:$G$87,4) -> 5 | X47: =X$41*VLOOKUP($B$8,'Income unirrigated'!$C$64:$G73,4)+X$42*VLOOKUP($B$8,'Income unirrigated'!$C$79:$G$87,4) -> 5 | Y47: =Y$41*VLOOKUP($B$8,'Income unirrigated'!$C$64:$G73,4)+Y$42*VLOOKUP($B$8,'Income unirrigated'!$C$79:$G$87,4) -> 5 | Z47: =Z$41*VLOOKUP($B$8,'Income unirrigated'!$C$64:$G73,4)+Z$42*VLOOKUP($B$8,'Income unirrigated'!$C$79:$G$87,4) -> 5 | AA47: =AA$41*VLOOKUP($B$8,'Income unirrigated'!$C$64:$G73,4)+AA$42*VLOOKUP($B$8,'Income unirrigated'!$C$79:$G$87,4) -> 5 | AB47: =AB$41*VLOOKUP($B$8,'Income unirrigated'!$C$64:$G73,4)+AB$42*VLOOKUP($B$8,'Income unirrigated'!$C$79:$G$87,4) -> 5 | AC47: =AC$41*VLOOKUP($B$8,'Income unirrigated'!$C$64:$G73,4)+AC$42*VLOOKUP($B$8,'Income unirrigated'!$C$79:$G$87,4) -> 5 | AD47: =AD$41*VLOOKUP($B$8,'Income unirrigated'!$C$64:$G73,4)+AD$42*VLOOKUP($B$8,'Income unirrigated'!$C$79:$G$87,4) -> 5 | AE47: =AE$41*VLOOKUP($B$8,'Income unirrigated'!$C$64:$G73,4)+AE$42*VLOOKUP($B$8,'Income unirrigated'!$C$79:$G$87,4) -> 5 | AF47: =AF$41*VLOOKUP($B$8,'Income unirrigated'!$C$64:$G73,4)+AF$42*VLOOKUP($B$8,'Income unirrigated'!$C$79:$G$87,4) -> 5 | AG47: =AG$41*VLOOKUP($B$8,'Income unirrigated'!$C$64:$G73,4)+AG$42*VLOOKUP($B$8,'Income unirrigated'!$C$79:$G$87,4) -> 5
A48: Cost of Casual Labor | D48: =D$41*VLOOKUP($B$8,'Income unirrigated'!$C$64:$G74,5)+D$42*VLOOKUP($B$8,'Income unirrigated'!$C$79:$G$87,5) -> 227.05 | E48: =E$41*VLOOKUP($B$8,'Income unirrigated'!$C$64:$G74,5)+E$42*VLOOKUP($B$8,'Income unirrigated'!$C$79:$G$87,5) -> 227.05 | F48: =F$41*VLOOKUP($B$8,'Income unirrigated'!$C$64:$G74,5)+F$42*VLOOKUP($B$8,'Income unirrigated'!$C$79:$G$87,5) -> 227.05 | G48: =G$41*VLOOKUP($B$8,'Income unirrigated'!$C$64:$G74,5)+G$42*VLOOKUP($B$8,'Income unirrigated'!$C$79:$G$87,5) -> 227.05 | H48: =H$41*VLOOKUP($B$8,'Income unirrigated'!$C$64:$G74,5)+H$42*VLOOKUP($B$8,'Income unirrigated'!$C$79:$G$87,5) -> 227.05 | I48: =I$41*VLOOKUP($B$8,'Income unirrigated'!$C$64:$G74,5)+I$42*VLOOKUP($B$8,'Income unirrigated'!$C$79:$G$87,5) -> 227.05 | J48: =J$41*VLOOKUP($B$8,'Income unirrigated'!$C$64:$G74,5)+J$42*VLOOKUP($B$8,'Income unirrigated'!$C$79:$G$87,5) -> 227.05 | K48: =K$41*VLOOKUP($B$8,'Income unirrigated'!$C$64:$G74,5)+K$42*VLOOKUP($B$8,'Income unirrigated'!$C$79:$G$87,5) -> 227.05 | L48: =L$41*VLOOKUP($B$8,'Income unirrigated'!$C$64:$G74,5)+L$42*VLOOKUP($B$8,'Income unirrigated'!$C$79:$G$87,5) -> 227.05 | M48: =M$41*VLOOKUP($B$8,'Income unirrigated'!$C$64:$G74,5)+M$42*VLOOKUP($B$8,'Income unirrigated'!$C$79:$G$87,5) -> 227.05 | N48: =N$41*VLOOKUP($B$8,'Income unirrigated'!$C$64:$G74,5)+N$42*VLOOKUP($B$8,'Income unirrigated'!$C$79:$G$87,5) -> 227.05 | O48: =O$41*VLOOKUP($B$8,'Income unirrigated'!$C$64:$G74,5)+O$42*VLOOKUP($B$8,'Income unirrigated'!$C$79:$G$87,5) -> 227.05 | P48: =P$41*VLOOKUP($B$8,'Income unirrigated'!$C$64:$G74,5)+P$42*VLOOKUP($B$8,'Income unirrigated'!$C$79:$G$87,5) -> 227.05 | Q48: =Q$41*VLOOKUP($B$8,'Income unirrigated'!$C$64:$G74,5)+Q$42*VLOOKUP($B$8,'Income unirrigated'!$C$79:$G$87,5) -> 227.05 | R48: =R$41*VLOOKUP($B$8,'Income unirrigated'!$C$64:$G74,5)+R$42*VLOOKUP($B$8,'Income unirrigated'!$C$79:$G$87,5) -> 227.05 | S48: =S$41*VLOOKUP($B$8,'Income unirrigated'!$C$64:$G74,5)+S$42*VLOOKUP($B$8,'Income unirrigated'!$C$79:$G$87,5) -> 227.05 | T48: =T$41*VLOOKUP($B$8,'Income unirrigated'!$C$64:$G74,5)+T$42*VLOOKUP($B$8,'Income unirrigated'!$C$79:$G$87,5) -> 227.05 | U48: =U$41*VLOOKUP($B$8,'Income unirrigated'!$C$64:$G74,5)+U$42*VLOOKUP($B$8,'Income unirrigated'!$C$79:$G$87,5) -> 227.05 | V48: =V$41*VLOOKUP($B$8,'Income unirrigated'!$C$64:$G74,5)+V$42*VLOOKUP($B$8,'Income unirrigated'!$C$79:$G$87,5) -> 227.05 | W48: =W$41*VLOOKUP($B$8,'Income unirrigated'!$C$64:$G74,5)+W$42*VLOOKUP($B$8,'Income unirrigated'!$C$79:$G$87,5) -> 227.05 | X48: =X$41*VLOOKUP($B$8,'Income unirrigated'!$C$64:$G74,5)+X$42*VLOOKUP($B$8,'Income unirrigated'!$C$79:$G$87,5) -> 227.05 | Y48: =Y$41*VLOOKUP($B$8,'Income unirrigated'!$C$64:$G74,5)+Y$42*VLOOKUP($B$8,'Income unirrigated'!$C$79:$G$87,5) -> 227.05 | Z48: =Z$41*VLOOKUP($B$8,'Income unirrigated'!$C$64:$G74,5)+Z$42*VLOOKUP($B$8,'Income unirrigated'!$C$79:$G$87,5) -> 227.05 | AA48: =AA$41*VLOOKUP($B$8,'Income unirrigated'!$C$64:$G74,5)+AA$42*VLOOKUP($B$8,'Income unirrigated'!$C$79:$G$87,5) -> 227.05 | AB48: =AB$41*VLOOKUP($B$8,'Income unirrigated'!$C$64:$G74,5)+AB$42*VLOOKUP($B$8,'Income unirrigated'!$C$79:$G$87,5) -> 227.05 | AC48: =AC$41*VLOOKUP($B$8,'Income unirrigated'!$C$64:$G74,5)+AC$42*VLOOKUP($B$8,'Income unirrigated'!$C$79:$G$87,5) -> 227.05 | AD48: =AD$41*VLOOKUP($B$8,'Income unirrigated'!$C$64:$G74,5)+AD$42*VLOOKUP($B$8,'Income unirrigated'!$C$79:$G$87,5) -> 227.05 | AE48: =AE$41*VLOOKUP($B$8,'Income unirrigated'!$C$64:$G74,5)+AE$42*VLOOKUP($B$8,'Income unirrigated'!$C$79:$G$87,5) -> 227.05 | AF48: =AF$41*VLOOKUP($B$8,'Income unirrigated'!$C$64:$G74,5)+AF$42*VLOOKUP($B$8,'Income unirrigated'!$C$79:$G$87,5) -> 227.05 | AG48: =AG$41*VLOOKUP($B$8,'Income unirrigated'!$C$64:$G74,5)+AG$42*VLOOKUP($B$8,'Income unirrigated'!$C$79:$G$87,5) -> 227.05
A49: Average Land Rental paid per hectare | D49: =VLOOKUP($B$8,'Income unirrigated'!$C$49:$G$57,4)*VLOOKUP($B$8,'Income unirrigated'!$C$49:$G$57,5) -> 77.4 | E49: =VLOOKUP($B$8,'Income unirrigated'!$C$49:$G$57,4)*VLOOKUP($B$8,'Income unirrigated'!$C$49:$G$57,5) -> 77.4 | F49: =VLOOKUP($B$8,'Income unirrigated'!$C$49:$G$57,4)*VLOOKUP($B$8,'Income unirrigated'!$C$49:$G$57,5) -> 77.4 | G49: =VLOOKUP($B$8,'Income unirrigated'!$C$49:$G$57,4)*VLOOKUP($B$8,'Income unirrigated'!$C$49:$G$57,5) -> 77.4 | H49: =VLOOKUP($B$8,'Income unirrigated'!$C$49:$G$57,4)*VLOOKUP($B$8,'Income unirrigated'!$C$49:$G$57,5) -> 77.4 | I49: =VLOOKUP($B$8,'Income unirrigated'!$C$49:$G$57,4)*VLOOKUP($B$8,'Income unirrigated'!$C$49:$G$57,5) -> 77.4 | J49: =VLOOKUP($B$8,'Income unirrigated'!$C$49:$G$57,4)*VLOOKUP($B$8,'Income unirrigated'!$C$49:$G$57,5) -> 77.4 | K49: =VLOOKUP($B$8,'Income unirrigated'!$C$49:$G$57,4)*VLOOKUP($B$8,'Income unirrigated'!$C$49:$G$57,5) -> 77.4 | L49: =VLOOKUP($B$8,'Income unirrigated'!$C$49:$G$57,4)*VLOOKUP($B$8,'Income unirrigated'!$C$49:$G$57,5) -> 77.4 | M49: =VLOOKUP($B$8,'Income unirrigated'!$C$49:$G$57,4)*VLOOKUP($B$8,'Income unirrigated'!$C$49:$G$57,5) -> 77.4 | N49: =VLOOKUP($B$8,'Income unirrigated'!$C$49:$G$57,4)*VLOOKUP($B$8,'Income unirrigated'!$C$49:$G$57,5) -> 77.4 | O49: =VLOOKUP($B$8,'Income unirrigated'!$C$49:$G$57,4)*VLOOKUP($B$8,'Income unirrigated'!$C$49:$G$57,5) -> 77.4 | P49: =VLOOKUP($B$8,'Income unirrigated'!$C$49:$G$57,4)*VLOOKUP($B$8,'Income unirrigated'!$C$49:$G$57,5) -> 77.4 | Q49: =VLOOKUP($B$8,'Income unirrigated'!$C$49:$G$57,4)*VLOOKUP($B$8,'Income unirrigated'!$C$49:$G$57,5) -> 77.4 | R49: =VLOOKUP($B$8,'Income unirrigated'!$C$49:$G$57,4)*VLOOKUP($B$8,'Income unirrigated'!$C$49:$G$57,5) -> 77.4 | S49: =VLOOKUP($B$8,'Income unirrigated'!$C$49:$G$57,4)*VLOOKUP($B$8,'Income unirrigated'!$C$49:$G$57,5) -> 77.4 | T49: =VLOOKUP($B$8,'Income unirrigated'!$C$49:$G$57,4)*VLOOKUP($B$8,'Income unirrigated'!$C$49:$G$57,5) -> 77.4 | U49: =VLOOKUP($B$8,'Income unirrigated'!$C$49:$G$57,4)*VLOOKUP($B$8,'Income unirrigated'!$C$49:$G$57,5) -> 77.4 | V49: =VLOOKUP($B$8,'Income unirrigated'!$C$49:$G$57,4)*VLOOKUP($B$8,'Income unirrigated'!$C$49:$G$57,5) -> 77.4 | W49: =VLOOKUP($B$8,'Income unirrigated'!$C$49:$G$57,4)*VLOOKUP($B$8,'Income unirrigated'!$C$49:$G$57,5) -> 77.4 | X49: =VLOOKUP($B$8,'Income unirrigated'!$C$49:$G$57,4)*VLOOKUP($B$8,'Income unirrigated'!$C$49:$G$57,5) -> 77.4 | Y49: =VLOOKUP($B$8,'Income unirrigated'!$C$49:$G$57,4)*VLOOKUP($B$8,'Income unirrigated'!$C$49:$G$57,5) -> 77.4 | Z49: =VLOOKUP($B$8,'Income unirrigated'!$C$49:$G$57,4)*VLOOKUP($B$8,'Income unirrigated'!$C$49:$G$57,5) -> 77.4 | AA49: =VLOOKUP($B$8,'Income unirrigated'!$C$49:$G$57,4)*VLOOKUP($B$8,'Income unirrigated'!$C$49:$G$57,5) -> 77.4 | AB49: =VLOOKUP($B$8,'Income unirrigated'!$C$49:$G$57,4)*VLOOKUP($B$8,'Income unirrigated'!$C$49:$G$57,5) -> 77.4 | AC49: =VLOOKUP($B$8,'Income unirrigated'!$C$49:$G$57,4)*VLOOKUP($B$8,'Income unirrigated'!$C$49:$G$57,5) -> 77.4 | AD49: =VLOOKUP($B$8,'Income unirrigated'!$C$49:$G$57,4)*VLOOKUP($B$8,'Income unirrigated'!$C$49:$G$57,5) -> 77.4 | AE49: =VLOOKUP($B$8,'Income unirrigated'!$C$49:$G$57,4)*VLOOKUP($B$8,'Income unirrigated'!$C$49:$G$57,5) -> 77.4 | AF49: =VLOOKUP($B$8,'Income unirrigated'!$C$49:$G$57,4)*VLOOKUP($B$8,'Income unirrigated'!$C$49:$G$57,5) -> 77.4 | AG49: =VLOOKUP($B$8,'Income unirrigated'!$C$49:$G$57,4)*VLOOKUP($B$8,'Income unirrigated'!$C$49:$G$57,5) -> 77.4
A52: Farmers' Share of Rehabilitation Costs | B52: =+'Common Assumptions'!$A$94 -> 0 | C52: =+'Common Assumptions'!$A$94 -> 0
A53: Change in Net Income per hectare | B53: =+B26-B35-B43-B52 -> 0 | C53: 0 | D53: 11538.76661 | E53: 16038.76661 | F53: 16038.76661 | G53: 19885.02214 | H53: 25231.27768 | I53: 30577.53321 | J53: 34641.70357 | K53: 25641.70357 | L53: 35641.70357 | M53: 35641.70357 | N53: 35641.70357 | O53: 35641.70357 | P53: 35641.70357 | Q53: 35641.70357 | R53: 22107.02823 | S53: 12107.02823 | T53: 22107.02823 | U53: 22107.02823 | V53: 22107.02823 | W53: 22107.02823 | X53: 22107.02823 | Y53: 22107.02823 | Z53: 22107.02823 | AA53: 12107.02823 | AB53: 22107.02823 | AC53: 22107.02823 | AD53: 22107.02823 | AE53: 22107.02823 | AF53: 22107.02823 | AG53: 22107.02823
A54: Less tax increase (no effect found in data)
A55: Less change in rent | D55: =+D69 -> 15.48 | E55: =+E69 -> 15.48 | F55: 15.48 | G55: 15.48 | H55: 15.48 | I55: 15.48 | J55: 15.48 | K55: 15.48 | L55: 15.48 | M55: 15.48 | N55: 15.48 | O55: 15.48 | P55: 15.48 | Q55: 15.48 | R55: 15.48 | S55: 15.48 | T55: 15.48 | U55: 15.48 | V55: 15.48 | W55: 15.48 | X55: 15.48 | Y55: 15.48 | Z55: 15.48 | AA55: 15.48 | AB55: 15.48 | AC55: 15.48 | AD55: 15.48 | AE55: 15.48 | AF55: 15.48 | AG55: 15.48
A56: Farmers' Cash Flow | B56: =+B53-B52-B54-B55 -> 0 | C56: =+C53-C52-C54-C55 -> 0 | D56: 11523.28661 | E56: 16023.28661 | F56: 16023.28661 | G56: 19869.54214 | H56: 25215.79768 | I56: 30562.05321 | J56: 34626.22357 | K56: 25626.22357 | L56: 35626.22357 | M56: 35626.22357 | N56: 35626.22357 | O56: 35626.22357 | P56: 35626.22357 | Q56: 35626.22357 | R56: 22091.54823 | S56: 12091.54823 | T56: 22091.54823 | U56: 22091.54823 | V56: 22091.54823 | W56: 22091.54823 | X56: 22091.54823 | Y56: 22091.54823 | Z56: 22091.54823 | AA56: 12091.54823 | AB56: 22091.54823 | AC56: 22091.54823 | AD56: 22091.54823 | AE56: 22091.54823 | AF56: 22091.54823 | AG56: 22091.54823
A57: FIRR, Farmers
A59: FOR ERP Adjustments
A60: Change in HVA income per hectare | D60: =+D22+D24-VLOOKUP($B$8,'Income unirrigated'!$C$20:$J$28, 3,FALSE)*D41 -> 15825.32004 | E60: =+E22+E24-VLOOKUP($B$8,'Income unirrigated'!$C$20:$J$28, 3,FALSE)*E41 -> 15825.32004 | F60: =+F22+F24-VLOOKUP($B$8,'Income unirrigated'!$C$20:$J$28, 3,FALSE)*F41 -> 15825.32004 | G60: =+G22+G24-VLOOKUP($B$8,'Income unirrigated'!$C$20:$J$28, 3,FALSE)*G41 -> 21100.42671 | H60: =+H22+H24-VLOOKUP($B$8,'Income unirrigated'!$C$20:$J$28, 3,FALSE)*H41 -> 26375.53339 | I60: =+I22+I24-VLOOKUP($B$8,'Income unirrigated'!$C$20:$J$28, 3,FALSE)*I41 -> 31650.64007 | J60: =+J22+J24-VLOOKUP($B$8,'Income unirrigated'!$C$20:$J$28, 3,FALSE)*J41 -> 35167.37786 | K60: =+K22+K24-VLOOKUP($B$8,'Income unirrigated'!$C$20:$J$28, 3,FALSE)*K41 -> 35167.37786 | L60: =+L22+L24-VLOOKUP($B$8,'Income unirrigated'!$C$20:$J$28, 3,FALSE)*L41 -> 35167.37786 | M60: =+M22+M24-VLOOKUP($B$8,'Income unirrigated'!$C$20:$J$28, 3,FALSE)*M41 -> 35167.37786 | N60: =+N22+N24-VLOOKUP($B$8,'Income unirrigated'!$C$20:$J$28, 3,FALSE)*N41 -> 35167.37786 | O60: =+O22+O24-VLOOKUP($B$8,'Income unirrigated'!$C$20:$J$28, 3,FALSE)*O41 -> 35167.37786 | P60: =+P22+P24-VLOOKUP($B$8,'Income unirrigated'!$C$20:$J$28, 3,FALSE)*P41 -> 35167.37786 | Q60: =+Q22+Q24-VLOOKUP($B$8,'Income unirrigated'!$C$20:$J$28, 3,FALSE)*Q41 -> 35167.37786 | R60: =+R22+R24-VLOOKUP($B$8,'Income unirrigated'!$C$20:$J$28, 3,FALSE)*R41 -> 21807.45873 | S60: =+S22+S24-VLOOKUP($B$8,'Income unirrigated'!$C$20:$J$28, 3,FALSE)*S41 -> 21807.45873 | T60: =+T22+T24-VLOOKUP($B$8,'Income unirrigated'!$C$20:$J$28, 3,FALSE)*T41 -> 21807.45873 | U60: =+U22+U24-VLOOKUP($B$8,'Income unirrigated'!$C$20:$J$28, 3,FALSE)*U41 -> 21807.45873 | V60: =+V22+V24-VLOOKUP($B$8,'Income unirrigated'!$C$20:$J$28, 3,FALSE)*V41 -> 21807.45873 | W60: =+W22+W24-VLOOKUP($B$8,'Income unirrigated'!$C$20:$J$28, 3,FALSE)*W41 -> 21807.45873 | X60: =+X22+X24-VLOOKUP($B$8,'Income unirrigated'!$C$20:$J$28, 3,FALSE)*X41 -> 21807.45873 | Y60: =+Y22+Y24-VLOOKUP($B$8,'Income unirrigated'!$C$20:$J$28, 3,FALSE)*Y41 -> 21807.45873 | Z60: =+Z22+Z24-VLOOKUP($B$8,'Income unirrigated'!$C$20:$J$28, 3,FALSE)*Z41 -> 21807.45873 | AA60: =+AA22+AA24-VLOOKUP($B$8,'Income unirrigated'!$C$20:$J$28, 3,FALSE)*AA41 -> 21807.45873 | AB60: =+AB22+AB24-VLOOKUP($B$8,'Income unirrigated'!$C$20:$J$28, 3,FALSE)*AB41 -> 21807.45873 | AC60: =+AC22+AC24-VLOOKUP($B$8,'Income unirrigated'!$C$20:$J$28, 3,FALSE)*AC41 -> 21807.45873 | AD60: =+AD22+AD24-VLOOKUP($B$8,'Income unirrigated'!$C$20:$J$28, 3,FALSE)*AD41 -> 21807.45873 | AE60: =+AE22+AE24-VLOOKUP($B$8,'Income unirrigated'!$C$20:$J$28, 3,FALSE)*AE41 -> 21807.45873 | AF60: =+AF22+AF24-VLOOKUP($B$8,'Income unirrigated'!$C$20:$J$28, 3,FALSE)*AF41 -> 21807.45873 | AG60: =+AG22+AG24-VLOOKUP($B$8,'Income unirrigated'!$C$20:$J$28, 3,FALSE)*AG41 -> 21807.45873
A61: Change in grain and technical crops income per hectare | D61: =+D23+D25-VLOOKUP($B$8,'Income unirrigated'!$C$34:$J$42,3,FALSE)*D42 -> 213.4465714 | E61: =+E23+E25-+VLOOKUP($B$8,'Income unirrigated'!$C$34:$J$42,3,FALSE)*E42 -> 213.4465714 | F61: =+F23+F25-+VLOOKUP($B$8,'Income unirrigated'!$C$34:$J$42,3,FALSE)*F42 -> 213.4465714 | G61: =+G23+G25-+VLOOKUP($B$8,'Income unirrigated'!$C$34:$J$42,3,FALSE)*G42 -> 284.5954286 | H61: =+H23+H25-+VLOOKUP($B$8,'Income unirrigated'!$C$34:$J$42,3,FALSE)*H42 -> 355.7442857 | I61: =+I23+I25-+VLOOKUP($B$8,'Income unirrigated'!$C$34:$J$42,3,FALSE)*I42 -> 426.8931429 | J61: =+J23+J25-+VLOOKUP($B$8,'Income unirrigated'!$C$34:$J$42,3,FALSE)*J42 -> 474.3257143 | K61: =+K23+K25-+VLOOKUP($B$8,'Income unirrigated'!$C$34:$J$42,3,FALSE)*K42 -> 474.3257143 | L61: =+L23+L25-+VLOOKUP($B$8,'Income unirrigated'!$C$34:$J$42,3,FALSE)*L42 -> 474.3257143 | M61: =+M23+M25-+VLOOKUP($B$8,'Income unirrigated'!$C$34:$J$42,3,FALSE)*M42 -> 474.3257143 | N61: =+N23+N25-+VLOOKUP($B$8,'Income unirrigated'!$C$34:$J$42,3,FALSE)*N42 -> 474.3257143 | O61: =+O23+O25-+VLOOKUP($B$8,'Income unirrigated'!$C$34:$J$42,3,FALSE)*O42 -> 474.3257143 | P61: =+P23+P25-+VLOOKUP($B$8,'Income unirrigated'!$C$34:$J$42,3,FALSE)*P42 -> 474.3257143 | Q61: =+Q23+Q25-+VLOOKUP($B$8,'Income unirrigated'!$C$34:$J$42,3,FALSE)*Q42 -> 474.3257143 | R61: =+R23+R25-+VLOOKUP($B$8,'Income unirrigated'!$C$34:$J$42,3,FALSE)*R42 -> 299.5695 | S61: =+S23+S25-+VLOOKUP($B$8,'Income unirrigated'!$C$34:$J$42,3,FALSE)*S42 -> 299.5695 | T61: =+T23+T25-+VLOOKUP($B$8,'Income unirrigated'!$C$34:$J$42,3,FALSE)*T42 -> 299.5695 | U61: =+U23+U25-+VLOOKUP($B$8,'Income unirrigated'!$C$34:$J$42,3,FALSE)*U42 -> 299.5695 | V61: =+V23+V25-+VLOOKUP($B$8,'Income unirrigated'!$C$34:$J$42,3,FALSE)*V42 -> 299.5695 | W61: =+W23+W25-+VLOOKUP($B$8,'Income unirrigated'!$C$34:$J$42,3,FALSE)*W42 -> 299.5695 | X61: =+X23+X25-+VLOOKUP($B$8,'Income unirrigated'!$C$34:$J$42,3,FALSE)*X42 -> 299.5695 | Y61: =+Y23+Y25-+VLOOKUP($B$8,'Income unirrigated'!$C$34:$J$42,3,FALSE)*Y42 -> 299.5695 | Z61: =+Z23+Z25-+VLOOKUP($B$8,'Income unirrigated'!$C$34:$J$42,3,FALSE)*Z42 -> 299.5695 | AA61: =+AA23+AA25-+VLOOKUP($B$8,'Income unirrigated'!$C$34:$J$42,3,FALSE)*AA42 -> 299.5695 | AB61: =+AB23+AB25-+VLOOKUP($B$8,'Income unirrigated'!$C$34:$J$42,3,FALSE)*AB42 -> 299.5695 | AC61: =+AC23+AC25-+VLOOKUP($B$8,'Income unirrigated'!$C$34:$J$42,3,FALSE)*AC42 -> 299.5695 | AD61: =+AD23+AD25-+VLOOKUP($B$8,'Income unirrigated'!$C$34:$J$42,3,FALSE)*AD42 -> 299.5695 | AE61: =+AE23+AE25-+VLOOKUP($B$8,'Income unirrigated'!$C$34:$J$42,3,FALSE)*AE42 -> 299.5695 | AF61: =+AF23+AF25-+VLOOKUP($B$8,'Income unirrigated'!$C$34:$J$42,3,FALSE)*AF42 -> 299.5695 | AG61: =+AG23+AG25-+VLOOKUP($B$8,'Income unirrigated'!$C$34:$J$42,3,FALSE)*AG42 -> 299.5695
A62: Correction to change in HVA income per hectare | D62: =-D60*'Common Assumptions'!$E$40 -> -316.5064007 | E62: =-E60*'Common Assumptions'!$E$40 -> -316.5064007 | F62: =-F60*'Common Assumptions'!$E$40 -> -316.5064007 | G62: =-G60*'Common Assumptions'!$E$40 -> -422.0085343 | H62: =-H60*'Common Assumptions'!$E$40 -> -527.5106679 | I62: =-I60*'Common Assumptions'!$E$40 -> -633.0128014 | J62: =-J60*'Common Assumptions'!$E$40 -> -703.3475571 | K62: =-K60*'Common Assumptions'!$E$40 -> -703.3475571 | L62: =-L60*'Common Assumptions'!$E$40 -> -703.3475571 | M62: =-M60*'Common Assumptions'!$E$40 -> -703.3475571 | N62: =-N60*'Common Assumptions'!$E$40 -> -703.3475571 | O62: =-O60*'Common Assumptions'!$E$40 -> -703.3475571 | P62: =-P60*'Common Assumptions'!$E$40 -> -703.3475571 | Q62: =-Q60*'Common Assumptions'!$E$40 -> -703.3475571 | R62: =-R60*'Common Assumptions'!$E$40 -> -436.1491746 | S62: =-S60*'Common Assumptions'!$E$40 -> -436.1491746 | T62: =-T60*'Common Assumptions'!$E$40 -> -436.1491746 | U62: =-U60*'Common Assumptions'!$E$40 -> -436.1491746 | V62: =-V60*'Common Assumptions'!$E$40 -> -436.1491746 | W62: =-W60*'Common Assumptions'!$E$40 -> -436.1491746 | X62: =-X60*'Common Assumptions'!$E$40 -> -436.1491746 | Y62: =-Y60*'Common Assumptions'!$E$40 -> -436.1491746 | Z62: =-Z60*'Common Assumptions'!$E$40 -> -436.1491746 | AA62: =-AA60*'Common Assumptions'!$E$40 -> -436.1491746 | AB62: =-AB60*'Common Assumptions'!$E$40 -> -436.1491746 | AC62: =-AC60*'Common Assumptions'!$E$40 -> -436.1491746 | AD62: =-AD60*'Common Assumptions'!$E$40 -> -436.1491746 | AE62: =-AE60*'Common Assumptions'!$E$40 -> -436.1491746 | AF62: =-AF60*'Common Assumptions'!$E$40 -> -436.1491746 | AG62: =-AG60*'Common Assumptions'!$E$40 -> -436.1491746
A63: Correction to change in grain and technical crops income per ha. | D63: =-D61*'Common Assumptions'!$E$39 -> 21.34465714 | E63: =-E61*'Common Assumptions'!$E$39 -> 21.34465714 | F63: =-F61*'Common Assumptions'!$E$39 -> 21.34465714 | G63: =-G61*'Common Assumptions'!$E$39 -> 28.45954286 | H63: =-H61*'Common Assumptions'!$E$39 -> 35.57442857 | I63: =-I61*'Common Assumptions'!$E$39 -> 42.68931429 | J63: =-J61*'Common Assumptions'!$E$39 -> 47.43257143 | K63: =-K61*'Common Assumptions'!$E$39 -> 47.43257143 | L63: =-L61*'Common Assumptions'!$E$39 -> 47.43257143 | M63: =-M61*'Common Assumptions'!$E$39 -> 47.43257143 | N63: =-N61*'Common Assumptions'!$E$39 -> 47.43257143 | O63: =-O61*'Common Assumptions'!$E$39 -> 47.43257143 | P63: =-P61*'Common Assumptions'!$E$39 -> 47.43257143 | Q63: =-Q61*'Common Assumptions'!$E$39 -> 47.43257143 | R63: =-R61*'Common Assumptions'!$E$39 -> 29.95695 | S63: =-S61*'Common Assumptions'!$E$39 -> 29.95695 | T63: =-T61*'Common Assumptions'!$E$39 -> 29.95695 | U63: =-U61*'Common Assumptions'!$E$39 -> 29.95695 | V63: =-V61*'Common Assumptions'!$E$39 -> 29.95695 | W63: =-W61*'Common Assumptions'!$E$39 -> 29.95695 | X63: =-X61*'Common Assumptions'!$E$39 -> 29.95695 | Y63: =-Y61*'Common Assumptions'!$E$39 -> 29.95695 | Z63: =-Z61*'Common Assumptions'!$E$39 -> 29.95695 | AA63: =-AA61*'Common Assumptions'!$E$39 -> 29.95695 | AB63: =-AB61*'Common Assumptions'!$E$39 -> 29.95695 | AC63: =-AC61*'Common Assumptions'!$E$39 -> 29.95695 | AD63: =-AD61*'Common Assumptions'!$E$39 -> 29.95695 | AE63: =-AE61*'Common Assumptions'!$E$39 -> 29.95695 | AF63: =-AF61*'Common Assumptions'!$E$39 -> 29.95695 | AG63: =-AG61*'Common Assumptions'!$E$39 -> 29.95695
A64: Combined correction for market distortions | D64: =+D63+D62 -> -295.1617436 | E64: =+E63+E62 -> -295.1617436 | F64: -295.1617436 | G64: -393.5489914 | H64: -491.9362393 | I64: -590.3234871 | J64: -655.9149857 | K64: -655.9149857 | L64: -655.9149857 | M64: -655.9149857 | N64: -655.9149857 | O64: -655.9149857 | P64: -655.9149857 | Q64: -655.9149857 | R64: -406.1922246 | S64: -406.1922246 | T64: -406.1922246 | U64: -406.1922246 | V64: -406.1922246 | W64: -406.1922246 | X64: -406.1922246 | Y64: -406.1922246 | Z64: -406.1922246 | AA64: -406.1922246 | AB64: -406.1922246 | AC64: -406.1922246 | AD64: -406.1922246 | AE64: -406.1922246 | AF64: -406.1922246 | AG64: -406.1922246
A65: Net Value of increased employment per hectare | D65: =+(D29-D45)*(1-'Common Assumptions'!$D$25) -> 720.0945 | E65: =+(E29-E45)*(1-'Common Assumptions'!$D$25) -> 720.0945 | F65: =+(F29-F45)*(1-'Common Assumptions'!$D$25) -> 720.0945 | G65: =+(G29-G45)*(1-'Common Assumptions'!$D$25) -> 960.126 | H65: =+(H29-H45)*(1-'Common Assumptions'!$D$25) -> 1200.1575 | I65: =+(I29-I45)*(1-'Common Assumptions'!$D$25) -> 1440.189 | J65: =+(J29-J45)*(1-'Common Assumptions'!$D$25) -> 1600.21 | K65: =+(K29-K45)*(1-'Common Assumptions'!$D$25) -> 1600.21 | L65: =+(L29-L45)*(1-'Common Assumptions'!$D$25) -> 1600.21 | M65: =+(M29-M45)*(1-'Common Assumptions'!$D$25) -> 1600.21 | N65: =+(N29-N45)*(1-'Common Assumptions'!$D$25) -> 1600.21 | O65: =+(O29-O45)*(1-'Common Assumptions'!$D$25) -> 1600.21 | P65: =+(P29-P45)*(1-'Common Assumptions'!$D$25) -> 1600.21 | Q65: =+(Q29-Q45)*(1-'Common Assumptions'!$D$25) -> 1600.21 | R65: =+(R29-R45)*(1-'Common Assumptions'!$D$25) -> 1120.147 | S65: =+(S29-S45)*(1-'Common Assumptions'!$D$25) -> 1120.147 | T65: =+(T29-T45)*(1-'Common Assumptions'!$D$25) -> 1120.147 | U65: =+(U29-U45)*(1-'Common Assumptions'!$D$25) -> 1120.147 | V65: =+(V29-V45)*(1-'Common Assumptions'!$D$25) -> 1120.147 | W65: =+(W29-W45)*(1-'Common Assumptions'!$D$25) -> 1120.147 | X65: =+(X29-X45)*(1-'Common Assumptions'!$D$25) -> 1120.147 | Y65: =+(Y29-Y45)*(1-'Common Assumptions'!$D$25) -> 1120.147 | Z65: =+(Z29-Z45)*(1-'Common Assumptions'!$D$25) -> 1120.147 | AA65: =+(AA29-AA45)*(1-'Common Assumptions'!$D$25) -> 1120.147 | AB65: =+(AB29-AB45)*(1-'Common Assumptions'!$D$25) -> 1120.147 | AC65: =+(AC29-AC45)*(1-'Common Assumptions'!$D$25) -> 1120.147 | AD65: =+(AD29-AD45)*(1-'Common Assumptions'!$D$25) -> 1120.147 | AE65: =+(AE29-AE45)*(1-'Common Assumptions'!$D$25) -> 1120.147 | AF65: =+(AF29-AF45)*(1-'Common Assumptions'!$D$25) -> 1120.147 | AG65: =+(AG29-AG45)*(1-'Common Assumptions'!$D$25) -> 1120.147
A67: Fraction of land HVA with project | D67: =+D19+D16 -> 0.85 | E67: =+E19+E16 -> 0.85 | F67: 0.85 | G67: 0.85 | H67: 0.85 | I67: 0.85 | J67: 0.85 | K67: 0.85 | L67: 0.85 | M67: 0.85 | N67: 0.85 | O67: 0.85 | P67: 0.85 | Q67: 0.85 | R67: 0.85 | S67: 0.85 | T67: 0.85 | U67: 0.85 | V67: 0.85 | W67: 0.85 | X67: 0.85 | Y67: 0.85 | Z67: 0.85 | AA67: 0.85 | AB67: 0.85 | AC67: 0.85 | AD67: 0.85 | AE67: 0.85 | AF67: 0.85 | AG67: 0.85
A68: Fraction of land HVA without project | D68: =+D41 -> 0.85 | E68: =+E41 -> 0.85 | F68: 0.85 | G68: 0.85 | H68: 0.85 | I68: 0.85 | J68: 0.85 | K68: 0.85 | L68: 0.85 | M68: 0.85 | N68: 0.85 | O68: 0.85 | P68: 0.85 | Q68: 0.85 | R68: 0.85 | S68: 0.85 | T68: 0.85 | U68: 0.85 | V68: 0.85 | W68: 0.85 | X68: 0.85 | Y68: 0.85 | Z68: 0.85 | AA68: 0.85 | AB68: 0.85 | AC68: 0.85 | AD68: 0.85 | AE68: 0.85 | AF68: 0.85 | AG68: 0.85
A69: Change in rental income per hectare | D69: =+D33-D49 -> 15.48 | E69: =+E33-E49 -> 15.48 | F69: 15.48 | G69: 15.48 | H69: 15.48 | I69: 15.48 | J69: 15.48 | K69: 15.48 | L69: 15.48 | M69: 15.48 | N69: 15.48 | O69: 15.48 | P69: 15.48 | Q69: 15.48 | R69: 15.48 | S69: 15.48 | T69: 15.48 | U69: 15.48 | V69: 15.48 | W69: 15.48 | X69: 15.48 | Y69: 15.48 | Z69: 15.48 | AA69: 15.48 | AB69: 15.48 | AC69: 15.48 | AD69: 15.48 | AE69: 15.48 | AF69: 15.48 | AG69: 15.48
A72: Irrigation Service with Credit Program
A74: Fraction of land irrigated | D74: =MIN(1,MAX(D99,VLOOKUP($B$8,'Area Irrigated '!$C$5:$J$13,3+HLOOKUP(D$14,'Common Assumptions'!$D$50:$AG$52,3,FALSE),FALSE)*MIN(D14/'Common Assumptions'!$E$69,1))) -> 0.15 | E74: =MIN(1,MAX(E99,VLOOKUP($B$8,'Area Irrigated '!$C$5:$J$13,3+HLOOKUP(E$14,'Common Assumptions'!$D$50:$AG$52,3,FALSE),FALSE)*MIN(E14/'Common Assumptions'!$E$69,1))) -> 0.3 | F74: =MIN(1,MAX(F99,VLOOKUP($B$8,'Area Irrigated '!$C$5:$J$13,3+HLOOKUP(F$14,'Common Assumptions'!$D$50:$AG$52,3,FALSE),FALSE)*MIN(F14/'Common Assumptions'!$E$69,1))) -> 0.45 | G74: =MIN(1,MAX(G99,VLOOKUP($B$8,'Area Irrigated '!$C$5:$J$13,3+HLOOKUP(G$14,'Common Assumptions'!$D$50:$AG$52,3,FALSE),FALSE)*MIN(G14/'Common Assumptions'!$E$69,1))) -> 0.6 | H74: =MIN(1,MAX(H99,VLOOKUP($B$8,'Area Irrigated '!$C$5:$J$13,3+HLOOKUP(H$14,'Common Assumptions'!$D$50:$AG$52,3,FALSE),FALSE)*MIN(H14/'Common Assumptions'!$E$69,1))) -> 0.75 | I74: =MIN(1,MAX(I99,VLOOKUP($B$8,'Area Irrigated '!$C$5:$J$13,3+HLOOKUP(I$14,'Common Assumptions'!$D$50:$AG$52,3,FALSE),FALSE)*MIN(I14/'Common Assumptions'!$E$69,1))) -> 0.9 | J74: =MIN(1,MAX(J99,VLOOKUP($B$8,'Area Irrigated '!$C$5:$J$13,3+HLOOKUP(J$14,'Common Assumptions'!$D$50:$AG$52,3,FALSE),FALSE)*MIN(J14/'Common Assumptions'!$E$69,1))) -> 1 | K74: =MIN(1,MAX(K99,VLOOKUP($B$8,'Area Irrigated '!$C$5:$J$13,3+HLOOKUP(K$14,'Common Assumptions'!$D$50:$AG$52,3,FALSE),FALSE)*MIN(K14/'Common Assumptions'!$E$69,1))) -> 1 | L74: =MIN(1,MAX(L99,VLOOKUP($B$8,'Area Irrigated '!$C$5:$J$13,3+HLOOKUP(L$14,'Common Assumptions'!$D$50:$AG$52,3,FALSE),FALSE)*MIN(L14/'Common Assumptions'!$E$69,1))) -> 1 | M74: =MIN(1,MAX(M99,VLOOKUP($B$8,'Area Irrigated '!$C$5:$J$13,3+HLOOKUP(M$14,'Common Assumptions'!$D$50:$AG$52,3,FALSE),FALSE)*MIN(M14/'Common Assumptions'!$E$69,1))) -> 1 | N74: =MIN(1,MAX(N99,VLOOKUP($B$8,'Area Irrigated '!$C$5:$J$13,3+HLOOKUP(N$14,'Common Assumptions'!$D$50:$AG$52,3,FALSE),FALSE)*MIN(N14/'Common Assumptions'!$E$69,1))) -> 1 | O74: =MIN(1,MAX(O99,VLOOKUP($B$8,'Area Irrigated '!$C$5:$J$13,3+HLOOKUP(O$14,'Common Assumptions'!$D$50:$AG$52,3,FALSE),FALSE)*MIN(O14/'Common Assumptions'!$E$69,1))) -> 1 | P74: =MIN(1,MAX(P99,VLOOKUP($B$8,'Area Irrigated '!$C$5:$J$13,3+HLOOKUP(P$14,'Common Assumptions'!$D$50:$AG$52,3,FALSE),FALSE)*MIN(P14/'Common Assumptions'!$E$69,1))) -> 1 | Q74: =MIN(1,MAX(Q99,VLOOKUP($B$8,'Area Irrigated '!$C$5:$J$13,3+HLOOKUP(Q$14,'Common Assumptions'!$D$50:$AG$52,3,FALSE),FALSE)*MIN(Q14/'Common Assumptions'!$E$69,1))) -> 1 | R74: =MIN(1,MAX(R99,VLOOKUP($B$8,'Area Irrigated '!$C$5:$J$13,3+HLOOKUP(R$14,'Common Assumptions'!$D$50:$AG$52,3,FALSE),FALSE)*MIN(R14/'Common Assumptions'!$E$69,1))) -> 0.7 | S74: =MIN(1,MAX(S99,VLOOKUP($B$8,'Area Irrigated '!$C$5:$J$13,3+HLOOKUP(S$14,'Common Assumptions'!$D$50:$AG$52,3,FALSE),FALSE)*MIN(S14/'Common Assumptions'!$E$69,1))) -> 0.7 | T74: =MIN(1,MAX(T99,VLOOKUP($B$8,'Area Irrigated '!$C$5:$J$13,3+HLOOKUP(T$14,'Common Assumptions'!$D$50:$AG$52,3,FALSE),FALSE)*MIN(T14/'Common Assumptions'!$E$69,1))) -> 0.7 | U74: =MIN(1,MAX(U99,VLOOKUP($B$8,'Area Irrigated '!$C$5:$J$13,3+HLOOKUP(U$14,'Common Assumptions'!$D$50:$AG$52,3,FALSE),FALSE)*MIN(U14/'Common Assumptions'!$E$69,1))) -> 0.7 | V74: =MIN(1,MAX(V99,VLOOKUP($B$8,'Area Irrigated '!$C$5:$J$13,3+HLOOKUP(V$14,'Common Assumptions'!$D$50:$AG$52,3,FALSE),FALSE)*MIN(V14/'Common Assumptions'!$E$69,1))) -> 0.7 | W74: =MIN(1,MAX(W99,VLOOKUP($B$8,'Area Irrigated '!$C$5:$J$13,3+HLOOKUP(W$14,'Common Assumptions'!$D$50:$AG$52,3,FALSE),FALSE)*MIN(W14/'Common Assumptions'!$E$69,1))) -> 0.7 | X74: =MIN(1,MAX(X99,VLOOKUP($B$8,'Area Irrigated '!$C$5:$J$13,3+HLOOKUP(X$14,'Common Assumptions'!$D$50:$AG$52,3,FALSE),FALSE)*MIN(X14/'Common Assumptions'!$E$69,1))) -> 0.7 | Y74: =MIN(1,MAX(Y99,VLOOKUP($B$8,'Area Irrigated '!$C$5:$J$13,3+HLOOKUP(Y$14,'Common Assumptions'!$D$50:$AG$52,3,FALSE),FALSE)*MIN(Y14/'Common Assumptions'!$E$69,1))) -> 0.7 | Z74: =MIN(1,MAX(Z99,VLOOKUP($B$8,'Area Irrigated '!$C$5:$J$13,3+HLOOKUP(Z$14,'Common Assumptions'!$D$50:$AG$52,3,FALSE),FALSE)*MIN(Z14/'Common Assumptions'!$E$69,1))) -> 0.7 | AA74: =MIN(1,MAX(AA99,VLOOKUP($B$8,'Area Irrigated '!$C$5:$J$13,3+HLOOKUP(AA$14,'Common Assumptions'!$D$50:$AG$52,3,FALSE),FALSE)*MIN(AA14/'Common Assumptions'!$E$69,1))) -> 0.7 | AB74: =MIN(1,MAX(AB99,VLOOKUP($B$8,'Area Irrigated '!$C$5:$J$13,3+HLOOKUP(AB$14,'Common Assumptions'!$D$50:$AG$52,3,FALSE),FALSE)*MIN(AB14/'Common Assumptions'!$E$69,1))) -> 0.7 | AC74: =MIN(1,MAX(AC99,VLOOKUP($B$8,'Area Irrigated '!$C$5:$J$13,3+HLOOKUP(AC$14,'Common Assumptions'!$D$50:$AG$52,3,FALSE),FALSE)*MIN(AC14/'Common Assumptions'!$E$69,1))) -> 0.7 | AD74: =MIN(1,MAX(AD99,VLOOKUP($B$8,'Area Irrigated '!$C$5:$J$13,3+HLOOKUP(AD$14,'Common Assumptions'!$D$50:$AG$52,3,FALSE),FALSE)*MIN(AD14/'Common Assumptions'!$E$69,1))) -> 0.7 | AE74: =MIN(1,MAX(AE99,VLOOKUP($B$8,'Area Irrigated '!$C$5:$J$13,3+HLOOKUP(AE$14,'Common Assumptions'!$D$50:$AG$52,3,FALSE),FALSE)*MIN(AE14/'Common Assumptions'!$E$69,1))) -> 0.7 | AF74: =MIN(1,MAX(AF99,VLOOKUP($B$8,'Area Irrigated '!$C$5:$J$13,3+HLOOKUP(AF$14,'Common Assumptions'!$D$50:$AG$52,3,FALSE),FALSE)*MIN(AF14/'Common Assumptions'!$E$69,1))) -> 0.7 | AG74: =MIN(1,MAX(AG99,VLOOKUP($B$8,'Area Irrigated '!$C$5:$J$13,3+HLOOKUP(AG$14,'Common Assumptions'!$D$50:$AG$52,3,FALSE),FALSE)*MIN(AG14/'Common Assumptions'!$E$69,1))) -> 0.7
A75: Fraction of land Irrigated HVA | D75: =VLOOKUP($B$8,'Income irrigated'!$C$95:$J$103,3+HLOOKUP(D$14,'Common Assumptions'!$D$50:$AG$52,3,FALSE),FALSE)*D74 -> 0.1575 | E75: =VLOOKUP($B$8,'Income irrigated'!$C$95:$J$103,3+HLOOKUP(E$14,'Common Assumptions'!$D$50:$AG$52,3,FALSE),FALSE)*E74 -> 0.315 | F75: =VLOOKUP($B$8,'Income irrigated'!$C$95:$J$103,3+HLOOKUP(F$14,'Common Assumptions'!$D$50:$AG$52,3,FALSE),FALSE)*F74 -> 0.4725 | G75: =VLOOKUP($B$8,'Income irrigated'!$C$95:$J$103,3+HLOOKUP(G$14,'Common Assumptions'!$D$50:$AG$52,3,FALSE),FALSE)*G74 -> 0.63 | H75: =VLOOKUP($B$8,'Income irrigated'!$C$95:$J$103,3+HLOOKUP(H$14,'Common Assumptions'!$D$50:$AG$52,3,FALSE),FALSE)*H74 -> 0.7875 | I75: =VLOOKUP($B$8,'Income irrigated'!$C$95:$J$103,3+HLOOKUP(I$14,'Common Assumptions'!$D$50:$AG$52,3,FALSE),FALSE)*I74 -> 0.945 | J75: =VLOOKUP($B$8,'Income irrigated'!$C$95:$J$103,3+HLOOKUP(J$14,'Common Assumptions'!$D$50:$AG$52,3,FALSE),FALSE)*J74 -> 1.05 | K75: =VLOOKUP($B$8,'Income irrigated'!$C$95:$J$103,3+HLOOKUP(K$14,'Common Assumptions'!$D$50:$AG$52,3,FALSE),FALSE)*K74 -> 1.05 | L75: =VLOOKUP($B$8,'Income irrigated'!$C$95:$J$103,3+HLOOKUP(L$14,'Common Assumptions'!$D$50:$AG$52,3,FALSE),FALSE)*L74 -> 1.05 | M75: =VLOOKUP($B$8,'Income irrigated'!$C$95:$J$103,3+HLOOKUP(M$14,'Common Assumptions'!$D$50:$AG$52,3,FALSE),FALSE)*M74 -> 1.05 | N75: =VLOOKUP($B$8,'Income irrigated'!$C$95:$J$103,3+HLOOKUP(N$14,'Common Assumptions'!$D$50:$AG$52,3,FALSE),FALSE)*N74 -> 1.05 | O75: =VLOOKUP($B$8,'Income irrigated'!$C$95:$J$103,3+HLOOKUP(O$14,'Common Assumptions'!$D$50:$AG$52,3,FALSE),FALSE)*O74 -> 1.05 | P75: =VLOOKUP($B$8,'Income irrigated'!$C$95:$J$103,3+HLOOKUP(P$14,'Common Assumptions'!$D$50:$AG$52,3,FALSE),FALSE)*P74 -> 1.05 | Q75: =VLOOKUP($B$8,'Income irrigated'!$C$95:$J$103,3+HLOOKUP(Q$14,'Common Assumptions'!$D$50:$AG$52,3,FALSE),FALSE)*Q74 -> 1.05 | R75: =VLOOKUP($B$8,'Income irrigated'!$C$95:$J$103,3+HLOOKUP(R$14,'Common Assumptions'!$D$50:$AG$52,3,FALSE),FALSE)*R74 -> 0.735 | S75: =VLOOKUP($B$8,'Income irrigated'!$C$95:$J$103,3+HLOOKUP(S$14,'Common Assumptions'!$D$50:$AG$52,3,FALSE),FALSE)*S74 -> 0.735 | T75: =VLOOKUP($B$8,'Income irrigated'!$C$95:$J$103,3+HLOOKUP(T$14,'Common Assumptions'!$D$50:$AG$52,3,FALSE),FALSE)*T74 -> 0.735 | U75: =VLOOKUP($B$8,'Income irrigated'!$C$95:$J$103,3+HLOOKUP(U$14,'Common Assumptions'!$D$50:$AG$52,3,FALSE),FALSE)*U74 -> 0.735 | V75: =VLOOKUP($B$8,'Income irrigated'!$C$95:$J$103,3+HLOOKUP(V$14,'Common Assumptions'!$D$50:$AG$52,3,FALSE),FALSE)*V74 -> 0.735 | W75: =VLOOKUP($B$8,'Income irrigated'!$C$95:$J$103,3+HLOOKUP(W$14,'Common Assumptions'!$D$50:$AG$52,3,FALSE),FALSE)*W74 -> 0.735 | X75: =VLOOKUP($B$8,'Income irrigated'!$C$95:$J$103,3+HLOOKUP(X$14,'Common Assumptions'!$D$50:$AG$52,3,FALSE),FALSE)*X74 -> 0.735 | Y75: =VLOOKUP($B$8,'Income irrigated'!$C$95:$J$103,3+HLOOKUP(Y$14,'Common Assumptions'!$D$50:$AG$52,3,FALSE),FALSE)*Y74 -> 0.735 | Z75: =VLOOKUP($B$8,'Income irrigated'!$C$95:$J$103,3+HLOOKUP(Z$14,'Common Assumptions'!$D$50:$AG$52,3,FALSE),FALSE)*Z74 -> 0.735 | AA75: =VLOOKUP($B$8,'Income irrigated'!$C$95:$J$103,3+HLOOKUP(AA$14,'Common Assumptions'!$D$50:$AG$52,3,FALSE),FALSE)*AA74 -> 0.735 | AB75: =VLOOKUP($B$8,'Income irrigated'!$C$95:$J$103,3+HLOOKUP(AB$14,'Common Assumptions'!$D$50:$AG$52,3,FALSE),FALSE)*AB74 -> 0.735 | AC75: =VLOOKUP($B$8,'Income irrigated'!$C$95:$J$103,3+HLOOKUP(AC$14,'Common Assumptions'!$D$50:$AG$52,3,FALSE),FALSE)*AC74 -> 0.735 | AD75: =VLOOKUP($B$8,'Income irrigated'!$C$95:$J$103,3+HLOOKUP(AD$14,'Common Assumptions'!$D$50:$AG$52,3,FALSE),FALSE)*AD74 -> 0.735 | AE75: =VLOOKUP($B$8,'Income irrigated'!$C$95:$J$103,3+HLOOKUP(AE$14,'Common Assumptions'!$D$50:$AG$52,3,FALSE),FALSE)*AE74 -> 0.735 | AF75: =VLOOKUP($B$8,'Income irrigated'!$C$95:$J$103,3+HLOOKUP(AF$14,'Common Assumptions'!$D$50:$AG$52,3,FALSE),FALSE)*AF74 -> 0.735 | AG75: =VLOOKUP($B$8,'Income irrigated'!$C$95:$J$103,3+HLOOKUP(AG$14,'Common Assumptions'!$D$50:$AG$52,3,FALSE),FALSE)*AG74 -> 0.735
A76: Fraction of land irrigated grains & technical crops | D76: =IF(D74=D75,0,(1-D75/D74)*D74) -> -0.0075 | E76: -0.015 | F76: -0.0225 | G76: -0.03 | H76: -0.0375 | I76: -0.045 | J76: -0.05 | K76: -0.05 | L76: -0.05 | M76: -0.05 | N76: -0.05 | O76: -0.05 | P76: -0.05 | Q76: -0.05 | R76: -0.035 | S76: -0.035 | T76: -0.035 | U76: -0.035 | V76: -0.035 | W76: -0.035 | X76: -0.035 | Y76: -0.035 | Z76: -0.035 | AA76: -0.035 | AB76: -0.035 | AC76: -0.035 | AD76: -0.035 | AE76: -0.035 | AF76: -0.035 | AG76: -0.035
A77: Fraction of land unirrigated | D77: =1-D74 -> 0.85 | E77: 0.7 | F77: 0.55 | G77: 0.4 | H77: 0.25 | I77: 0.1 | J77: 0 | K77: 0 | L77: 0 | M77: 0 | N77: 0 | O77: 0 | P77: 0 | Q77: 0 | R77: 0.3 | S77: 0.3 | T77: 0.3 | U77: 0.3 | V77: 0.3 | W77: 0.3 | X77: 0.3 | Y77: 0.3 | Z77: 0.3 | AA77: 0.3 | AB77: 0.3 | AC77: 0.3 | AD77: 0.3 | AE77: 0.3 | AF77: 0.3 | AG77: 0.3
A78: Fraction of land unirrigated HVA | D78: =VLOOKUP($B$8,'Income unirrigated'!$C$4:$J$12,3,FALSE)*D77 -> 0.7225 | E78: =VLOOKUP($B$8,'Income unirrigated'!$C$4:$J$12,3,FALSE)*E77 -> 0.595 | F78: =VLOOKUP($B$8,'Income unirrigated'!$C$4:$J$12,3,FALSE)*F77 -> 0.4675 | G78: =VLOOKUP($B$8,'Income unirrigated'!$C$4:$J$12,3,FALSE)*G77 -> 0.34 | H78: =VLOOKUP($B$8,'Income unirrigated'!$C$4:$J$12,3,FALSE)*H77 -> 0.2125 | I78: =VLOOKUP($B$8,'Income unirrigated'!$C$4:$J$12,3,FALSE)*I77 -> 0.085 | J78: =VLOOKUP($B$8,'Income unirrigated'!$C$4:$J$12,3,FALSE)*J77 -> 0 | K78: =VLOOKUP($B$8,'Income unirrigated'!$C$4:$J$12,3,FALSE)*K77 -> 0 | L78: =VLOOKUP($B$8,'Income unirrigated'!$C$4:$J$12,3,FALSE)*L77 -> 0 | M78: =VLOOKUP($B$8,'Income unirrigated'!$C$4:$J$12,3,FALSE)*M77 -> 0 | N78: =VLOOKUP($B$8,'Income unirrigated'!$C$4:$J$12,3,FALSE)*N77 -> 0 | O78: =VLOOKUP($B$8,'Income unirrigated'!$C$4:$J$12,3,FALSE)*O77 -> 0 | P78: =VLOOKUP($B$8,'Income unirrigated'!$C$4:$J$12,3,FALSE)*P77 -> 0 | Q78: =VLOOKUP($B$8,'Income unirrigated'!$C$4:$J$12,3,FALSE)*Q77 -> 0 | R78: =VLOOKUP($B$8,'Income unirrigated'!$C$4:$J$12,3,FALSE)*R77 -> 0.255 | S78: =VLOOKUP($B$8,'Income unirrigated'!$C$4:$J$12,3,FALSE)*S77 -> 0.255 | T78: =VLOOKUP($B$8,'Income unirrigated'!$C$4:$J$12,3,FALSE)*T77 -> 0.255 | U78: =VLOOKUP($B$8,'Income unirrigated'!$C$4:$J$12,3,FALSE)*U77 -> 0.255 | V78: =VLOOKUP($B$8,'Income unirrigated'!$C$4:$J$12,3,FALSE)*V77 -> 0.255 | W78: =VLOOKUP($B$8,'Income unirrigated'!$C$4:$J$12,3,FALSE)*W77 -> 0.255 | X78: =VLOOKUP($B$8,'Income unirrigated'!$C$4:$J$12,3,FALSE)*X77 -> 0.255 | Y78: =VLOOKUP($B$8,'Income unirrigated'!$C$4:$J$12,3,FALSE)*Y77 -> 0.255 | Z78: =VLOOKUP($B$8,'Income unirrigated'!$C$4:$J$12,3,FALSE)*Z77 -> 0.255 | AA78: =VLOOKUP($B$8,'Income unirrigated'!$C$4:$J$12,3,FALSE)*AA77 -> 0.255 | AB78: =VLOOKUP($B$8,'Income unirrigated'!$C$4:$J$12,3,FALSE)*AB77 -> 0.255 | AC78: =VLOOKUP($B$8,'Income unirrigated'!$C$4:$J$12,3,FALSE)*AC77 -> 0.255 | AD78: =VLOOKUP($B$8,'Income unirrigated'!$C$4:$J$12,3,FALSE)*AD77 -> 0.255 | AE78: =VLOOKUP($B$8,'Income unirrigated'!$C$4:$J$12,3,FALSE)*AE77 -> 0.255 | AF78: =VLOOKUP($B$8,'Income unirrigated'!$C$4:$J$12,3,FALSE)*AF77 -> 0.255 | AG78: =VLOOKUP($B$8,'Income unirrigated'!$C$4:$J$12,3,FALSE)*AG77 -> 0.255
A79: Fraction of land unirrigated non-HVA | D79: =MAX(0,IF(D77=D78,0,(1-D78/D77)*D77)) -> 0.1275 | E79: 0.105 | F79: 0.0825 | G79: 0.06 | H79: 0.0375 | I79: 0.015 | J79: 0 | K79: 0 | L79: 0 | M79: 0 | N79: 0 | O79: 0 | P79: 0 | Q79: 0 | R79: 0.045 | S79: 0.045 | T79: 0.045 | U79: 0.045 | V79: 0.045 | W79: 0.045 | X79: 0.045 | Y79: 0.045 | Z79: 0.045 | AA79: 0.045 | AB79: 0.045 | AC79: 0.045 | AD79: 0.045 | AE79: 0.045 | AF79: 0.045 | AG79: 0.045
A80: Farm Income per hectare:
A81: Irrigated HVA | D81: =VLOOKUP($B$8,'Income irrigated'!$C$19:$J$29,3+HLOOKUP(D$14,'Common Assumptions'!$D$50:$AG$52,3,FALSE),FALSE)*D75 -> 7437.45645 | E81: =VLOOKUP($B$8,'Income irrigated'!$C$19:$J$29,3+HLOOKUP(E$14,'Common Assumptions'!$D$50:$AG$52,3,FALSE),FALSE)*E75 -> 14874.9129 | F81: =VLOOKUP($B$8,'Income irrigated'!$C$19:$J$29,3+HLOOKUP(F$14,'Common Assumptions'!$D$50:$AG$52,3,FALSE),FALSE)*F75 -> 22312.36935 | G81: =VLOOKUP($B$8,'Income irrigated'!$C$19:$J$29,3+HLOOKUP(G$14,'Common Assumptions'!$D$50:$AG$52,3,FALSE),FALSE)*G75 -> 29749.8258 | H81: =VLOOKUP($B$8,'Income irrigated'!$C$19:$J$29,3+HLOOKUP(H$14,'Common Assumptions'!$D$50:$AG$52,3,FALSE),FALSE)*H75 -> 37187.28225 | I81: =VLOOKUP($B$8,'Income irrigated'!$C$19:$J$29,3+HLOOKUP(I$14,'Common Assumptions'!$D$50:$AG$52,3,FALSE),FALSE)*I75 -> 44624.7387 | J81: =VLOOKUP($B$8,'Income irrigated'!$C$19:$J$29,3+HLOOKUP(J$14,'Common Assumptions'!$D$50:$AG$52,3,FALSE),FALSE)*J75 -> 49583.043 | K81: =VLOOKUP($B$8,'Income irrigated'!$C$19:$J$29,3+HLOOKUP(K$14,'Common Assumptions'!$D$50:$AG$52,3,FALSE),FALSE)*K75 -> 49583.043 | L81: =VLOOKUP($B$8,'Income irrigated'!$C$19:$J$29,3+HLOOKUP(L$14,'Common Assumptions'!$D$50:$AG$52,3,FALSE),FALSE)*L75 -> 49583.043 | M81: =VLOOKUP($B$8,'Income irrigated'!$C$19:$J$29,3+HLOOKUP(M$14,'Common Assumptions'!$D$50:$AG$52,3,FALSE),FALSE)*M75 -> 49583.043 | N81: =VLOOKUP($B$8,'Income irrigated'!$C$19:$J$29,3+HLOOKUP(N$14,'Common Assumptions'!$D$50:$AG$52,3,FALSE),FALSE)*N75 -> 49583.043 | O81: =VLOOKUP($B$8,'Income irrigated'!$C$19:$J$29,3+HLOOKUP(O$14,'Common Assumptions'!$D$50:$AG$52,3,FALSE),FALSE)*O75 -> 49583.043 | P81: =VLOOKUP($B$8,'Income irrigated'!$C$19:$J$29,3+HLOOKUP(P$14,'Common Assumptions'!$D$50:$AG$52,3,FALSE),FALSE)*P75 -> 49583.043 | Q81: =VLOOKUP($B$8,'Income irrigated'!$C$19:$J$29,3+HLOOKUP(Q$14,'Common Assumptions'!$D$50:$AG$52,3,FALSE),FALSE)*Q75 -> 49583.043 | R81: =VLOOKUP($B$8,'Income irrigated'!$C$19:$J$29,3+HLOOKUP(R$14,'Common Assumptions'!$D$50:$AG$52,3,FALSE),FALSE)*R75 -> 31237.31709 | S81: =VLOOKUP($B$8,'Income irrigated'!$C$19:$J$29,3+HLOOKUP(S$14,'Common Assumptions'!$D$50:$AG$52,3,FALSE),FALSE)*S75 -> 31237.31709 | T81: =VLOOKUP($B$8,'Income irrigated'!$C$19:$J$29,3+HLOOKUP(T$14,'Common Assumptions'!$D$50:$AG$52,3,FALSE),FALSE)*T75 -> 31237.31709 | U81: =VLOOKUP($B$8,'Income irrigated'!$C$19:$J$29,3+HLOOKUP(U$14,'Common Assumptions'!$D$50:$AG$52,3,FALSE),FALSE)*U75 -> 31237.31709 | V81: =VLOOKUP($B$8,'Income irrigated'!$C$19:$J$29,3+HLOOKUP(V$14,'Common Assumptions'!$D$50:$AG$52,3,FALSE),FALSE)*V75 -> 31237.31709 | W81: =VLOOKUP($B$8,'Income irrigated'!$C$19:$J$29,3+HLOOKUP(W$14,'Common Assumptions'!$D$50:$AG$52,3,FALSE),FALSE)*W75 -> 31237.31709 | X81: =VLOOKUP($B$8,'Income irrigated'!$C$19:$J$29,3+HLOOKUP(X$14,'Common Assumptions'!$D$50:$AG$52,3,FALSE),FALSE)*X75 -> 31237.31709 | Y81: =VLOOKUP($B$8,'Income irrigated'!$C$19:$J$29,3+HLOOKUP(Y$14,'Common Assumptions'!$D$50:$AG$52,3,FALSE),FALSE)*Y75 -> 31237.31709 | Z81: =VLOOKUP($B$8,'Income irrigated'!$C$19:$J$29,3+HLOOKUP(Z$14,'Common Assumptions'!$D$50:$AG$52,3,FALSE),FALSE)*Z75 -> 31237.31709 | AA81: =VLOOKUP($B$8,'Income irrigated'!$C$19:$J$29,3+HLOOKUP(AA$14,'Common Assumptions'!$D$50:$AG$52,3,FALSE),FALSE)*AA75 -> 31237.31709 | AB81: =VLOOKUP($B$8,'Income irrigated'!$C$19:$J$29,3+HLOOKUP(AB$14,'Common Assumptions'!$D$50:$AG$52,3,FALSE),FALSE)*AB75 -> 31237.31709 | AC81: =VLOOKUP($B$8,'Income irrigated'!$C$19:$J$29,3+HLOOKUP(AC$14,'Common Assumptions'!$D$50:$AG$52,3,FALSE),FALSE)*AC75 -> 31237.31709 | AD81: =VLOOKUP($B$8,'Income irrigated'!$C$19:$J$29,3+HLOOKUP(AD$14,'Common Assumptions'!$D$50:$AG$52,3,FALSE),FALSE)*AD75 -> 31237.31709 | AE81: =VLOOKUP($B$8,'Income irrigated'!$C$19:$J$29,3+HLOOKUP(AE$14,'Common Assumptions'!$D$50:$AG$52,3,FALSE),FALSE)*AE75 -> 31237.31709 | AF81: =VLOOKUP($B$8,'Income irrigated'!$C$19:$J$29,3+HLOOKUP(AF$14,'Common Assumptions'!$D$50:$AG$52,3,FALSE),FALSE)*AF75 -> 31237.31709 | AG81: =VLOOKUP($B$8,'Income irrigated'!$C$19:$J$29,3+HLOOKUP(AG$14,'Common Assumptions'!$D$50:$AG$52,3,FALSE),FALSE)*AG75 -> 31237.31709
A82: Irrigated grain & technical crops | D82: =VLOOKUP($B$8,'Income irrigated'!$C$34:$J$44,3+HLOOKUP(D$14,'Common Assumptions'!$D$50:$AG$52,3,FALSE),FALSE)*D76 -> -46.36928571 | E82: =VLOOKUP($B$8,'Income irrigated'!$C$34:$J$44,3+HLOOKUP(E$14,'Common Assumptions'!$D$50:$AG$52,3,FALSE),FALSE)*E76 -> -92.73857143 | F82: =VLOOKUP($B$8,'Income irrigated'!$C$34:$J$44,3+HLOOKUP(F$14,'Common Assumptions'!$D$50:$AG$52,3,FALSE),FALSE)*F76 -> -139.1078571 | G82: =VLOOKUP($B$8,'Income irrigated'!$C$34:$J$44,3+HLOOKUP(G$14,'Common Assumptions'!$D$50:$AG$52,3,FALSE),FALSE)*G76 -> -185.4771429 | H82: =VLOOKUP($B$8,'Income irrigated'!$C$34:$J$44,3+HLOOKUP(H$14,'Common Assumptions'!$D$50:$AG$52,3,FALSE),FALSE)*H76 -> -231.8464286 | I82: =VLOOKUP($B$8,'Income irrigated'!$C$34:$J$44,3+HLOOKUP(I$14,'Common Assumptions'!$D$50:$AG$52,3,FALSE),FALSE)*I76 -> -278.2157143 | J82: =VLOOKUP($B$8,'Income irrigated'!$C$34:$J$44,3+HLOOKUP(J$14,'Common Assumptions'!$D$50:$AG$52,3,FALSE),FALSE)*J76 -> -309.1285714 | K82: =VLOOKUP($B$8,'Income irrigated'!$C$34:$J$44,3+HLOOKUP(K$14,'Common Assumptions'!$D$50:$AG$52,3,FALSE),FALSE)*K76 -> -309.1285714 | L82: =VLOOKUP($B$8,'Income irrigated'!$C$34:$J$44,3+HLOOKUP(L$14,'Common Assumptions'!$D$50:$AG$52,3,FALSE),FALSE)*L76 -> -309.1285714 | M82: =VLOOKUP($B$8,'Income irrigated'!$C$34:$J$44,3+HLOOKUP(M$14,'Common Assumptions'!$D$50:$AG$52,3,FALSE),FALSE)*M76 -> -309.1285714 | N82: =VLOOKUP($B$8,'Income irrigated'!$C$34:$J$44,3+HLOOKUP(N$14,'Common Assumptions'!$D$50:$AG$52,3,FALSE),FALSE)*N76 -> -309.1285714 | O82: =VLOOKUP($B$8,'Income irrigated'!$C$34:$J$44,3+HLOOKUP(O$14,'Common Assumptions'!$D$50:$AG$52,3,FALSE),FALSE)*O76 -> -309.1285714 | P82: =VLOOKUP($B$8,'Income irrigated'!$C$34:$J$44,3+HLOOKUP(P$14,'Common Assumptions'!$D$50:$AG$52,3,FALSE),FALSE)*P76 -> -309.1285714 | Q82: =VLOOKUP($B$8,'Income irrigated'!$C$34:$J$44,3+HLOOKUP(Q$14,'Common Assumptions'!$D$50:$AG$52,3,FALSE),FALSE)*Q76 -> -309.1285714 | R82: =VLOOKUP($B$8,'Income irrigated'!$C$34:$J$44,3+HLOOKUP(R$14,'Common Assumptions'!$D$50:$AG$52,3,FALSE),FALSE)*R76 -> -205.5705 | S82: =VLOOKUP($B$8,'Income irrigated'!$C$34:$J$44,3+HLOOKUP(S$14,'Common Assumptions'!$D$50:$AG$52,3,FALSE),FALSE)*S76 -> -205.5705 | T82: =VLOOKUP($B$8,'Income irrigated'!$C$34:$J$44,3+HLOOKUP(T$14,'Common Assumptions'!$D$50:$AG$52,3,FALSE),FALSE)*T76 -> -205.5705 | U82: =VLOOKUP($B$8,'Income irrigated'!$C$34:$J$44,3+HLOOKUP(U$14,'Common Assumptions'!$D$50:$AG$52,3,FALSE),FALSE)*U76 -> -205.5705 | V82: =VLOOKUP($B$8,'Income irrigated'!$C$34:$J$44,3+HLOOKUP(V$14,'Common Assumptions'!$D$50:$AG$52,3,FALSE),FALSE)*V76 -> -205.5705 | W82: =VLOOKUP($B$8,'Income irrigated'!$C$34:$J$44,3+HLOOKUP(W$14,'Common Assumptions'!$D$50:$AG$52,3,FALSE),FALSE)*W76 -> -205.5705 | X82: =VLOOKUP($B$8,'Income irrigated'!$C$34:$J$44,3+HLOOKUP(X$14,'Common Assumptions'!$D$50:$AG$52,3,FALSE),FALSE)*X76 -> -205.5705 | Y82: =VLOOKUP($B$8,'Income irrigated'!$C$34:$J$44,3+HLOOKUP(Y$14,'Common Assumptions'!$D$50:$AG$52,3,FALSE),FALSE)*Y76 -> -205.5705 | Z82: =VLOOKUP($B$8,'Income irrigated'!$C$34:$J$44,3+HLOOKUP(Z$14,'Common Assumptions'!$D$50:$AG$52,3,FALSE),FALSE)*Z76 -> -205.5705 | AA82: =VLOOKUP($B$8,'Income irrigated'!$C$34:$J$44,3+HLOOKUP(AA$14,'Common Assumptions'!$D$50:$AG$52,3,FALSE),FALSE)*AA76 -> -205.5705 | AB82: =VLOOKUP($B$8,'Income irrigated'!$C$34:$J$44,3+HLOOKUP(AB$14,'Common Assumptions'!$D$50:$AG$52,3,FALSE),FALSE)*AB76 -> -205.5705 | AC82: =VLOOKUP($B$8,'Income irrigated'!$C$34:$J$44,3+HLOOKUP(AC$14,'Common Assumptions'!$D$50:$AG$52,3,FALSE),FALSE)*AC76 -> -205.5705 | AD82: =VLOOKUP($B$8,'Income irrigated'!$C$34:$J$44,3+HLOOKUP(AD$14,'Common Assumptions'!$D$50:$AG$52,3,FALSE),FALSE)*AD76 -> -205.5705 | AE82: =VLOOKUP($B$8,'Income irrigated'!$C$34:$J$44,3+HLOOKUP(AE$14,'Common Assumptions'!$D$50:$AG$52,3,FALSE),FALSE)*AE76 -> -205.5705 | AF82: =VLOOKUP($B$8,'Income irrigated'!$C$34:$J$44,3+HLOOKUP(AF$14,'Common Assumptions'!$D$50:$AG$52,3,FALSE),FALSE)*AF76 -> -205.5705 | AG82: =VLOOKUP($B$8,'Income irrigated'!$C$34:$J$44,3+HLOOKUP(AG$14,'Common Assumptions'!$D$50:$AG$52,3,FALSE),FALSE)*AG76 -> -205.5705
A83: Unirrigated HVA | D83: =VLOOKUP($B$8,'Income unirrigated'!$C$20:$E$28,3)*D78 -> 4225.5846 | E83: =VLOOKUP($B$8,'Income unirrigated'!$C$20:$E$28,3)*E78 -> 3479.8932 | F83: =VLOOKUP($B$8,'Income unirrigated'!$C$20:$E$28,3)*F78 -> 2734.2018 | G83: =VLOOKUP($B$8,'Income unirrigated'!$C$20:$E$28,3)*G78 -> 1988.5104 | H83: =VLOOKUP($B$8,'Income unirrigated'!$C$20:$E$28,3)*H78 -> 1242.819 | I83: =VLOOKUP($B$8,'Income unirrigated'!$C$20:$E$28,3)*I78 -> 497.1276 | J83: =VLOOKUP($B$8,'Income unirrigated'!$C$20:$E$28,3)*J78 -> 0 | K83: =VLOOKUP($B$8,'Income unirrigated'!$C$20:$E$28,3)*K78 -> 0 | L83: =VLOOKUP($B$8,'Income unirrigated'!$C$20:$E$28,3)*L78 -> 0 | M83: =VLOOKUP($B$8,'Income unirrigated'!$C$20:$E$28,3)*M78 -> 0 | N83: =VLOOKUP($B$8,'Income unirrigated'!$C$20:$E$28,3)*N78 -> 0 | O83: =VLOOKUP($B$8,'Income unirrigated'!$C$20:$E$28,3)*O78 -> 0 | P83: =VLOOKUP($B$8,'Income unirrigated'!$C$20:$E$28,3)*P78 -> 0 | Q83: =VLOOKUP($B$8,'Income unirrigated'!$C$20:$E$28,3)*Q78 -> 0 | R83: =VLOOKUP($B$8,'Income unirrigated'!$C$20:$E$28,3)*R78 -> 1491.3828 | S83: =VLOOKUP($B$8,'Income unirrigated'!$C$20:$E$28,3)*S78 -> 1491.3828 | T83: =VLOOKUP($B$8,'Income unirrigated'!$C$20:$E$28,3)*T78 -> 1491.3828 | U83: =VLOOKUP($B$8,'Income unirrigated'!$C$20:$E$28,3)*U78 -> 1491.3828 | V83: =VLOOKUP($B$8,'Income unirrigated'!$C$20:$E$28,3)*V78 -> 1491.3828 | W83: =VLOOKUP($B$8,'Income unirrigated'!$C$20:$E$28,3)*W78 -> 1491.3828 | X83: =VLOOKUP($B$8,'Income unirrigated'!$C$20:$E$28,3)*X78 -> 1491.3828 | Y83: =VLOOKUP($B$8,'Income unirrigated'!$C$20:$E$28,3)*Y78 -> 1491.3828 | Z83: =VLOOKUP($B$8,'Income unirrigated'!$C$20:$E$28,3)*Z78 -> 1491.3828 | AA83: =VLOOKUP($B$8,'Income unirrigated'!$C$20:$E$28,3)*AA78 -> 1491.3828 | AB83: =VLOOKUP($B$8,'Income unirrigated'!$C$20:$E$28,3)*AB78 -> 1491.3828 | AC83: =VLOOKUP($B$8,'Income unirrigated'!$C$20:$E$28,3)*AC78 -> 1491.3828 | AD83: =VLOOKUP($B$8,'Income unirrigated'!$C$20:$E$28,3)*AD78 -> 1491.3828 | AE83: =VLOOKUP($B$8,'Income unirrigated'!$C$20:$E$28,3)*AE78 -> 1491.3828 | AF83: =VLOOKUP($B$8,'Income unirrigated'!$C$20:$E$28,3)*AF78 -> 1491.3828 | AG83: =VLOOKUP($B$8,'Income unirrigated'!$C$20:$E$28,3)*AG78 -> 1491.3828
A84: Unirrigated Grain & technical crops unirrigated | D84: =VLOOKUP($B$8,'Income unirrigated'!$C$34:$E$42,3)*D79 -> 385.101 | E84: =VLOOKUP($B$8,'Income unirrigated'!$C$34:$E$42,3)*E79 -> 317.142 | F84: =VLOOKUP($B$8,'Income unirrigated'!$C$34:$E$42,3)*F79 -> 249.183 | G84: =VLOOKUP($B$8,'Income unirrigated'!$C$34:$E$42,3)*G79 -> 181.224 | H84: =VLOOKUP($B$8,'Income unirrigated'!$C$34:$E$42,3)*H79 -> 113.265 | I84: =VLOOKUP($B$8,'Income unirrigated'!$C$34:$E$42,3)*I79 -> 45.306 | J84: =VLOOKUP($B$8,'Income unirrigated'!$C$34:$E$42,3)*J79 -> 0 | K84: =VLOOKUP($B$8,'Income unirrigated'!$C$34:$E$42,3)*K79 -> 0 | L84: =VLOOKUP($B$8,'Income unirrigated'!$C$34:$E$42,3)*L79 -> 0 | M84: =VLOOKUP($B$8,'Income unirrigated'!$C$34:$E$42,3)*M79 -> 0 | N84: =VLOOKUP($B$8,'Income unirrigated'!$C$34:$E$42,3)*N79 -> 0 | O84: =VLOOKUP($B$8,'Income unirrigated'!$C$34:$E$42,3)*O79 -> 0 | P84: =VLOOKUP($B$8,'Income unirrigated'!$C$34:$E$42,3)*P79 -> 0 | Q84: =VLOOKUP($B$8,'Income unirrigated'!$C$34:$E$42,3)*Q79 -> 0 | R84: =VLOOKUP($B$8,'Income unirrigated'!$C$34:$E$42,3)*R79 -> 135.918 | S84: =VLOOKUP($B$8,'Income unirrigated'!$C$34:$E$42,3)*S79 -> 135.918 | T84: =VLOOKUP($B$8,'Income unirrigated'!$C$34:$E$42,3)*T79 -> 135.918 | U84: =VLOOKUP($B$8,'Income unirrigated'!$C$34:$E$42,3)*U79 -> 135.918 | V84: =VLOOKUP($B$8,'Income unirrigated'!$C$34:$E$42,3)*V79 -> 135.918 | W84: =VLOOKUP($B$8,'Income unirrigated'!$C$34:$E$42,3)*W79 -> 135.918 | X84: =VLOOKUP($B$8,'Income unirrigated'!$C$34:$E$42,3)*X79 -> 135.918 | Y84: =VLOOKUP($B$8,'Income unirrigated'!$C$34:$E$42,3)*Y79 -> 135.918 | Z84: =VLOOKUP($B$8,'Income unirrigated'!$C$34:$E$42,3)*Z79 -> 135.918 | AA84: =VLOOKUP($B$8,'Income unirrigated'!$C$34:$E$42,3)*AA79 -> 135.918 | AB84: =VLOOKUP($B$8,'Income unirrigated'!$C$34:$E$42,3)*AB79 -> 135.918 | AC84: =VLOOKUP($B$8,'Income unirrigated'!$C$34:$E$42,3)*AC79 -> 135.918 | AD84: =VLOOKUP($B$8,'Income unirrigated'!$C$34:$E$42,3)*AD79 -> 135.918 | AE84: =VLOOKUP($B$8,'Income unirrigated'!$C$34:$E$42,3)*AE79 -> 135.918 | AF84: =VLOOKUP($B$8,'Income unirrigated'!$C$34:$E$42,3)*AF79 -> 135.918 | AG84: =VLOOKUP($B$8,'Income unirrigated'!$C$34:$E$42,3)*AG79 -> 135.918
A85: Farm Income per hectare with irrigation | D85: =SUM(D81:D84) -> 12001.77276 | E85: 18579.20953 | F85: 25156.64629 | G85: 31734.08306 | H85: 38311.51982 | I85: 44888.95659 | J85: 49273.91443 | K85: 49273.91443 | L85: 49273.91443 | M85: 49273.91443 | N85: 49273.91443 | O85: 49273.91443 | P85: 49273.91443 | Q85: 49273.91443 | R85: 32659.04739 | S85: 32659.04739 | T85: 32659.04739 | U85: 32659.04739 | V85: 32659.04739 | W85: 32659.04739 | X85: 32659.04739 | Y85: 32659.04739 | Z85: 32659.04739 | AA85: 32659.04739 | AB85: 32659.04739 | AC85: 32659.04739 | AD85: 32659.04739 | AE85: 32659.04739 | AF85: 32659.04739 | AG85: 32659.04739
A86: From which was deducted:
A87: Cost of water to farmers
A88: Labor Costs | D88: =SUM(D89:D91) -> 4447.5225 | E88: =SUM(E89:E91) -> 4447.5225 | F88: =SUM(F89:F91) -> 4447.5225 | G88: =SUM(G89:G91) -> 5647.68 | H88: 6847.8375 | I88: 8047.995 | J88: 8848.1 | K88: 8848.1 | L88: 8848.1 | M88: 8848.1 | N88: 8848.1 | O88: 8848.1 | P88: 8848.1 | Q88: 8848.1 | R88: 6447.785 | S88: 6447.785 | T88: 6447.785 | U88: 6447.785 | V88: 6447.785 | W88: 6447.785 | X88: 6447.785 | Y88: 6447.785 | Z88: 6447.785 | AA88: 6447.785 | AB88: 6447.785 | AC88: 6447.785 | AD88: 6447.785 | AE88: 6447.785 | AF88: 6447.785 | AG88: 6447.785
A89: Cost of Family Labor | D89: =+D$16*VLOOKUP($B$8,'Income irrigated'!$C$66:$G$74,3)+D$17*VLOOKUP($B$8,'Income irrigated'!$C$81:$G$89,3)+D$19*VLOOKUP($B$8,'Income unirrigated'!$C$64:$G$72,3)+D$20*VLOOKUP($B$8,'Income unirrigated'!$C$79:$G$87,3) -> 590.7 | E89: =+E$16*VLOOKUP($B$8,'Income irrigated'!$C$66:$G$74,3)+E$17*VLOOKUP($B$8,'Income irrigated'!$C$81:$G$89,3)+E$19*VLOOKUP($B$8,'Income unirrigated'!$C$64:$G$72,3)+E$20*VLOOKUP($B$8,'Income unirrigated'!$C$79:$G$87,3) -> 590.7 | F89: =+F$16*VLOOKUP($B$8,'Income irrigated'!$C$66:$G$74,3)+F$17*VLOOKUP($B$8,'Income irrigated'!$C$81:$G$89,3)+F$19*VLOOKUP($B$8,'Income unirrigated'!$C$64:$G$72,3)+F$20*VLOOKUP($B$8,'Income unirrigated'!$C$79:$G$87,3) -> 590.7 | G89: =+G$16*VLOOKUP($B$8,'Income irrigated'!$C$66:$G$74,3)+G$17*VLOOKUP($B$8,'Income irrigated'!$C$81:$G$89,3)+G$19*VLOOKUP($B$8,'Income unirrigated'!$C$64:$G$72,3)+G$20*VLOOKUP($B$8,'Income unirrigated'!$C$79:$G$87,3) -> 582.6 | H89: =+H$16*VLOOKUP($B$8,'Income irrigated'!$C$66:$G$74,3)+H$17*VLOOKUP($B$8,'Income irrigated'!$C$81:$G$89,3)+H$19*VLOOKUP($B$8,'Income unirrigated'!$C$64:$G$72,3)+H$20*VLOOKUP($B$8,'Income unirrigated'!$C$79:$G$87,3) -> 574.5 | I89: =+I$16*VLOOKUP($B$8,'Income irrigated'!$C$66:$G$74,3)+I$17*VLOOKUP($B$8,'Income irrigated'!$C$81:$G$89,3)+I$19*VLOOKUP($B$8,'Income unirrigated'!$C$64:$G$72,3)+I$20*VLOOKUP($B$8,'Income unirrigated'!$C$79:$G$87,3) -> 566.4 | J89: =+J$16*VLOOKUP($B$8,'Income irrigated'!$C$66:$G$74,3)+J$17*VLOOKUP($B$8,'Income irrigated'!$C$81:$G$89,3)+J$19*VLOOKUP($B$8,'Income unirrigated'!$C$64:$G$72,3)+J$20*VLOOKUP($B$8,'Income unirrigated'!$C$79:$G$87,3) -> 561 | K89: =+K$16*VLOOKUP($B$8,'Income irrigated'!$C$66:$G$74,3)+K$17*VLOOKUP($B$8,'Income irrigated'!$C$81:$G$89,3)+K$19*VLOOKUP($B$8,'Income unirrigated'!$C$64:$G$72,3)+K$20*VLOOKUP($B$8,'Income unirrigated'!$C$79:$G$87,3) -> 561 | L89: =+L$16*VLOOKUP($B$8,'Income irrigated'!$C$66:$G$74,3)+L$17*VLOOKUP($B$8,'Income irrigated'!$C$81:$G$89,3)+L$19*VLOOKUP($B$8,'Income unirrigated'!$C$64:$G$72,3)+L$20*VLOOKUP($B$8,'Income unirrigated'!$C$79:$G$87,3) -> 561 | M89: =+M$16*VLOOKUP($B$8,'Income irrigated'!$C$66:$G$74,3)+M$17*VLOOKUP($B$8,'Income irrigated'!$C$81:$G$89,3)+M$19*VLOOKUP($B$8,'Income unirrigated'!$C$64:$G$72,3)+M$20*VLOOKUP($B$8,'Income unirrigated'!$C$79:$G$87,3) -> 561 | N89: =+N$16*VLOOKUP($B$8,'Income irrigated'!$C$66:$G$74,3)+N$17*VLOOKUP($B$8,'Income irrigated'!$C$81:$G$89,3)+N$19*VLOOKUP($B$8,'Income unirrigated'!$C$64:$G$72,3)+N$20*VLOOKUP($B$8,'Income unirrigated'!$C$79:$G$87,3) -> 561 | O89: =+O$16*VLOOKUP($B$8,'Income irrigated'!$C$66:$G$74,3)+O$17*VLOOKUP($B$8,'Income irrigated'!$C$81:$G$89,3)+O$19*VLOOKUP($B$8,'Income unirrigated'!$C$64:$G$72,3)+O$20*VLOOKUP($B$8,'Income unirrigated'!$C$79:$G$87,3) -> 561 | P89: =+P$16*VLOOKUP($B$8,'Income irrigated'!$C$66:$G$74,3)+P$17*VLOOKUP($B$8,'Income irrigated'!$C$81:$G$89,3)+P$19*VLOOKUP($B$8,'Income unirrigated'!$C$64:$G$72,3)+P$20*VLOOKUP($B$8,'Income unirrigated'!$C$79:$G$87,3) -> 561 | Q89: =+Q$16*VLOOKUP($B$8,'Income irrigated'!$C$66:$G$74,3)+Q$17*VLOOKUP($B$8,'Income irrigated'!$C$81:$G$89,3)+Q$19*VLOOKUP($B$8,'Income unirrigated'!$C$64:$G$72,3)+Q$20*VLOOKUP($B$8,'Income unirrigated'!$C$79:$G$87,3) -> 561 | R89: =+R$16*VLOOKUP($B$8,'Income irrigated'!$C$66:$G$74,3)+R$17*VLOOKUP($B$8,'Income irrigated'!$C$81:$G$89,3)+R$19*VLOOKUP($B$8,'Income unirrigated'!$C$64:$G$72,3)+R$20*VLOOKUP($B$8,'Income unirrigated'!$C$79:$G$87,3) -> 577.2 | S89: =+S$16*VLOOKUP($B$8,'Income irrigated'!$C$66:$G$74,3)+S$17*VLOOKUP($B$8,'Income irrigated'!$C$81:$G$89,3)+S$19*VLOOKUP($B$8,'Income unirrigated'!$C$64:$G$72,3)+S$20*VLOOKUP($B$8,'Income unirrigated'!$C$79:$G$87,3) -> 577.2 | T89: =+T$16*VLOOKUP($B$8,'Income irrigated'!$C$66:$G$74,3)+T$17*VLOOKUP($B$8,'Income irrigated'!$C$81:$G$89,3)+T$19*VLOOKUP($B$8,'Income unirrigated'!$C$64:$G$72,3)+T$20*VLOOKUP($B$8,'Income unirrigated'!$C$79:$G$87,3) -> 577.2 | U89: =+U$16*VLOOKUP($B$8,'Income irrigated'!$C$66:$G$74,3)+U$17*VLOOKUP($B$8,'Income irrigated'!$C$81:$G$89,3)+U$19*VLOOKUP($B$8,'Income unirrigated'!$C$64:$G$72,3)+U$20*VLOOKUP($B$8,'Income unirrigated'!$C$79:$G$87,3) -> 577.2 | V89: =+V$16*VLOOKUP($B$8,'Income irrigated'!$C$66:$G$74,3)+V$17*VLOOKUP($B$8,'Income irrigated'!$C$81:$G$89,3)+V$19*VLOOKUP($B$8,'Income unirrigated'!$C$64:$G$72,3)+V$20*VLOOKUP($B$8,'Income unirrigated'!$C$79:$G$87,3) -> 577.2 | W89: =+W$16*VLOOKUP($B$8,'Income irrigated'!$C$66:$G$74,3)+W$17*VLOOKUP($B$8,'Income irrigated'!$C$81:$G$89,3)+W$19*VLOOKUP($B$8,'Income unirrigated'!$C$64:$G$72,3)+W$20*VLOOKUP($B$8,'Income unirrigated'!$C$79:$G$87,3) -> 577.2 | X89: =+X$16*VLOOKUP($B$8,'Income irrigated'!$C$66:$G$74,3)+X$17*VLOOKUP($B$8,'Income irrigated'!$C$81:$G$89,3)+X$19*VLOOKUP($B$8,'Income unirrigated'!$C$64:$G$72,3)+X$20*VLOOKUP($B$8,'Income unirrigated'!$C$79:$G$87,3) -> 577.2 | Y89: =+Y$16*VLOOKUP($B$8,'Income irrigated'!$C$66:$G$74,3)+Y$17*VLOOKUP($B$8,'Income irrigated'!$C$81:$G$89,3)+Y$19*VLOOKUP($B$8,'Income unirrigated'!$C$64:$G$72,3)+Y$20*VLOOKUP($B$8,'Income unirrigated'!$C$79:$G$87,3) -> 577.2 | Z89: =+Z$16*VLOOKUP($B$8,'Income irrigated'!$C$66:$G$74,3)+Z$17*VLOOKUP($B$8,'Income irrigated'!$C$81:$G$89,3)+Z$19*VLOOKUP($B$8,'Income unirrigated'!$C$64:$G$72,3)+Z$20*VLOOKUP($B$8,'Income unirrigated'!$C$79:$G$87,3) -> 577.2 | AA89: =+AA$16*VLOOKUP($B$8,'Income irrigated'!$C$66:$G$74,3)+AA$17*VLOOKUP($B$8,'Income irrigated'!$C$81:$G$89,3)+AA$19*VLOOKUP($B$8,'Income unirrigated'!$C$64:$G$72,3)+AA$20*VLOOKUP($B$8,'Income unirrigated'!$C$79:$G$87,3) -> 577.2 | AB89: =+AB$16*VLOOKUP($B$8,'Income irrigated'!$C$66:$G$74,3)+AB$17*VLOOKUP($B$8,'Income irrigated'!$C$81:$G$89,3)+AB$19*VLOOKUP($B$8,'Income unirrigated'!$C$64:$G$72,3)+AB$20*VLOOKUP($B$8,'Income unirrigated'!$C$79:$G$87,3) -> 577.2 | AC89: =+AC$16*VLOOKUP($B$8,'Income irrigated'!$C$66:$G$74,3)+AC$17*VLOOKUP($B$8,'Income irrigated'!$C$81:$G$89,3)+AC$19*VLOOKUP($B$8,'Income unirrigated'!$C$64:$G$72,3)+AC$20*VLOOKUP($B$8,'Income unirrigated'!$C$79:$G$87,3) -> 577.2 | AD89: =+AD$16*VLOOKUP($B$8,'Income irrigated'!$C$66:$G$74,3)+AD$17*VLOOKUP($B$8,'Income irrigated'!$C$81:$G$89,3)+AD$19*VLOOKUP($B$8,'Income unirrigated'!$C$64:$G$72,3)+AD$20*VLOOKUP($B$8,'Income unirrigated'!$C$79:$G$87,3) -> 577.2 | AE89: =+AE$16*VLOOKUP($B$8,'Income irrigated'!$C$66:$G$74,3)+AE$17*VLOOKUP($B$8,'Income irrigated'!$C$81:$G$89,3)+AE$19*VLOOKUP($B$8,'Income unirrigated'!$C$64:$G$72,3)+AE$20*VLOOKUP($B$8,'Income unirrigated'!$C$79:$G$87,3) -> 577.2 | AF89: =+AF$16*VLOOKUP($B$8,'Income irrigated'!$C$66:$G$74,3)+AF$17*VLOOKUP($B$8,'Income irrigated'!$C$81:$G$89,3)+AF$19*VLOOKUP($B$8,'Income unirrigated'!$C$64:$G$72,3)+AF$20*VLOOKUP($B$8,'Income unirrigated'!$C$79:$G$87,3) -> 577.2 | AG89: =+AG$16*VLOOKUP($B$8,'Income irrigated'!$C$66:$G$74,3)+AG$17*VLOOKUP($B$8,'Income irrigated'!$C$81:$G$89,3)+AG$19*VLOOKUP($B$8,'Income unirrigated'!$C$64:$G$72,3)+AG$20*VLOOKUP($B$8,'Income unirrigated'!$C$79:$G$87,3) -> 577.2
A90: Cost of Full Time Labor | D90: =+D$16*VLOOKUP($B$8,'Income irrigated'!$C$66:$G$74,4)+D$17*VLOOKUP($B$8,'Income irrigated'!$C$81:$G$89,4)+D$19*VLOOKUP($B$8,'Income unirrigated'!$C$64:$G$72,4)+D$20*VLOOKUP($B$8,'Income unirrigated'!$C$79:$G$87,4) -> 5 | E90: =+E$16*VLOOKUP($B$8,'Income irrigated'!$C$66:$G$74,4)+E$17*VLOOKUP($B$8,'Income irrigated'!$C$81:$G$89,4)+E$19*VLOOKUP($B$8,'Income unirrigated'!$C$64:$G$72,4)+E$20*VLOOKUP($B$8,'Income unirrigated'!$C$79:$G$87,4) -> 5 | F90: =+F$16*VLOOKUP($B$8,'Income irrigated'!$C$66:$G$74,4)+F$17*VLOOKUP($B$8,'Income irrigated'!$C$81:$G$89,4)+F$19*VLOOKUP($B$8,'Income unirrigated'!$C$64:$G$72,4)+F$20*VLOOKUP($B$8,'Income unirrigated'!$C$79:$G$87,4) -> 5 | G90: =+G$16*VLOOKUP($B$8,'Income irrigated'!$C$66:$G$74,4)+G$17*VLOOKUP($B$8,'Income irrigated'!$C$81:$G$89,4)+G$19*VLOOKUP($B$8,'Income unirrigated'!$C$64:$G$72,4)+G$20*VLOOKUP($B$8,'Income unirrigated'!$C$79:$G$87,4) -> 5 | H90: =+H$16*VLOOKUP($B$8,'Income irrigated'!$C$66:$G$74,4)+H$17*VLOOKUP($B$8,'Income irrigated'!$C$81:$G$89,4)+H$19*VLOOKUP($B$8,'Income unirrigated'!$C$64:$G$72,4)+H$20*VLOOKUP($B$8,'Income unirrigated'!$C$79:$G$87,4) -> 5 | I90: =+I$16*VLOOKUP($B$8,'Income irrigated'!$C$66:$G$74,4)+I$17*VLOOKUP($B$8,'Income irrigated'!$C$81:$G$89,4)+I$19*VLOOKUP($B$8,'Income unirrigated'!$C$64:$G$72,4)+I$20*VLOOKUP($B$8,'Income unirrigated'!$C$79:$G$87,4) -> 5 | J90: =+J$16*VLOOKUP($B$8,'Income irrigated'!$C$66:$G$74,4)+J$17*VLOOKUP($B$8,'Income irrigated'!$C$81:$G$89,4)+J$19*VLOOKUP($B$8,'Income unirrigated'!$C$64:$G$72,4)+J$20*VLOOKUP($B$8,'Income unirrigated'!$C$79:$G$87,4) -> 5 | K90: =+K$16*VLOOKUP($B$8,'Income irrigated'!$C$66:$G$74,4)+K$17*VLOOKUP($B$8,'Income irrigated'!$C$81:$G$89,4)+K$19*VLOOKUP($B$8,'Income unirrigated'!$C$64:$G$72,4)+K$20*VLOOKUP($B$8,'Income unirrigated'!$C$79:$G$87,4) -> 5 | L90: =+L$16*VLOOKUP($B$8,'Income irrigated'!$C$66:$G$74,4)+L$17*VLOOKUP($B$8,'Income irrigated'!$C$81:$G$89,4)+L$19*VLOOKUP($B$8,'Income unirrigated'!$C$64:$G$72,4)+L$20*VLOOKUP($B$8,'Income unirrigated'!$C$79:$G$87,4) -> 5 | M90: =+M$16*VLOOKUP($B$8,'Income irrigated'!$C$66:$G$74,4)+M$17*VLOOKUP($B$8,'Income irrigated'!$C$81:$G$89,4)+M$19*VLOOKUP($B$8,'Income unirrigated'!$C$64:$G$72,4)+M$20*VLOOKUP($B$8,'Income unirrigated'!$C$79:$G$87,4) -> 5 | N90: =+N$16*VLOOKUP($B$8,'Income irrigated'!$C$66:$G$74,4)+N$17*VLOOKUP($B$8,'Income irrigated'!$C$81:$G$89,4)+N$19*VLOOKUP($B$8,'Income unirrigated'!$C$64:$G$72,4)+N$20*VLOOKUP($B$8,'Income unirrigated'!$C$79:$G$87,4) -> 5 | O90: =+O$16*VLOOKUP($B$8,'Income irrigated'!$C$66:$G$74,4)+O$17*VLOOKUP($B$8,'Income irrigated'!$C$81:$G$89,4)+O$19*VLOOKUP($B$8,'Income unirrigated'!$C$64:$G$72,4)+O$20*VLOOKUP($B$8,'Income unirrigated'!$C$79:$G$87,4) -> 5 | P90: =+P$16*VLOOKUP($B$8,'Income irrigated'!$C$66:$G$74,4)+P$17*VLOOKUP($B$8,'Income irrigated'!$C$81:$G$89,4)+P$19*VLOOKUP($B$8,'Income unirrigated'!$C$64:$G$72,4)+P$20*VLOOKUP($B$8,'Income unirrigated'!$C$79:$G$87,4) -> 5 | Q90: =+Q$16*VLOOKUP($B$8,'Income irrigated'!$C$66:$G$74,4)+Q$17*VLOOKUP($B$8,'Income irrigated'!$C$81:$G$89,4)+Q$19*VLOOKUP($B$8,'Income unirrigated'!$C$64:$G$72,4)+Q$20*VLOOKUP($B$8,'Income unirrigated'!$C$79:$G$87,4) -> 5 | R90: =+R$16*VLOOKUP($B$8,'Income irrigated'!$C$66:$G$74,4)+R$17*VLOOKUP($B$8,'Income irrigated'!$C$81:$G$89,4)+R$19*VLOOKUP($B$8,'Income unirrigated'!$C$64:$G$72,4)+R$20*VLOOKUP($B$8,'Income unirrigated'!$C$79:$G$87,4) -> 5 | S90: =+S$16*VLOOKUP($B$8,'Income irrigated'!$C$66:$G$74,4)+S$17*VLOOKUP($B$8,'Income irrigated'!$C$81:$G$89,4)+S$19*VLOOKUP($B$8,'Income unirrigated'!$C$64:$G$72,4)+S$20*VLOOKUP($B$8,'Income unirrigated'!$C$79:$G$87,4) -> 5 | T90: =+T$16*VLOOKUP($B$8,'Income irrigated'!$C$66:$G$74,4)+T$17*VLOOKUP($B$8,'Income irrigated'!$C$81:$G$89,4)+T$19*VLOOKUP($B$8,'Income unirrigated'!$C$64:$G$72,4)+T$20*VLOOKUP($B$8,'Income unirrigated'!$C$79:$G$87,4) -> 5 | U90: =+U$16*VLOOKUP($B$8,'Income irrigated'!$C$66:$G$74,4)+U$17*VLOOKUP($B$8,'Income irrigated'!$C$81:$G$89,4)+U$19*VLOOKUP($B$8,'Income unirrigated'!$C$64:$G$72,4)+U$20*VLOOKUP($B$8,'Income unirrigated'!$C$79:$G$87,4) -> 5 | V90: =+V$16*VLOOKUP($B$8,'Income irrigated'!$C$66:$G$74,4)+V$17*VLOOKUP($B$8,'Income irrigated'!$C$81:$G$89,4)+V$19*VLOOKUP($B$8,'Income unirrigated'!$C$64:$G$72,4)+V$20*VLOOKUP($B$8,'Income unirrigated'!$C$79:$G$87,4) -> 5 | W90: =+W$16*VLOOKUP($B$8,'Income irrigated'!$C$66:$G$74,4)+W$17*VLOOKUP($B$8,'Income irrigated'!$C$81:$G$89,4)+W$19*VLOOKUP($B$8,'Income unirrigated'!$C$64:$G$72,4)+W$20*VLOOKUP($B$8,'Income unirrigated'!$C$79:$G$87,4) -> 5 | X90: =+X$16*VLOOKUP($B$8,'Income irrigated'!$C$66:$G$74,4)+X$17*VLOOKUP($B$8,'Income irrigated'!$C$81:$G$89,4)+X$19*VLOOKUP($B$8,'Income unirrigated'!$C$64:$G$72,4)+X$20*VLOOKUP($B$8,'Income unirrigated'!$C$79:$G$87,4) -> 5 | Y90: =+Y$16*VLOOKUP($B$8,'Income irrigated'!$C$66:$G$74,4)+Y$17*VLOOKUP($B$8,'Income irrigated'!$C$81:$G$89,4)+Y$19*VLOOKUP($B$8,'Income unirrigated'!$C$64:$G$72,4)+Y$20*VLOOKUP($B$8,'Income unirrigated'!$C$79:$G$87,4) -> 5 | Z90: =+Z$16*VLOOKUP($B$8,'Income irrigated'!$C$66:$G$74,4)+Z$17*VLOOKUP($B$8,'Income irrigated'!$C$81:$G$89,4)+Z$19*VLOOKUP($B$8,'Income unirrigated'!$C$64:$G$72,4)+Z$20*VLOOKUP($B$8,'Income unirrigated'!$C$79:$G$87,4) -> 5 | AA90: =+AA$16*VLOOKUP($B$8,'Income irrigated'!$C$66:$G$74,4)+AA$17*VLOOKUP($B$8,'Income irrigated'!$C$81:$G$89,4)+AA$19*VLOOKUP($B$8,'Income unirrigated'!$C$64:$G$72,4)+AA$20*VLOOKUP($B$8,'Income unirrigated'!$C$79:$G$87,4) -> 5 | AB90: =+AB$16*VLOOKUP($B$8,'Income irrigated'!$C$66:$G$74,4)+AB$17*VLOOKUP($B$8,'Income irrigated'!$C$81:$G$89,4)+AB$19*VLOOKUP($B$8,'Income unirrigated'!$C$64:$G$72,4)+AB$20*VLOOKUP($B$8,'Income unirrigated'!$C$79:$G$87,4) -> 5 | AC90: =+AC$16*VLOOKUP($B$8,'Income irrigated'!$C$66:$G$74,4)+AC$17*VLOOKUP($B$8,'Income irrigated'!$C$81:$G$89,4)+AC$19*VLOOKUP($B$8,'Income unirrigated'!$C$64:$G$72,4)+AC$20*VLOOKUP($B$8,'Income unirrigated'!$C$79:$G$87,4) -> 5 | AD90: =+AD$16*VLOOKUP($B$8,'Income irrigated'!$C$66:$G$74,4)+AD$17*VLOOKUP($B$8,'Income irrigated'!$C$81:$G$89,4)+AD$19*VLOOKUP($B$8,'Income unirrigated'!$C$64:$G$72,4)+AD$20*VLOOKUP($B$8,'Income unirrigated'!$C$79:$G$87,4) -> 5 | AE90: =+AE$16*VLOOKUP($B$8,'Income irrigated'!$C$66:$G$74,4)+AE$17*VLOOKUP($B$8,'Income irrigated'!$C$81:$G$89,4)+AE$19*VLOOKUP($B$8,'Income unirrigated'!$C$64:$G$72,4)+AE$20*VLOOKUP($B$8,'Income unirrigated'!$C$79:$G$87,4) -> 5 | AF90: =+AF$16*VLOOKUP($B$8,'Income irrigated'!$C$66:$G$74,4)+AF$17*VLOOKUP($B$8,'Income irrigated'!$C$81:$G$89,4)+AF$19*VLOOKUP($B$8,'Income unirrigated'!$C$64:$G$72,4)+AF$20*VLOOKUP($B$8,'Income unirrigated'!$C$79:$G$87,4) -> 5 | AG90: =+AG$16*VLOOKUP($B$8,'Income irrigated'!$C$66:$G$74,4)+AG$17*VLOOKUP($B$8,'Income irrigated'!$C$81:$G$89,4)+AG$19*VLOOKUP($B$8,'Income unirrigated'!$C$64:$G$72,4)+AG$20*VLOOKUP($B$8,'Income unirrigated'!$C$79:$G$87,4) -> 5
A91: Cost of Casual Labor | D91: =+D$16*VLOOKUP($B$8,'Income irrigated'!$C$66:$G$74,5)+D$17*VLOOKUP($B$8,'Income irrigated'!$C$81:$G$89,5)+D$19*VLOOKUP($B$8,'Income unirrigated'!$C$64:$G$72,5)+D$20*VLOOKUP($B$8,'Income unirrigated'!$C$79:$G$87,5) -> 3851.8225 | E91: =+E$16*VLOOKUP($B$8,'Income irrigated'!$C$66:$G$74,5)+E$17*VLOOKUP($B$8,'Income irrigated'!$C$81:$G$89,5)+E$19*VLOOKUP($B$8,'Income unirrigated'!$C$64:$G$72,5)+E$20*VLOOKUP($B$8,'Income unirrigated'!$C$79:$G$87,5) -> 3851.8225 | F91: =+F$16*VLOOKUP($B$8,'Income irrigated'!$C$66:$G$74,5)+F$17*VLOOKUP($B$8,'Income irrigated'!$C$81:$G$89,5)+F$19*VLOOKUP($B$8,'Income unirrigated'!$C$64:$G$72,5)+F$20*VLOOKUP($B$8,'Income unirrigated'!$C$79:$G$87,5) -> 3851.8225 | G91: =+G$16*VLOOKUP($B$8,'Income irrigated'!$C$66:$G$74,5)+G$17*VLOOKUP($B$8,'Income irrigated'!$C$81:$G$89,5)+G$19*VLOOKUP($B$8,'Income unirrigated'!$C$64:$G$72,5)+G$20*VLOOKUP($B$8,'Income unirrigated'!$C$79:$G$87,5) -> 5060.08 | H91: =+H$16*VLOOKUP($B$8,'Income irrigated'!$C$66:$G$74,5)+H$17*VLOOKUP($B$8,'Income irrigated'!$C$81:$G$89,5)+H$19*VLOOKUP($B$8,'Income unirrigated'!$C$64:$G$72,5)+H$20*VLOOKUP($B$8,'Income unirrigated'!$C$79:$G$87,5) -> 6268.3375 | I91: =+I$16*VLOOKUP($B$8,'Income irrigated'!$C$66:$G$74,5)+I$17*VLOOKUP($B$8,'Income irrigated'!$C$81:$G$89,5)+I$19*VLOOKUP($B$8,'Income unirrigated'!$C$64:$G$72,5)+I$20*VLOOKUP($B$8,'Income unirrigated'!$C$79:$G$87,5) -> 7476.595 | J91: =+J$16*VLOOKUP($B$8,'Income irrigated'!$C$66:$G$74,5)+J$17*VLOOKUP($B$8,'Income irrigated'!$C$81:$G$89,5)+J$19*VLOOKUP($B$8,'Income unirrigated'!$C$64:$G$72,5)+J$20*VLOOKUP($B$8,'Income unirrigated'!$C$79:$G$87,5) -> 8282.1 | K91: =+K$16*VLOOKUP($B$8,'Income irrigated'!$C$66:$G$74,5)+K$17*VLOOKUP($B$8,'Income irrigated'!$C$81:$G$89,5)+K$19*VLOOKUP($B$8,'Income unirrigated'!$C$64:$G$72,5)+K$20*VLOOKUP($B$8,'Income unirrigated'!$C$79:$G$87,5) -> 8282.1 | L91: =+L$16*VLOOKUP($B$8,'Income irrigated'!$C$66:$G$74,5)+L$17*VLOOKUP($B$8,'Income irrigated'!$C$81:$G$89,5)+L$19*VLOOKUP($B$8,'Income unirrigated'!$C$64:$G$72,5)+L$20*VLOOKUP($B$8,'Income unirrigated'!$C$79:$G$87,5) -> 8282.1 | M91: =+M$16*VLOOKUP($B$8,'Income irrigated'!$C$66:$G$74,5)+M$17*VLOOKUP($B$8,'Income irrigated'!$C$81:$G$89,5)+M$19*VLOOKUP($B$8,'Income unirrigated'!$C$64:$G$72,5)+M$20*VLOOKUP($B$8,'Income unirrigated'!$C$79:$G$87,5) -> 8282.1 | N91: =+N$16*VLOOKUP($B$8,'Income irrigated'!$C$66:$G$74,5)+N$17*VLOOKUP($B$8,'Income irrigated'!$C$81:$G$89,5)+N$19*VLOOKUP($B$8,'Income unirrigated'!$C$64:$G$72,5)+N$20*VLOOKUP($B$8,'Income unirrigated'!$C$79:$G$87,5) -> 8282.1 | O91: =+O$16*VLOOKUP($B$8,'Income irrigated'!$C$66:$G$74,5)+O$17*VLOOKUP($B$8,'Income irrigated'!$C$81:$G$89,5)+O$19*VLOOKUP($B$8,'Income unirrigated'!$C$64:$G$72,5)+O$20*VLOOKUP($B$8,'Income unirrigated'!$C$79:$G$87,5) -> 8282.1 | P91: =+P$16*VLOOKUP($B$8,'Income irrigated'!$C$66:$G$74,5)+P$17*VLOOKUP($B$8,'Income irrigated'!$C$81:$G$89,5)+P$19*VLOOKUP($B$8,'Income unirrigated'!$C$64:$G$72,5)+P$20*VLOOKUP($B$8,'Income unirrigated'!$C$79:$G$87,5) -> 8282.1 | Q91: =+Q$16*VLOOKUP($B$8,'Income irrigated'!$C$66:$G$74,5)+Q$17*VLOOKUP($B$8,'Income irrigated'!$C$81:$G$89,5)+Q$19*VLOOKUP($B$8,'Income unirrigated'!$C$64:$G$72,5)+Q$20*VLOOKUP($B$8,'Income unirrigated'!$C$79:$G$87,5) -> 8282.1 | R91: =+R$16*VLOOKUP($B$8,'Income irrigated'!$C$66:$G$74,5)+R$17*VLOOKUP($B$8,'Income irrigated'!$C$81:$G$89,5)+R$19*VLOOKUP($B$8,'Income unirrigated'!$C$64:$G$72,5)+R$20*VLOOKUP($B$8,'Income unirrigated'!$C$79:$G$87,5) -> 5865.585 | S91: =+S$16*VLOOKUP($B$8,'Income irrigated'!$C$66:$G$74,5)+S$17*VLOOKUP($B$8,'Income irrigated'!$C$81:$G$89,5)+S$19*VLOOKUP($B$8,'Income unirrigated'!$C$64:$G$72,5)+S$20*VLOOKUP($B$8,'Income unirrigated'!$C$79:$G$87,5) -> 5865.585 | T91: =+T$16*VLOOKUP($B$8,'Income irrigated'!$C$66:$G$74,5)+T$17*VLOOKUP($B$8,'Income irrigated'!$C$81:$G$89,5)+T$19*VLOOKUP($B$8,'Income unirrigated'!$C$64:$G$72,5)+T$20*VLOOKUP($B$8,'Income unirrigated'!$C$79:$G$87,5) -> 5865.585 | U91: =+U$16*VLOOKUP($B$8,'Income irrigated'!$C$66:$G$74,5)+U$17*VLOOKUP($B$8,'Income irrigated'!$C$81:$G$89,5)+U$19*VLOOKUP($B$8,'Income unirrigated'!$C$64:$G$72,5)+U$20*VLOOKUP($B$8,'Income unirrigated'!$C$79:$G$87,5) -> 5865.585 | V91: =+V$16*VLOOKUP($B$8,'Income irrigated'!$C$66:$G$74,5)+V$17*VLOOKUP($B$8,'Income irrigated'!$C$81:$G$89,5)+V$19*VLOOKUP($B$8,'Income unirrigated'!$C$64:$G$72,5)+V$20*VLOOKUP($B$8,'Income unirrigated'!$C$79:$G$87,5) -> 5865.585 | W91: =+W$16*VLOOKUP($B$8,'Income irrigated'!$C$66:$G$74,5)+W$17*VLOOKUP($B$8,'Income irrigated'!$C$81:$G$89,5)+W$19*VLOOKUP($B$8,'Income unirrigated'!$C$64:$G$72,5)+W$20*VLOOKUP($B$8,'Income unirrigated'!$C$79:$G$87,5) -> 5865.585 | X91: =+X$16*VLOOKUP($B$8,'Income irrigated'!$C$66:$G$74,5)+X$17*VLOOKUP($B$8,'Income irrigated'!$C$81:$G$89,5)+X$19*VLOOKUP($B$8,'Income unirrigated'!$C$64:$G$72,5)+X$20*VLOOKUP($B$8,'Income unirrigated'!$C$79:$G$87,5) -> 5865.585 | Y91: =+Y$16*VLOOKUP($B$8,'Income irrigated'!$C$66:$G$74,5)+Y$17*VLOOKUP($B$8,'Income irrigated'!$C$81:$G$89,5)+Y$19*VLOOKUP($B$8,'Income unirrigated'!$C$64:$G$72,5)+Y$20*VLOOKUP($B$8,'Income unirrigated'!$C$79:$G$87,5) -> 5865.585 | Z91: =+Z$16*VLOOKUP($B$8,'Income irrigated'!$C$66:$G$74,5)+Z$17*VLOOKUP($B$8,'Income irrigated'!$C$81:$G$89,5)+Z$19*VLOOKUP($B$8,'Income unirrigated'!$C$64:$G$72,5)+Z$20*VLOOKUP($B$8,'Income unirrigated'!$C$79:$G$87,5) -> 5865.585 | AA91: =+AA$16*VLOOKUP($B$8,'Income irrigated'!$C$66:$G$74,5)+AA$17*VLOOKUP($B$8,'Income irrigated'!$C$81:$G$89,5)+AA$19*VLOOKUP($B$8,'Income unirrigated'!$C$64:$G$72,5)+AA$20*VLOOKUP($B$8,'Income unirrigated'!$C$79:$G$87,5) -> 5865.585 | AB91: =+AB$16*VLOOKUP($B$8,'Income irrigated'!$C$66:$G$74,5)+AB$17*VLOOKUP($B$8,'Income irrigated'!$C$81:$G$89,5)+AB$19*VLOOKUP($B$8,'Income unirrigated'!$C$64:$G$72,5)+AB$20*VLOOKUP($B$8,'Income unirrigated'!$C$79:$G$87,5) -> 5865.585 | AC91: =+AC$16*VLOOKUP($B$8,'Income irrigated'!$C$66:$G$74,5)+AC$17*VLOOKUP($B$8,'Income irrigated'!$C$81:$G$89,5)+AC$19*VLOOKUP($B$8,'Income unirrigated'!$C$64:$G$72,5)+AC$20*VLOOKUP($B$8,'Income unirrigated'!$C$79:$G$87,5) -> 5865.585 | AD91: =+AD$16*VLOOKUP($B$8,'Income irrigated'!$C$66:$G$74,5)+AD$17*VLOOKUP($B$8,'Income irrigated'!$C$81:$G$89,5)+AD$19*VLOOKUP($B$8,'Income unirrigated'!$C$64:$G$72,5)+AD$20*VLOOKUP($B$8,'Income unirrigated'!$C$79:$G$87,5) -> 5865.585 | AE91: =+AE$16*VLOOKUP($B$8,'Income irrigated'!$C$66:$G$74,5)+AE$17*VLOOKUP($B$8,'Income irrigated'!$C$81:$G$89,5)+AE$19*VLOOKUP($B$8,'Income unirrigated'!$C$64:$G$72,5)+AE$20*VLOOKUP($B$8,'Income unirrigated'!$C$79:$G$87,5) -> 5865.585 | AF91: =+AF$16*VLOOKUP($B$8,'Income irrigated'!$C$66:$G$74,5)+AF$17*VLOOKUP($B$8,'Income irrigated'!$C$81:$G$89,5)+AF$19*VLOOKUP($B$8,'Income unirrigated'!$C$64:$G$72,5)+AF$20*VLOOKUP($B$8,'Income unirrigated'!$C$79:$G$87,5) -> 5865.585 | AG91: =+AG$16*VLOOKUP($B$8,'Income irrigated'!$C$66:$G$74,5)+AG$17*VLOOKUP($B$8,'Income irrigated'!$C$81:$G$89,5)+AG$19*VLOOKUP($B$8,'Income unirrigated'!$C$64:$G$72,5)+AG$20*VLOOKUP($B$8,'Income unirrigated'!$C$79:$G$87,5) -> 5865.585
A92: Average Land Rental paid per hectare | D92: =VLOOKUP($B$8,'Income irrigated'!$C$51:$G$59,4)*VLOOKUP($B$8,'Income irrigated'!$C$51:$G$59,5) -> 92.88 | E92: =VLOOKUP($B$8,'Income irrigated'!$C$51:$G$59,4)*VLOOKUP($B$8,'Income irrigated'!$C$51:$G$59,5) -> 92.88 | F92: =VLOOKUP($B$8,'Income irrigated'!$C$51:$G$59,4)*VLOOKUP($B$8,'Income irrigated'!$C$51:$G$59,5) -> 92.88 | G92: =VLOOKUP($B$8,'Income irrigated'!$C$51:$G$59,4)*VLOOKUP($B$8,'Income irrigated'!$C$51:$G$59,5) -> 92.88 | H92: =VLOOKUP($B$8,'Income irrigated'!$C$51:$G$59,4)*VLOOKUP($B$8,'Income irrigated'!$C$51:$G$59,5) -> 92.88 | I92: =VLOOKUP($B$8,'Income irrigated'!$C$51:$G$59,4)*VLOOKUP($B$8,'Income irrigated'!$C$51:$G$59,5) -> 92.88 | J92: =VLOOKUP($B$8,'Income irrigated'!$C$51:$G$59,4)*VLOOKUP($B$8,'Income irrigated'!$C$51:$G$59,5) -> 92.88 | K92: =VLOOKUP($B$8,'Income irrigated'!$C$51:$G$59,4)*VLOOKUP($B$8,'Income irrigated'!$C$51:$G$59,5) -> 92.88 | L92: =VLOOKUP($B$8,'Income irrigated'!$C$51:$G$59,4)*VLOOKUP($B$8,'Income irrigated'!$C$51:$G$59,5) -> 92.88 | M92: =VLOOKUP($B$8,'Income irrigated'!$C$51:$G$59,4)*VLOOKUP($B$8,'Income irrigated'!$C$51:$G$59,5) -> 92.88 | N92: =VLOOKUP($B$8,'Income irrigated'!$C$51:$G$59,4)*VLOOKUP($B$8,'Income irrigated'!$C$51:$G$59,5) -> 92.88 | O92: =VLOOKUP($B$8,'Income irrigated'!$C$51:$G$59,4)*VLOOKUP($B$8,'Income irrigated'!$C$51:$G$59,5) -> 92.88 | P92: =VLOOKUP($B$8,'Income irrigated'!$C$51:$G$59,4)*VLOOKUP($B$8,'Income irrigated'!$C$51:$G$59,5) -> 92.88 | Q92: =VLOOKUP($B$8,'Income irrigated'!$C$51:$G$59,4)*VLOOKUP($B$8,'Income irrigated'!$C$51:$G$59,5) -> 92.88 | R92: =VLOOKUP($B$8,'Income irrigated'!$C$51:$G$59,4)*VLOOKUP($B$8,'Income irrigated'!$C$51:$G$59,5) -> 92.88 | S92: =VLOOKUP($B$8,'Income irrigated'!$C$51:$G$59,4)*VLOOKUP($B$8,'Income irrigated'!$C$51:$G$59,5) -> 92.88 | T92: =VLOOKUP($B$8,'Income irrigated'!$C$51:$G$59,4)*VLOOKUP($B$8,'Income irrigated'!$C$51:$G$59,5) -> 92.88 | U92: =VLOOKUP($B$8,'Income irrigated'!$C$51:$G$59,4)*VLOOKUP($B$8,'Income irrigated'!$C$51:$G$59,5) -> 92.88 | V92: =VLOOKUP($B$8,'Income irrigated'!$C$51:$G$59,4)*VLOOKUP($B$8,'Income irrigated'!$C$51:$G$59,5) -> 92.88 | W92: =VLOOKUP($B$8,'Income irrigated'!$C$51:$G$59,4)*VLOOKUP($B$8,'Income irrigated'!$C$51:$G$59,5) -> 92.88 | X92: =VLOOKUP($B$8,'Income irrigated'!$C$51:$G$59,4)*VLOOKUP($B$8,'Income irrigated'!$C$51:$G$59,5) -> 92.88 | Y92: =VLOOKUP($B$8,'Income irrigated'!$C$51:$G$59,4)*VLOOKUP($B$8,'Income irrigated'!$C$51:$G$59,5) -> 92.88 | Z92: =VLOOKUP($B$8,'Income irrigated'!$C$51:$G$59,4)*VLOOKUP($B$8,'Income irrigated'!$C$51:$G$59,5) -> 92.88 | AA92: =VLOOKUP($B$8,'Income irrigated'!$C$51:$G$59,4)*VLOOKUP($B$8,'Income irrigated'!$C$51:$G$59,5) -> 92.88 | AB92: =VLOOKUP($B$8,'Income irrigated'!$C$51:$G$59,4)*VLOOKUP($B$8,'Income irrigated'!$C$51:$G$59,5) -> 92.88 | AC92: =VLOOKUP($B$8,'Income irrigated'!$C$51:$G$59,4)*VLOOKUP($B$8,'Income irrigated'!$C$51:$G$59,5) -> 92.88 | AD92: =VLOOKUP($B$8,'Income irrigated'!$C$51:$G$59,4)*VLOOKUP($B$8,'Income irrigated'!$C$51:$G$59,5) -> 92.88 | AE92: =VLOOKUP($B$8,'Income irrigated'!$C$51:$G$59,4)*VLOOKUP($B$8,'Income irrigated'!$C$51:$G$59,5) -> 92.88 | AF92: =VLOOKUP($B$8,'Income irrigated'!$C$51:$G$59,4)*VLOOKUP($B$8,'Income irrigated'!$C$51:$G$59,5) -> 92.88 | AG92: =VLOOKUP($B$8,'Income irrigated'!$C$51:$G$59,4)*VLOOKUP($B$8,'Income irrigated'!$C$51:$G$59,5) -> 92.88
A93: Farm Income per hectare after rental | D93: =+D85-D92 -> 11908.89276 | E93: 18486.32953 | F93: 25063.76629 | G93: 31641.20306 | H93: 38218.63982 | I93: 44796.07659 | J93: 49181.03443 | K93: 49181.03443 | L93: 49181.03443 | M93: 49181.03443 | N93: 49181.03443 | O93: 49181.03443 | P93: 49181.03443 | Q93: 49181.03443 | R93: 32566.16739 | S93: 32566.16739 | T93: 32566.16739 | U93: 32566.16739 | V93: 32566.16739 | W93: 32566.16739 | X93: 32566.16739 | Y93: 32566.16739 | Z93: 32566.16739 | AA93: 32566.16739 | AB93: 32566.16739 | AC93: 32566.16739 | AD93: 32566.16739 | AE93: 32566.16739 | AF93: 32566.16739 | AG93: 32566.16739
A94: Investment Costs of irrigation | D94: =+'Common Assumptions'!G120*D74 -> 0 | E94: =IF(E74>D74,+(E74-D74)*'Common Assumptions'!$G$66,0) -> 1500 | F94: =IF(F74>E74,+(F74-E74)*'Common Assumptions'!$G$66,0) -> 1500 | G94: =IF(G74>F74,+(G74-F74)*'Common Assumptions'!$G$66,0) -> 1500 | H94: =IF(H74>G74,+(H74-G74)*'Common Assumptions'!$G$66,0) -> 1500 | I94: =IF(I74>H74,+(I74-H74)*'Common Assumptions'!$G$66,0) -> 1500 | J94: =IF(J74>I74,+(J74-I74)*'Common Assumptions'!$G$66,0) -> 1000 | K94: =SUM(D94:J94) -> 8500 | L94: =IF(L74>K74,+(L74-K74)*'Common Assumptions'!$G$66,0) -> 0 | M94: =IF(M74>L74,+(M74-L74)*'Common Assumptions'!$G$66,0) -> 0 | N94: =IF(N74>M74,+(N74-M74)*'Common Assumptions'!$G$66,0) -> 0 | O94: =IF(O74>N74,+(O74-N74)*'Common Assumptions'!$G$66,0) -> 0 | P94: =IF(P74>O74,+(P74-O74)*'Common Assumptions'!$G$66,0) -> 0 | Q94: =IF(Q74>P74,+(Q74-P74)*'Common Assumptions'!$G$66,0) -> 0 | R94: =IF(R74>Q74,+(R74-Q74)*'Common Assumptions'!$G$66,0) -> 0 | S94: =+K94 -> 8500 | T94: =IF(T74>S74,+(T74-S74)*'Common Assumptions'!$G$66,0) -> 0 | U94: =IF(U74>T74,+(U74-T74)*'Common Assumptions'!$G$66,0) -> 0 | V94: =IF(V74>U74,+(V74-U74)*'Common Assumptions'!$G$66,0) -> 0 | W94: =IF(W74>V74,+(W74-V74)*'Common Assumptions'!$G$66,0) -> 0 | X94: =IF(X74>W74,+(X74-W74)*'Common Assumptions'!$G$66,0) -> 0 | Y94: =IF(Y74>X74,+(Y74-X74)*'Common Assumptions'!$G$66,0) -> 0 | Z94: =IF(Z74>Y74,+(Z74-Y74)*'Common Assumptions'!$G$66,0) -> 0 | AA94: =+S94 -> 8500 | AB94: =IF(AB74>AA74,+(AB74-AA74)*'Common Assumptions'!$G$66,0) -> 0 | AC94: =IF(AC74>AB74,+(AC74-AB74)*'Common Assumptions'!$G$66,0) -> 0 | AD94: =IF(AD74>AC74,+(AD74-AC74)*'Common Assumptions'!$G$66,0) -> 0 | AE94: =IF(AE74>AD74,+(AE74-AD74)*'Common Assumptions'!$G$66,0) -> 0 | AF94: =IF(AF74>AE74,+(AF74-AE74)*'Common Assumptions'!$G$66,0) -> 0 | AG94: =IF(AG74>AF74,+(AG74-AF74)*'Common Assumptions'!$G$66,0) -> 0
A96: Without Irrigation (='Without project' except that a small portion of land is irrigated)
A98: Year after rehabilitation | D98: 1 | E98: 2 | F98: 3 | G98: 4 | H98: 5 | I98: 6 | J98: 7 | K98: 8 | L98: 9 | M98: 10 | N98: 11 | O98: 12 | P98: 13 | Q98: 14 | R98: 15 | S98: 16 | T98: 17 | U98: 18 | V98: 19 | W98: 20 | X98: 21 | Y98: 22 | Z98: 23 | AA98: 24 | AB98: 25 | AC98: 26 | AD98: 27 | AE98: 28 | AF98: 29 | AG98: 30
A99: Fraction of land irrigated | D99: 0 | E99: 0 | F99: 0 | G99: 0 | H99: 0 | I99: 0 | J99: 0 | K99: 0 | L99: 0 | M99: 0 | N99: 0 | O99: 0 | P99: 0 | Q99: 0 | R99: 0 | S99: 0 | T99: 0 | U99: 0 | V99: 0 | W99: 0 | X99: 0 | Y99: 0 | Z99: 0 | AA99: 0 | AB99: 0 | AC99: 0 | AD99: 0 | AE99: 0 | AF99: 0 | AG99: 0
A100: Fraction of land unirrigated HVA | D100: =VLOOKUP($B$8,'Income unirrigated'!$C$4:$J$12,3) -> 0.85 | E100: =VLOOKUP($B$8,'Income unirrigated'!$C$4:$J$12,3) -> 0.85 | F100: =VLOOKUP($B$8,'Income unirrigated'!$C$4:$J$12,3) -> 0.85 | G100: =VLOOKUP($B$8,'Income unirrigated'!$C$4:$J$12,3) -> 0.85 | H100: =VLOOKUP($B$8,'Income unirrigated'!$C$4:$J$12,3) -> 0.85 | I100: =VLOOKUP($B$8,'Income unirrigated'!$C$4:$J$12,3) -> 0.85 | J100: =VLOOKUP($B$8,'Income unirrigated'!$C$4:$J$12,3) -> 0.85 | K100: =VLOOKUP($B$8,'Income unirrigated'!$C$4:$J$12,3) -> 0.85 | L100: =VLOOKUP($B$8,'Income unirrigated'!$C$4:$J$12,3) -> 0.85 | M100: =VLOOKUP($B$8,'Income unirrigated'!$C$4:$J$12,3) -> 0.85 | N100: =VLOOKUP($B$8,'Income unirrigated'!$C$4:$J$12,3) -> 0.85 | O100: =VLOOKUP($B$8,'Income unirrigated'!$C$4:$J$12,3) -> 0.85 | P100: =VLOOKUP($B$8,'Income unirrigated'!$C$4:$J$12,3) -> 0.85 | Q100: =VLOOKUP($B$8,'Income unirrigated'!$C$4:$J$12,3) -> 0.85 | R100: =VLOOKUP($B$8,'Income unirrigated'!$C$4:$J$12,3) -> 0.85 | S100: =VLOOKUP($B$8,'Income unirrigated'!$C$4:$J$12,3) -> 0.85 | T100: =VLOOKUP($B$8,'Income unirrigated'!$C$4:$J$12,3) -> 0.85 | U100: =VLOOKUP($B$8,'Income unirrigated'!$C$4:$J$12,3) -> 0.85 | V100: =VLOOKUP($B$8,'Income unirrigated'!$C$4:$J$12,3) -> 0.85 | W100: =VLOOKUP($B$8,'Income unirrigated'!$C$4:$J$12,3) -> 0.85 | X100: =VLOOKUP($B$8,'Income unirrigated'!$C$4:$J$12,3) -> 0.85 | Y100: =VLOOKUP($B$8,'Income unirrigated'!$C$4:$J$12,3) -> 0.85 | Z100: =VLOOKUP($B$8,'Income unirrigated'!$C$4:$J$12,3) -> 0.85 | AA100: =VLOOKUP($B$8,'Income unirrigated'!$C$4:$J$12,3) -> 0.85 | AB100: =VLOOKUP($B$8,'Income unirrigated'!$C$4:$J$12,3) -> 0.85 | AC100: =VLOOKUP($B$8,'Income unirrigated'!$C$4:$J$12,3) -> 0.85 | AD100: =VLOOKUP($B$8,'Income unirrigated'!$C$4:$J$12,3) -> 0.85 | AE100: =VLOOKUP($B$8,'Income unirrigated'!$C$4:$J$12,3) -> 0.85 | AF100: =VLOOKUP($B$8,'Income unirrigated'!$C$4:$J$12,3) -> 0.85 | AG100: =VLOOKUP($B$8,'Income unirrigated'!$C$4:$J$12,3) -> 0.85
A101: Fraction of land unirrigated non-HVA | D101: =1-D100 -> 0.15 | E101: 0.15 | F101: 0.15 | G101: 0.15 | H101: 0.15 | I101: 0.15 | J101: 0.15 | K101: 0.15 | L101: 0.15 | M101: 0.15 | N101: 0.15 | O101: 0.15 | P101: 0.15 | Q101: 0.15 | R101: 0.15 | S101: 0.15 | T101: 0.15 | U101: 0.15 | V101: 0.15 | W101: 0.15 | X101: 0.15 | Y101: 0.15 | Z101: 0.15 | AA101: 0.15 | AB101: 0.15 | AC101: 0.15 | AD101: 0.15 | AE101: 0.15 | AF101: 0.15 | AG101: 0.15
A102: Farm Income per hectare without irrigation | D102: =VLOOKUP($B$8,'Income unirrigated'!$C$20:$J$28, 3,FALSE)*D100+VLOOKUP($B$8,'Income unirrigated'!$C$34:$J$42,3,FALSE)*D101 -> 5424.336 | E102: =VLOOKUP($B$8,'Income unirrigated'!$C$20:$J$28, 3,FALSE)*E100+VLOOKUP($B$8,'Income unirrigated'!$C$34:$J$42,3,FALSE)*E101 -> 5424.336 | F102: =VLOOKUP($B$8,'Income unirrigated'!$C$20:$J$28, 3,FALSE)*F100+VLOOKUP($B$8,'Income unirrigated'!$C$34:$J$42,3,FALSE)*F101 -> 5424.336 | G102: =VLOOKUP($B$8,'Income unirrigated'!$C$20:$J$28, 3,FALSE)*G100+VLOOKUP($B$8,'Income unirrigated'!$C$34:$J$42,3,FALSE)*G101 -> 5424.336 | H102: =VLOOKUP($B$8,'Income unirrigated'!$C$20:$J$28, 3,FALSE)*H100+VLOOKUP($B$8,'Income unirrigated'!$C$34:$J$42,3,FALSE)*H101 -> 5424.336 | I102: =VLOOKUP($B$8,'Income unirrigated'!$C$20:$J$28, 3,FALSE)*I100+VLOOKUP($B$8,'Income unirrigated'!$C$34:$J$42,3,FALSE)*I101 -> 5424.336 | J102: =VLOOKUP($B$8,'Income unirrigated'!$C$20:$J$28, 3,FALSE)*J100+VLOOKUP($B$8,'Income unirrigated'!$C$34:$J$42,3,FALSE)*J101 -> 5424.336 | K102: =VLOOKUP($B$8,'Income unirrigated'!$C$20:$J$28, 3,FALSE)*K100+VLOOKUP($B$8,'Income unirrigated'!$C$34:$J$42,3,FALSE)*K101 -> 5424.336 | L102: =VLOOKUP($B$8,'Income unirrigated'!$C$20:$J$28, 3,FALSE)*L100+VLOOKUP($B$8,'Income unirrigated'!$C$34:$J$42,3,FALSE)*L101 -> 5424.336 | M102: =VLOOKUP($B$8,'Income unirrigated'!$C$20:$J$28, 3,FALSE)*M100+VLOOKUP($B$8,'Income unirrigated'!$C$34:$J$42,3,FALSE)*M101 -> 5424.336 | N102: =VLOOKUP($B$8,'Income unirrigated'!$C$20:$J$28, 3,FALSE)*N100+VLOOKUP($B$8,'Income unirrigated'!$C$34:$J$42,3,FALSE)*N101 -> 5424.336 | O102: =VLOOKUP($B$8,'Income unirrigated'!$C$20:$J$28, 3,FALSE)*O100+VLOOKUP($B$8,'Income unirrigated'!$C$34:$J$42,3,FALSE)*O101 -> 5424.336 | P102: =VLOOKUP($B$8,'Income unirrigated'!$C$20:$J$28, 3,FALSE)*P100+VLOOKUP($B$8,'Income unirrigated'!$C$34:$J$42,3,FALSE)*P101 -> 5424.336 | Q102: =VLOOKUP($B$8,'Income unirrigated'!$C$20:$J$28, 3,FALSE)*Q100+VLOOKUP($B$8,'Income unirrigated'!$C$34:$J$42,3,FALSE)*Q101 -> 5424.336 | R102: =VLOOKUP($B$8,'Income unirrigated'!$C$20:$J$28, 3,FALSE)*R100+VLOOKUP($B$8,'Income unirrigated'!$C$34:$J$42,3,FALSE)*R101 -> 5424.336 | S102: =VLOOKUP($B$8,'Income unirrigated'!$C$20:$J$28, 3,FALSE)*S100+VLOOKUP($B$8,'Income unirrigated'!$C$34:$J$42,3,FALSE)*S101 -> 5424.336 | T102: =VLOOKUP($B$8,'Income unirrigated'!$C$20:$J$28, 3,FALSE)*T100+VLOOKUP($B$8,'Income unirrigated'!$C$34:$J$42,3,FALSE)*T101 -> 5424.336 | U102: =VLOOKUP($B$8,'Income unirrigated'!$C$20:$J$28, 3,FALSE)*U100+VLOOKUP($B$8,'Income unirrigated'!$C$34:$J$42,3,FALSE)*U101 -> 5424.336 | V102: =VLOOKUP($B$8,'Income unirrigated'!$C$20:$J$28, 3,FALSE)*V100+VLOOKUP($B$8,'Income unirrigated'!$C$34:$J$42,3,FALSE)*V101 -> 5424.336 | W102: =VLOOKUP($B$8,'Income unirrigated'!$C$20:$J$28, 3,FALSE)*W100+VLOOKUP($B$8,'Income unirrigated'!$C$34:$J$42,3,FALSE)*W101 -> 5424.336 | X102: =VLOOKUP($B$8,'Income unirrigated'!$C$20:$J$28, 3,FALSE)*X100+VLOOKUP($B$8,'Income unirrigated'!$C$34:$J$42,3,FALSE)*X101 -> 5424.336 | Y102: =VLOOKUP($B$8,'Income unirrigated'!$C$20:$J$28, 3,FALSE)*Y100+VLOOKUP($B$8,'Income unirrigated'!$C$34:$J$42,3,FALSE)*Y101 -> 5424.336 | Z102: =VLOOKUP($B$8,'Income unirrigated'!$C$20:$J$28, 3,FALSE)*Z100+VLOOKUP($B$8,'Income unirrigated'!$C$34:$J$42,3,FALSE)*Z101 -> 5424.336 | AA102: =VLOOKUP($B$8,'Income unirrigated'!$C$20:$J$28, 3,FALSE)*AA100+VLOOKUP($B$8,'Income unirrigated'!$C$34:$J$42,3,FALSE)*AA101 -> 5424.336 | AB102: =VLOOKUP($B$8,'Income unirrigated'!$C$20:$J$28, 3,FALSE)*AB100+VLOOKUP($B$8,'Income unirrigated'!$C$34:$J$42,3,FALSE)*AB101 -> 5424.336 | AC102: =VLOOKUP($B$8,'Income unirrigated'!$C$20:$J$28, 3,FALSE)*AC100+VLOOKUP($B$8,'Income unirrigated'!$C$34:$J$42,3,FALSE)*AC101 -> 5424.336 | AD102: =VLOOKUP($B$8,'Income unirrigated'!$C$20:$J$28, 3,FALSE)*AD100+VLOOKUP($B$8,'Income unirrigated'!$C$34:$J$42,3,FALSE)*AD101 -> 5424.336 | AE102: =VLOOKUP($B$8,'Income unirrigated'!$C$20:$J$28, 3,FALSE)*AE100+VLOOKUP($B$8,'Income unirrigated'!$C$34:$J$42,3,FALSE)*AE101 -> 5424.336 | AF102: =VLOOKUP($B$8,'Income unirrigated'!$C$20:$J$28, 3,FALSE)*AF100+VLOOKUP($B$8,'Income unirrigated'!$C$34:$J$42,3,FALSE)*AF101 -> 5424.336 | AG102: =VLOOKUP($B$8,'Income unirrigated'!$C$20:$J$28, 3,FALSE)*AG100+VLOOKUP($B$8,'Income unirrigated'!$C$34:$J$42,3,FALSE)*AG101 -> 5424.336
A103: From which was deducted:
A104: Labor Costs | D104: =SUM(D105:D107) -> 530 | E104: =SUM(E105:E107) -> 530 | F104: 530 | G104: 530 | H104: 530 | I104: 530 | J104: 530 | K104: 530 | L104: 530 | M104: 530 | N104: 530 | O104: 530 | P104: 530 | Q104: 530 | R104: 530 | S104: 530 | T104: 530 | U104: 530 | V104: 530 | W104: 530 | X104: 530 | Y104: 530 | Z104: 530 | AA104: 530 | AB104: 530 | AC104: 530 | AD104: 530 | AE104: 530 | AF104: 530 | AG104: 530
A105: Cost of Family Labor | D105: =D$41*VLOOKUP($B$8,'Income unirrigated'!$C$64:$G129,3)+D$42*VLOOKUP($B$8,'Income unirrigated'!$C$79:$G$87,3) -> 360 | E105: =E$41*VLOOKUP($B$8,'Income unirrigated'!$C$64:$G129,3)+E$42*VLOOKUP($B$8,'Income unirrigated'!$C$79:$G$87,3) -> 360 | F105: =F$41*VLOOKUP($B$8,'Income unirrigated'!$C$64:$G129,3)+F$42*VLOOKUP($B$8,'Income unirrigated'!$C$79:$G$87,3) -> 360 | G105: =G$41*VLOOKUP($B$8,'Income unirrigated'!$C$64:$G129,3)+G$42*VLOOKUP($B$8,'Income unirrigated'!$C$79:$G$87,3) -> 360 | H105: =H$41*VLOOKUP($B$8,'Income unirrigated'!$C$64:$G129,3)+H$42*VLOOKUP($B$8,'Income unirrigated'!$C$79:$G$87,3) -> 360 | I105: =I$41*VLOOKUP($B$8,'Income unirrigated'!$C$64:$G129,3)+I$42*VLOOKUP($B$8,'Income unirrigated'!$C$79:$G$87,3) -> 360 | J105: =J$41*VLOOKUP($B$8,'Income unirrigated'!$C$64:$G129,3)+J$42*VLOOKUP($B$8,'Income unirrigated'!$C$79:$G$87,3) -> 360 | K105: =K$41*VLOOKUP($B$8,'Income unirrigated'!$C$64:$G129,3)+K$42*VLOOKUP($B$8,'Income unirrigated'!$C$79:$G$87,3) -> 360 | L105: =L$41*VLOOKUP($B$8,'Income unirrigated'!$C$64:$G129,3)+L$42*VLOOKUP($B$8,'Income unirrigated'!$C$79:$G$87,3) -> 360 | M105: =M$41*VLOOKUP($B$8,'Income unirrigated'!$C$64:$G129,3)+M$42*VLOOKUP($B$8,'Income unirrigated'!$C$79:$G$87,3) -> 360 | N105: =N$41*VLOOKUP($B$8,'Income unirrigated'!$C$64:$G129,3)+N$42*VLOOKUP($B$8,'Income unirrigated'!$C$79:$G$87,3) -> 360 | O105: =O$41*VLOOKUP($B$8,'Income unirrigated'!$C$64:$G129,3)+O$42*VLOOKUP($B$8,'Income unirrigated'!$C$79:$G$87,3) -> 360 | P105: =P$41*VLOOKUP($B$8,'Income unirrigated'!$C$64:$G129,3)+P$42*VLOOKUP($B$8,'Income unirrigated'!$C$79:$G$87,3) -> 360 | Q105: =Q$41*VLOOKUP($B$8,'Income unirrigated'!$C$64:$G129,3)+Q$42*VLOOKUP($B$8,'Income unirrigated'!$C$79:$G$87,3) -> 360 | R105: =R$41*VLOOKUP($B$8,'Income unirrigated'!$C$64:$G129,3)+R$42*VLOOKUP($B$8,'Income unirrigated'!$C$79:$G$87,3) -> 360 | S105: =S$41*VLOOKUP($B$8,'Income unirrigated'!$C$64:$G129,3)+S$42*VLOOKUP($B$8,'Income unirrigated'!$C$79:$G$87,3) -> 360 | T105: =T$41*VLOOKUP($B$8,'Income unirrigated'!$C$64:$G129,3)+T$42*VLOOKUP($B$8,'Income unirrigated'!$C$79:$G$87,3) -> 360 | U105: =U$41*VLOOKUP($B$8,'Income unirrigated'!$C$64:$G129,3)+U$42*VLOOKUP($B$8,'Income unirrigated'!$C$79:$G$87,3) -> 360 | V105: =V$41*VLOOKUP($B$8,'Income unirrigated'!$C$64:$G129,3)+V$42*VLOOKUP($B$8,'Income unirrigated'!$C$79:$G$87,3) -> 360 | W105: =W$41*VLOOKUP($B$8,'Income unirrigated'!$C$64:$G129,3)+W$42*VLOOKUP($B$8,'Income unirrigated'!$C$79:$G$87,3) -> 360 | X105: =X$41*VLOOKUP($B$8,'Income unirrigated'!$C$64:$G129,3)+X$42*VLOOKUP($B$8,'Income unirrigated'!$C$79:$G$87,3) -> 360 | Y105: =Y$41*VLOOKUP($B$8,'Income unirrigated'!$C$64:$G129,3)+Y$42*VLOOKUP($B$8,'Income unirrigated'!$C$79:$G$87,3) -> 360 | Z105: =Z$41*VLOOKUP($B$8,'Income unirrigated'!$C$64:$G129,3)+Z$42*VLOOKUP($B$8,'Income unirrigated'!$C$79:$G$87,3) -> 360 | AA105: =AA$41*VLOOKUP($B$8,'Income unirrigated'!$C$64:$G129,3)+AA$42*VLOOKUP($B$8,'Income unirrigated'!$C$79:$G$87,3) -> 360 | AB105: =AB$41*VLOOKUP($B$8,'Income unirrigated'!$C$64:$G129,3)+AB$42*VLOOKUP($B$8,'Income unirrigated'!$C$79:$G$87,3) -> 360 | AC105: =AC$41*VLOOKUP($B$8,'Income unirrigated'!$C$64:$G129,3)+AC$42*VLOOKUP($B$8,'Income unirrigated'!$C$79:$G$87,3) -> 360 | AD105: =AD$41*VLOOKUP($B$8,'Income unirrigated'!$C$64:$G129,3)+AD$42*VLOOKUP($B$8,'Income unirrigated'!$C$79:$G$87,3) -> 360 | AE105: =AE$41*VLOOKUP($B$8,'Income unirrigated'!$C$64:$G129,3)+AE$42*VLOOKUP($B$8,'Income unirrigated'!$C$79:$G$87,3) -> 360 | AF105: =AF$41*VLOOKUP($B$8,'Income unirrigated'!$C$64:$G129,3)+AF$42*VLOOKUP($B$8,'Income unirrigated'!$C$79:$G$87,3) -> 360 | AG105: =AG$41*VLOOKUP($B$8,'Income unirrigated'!$C$64:$G129,3)+AG$42*VLOOKUP($B$8,'Income unirrigated'!$C$79:$G$87,3) -> 360
A106: Cost of Full Time Labor | D106: =D$41*VLOOKUP($B$8,'Income unirrigated'!$C$64:$G130,4)+D$42*VLOOKUP($B$8,'Income unirrigated'!$C$79:$G$87,4) -> 5 | E106: =E$41*VLOOKUP($B$8,'Income unirrigated'!$C$64:$G130,4)+E$42*VLOOKUP($B$8,'Income unirrigated'!$C$79:$G$87,4) -> 5 | F106: =F$41*VLOOKUP($B$8,'Income unirrigated'!$C$64:$G130,4)+F$42*VLOOKUP($B$8,'Income unirrigated'!$C$79:$G$87,4) -> 5 | G106: =G$41*VLOOKUP($B$8,'Income unirrigated'!$C$64:$G130,4)+G$42*VLOOKUP($B$8,'Income unirrigated'!$C$79:$G$87,4) -> 5 | H106: =H$41*VLOOKUP($B$8,'Income unirrigated'!$C$64:$G130,4)+H$42*VLOOKUP($B$8,'Income unirrigated'!$C$79:$G$87,4) -> 5 | I106: =I$41*VLOOKUP($B$8,'Income unirrigated'!$C$64:$G130,4)+I$42*VLOOKUP($B$8,'Income unirrigated'!$C$79:$G$87,4) -> 5 | J106: =J$41*VLOOKUP($B$8,'Income unirrigated'!$C$64:$G130,4)+J$42*VLOOKUP($B$8,'Income unirrigated'!$C$79:$G$87,4) -> 5 | K106: =K$41*VLOOKUP($B$8,'Income unirrigated'!$C$64:$G130,4)+K$42*VLOOKUP($B$8,'Income unirrigated'!$C$79:$G$87,4) -> 5 | L106: =L$41*VLOOKUP($B$8,'Income unirrigated'!$C$64:$G130,4)+L$42*VLOOKUP($B$8,'Income unirrigated'!$C$79:$G$87,4) -> 5 | M106: =M$41*VLOOKUP($B$8,'Income unirrigated'!$C$64:$G130,4)+M$42*VLOOKUP($B$8,'Income unirrigated'!$C$79:$G$87,4) -> 5 | N106: =N$41*VLOOKUP($B$8,'Income unirrigated'!$C$64:$G130,4)+N$42*VLOOKUP($B$8,'Income unirrigated'!$C$79:$G$87,4) -> 5 | O106: =O$41*VLOOKUP($B$8,'Income unirrigated'!$C$64:$G130,4)+O$42*VLOOKUP($B$8,'Income unirrigated'!$C$79:$G$87,4) -> 5 | P106: =P$41*VLOOKUP($B$8,'Income unirrigated'!$C$64:$G130,4)+P$42*VLOOKUP($B$8,'Income unirrigated'!$C$79:$G$87,4) -> 5 | Q106: =Q$41*VLOOKUP($B$8,'Income unirrigated'!$C$64:$G130,4)+Q$42*VLOOKUP($B$8,'Income unirrigated'!$C$79:$G$87,4) -> 5 | R106: =R$41*VLOOKUP($B$8,'Income unirrigated'!$C$64:$G130,4)+R$42*VLOOKUP($B$8,'Income unirrigated'!$C$79:$G$87,4) -> 5 | S106: =S$41*VLOOKUP($B$8,'Income unirrigated'!$C$64:$G130,4)+S$42*VLOOKUP($B$8,'Income unirrigated'!$C$79:$G$87,4) -> 5 | T106: =T$41*VLOOKUP($B$8,'Income unirrigated'!$C$64:$G130,4)+T$42*VLOOKUP($B$8,'Income unirrigated'!$C$79:$G$87,4) -> 5 | U106: =U$41*VLOOKUP($B$8,'Income unirrigated'!$C$64:$G130,4)+U$42*VLOOKUP($B$8,'Income unirrigated'!$C$79:$G$87,4) -> 5 | V106: =V$41*VLOOKUP($B$8,'Income unirrigated'!$C$64:$G130,4)+V$42*VLOOKUP($B$8,'Income unirrigated'!$C$79:$G$87,4) -> 5 | W106: =W$41*VLOOKUP($B$8,'Income unirrigated'!$C$64:$G130,4)+W$42*VLOOKUP($B$8,'Income unirrigated'!$C$79:$G$87,4) -> 5 | X106: =X$41*VLOOKUP($B$8,'Income unirrigated'!$C$64:$G130,4)+X$42*VLOOKUP($B$8,'Income unirrigated'!$C$79:$G$87,4) -> 5 | Y106: =Y$41*VLOOKUP($B$8,'Income unirrigated'!$C$64:$G130,4)+Y$42*VLOOKUP($B$8,'Income unirrigated'!$C$79:$G$87,4) -> 5 | Z106: =Z$41*VLOOKUP($B$8,'Income unirrigated'!$C$64:$G130,4)+Z$42*VLOOKUP($B$8,'Income unirrigated'!$C$79:$G$87,4) -> 5 | AA106: =AA$41*VLOOKUP($B$8,'Income unirrigated'!$C$64:$G130,4)+AA$42*VLOOKUP($B$8,'Income unirrigated'!$C$79:$G$87,4) -> 5 | AB106: =AB$41*VLOOKUP($B$8,'Income unirrigated'!$C$64:$G130,4)+AB$42*VLOOKUP($B$8,'Income unirrigated'!$C$79:$G$87,4) -> 5 | AC106: =AC$41*VLOOKUP($B$8,'Income unirrigated'!$C$64:$G130,4)+AC$42*VLOOKUP($B$8,'Income unirrigated'!$C$79:$G$87,4) -> 5 | AD106: =AD$41*VLOOKUP($B$8,'Income unirrigated'!$C$64:$G130,4)+AD$42*VLOOKUP($B$8,'Income unirrigated'!$C$79:$G$87,4) -> 5 | AE106: =AE$41*VLOOKUP($B$8,'Income unirrigated'!$C$64:$G130,4)+AE$42*VLOOKUP($B$8,'Income unirrigated'!$C$79:$G$87,4) -> 5 | AF106: =AF$41*VLOOKUP($B$8,'Income unirrigated'!$C$64:$G130,4)+AF$42*VLOOKUP($B$8,'Income unirrigated'!$C$79:$G$87,4) -> 5 | AG106: =AG$41*VLOOKUP($B$8,'Income unirrigated'!$C$64:$G130,4)+AG$42*VLOOKUP($B$8,'Income unirrigated'!$C$79:$G$87,4) -> 5
A107: Cost of Casual Labor | D107: =D$41*VLOOKUP($B$8,'Income unirrigated'!$C$64:$G131,5)+D$42*VLOOKUP($B$8,'Income unirrigated'!$C$79:$G$87,5) -> 165 | E107: =E$41*VLOOKUP($B$8,'Income unirrigated'!$C$64:$G131,5)+E$42*VLOOKUP($B$8,'Income unirrigated'!$C$79:$G$87,5) -> 165 | F107: =F$41*VLOOKUP($B$8,'Income unirrigated'!$C$64:$G131,5)+F$42*VLOOKUP($B$8,'Income unirrigated'!$C$79:$G$87,5) -> 165 | G107: =G$41*VLOOKUP($B$8,'Income unirrigated'!$C$64:$G131,5)+G$42*VLOOKUP($B$8,'Income unirrigated'!$C$79:$G$87,5) -> 165 | H107: =H$41*VLOOKUP($B$8,'Income unirrigated'!$C$64:$G131,5)+H$42*VLOOKUP($B$8,'Income unirrigated'!$C$79:$G$87,5) -> 165 | I107: =I$41*VLOOKUP($B$8,'Income unirrigated'!$C$64:$G131,5)+I$42*VLOOKUP($B$8,'Income unirrigated'!$C$79:$G$87,5) -> 165 | J107: =J$41*VLOOKUP($B$8,'Income unirrigated'!$C$64:$G131,5)+J$42*VLOOKUP($B$8,'Income unirrigated'!$C$79:$G$87,5) -> 165 | K107: =K$41*VLOOKUP($B$8,'Income unirrigated'!$C$64:$G131,5)+K$42*VLOOKUP($B$8,'Income unirrigated'!$C$79:$G$87,5) -> 165 | L107: =L$41*VLOOKUP($B$8,'Income unirrigated'!$C$64:$G131,5)+L$42*VLOOKUP($B$8,'Income unirrigated'!$C$79:$G$87,5) -> 165 | M107: =M$41*VLOOKUP($B$8,'Income unirrigated'!$C$64:$G131,5)+M$42*VLOOKUP($B$8,'Income unirrigated'!$C$79:$G$87,5) -> 165 | N107: =N$41*VLOOKUP($B$8,'Income unirrigated'!$C$64:$G131,5)+N$42*VLOOKUP($B$8,'Income unirrigated'!$C$79:$G$87,5) -> 165 | O107: =O$41*VLOOKUP($B$8,'Income unirrigated'!$C$64:$G131,5)+O$42*VLOOKUP($B$8,'Income unirrigated'!$C$79:$G$87,5) -> 165 | P107: =P$41*VLOOKUP($B$8,'Income unirrigated'!$C$64:$G131,5)+P$42*VLOOKUP($B$8,'Income unirrigated'!$C$79:$G$87,5) -> 165 | Q107: =Q$41*VLOOKUP($B$8,'Income unirrigated'!$C$64:$G131,5)+Q$42*VLOOKUP($B$8,'Income unirrigated'!$C$79:$G$87,5) -> 165 | R107: =R$41*VLOOKUP($B$8,'Income unirrigated'!$C$64:$G131,5)+R$42*VLOOKUP($B$8,'Income unirrigated'!$C$79:$G$87,5) -> 165 | S107: =S$41*VLOOKUP($B$8,'Income unirrigated'!$C$64:$G131,5)+S$42*VLOOKUP($B$8,'Income unirrigated'!$C$79:$G$87,5) -> 165 | T107: =T$41*VLOOKUP($B$8,'Income unirrigated'!$C$64:$G131,5)+T$42*VLOOKUP($B$8,'Income unirrigated'!$C$79:$G$87,5) -> 165 | U107: =U$41*VLOOKUP($B$8,'Income unirrigated'!$C$64:$G131,5)+U$42*VLOOKUP($B$8,'Income unirrigated'!$C$79:$G$87,5) -> 165 | V107: =V$41*VLOOKUP($B$8,'Income unirrigated'!$C$64:$G131,5)+V$42*VLOOKUP($B$8,'Income unirrigated'!$C$79:$G$87,5) -> 165 | W107: =W$41*VLOOKUP($B$8,'Income unirrigated'!$C$64:$G131,5)+W$42*VLOOKUP($B$8,'Income unirrigated'!$C$79:$G$87,5) -> 165 | X107: =X$41*VLOOKUP($B$8,'Income unirrigated'!$C$64:$G131,5)+X$42*VLOOKUP($B$8,'Income unirrigated'!$C$79:$G$87,5) -> 165 | Y107: =Y$41*VLOOKUP($B$8,'Income unirrigated'!$C$64:$G131,5)+Y$42*VLOOKUP($B$8,'Income unirrigated'!$C$79:$G$87,5) -> 165 | Z107: =Z$41*VLOOKUP($B$8,'Income unirrigated'!$C$64:$G131,5)+Z$42*VLOOKUP($B$8,'Income unirrigated'!$C$79:$G$87,5) -> 165 | AA107: =AA$41*VLOOKUP($B$8,'Income unirrigated'!$C$64:$G131,5)+AA$42*VLOOKUP($B$8,'Income unirrigated'!$C$79:$G$87,5) -> 165 | AB107: =AB$41*VLOOKUP($B$8,'Income unirrigated'!$C$64:$G131,5)+AB$42*VLOOKUP($B$8,'Income unirrigated'!$C$79:$G$87,5) -> 165 | AC107: =AC$41*VLOOKUP($B$8,'Income unirrigated'!$C$64:$G131,5)+AC$42*VLOOKUP($B$8,'Income unirrigated'!$C$79:$G$87,5) -> 165 | AD107: =AD$41*VLOOKUP($B$8,'Income unirrigated'!$C$64:$G131,5)+AD$42*VLOOKUP($B$8,'Income unirrigated'!$C$79:$G$87,5) -> 165 | AE107: =AE$41*VLOOKUP($B$8,'Income unirrigated'!$C$64:$G131,5)+AE$42*VLOOKUP($B$8,'Income unirrigated'!$C$79:$G$87,5) -> 165 | AF107: =AF$41*VLOOKUP($B$8,'Income unirrigated'!$C$64:$G131,5)+AF$42*VLOOKUP($B$8,'Income unirrigated'!$C$79:$G$87,5) -> 165 | AG107: =AG$41*VLOOKUP($B$8,'Income unirrigated'!$C$64:$G131,5)+AG$42*VLOOKUP($B$8,'Income unirrigated'!$C$79:$G$87,5) -> 165
A108: Average Land Rental paid per hectare | D108: =VLOOKUP($B$8,'Income unirrigated'!$C$49:$G$57,4)*VLOOKUP($B$8,'Income unirrigated'!$C$49:$G$57,5) -> 77.4 | E108: =VLOOKUP($B$8,'Income unirrigated'!$C$49:$G$57,4)*VLOOKUP($B$8,'Income unirrigated'!$C$49:$G$57,5) -> 77.4 | F108: =VLOOKUP($B$8,'Income unirrigated'!$C$49:$G$57,4)*VLOOKUP($B$8,'Income unirrigated'!$C$49:$G$57,5) -> 77.4 | G108: =VLOOKUP($B$8,'Income unirrigated'!$C$49:$G$57,4)*VLOOKUP($B$8,'Income unirrigated'!$C$49:$G$57,5) -> 77.4 | H108: =VLOOKUP($B$8,'Income unirrigated'!$C$49:$G$57,4)*VLOOKUP($B$8,'Income unirrigated'!$C$49:$G$57,5) -> 77.4 | I108: =VLOOKUP($B$8,'Income unirrigated'!$C$49:$G$57,4)*VLOOKUP($B$8,'Income unirrigated'!$C$49:$G$57,5) -> 77.4 | J108: =VLOOKUP($B$8,'Income unirrigated'!$C$49:$G$57,4)*VLOOKUP($B$8,'Income unirrigated'!$C$49:$G$57,5) -> 77.4 | K108: =VLOOKUP($B$8,'Income unirrigated'!$C$49:$G$57,4)*VLOOKUP($B$8,'Income unirrigated'!$C$49:$G$57,5) -> 77.4 | L108: =VLOOKUP($B$8,'Income unirrigated'!$C$49:$G$57,4)*VLOOKUP($B$8,'Income unirrigated'!$C$49:$G$57,5) -> 77.4 | M108: =VLOOKUP($B$8,'Income unirrigated'!$C$49:$G$57,4)*VLOOKUP($B$8,'Income unirrigated'!$C$49:$G$57,5) -> 77.4 | N108: =VLOOKUP($B$8,'Income unirrigated'!$C$49:$G$57,4)*VLOOKUP($B$8,'Income unirrigated'!$C$49:$G$57,5) -> 77.4 | O108: =VLOOKUP($B$8,'Income unirrigated'!$C$49:$G$57,4)*VLOOKUP($B$8,'Income unirrigated'!$C$49:$G$57,5) -> 77.4 | P108: =VLOOKUP($B$8,'Income unirrigated'!$C$49:$G$57,4)*VLOOKUP($B$8,'Income unirrigated'!$C$49:$G$57,5) -> 77.4 | Q108: =VLOOKUP($B$8,'Income unirrigated'!$C$49:$G$57,4)*VLOOKUP($B$8,'Income unirrigated'!$C$49:$G$57,5) -> 77.4 | R108: =VLOOKUP($B$8,'Income unirrigated'!$C$49:$G$57,4)*VLOOKUP($B$8,'Income unirrigated'!$C$49:$G$57,5) -> 77.4 | S108: =VLOOKUP($B$8,'Income unirrigated'!$C$49:$G$57,4)*VLOOKUP($B$8,'Income unirrigated'!$C$49:$G$57,5) -> 77.4 | T108: =VLOOKUP($B$8,'Income unirrigated'!$C$49:$G$57,4)*VLOOKUP($B$8,'Income unirrigated'!$C$49:$G$57,5) -> 77.4 | U108: =VLOOKUP($B$8,'Income unirrigated'!$C$49:$G$57,4)*VLOOKUP($B$8,'Income unirrigated'!$C$49:$G$57,5) -> 77.4 | V108: =VLOOKUP($B$8,'Income unirrigated'!$C$49:$G$57,4)*VLOOKUP($B$8,'Income unirrigated'!$C$49:$G$57,5) -> 77.4 | W108: =VLOOKUP($B$8,'Income unirrigated'!$C$49:$G$57,4)*VLOOKUP($B$8,'Income unirrigated'!$C$49:$G$57,5) -> 77.4 | X108: =VLOOKUP($B$8,'Income unirrigated'!$C$49:$G$57,4)*VLOOKUP($B$8,'Income unirrigated'!$C$49:$G$57,5) -> 77.4 | Y108: =VLOOKUP($B$8,'Income unirrigated'!$C$49:$G$57,4)*VLOOKUP($B$8,'Income unirrigated'!$C$49:$G$57,5) -> 77.4 | Z108: =VLOOKUP($B$8,'Income unirrigated'!$C$49:$G$57,4)*VLOOKUP($B$8,'Income unirrigated'!$C$49:$G$57,5) -> 77.4 | AA108: =VLOOKUP($B$8,'Income unirrigated'!$C$49:$G$57,4)*VLOOKUP($B$8,'Income unirrigated'!$C$49:$G$57,5) -> 77.4 | AB108: =VLOOKUP($B$8,'Income unirrigated'!$C$49:$G$57,4)*VLOOKUP($B$8,'Income unirrigated'!$C$49:$G$57,5) -> 77.4 | AC108: =VLOOKUP($B$8,'Income unirrigated'!$C$49:$G$57,4)*VLOOKUP($B$8,'Income unirrigated'!$C$49:$G$57,5) -> 77.4 | AD108: =VLOOKUP($B$8,'Income unirrigated'!$C$49:$G$57,4)*VLOOKUP($B$8,'Income unirrigated'!$C$49:$G$57,5) -> 77.4 | AE108: =VLOOKUP($B$8,'Income unirrigated'!$C$49:$G$57,4)*VLOOKUP($B$8,'Income unirrigated'!$C$49:$G$57,5) -> 77.4 | AF108: =VLOOKUP($B$8,'Income unirrigated'!$C$49:$G$57,4)*VLOOKUP($B$8,'Income unirrigated'!$C$49:$G$57,5) -> 77.4 | AG108: =VLOOKUP($B$8,'Income unirrigated'!$C$49:$G$57,4)*VLOOKUP($B$8,'Income unirrigated'!$C$49:$G$57,5) -> 77.4
A111: Farmers' Share of Rehabilitation Costs | B111: =+'Common Assumptions'!$A$94 -> 0 | C111: =+'Common Assumptions'!$A$94 -> 0
A112: Change in Net Income per hectare | B112: =+B85-B94-B102-B111 -> 0 | C112: 0 | D112: 6577.436764 | E112: 11654.87353 | F112: 18232.31029 | G112: 24809.74706 | H112: 31387.18382 | I112: 37964.62059 | J112: 42849.57843 | K112: 35349.57843 | L112: 43849.57843 | M112: 43849.57843 | N112: 43849.57843 | O112: 43849.57843 | P112: 43849.57843 | Q112: 43849.57843 | R112: 27234.71139 | S112: 18734.71139 | T112: 27234.71139 | U112: 27234.71139 | V112: 27234.71139 | W112: 27234.71139 | X112: 27234.71139 | Y112: 27234.71139 | Z112: 27234.71139 | AA112: 18734.71139 | AB112: 27234.71139 | AC112: 27234.71139 | AD112: 27234.71139 | AE112: 27234.71139 | AF112: 27234.71139 | AG112: 27234.71139
A113: Less tax increase (no effect found in data)
A114: Less change in rent | D114: =+D128 -> 15.48 | E114: =+E128 -> 15.48 | F114: 15.48 | G114: 15.48 | H114: 15.48 | I114: 15.48 | J114: 15.48 | K114: 15.48 | L114: 15.48 | M114: 15.48 | N114: 15.48 | O114: 15.48 | P114: 15.48 | Q114: 15.48 | R114: 15.48 | S114: 15.48 | T114: 15.48 | U114: 15.48 | V114: 15.48 | W114: 15.48 | X114: 15.48 | Y114: 15.48 | Z114: 15.48 | AA114: 15.48 | AB114: 15.48 | AC114: 15.48 | AD114: 15.48 | AE114: 15.48 | AF114: 15.48 | AG114: 15.48
A115: Farmers' Cash Flow | B115: =+B112-B111-B113-B114 -> 0 | C115: 0 | D115: 6561.956764 | E115: 11639.39353 | F115: 18216.83029 | G115: 24794.26706 | H115: 31371.70382 | I115: 37949.14059 | J115: 42834.09843 | K115: 35334.09843 | L115: 43834.09843 | M115: 43834.09843 | N115: 43834.09843 | O115: 43834.09843 | P115: 43834.09843 | Q115: 43834.09843 | R115: 27219.23139 | S115: 18719.23139 | T115: 27219.23139 | U115: 27219.23139 | V115: 27219.23139 | W115: 27219.23139 | X115: 27219.23139 | Y115: 27219.23139 | Z115: 27219.23139 | AA115: 18719.23139 | AB115: 27219.23139 | AC115: 27219.23139 | AD115: 27219.23139 | AE115: 27219.23139 | AF115: 27219.23139 | AG115: 27219.23139
A116: FIRR, Farmers
A118: FOR ERP Adjustments
A119: Change in HVA income per hectare | D119: =+D81+D83-VLOOKUP($B$8,'Income unirrigated'!$C$20:$J$28, 3,FALSE)*D100 -> 6691.76505 | E119: =+E81+E83-VLOOKUP($B$8,'Income unirrigated'!$C$20:$J$28, 3,FALSE)*E100 -> 13383.5301 | F119: =+F81+F83-VLOOKUP($B$8,'Income unirrigated'!$C$20:$J$28, 3,FALSE)*F100 -> 20075.29515 | G119: =+G81+G83-VLOOKUP($B$8,'Income unirrigated'!$C$20:$J$28, 3,FALSE)*G100 -> 26767.0602 | H119: =+H81+H83-VLOOKUP($B$8,'Income unirrigated'!$C$20:$J$28, 3,FALSE)*H100 -> 33458.82525 | I119: =+I81+I83-VLOOKUP($B$8,'Income unirrigated'!$C$20:$J$28, 3,FALSE)*I100 -> 40150.5903 | J119: =+J81+J83-VLOOKUP($B$8,'Income unirrigated'!$C$20:$J$28, 3,FALSE)*J100 -> 44611.767 | K119: =+K81+K83-VLOOKUP($B$8,'Income unirrigated'!$C$20:$J$28, 3,FALSE)*K100 -> 44611.767 | L119: =+L81+L83-VLOOKUP($B$8,'Income unirrigated'!$C$20:$J$28, 3,FALSE)*L100 -> 44611.767 | M119: =+M81+M83-VLOOKUP($B$8,'Income unirrigated'!$C$20:$J$28, 3,FALSE)*M100 -> 44611.767 | N119: =+N81+N83-VLOOKUP($B$8,'Income unirrigated'!$C$20:$J$28, 3,FALSE)*N100 -> 44611.767 | O119: =+O81+O83-VLOOKUP($B$8,'Income unirrigated'!$C$20:$J$28, 3,FALSE)*O100 -> 44611.767 | P119: =+P81+P83-VLOOKUP($B$8,'Income unirrigated'!$C$20:$J$28, 3,FALSE)*P100 -> 44611.767 | Q119: =+Q81+Q83-VLOOKUP($B$8,'Income unirrigated'!$C$20:$J$28, 3,FALSE)*Q100 -> 44611.767 | R119: =+R81+R83-VLOOKUP($B$8,'Income unirrigated'!$C$20:$J$28, 3,FALSE)*R100 -> 27757.42389 | S119: =+S81+S83-VLOOKUP($B$8,'Income unirrigated'!$C$20:$J$28, 3,FALSE)*S100 -> 27757.42389 | T119: =+T81+T83-VLOOKUP($B$8,'Income unirrigated'!$C$20:$J$28, 3,FALSE)*T100 -> 27757.42389 | U119: =+U81+U83-VLOOKUP($B$8,'Income unirrigated'!$C$20:$J$28, 3,FALSE)*U100 -> 27757.42389 | V119: =+V81+V83-VLOOKUP($B$8,'Income unirrigated'!$C$20:$J$28, 3,FALSE)*V100 -> 27757.42389 | W119: =+W81+W83-VLOOKUP($B$8,'Income unirrigated'!$C$20:$J$28, 3,FALSE)*W100 -> 27757.42389 | X119: =+X81+X83-VLOOKUP($B$8,'Income unirrigated'!$C$20:$J$28, 3,FALSE)*X100 -> 27757.42389 | Y119: =+Y81+Y83-VLOOKUP($B$8,'Income unirrigated'!$C$20:$J$28, 3,FALSE)*Y100 -> 27757.42389 | Z119: =+Z81+Z83-VLOOKUP($B$8,'Income unirrigated'!$C$20:$J$28, 3,FALSE)*Z100 -> 27757.42389 | AA119: =+AA81+AA83-VLOOKUP($B$8,'Income unirrigated'!$C$20:$J$28, 3,FALSE)*AA100 -> 27757.42389 | AB119: =+AB81+AB83-VLOOKUP($B$8,'Income unirrigated'!$C$20:$J$28, 3,FALSE)*AB100 -> 27757.42389 | AC119: =+AC81+AC83-VLOOKUP($B$8,'Income unirrigated'!$C$20:$J$28, 3,FALSE)*AC100 -> 27757.42389 | AD119: =+AD81+AD83-VLOOKUP($B$8,'Income unirrigated'!$C$20:$J$28, 3,FALSE)*AD100 -> 27757.42389 | AE119: =+AE81+AE83-VLOOKUP($B$8,'Income unirrigated'!$C$20:$J$28, 3,FALSE)*AE100 -> 27757.42389 | AF119: =+AF81+AF83-VLOOKUP($B$8,'Income unirrigated'!$C$20:$J$28, 3,FALSE)*AF100 -> 27757.42389 | AG119: =+AG81+AG83-VLOOKUP($B$8,'Income unirrigated'!$C$20:$J$28, 3,FALSE)*AG100 -> 27757.42389
A120: Change in grain and technical crops income per hectare | D120: =+D82+D84-VLOOKUP($B$8,'Income unirrigated'!$C$34:$J$42,3,FALSE)*D101 -> -114.3282857 | E120: =+E82+E84-+VLOOKUP($B$8,'Income unirrigated'!$C$34:$J$42,3,FALSE)*E101 -> -228.6565714 | F120: =+F82+F84-+VLOOKUP($B$8,'Income unirrigated'!$C$34:$J$42,3,FALSE)*F101 -> -342.9848571 | G120: =+G82+G84-+VLOOKUP($B$8,'Income unirrigated'!$C$34:$J$42,3,FALSE)*G101 -> -457.3131429 | H120: =+H82+H84-+VLOOKUP($B$8,'Income unirrigated'!$C$34:$J$42,3,FALSE)*H101 -> -571.6414286 | I120: =+I82+I84-+VLOOKUP($B$8,'Income unirrigated'!$C$34:$J$42,3,FALSE)*I101 -> -685.9697143 | J120: =+J82+J84-+VLOOKUP($B$8,'Income unirrigated'!$C$34:$J$42,3,FALSE)*J101 -> -762.1885714 | K120: =+K82+K84-+VLOOKUP($B$8,'Income unirrigated'!$C$34:$J$42,3,FALSE)*K101 -> -762.1885714 | L120: =+L82+L84-+VLOOKUP($B$8,'Income unirrigated'!$C$34:$J$42,3,FALSE)*L101 -> -762.1885714 | M120: =+M82+M84-+VLOOKUP($B$8,'Income unirrigated'!$C$34:$J$42,3,FALSE)*M101 -> -762.1885714 | N120: =+N82+N84-+VLOOKUP($B$8,'Income unirrigated'!$C$34:$J$42,3,FALSE)*N101 -> -762.1885714 | O120: =+O82+O84-+VLOOKUP($B$8,'Income unirrigated'!$C$34:$J$42,3,FALSE)*O101 -> -762.1885714 | P120: =+P82+P84-+VLOOKUP($B$8,'Income unirrigated'!$C$34:$J$42,3,FALSE)*P101 -> -762.1885714 | Q120: =+Q82+Q84-+VLOOKUP($B$8,'Income unirrigated'!$C$34:$J$42,3,FALSE)*Q101 -> -762.1885714 | R120: =+R82+R84-+VLOOKUP($B$8,'Income unirrigated'!$C$34:$J$42,3,FALSE)*R101 -> -522.7125 | S120: =+S82+S84-+VLOOKUP($B$8,'Income unirrigated'!$C$34:$J$42,3,FALSE)*S101 -> -522.7125 | T120: =+T82+T84-+VLOOKUP($B$8,'Income unirrigated'!$C$34:$J$42,3,FALSE)*T101 -> -522.7125 | U120: =+U82+U84-+VLOOKUP($B$8,'Income unirrigated'!$C$34:$J$42,3,FALSE)*U101 -> -522.7125 | V120: =+V82+V84-+VLOOKUP($B$8,'Income unirrigated'!$C$34:$J$42,3,FALSE)*V101 -> -522.7125 | W120: =+W82+W84-+VLOOKUP($B$8,'Income unirrigated'!$C$34:$J$42,3,FALSE)*W101 -> -522.7125 | X120: =+X82+X84-+VLOOKUP($B$8,'Income unirrigated'!$C$34:$J$42,3,FALSE)*X101 -> -522.7125 | Y120: =+Y82+Y84-+VLOOKUP($B$8,'Income unirrigated'!$C$34:$J$42,3,FALSE)*Y101 -> -522.7125 | Z120: =+Z82+Z84-+VLOOKUP($B$8,'Income unirrigated'!$C$34:$J$42,3,FALSE)*Z101 -> -522.7125 | AA120: =+AA82+AA84-+VLOOKUP($B$8,'Income unirrigated'!$C$34:$J$42,3,FALSE)*AA101 -> -522.7125 | AB120: =+AB82+AB84-+VLOOKUP($B$8,'Income unirrigated'!$C$34:$J$42,3,FALSE)*AB101 -> -522.7125 | AC120: =+AC82+AC84-+VLOOKUP($B$8,'Income unirrigated'!$C$34:$J$42,3,FALSE)*AC101 -> -522.7125 | AD120: =+AD82+AD84-+VLOOKUP($B$8,'Income unirrigated'!$C$34:$J$42,3,FALSE)*AD101 -> -522.7125 | AE120: =+AE82+AE84-+VLOOKUP($B$8,'Income unirrigated'!$C$34:$J$42,3,FALSE)*AE101 -> -522.7125 | AF120: =+AF82+AF84-+VLOOKUP($B$8,'Income unirrigated'!$C$34:$J$42,3,FALSE)*AF101 -> -522.7125 | AG120: =+AG82+AG84-+VLOOKUP($B$8,'Income unirrigated'!$C$34:$J$42,3,FALSE)*AG101 -> -522.7125
A121: Correction to change in HVA income per hectare | D121: =-D119*'Common Assumptions'!$E$40 -> -133.835301 | E121: =-E119*'Common Assumptions'!$E$40 -> -267.670602 | F121: =-F119*'Common Assumptions'!$E$40 -> -401.505903 | G121: =-G119*'Common Assumptions'!$E$40 -> -535.341204 | H121: =-H119*'Common Assumptions'!$E$40 -> -669.176505 | I121: =-I119*'Common Assumptions'!$E$40 -> -803.011806 | J121: =-J119*'Common Assumptions'!$E$40 -> -892.23534 | K121: =-K119*'Common Assumptions'!$E$40 -> -892.23534 | L121: =-L119*'Common Assumptions'!$E$40 -> -892.23534 | M121: =-M119*'Common Assumptions'!$E$40 -> -892.23534 | N121: =-N119*'Common Assumptions'!$E$40 -> -892.23534 | O121: =-O119*'Common Assumptions'!$E$40 -> -892.23534 | P121: =-P119*'Common Assumptions'!$E$40 -> -892.23534 | Q121: =-Q119*'Common Assumptions'!$E$40 -> -892.23534 | R121: =-R119*'Common Assumptions'!$E$40 -> -555.1484778 | S121: =-S119*'Common Assumptions'!$E$40 -> -555.1484778 | T121: =-T119*'Common Assumptions'!$E$40 -> -555.1484778 | U121: =-U119*'Common Assumptions'!$E$40 -> -555.1484778 | V121: =-V119*'Common Assumptions'!$E$40 -> -555.1484778 | W121: =-W119*'Common Assumptions'!$E$40 -> -555.1484778 | X121: =-X119*'Common Assumptions'!$E$40 -> -555.1484778 | Y121: =-Y119*'Common Assumptions'!$E$40 -> -555.1484778 | Z121: =-Z119*'Common Assumptions'!$E$40 -> -555.1484778 | AA121: =-AA119*'Common Assumptions'!$E$40 -> -555.1484778 | AB121: =-AB119*'Common Assumptions'!$E$40 -> -555.1484778 | AC121: =-AC119*'Common Assumptions'!$E$40 -> -555.1484778 | AD121: =-AD119*'Common Assumptions'!$E$40 -> -555.1484778 | AE121: =-AE119*'Common Assumptions'!$E$40 -> -555.1484778 | AF121: =-AF119*'Common Assumptions'!$E$40 -> -555.1484778 | AG121: =-AG119*'Common Assumptions'!$E$40 -> -555.1484778
